{"text_format":"1","workbook":"xlsx","n_sheets":3,"sheets":["الفهرس","new","محمود"],"not_rendered":{"charts":0,"images":1,"macros":1,"external_links":2,"defined_names":11,"comments":0,"pivot_tables":0},"unopened":[],"bounds":{"document_bytes":16777216,"sheet_cells":100000,"rows_first":2000,"rows_last":500,"rows_between":2000,"halvings":0,"cell_chars":16384,"cell_head_chars":4096},"cells_cut":0,"cells_raw":0,"read":"whole","date_system":"1900"}

{"sheet":"الفهرس","index":0,"n_rows":1100,"n_cols":26,"rows_kept":1100,"cut":false,"hidden":false,"merged":[]}
["اسم العميل","الموقع",null,null,null,null,null,"كود العميل"]
["محمود",{"$f":"IF(ISERROR(INDIRECT(\"'\"&A2&\"'!c4\")),\"\",INDIRECT(\"'\"&A2&\"'!c4\"))","v":1},{"$f":"IF(ISERROR(INDIRECT(\"'\"&A2&\"'!n1\")),\"\",INDIRECT(\"'\"&A2&\"'!n1\"))","v":0},{"$f":"IF(ISERROR(INDIRECT(\"'\"&A2&\"'!AB8\")),\"\",INDIRECT(\"'\"&A2&\"'!AB8\"))","v":0},{"$f":"IF(ISERROR(INDIRECT(\"'\"&A2&\"'!AB9\")),\"\",INDIRECT(\"'\"&A2&\"'!AB9\"))","v":0},{"$f":"IF(ISERROR(INDIRECT(\"'\"&A2&\"'!AB10\")),\"\",INDIRECT(\"'\"&A2&\"'!AB10\"))","v":0},{"$f":"IF(ISERROR(INDIRECT(\"'\"&A2&\"'!AB7\")),\"\",INDIRECT(\"'\"&A2&\"'!AB7\"))","v":0},{"$f":"IF(ISERROR(INDIRECT(\"'\"&A2&\"'!k4\")),\"\",INDIRECT(\"'\"&A2&\"'!k4\"))","v":1},null,null,null,null,null,null,null,null,{"$f":"IF(D2=\"\",0,D2)","v":0},{"$f":"IF(E2=\"\",0,E2)","v":0},{"$f":"IF(F2=\"\",0,F2)","v":0},{"$f":"R2+S2+Q2","v":0},null,null,null,null,{"$f":"[2]ورقة1!A2","v":1001},{"$f":"[2]ورقة1!B2","v":"طوب مصمت6×12×25خشن رمادى100"}]
[null,{"$f":"IF(ISERROR(INDIRECT(\"'\"&A3&\"'!c4\")),\"\",INDIRECT(\"'\"&A3&\"'!c4\"))","v":""},{"$f":"IF(ISERROR(INDIRECT(\"'\"&A3&\"'!n1\")),\"\",INDIRECT(\"'\"&A3&\"'!n1\"))","v":""},{"$f":"IF(ISERROR(INDIRECT(\"'\"&A3&\"'!AB8\")),\"\",INDIRECT(\"'\"&A3&\"'!AB8\"))","v":""},{"$f":"IF(ISERROR(INDIRECT(\"'\"&A3&\"'!AB9\")),\"\",INDIRECT(\"'\"&A3&\"'!AB9\"))","v":""},{"$f":"IF(ISERROR(INDIRECT(\"'\"&A3&\"'!AB10\")),\"\",INDIRECT(\"'\"&A3&\"'!AB10\"))","v":""},{"$f":"IF(ISERROR(INDIRECT(\"'\"&A3&\"'!AB7\")),\"\",INDIRECT(\"'\"&A3&\"'!AB7\"))","v":""},{"$f":"IF(ISERROR(INDIRECT(\"'\"&A3&\"'!k4\")),\"\",INDIRECT(\"'\"&A3&\"'!k4\"))","v":""},null,null,null,null,null,null,null,null,{"$f":"IF(D3=\"\",0,D3)","v":0},{"$f":"IF(H3=\"\",0,H3)","v":0},{"$f":"IF(J3=\"\",0,J3)","v":0},{"$f":"R3+S3+Q3","v":0},null,null,null,null,{"$f":"[2]ورقة1!A3","v":1002},{"$f":"[2]ورقة1!B3","v":"طوب مصمت6×10×20خشن رمادى100"}]
[null,"","","","","","","",null,null,null,null,null,null,null,null,0,0,0,0,null,null,null,null,{"$f":"[2]ورقة1!A4","v":2001},{"$f":"[2]ورقة1!B4","v":"بلوك عتب20سم أحمر ناعم60"}]
[null,"","","","","","","",null,null,null,null,null,null,null,null,0,0,0,0,null,null,null,null,{"$f":"[2]ورقة1!A5","v":2002},{"$f":"[2]ورقة1!B5","v":"بلوك عتب20سم أحمر ناعم130"}]
[null,"","","","","","","",null,null,null,null,null,null,null,null,0,0,0,0,null,null,null,null,{"$f":"[2]ورقة1!A6","v":2003},{"$f":"[2]ورقة1!B6","v":"بلوك عتب20سم رمادى ناعم130"}]
[null,"","","","","","","",null,null,null,null,null,null,null,null,0,0,0,0,null,null,null,null,{"$f":"[2]ورقة1!A7","v":2004},{"$f":"[2]ورقة1!B7","v":"بلوك عتب20سم رمادى ناعم60"}]
[null,"","","","","","","",null,null,null,null,null,null,null,null,0,0,0,0,null,null,null,null,{"$f":"[2]ورقة1!A8","v":2005},{"$f":"[2]ورقة1!B8","v":"بلوك مفرغ12سم رمادى خشن130"}]
[null,"","","","","","","",null,null,null,null,null,null,null,null,0,0,0,0,null,null,null,null,{"$f":"[2]ورقة1!A9","v":2006},{"$f":"[2]ورقة1!B9","v":"بلوك مفرغ12سم رمادى خشن60"}]
[null,"","","","","","","",null,null,null,null,null,null,null,null,0,0,0,0,null,null,null,null,{"$f":"[2]ورقة1!A10","v":2007},{"$f":"[2]ورقة1!B10","v":"بلوك مفرغ12سم أحمر ناعم60"}]
[null,"","","","","","","",null,null,null,null,null,null,null,null,0,0,0,0,null,null,null,null,{"$f":"[2]ورقة1!A11","v":2008},{"$f":"[2]ورقة1!B11","v":"بلوك مفرغ12سم أحمر ناعم130"}]
[null,"","","","","","","",null,null,null,null,null,null,null,null,0,0,0,0,null,null,null,null,{"$f":"[2]ورقة1!A12","v":2009},{"$f":"[2]ورقة1!B12","v":"بلوك مفرغ12سم رمادى ناعم130"}]
[null,"","","","","","","",null,null,null,null,null,null,null,null,0,0,0,0,null,null,null,null,{"$f":"[2]ورقة1!A13","v":2010},{"$f":"[2]ورقة1!B13","v":"بلوك مفرغ12سم رمادى ناعم60"}]
[null,"","","","","","","",null,null,null,null,null,null,null,null,0,0,0,0,null,null,null,null,{"$f":"[2]ورقة1!A14","v":2011},{"$f":"[2]ورقة1!B14","v":"بلوك مفرغ20سم رمادى خشن60"}]
[null,"","","","","","","",null,null,null,null,null,null,null,null,0,0,0,0,null,null,null,null,{"$f":"[2]ورقة1!A15","v":2012},{"$f":"[2]ورقة1!B15","v":"بلوك مفرغ20سم أحمر ناعم130"}]
[null,"","","","","","","",null,null,null,null,null,null,null,null,0,0,0,0,null,null,null,null,{"$f":"[2]ورقة1!A16","v":2013},{"$f":"[2]ورقة1!B16","v":"بلوك مفرغ20سم أحمر ناعم60"}]
[null,"","","","","","","",null,null,null,null,null,null,null,null,0,0,0,0,null,null,null,null,{"$f":"[2]ورقة1!A17","v":2014},{"$f":"[2]ورقة1!B17","v":"بلوك مفرغ20سم رمادى ناعم60"}]
[null,"","","","","","","",null,null,null,null,null,null,null,null,0,0,0,0,null,null,null,null,{"$f":"[2]ورقة1!A18","v":2015},{"$f":"[2]ورقة1!B18","v":"بلوك مفرغ20سم رمادى ناعم130"}]
[null,"","","","","","","",null,null,null,null,null,null,null,null,0,0,0,0,null,null,null,null,{"$f":"[2]ورقة1!A19","v":2016},{"$f":"[2]ورقة1!B19","v":"بلوك مفرغ25سم رمادى خشن60"}]
[null,"","","","","","","",null,null,null,null,null,null,null,null,0,0,0,0,null,null,null,null,{"$f":"[2]ورقة1!A20","v":2017},{"$f":"[2]ورقة1!B20","v":"بلوك مفرغ20سم أحمر ناعم100"}]
[null,"","","","","","","",null,null,null,null,null,null,null,null,0,0,0,0,null,null,null,null,{"$f":"[2]ورقة1!A21","v":2018},{"$f":"[2]ورقة1!B21","v":"بلوك مفرغ20سم رمادى ناعم100"}]
[null,"","","","","","","",null,null,null,null,null,null,null,null,0,0,0,0,null,null,null,null,{"$f":"[2]ورقة1!A22","v":2019},{"$f":"[2]ورقة1!B22","v":"بلوك مفرغ25سم رمادى ناعم60"}]
[null,"","","","","","","",null,null,null,null,null,null,null,null,0,0,0,0,null,null,null,null,{"$f":"[2]ورقة1!A23","v":2020},{"$f":"[2]ورقة1!B23","v":"بلوك مصمت10سم رمادى خشن60"}]
[null,"","","","","","","",null,null,null,null,null,null,null,null,0,0,0,0,null,null,null,null,{"$f":"[2]ورقة1!A24","v":2021},{"$f":"[2]ورقة1!B24","v":"بلوك سد25سم رمادى خشن60"}]
[null,"","","","","","","",null,null,null,null,null,null,null,null,0,0,0,0,null,null,null,null,{"$f":"[2]ورقة1!A25","v":2022},{"$f":"[2]ورقة1!B25","v":"بلوك كى ستون20سم رمادى ناعم250"}]
[null,"","","","","","","",null,null,null,null,null,null,null,null,0,0,0,0,null,null,null,null,{"$f":"[2]ورقة1!A26","v":2023},{"$f":"[2]ورقة1!B26","v":"بلوك مفرغ20سم بيج ناعم100"}]
[null,"","","","","","","",null,null,null,null,null,null,null,null,0,0,0,0,null,null,null,null,{"$f":"[2]ورقة1!A27","v":2024},{"$f":"[2]ورقة1!B27","v":"بلوك مفرغ12سم رمادى ناعم100"}]
[null,"","","","","","","",null,null,null,null,null,null,null,null,0,0,0,0,null,null,null,null,{"$f":"[2]ورقة1!A28","v":2025},{"$f":"[2]ورقة1!B28","v":"بلوك مفرغ25سم رمادى ناعم130"}]
[null,"","","","","","","",null,null,null,null,null,null,null,null,0,0,0,0,null,null,null,null,{"$f":"[2]ورقة1!A29","v":2026},{"$f":"[2]ورقة1!B29","v":"بلوك مفرغ10سم رمادى ناعم100"}]
[null,"","","","","","","",null,null,null,null,null,null,null,null,0,0,0,0,null,null,null,null,{"$f":"[2]ورقة1!A30","v":2027},{"$f":"[2]ورقة1!B30","v":"بلوك مصمت20سم رمادى خشن60"}]
[null,"","","","","","","",null,null,null,null,null,null,null,null,0,0,0,0,null,null,null,null,{"$f":"[2]ورقة1!A31","v":2028},{"$f":"[2]ورقة1!B31","v":"بلوك مصمت20سم رمادى ناعم60"}]
[null,"","","","","","","",null,null,null,null,null,null,null,null,0,0,0,0,null,null,null,null,{"$f":"[2]ورقة1!A32","v":2029},{"$f":"[2]ورقة1!B32","v":"بلوك مصمت10سم أحمر ناعم60"}]
[null,"","","","","","","",null,null,null,null,null,null,null,null,0,0,0,0,null,null,null,null,{"$f":"[2]ورقة1!A33","v":2030},{"$f":"[2]ورقة1!B33","v":"بلوك مفرغ10سم رمادى خشن60"}]
[null,"","","","","","","",null,null,null,null,null,null,null,null,0,0,0,0,null,null,null,null,{"$f":"[2]ورقة1!A34","v":2031},{"$f":"[2]ورقة1!B34","v":"بلوك مفرغ12سم أحمر ناعم100"}]
[null,"","","","","","","",null,null,null,null,null,null,null,null,0,0,0,0,null,null,null,null,{"$f":"[2]ورقة1!A35","v":2032},{"$f":"[2]ورقة1!B35","v":"بلوك مفرغ25سم أحمر ناعم100"}]
[null,"","","","","","","",null,null,null,null,null,null,null,null,0,0,0,0,null,null,null,null,{"$f":"[2]ورقة1!A36","v":3001},{"$f":"[2]ورقة1!B36","v":"بردورة حدائق رمادى كامل150"}]
[null,"","","","","","","",null,null,null,null,null,null,null,null,0,0,0,0,null,null,null,null,{"$f":"[2]ورقة1!A37","v":3002},{"$f":"[2]ورقة1!B37","v":"بردورة حدائق أحمركامل150"}]
[null,"","","","","","","",null,null,null,null,null,null,null,null,0,0,0,0,null,null,null,null,{"$f":"[2]ورقة1!A38","v":3003},{"$f":"[2]ورقة1!B38","v":"بردورة حدائق رمادى كامل150-10سم"}]
[null,"","","","","","","",null,null,null,null,null,null,null,null,0,0,0,0,null,null,null,null,{"$f":"[2]ورقة1!A39","v":3004},{"$f":"[2]ورقة1!B39","v":"بردورة متوسطة متداخلة بيج كامل250"}]
[null,"","","","","","","",null,null,null,null,null,null,null,null,0,0,0,0,null,null,null,null,{"$f":"[2]ورقة1!A40","v":3005},{"$f":"[2]ورقة1!B40","v":"بردورة متوسطة متداخلة رمادى كامل250"}]
[null,"","","","","","","",null,null,null,null,null,null,null,null,0,0,0,0,null,null,null,null,{"$f":"[2]ورقة1!A41","v":3006},{"$f":"[2]ورقة1!B41","v":"بردورة حدائق بيج فيس300"}]
[null,"","","","","","","",null,null,null,null,null,null,null,null,0,0,0,0,null,null,null,null,{"$f":"[2]ورقة1!A42","v":3007},{"$f":"[2]ورقة1!B42","v":"بردورة حدائق بيج كامل300"}]
[null,"","","","","","","",null,null,null,null,null,null,null,null,0,0,0,0,null,null,null,null,{"$f":"[2]ورقة1!A43","v":3008},{"$f":"[2]ورقة1!B43","v":"بردروة متوسطة مسح رمادى كامل250"}]
[null,"","","","","","","",null,null,null,null,null,null,null,null,0,0,0,0,null,null,null,null,{"$f":"[2]ورقة1!A44","v":3009},{"$f":"[2]ورقة1!B44","v":"بردورة متوسطة مسح1متر رمادى كامل250"}]
[null,"","","","","","","",null,null,null,null,null,null,null,null,0,0,0,0,null,null,null,null,{"$f":"[2]ورقة1!A45","v":3010},{"$f":"[2]ورقة1!B45","v":"بردورة متوسطة متداخلة بيج فيس250"}]
[null,"","","","","","","",null,null,null,null,null,null,null,null,0,0,0,0,null,null,null,null,{"$f":"[2]ورقة1!A46","v":3011},{"$f":"[2]ورقة1!B46","v":"بردورة متوسطة مسح رمادى كامل300"}]
[null,"","","","","","","",null,null,null,null,null,null,null,null,0,0,0,0,null,null,null,null,{"$f":"[2]ورقة1!A47","v":3012},{"$f":"[2]ورقة1!B47","v":"بردورة متوسطة متداخلة رمادى كامل300"}]
[null,"","","","","","","",null,null,null,null,null,null,null,null,0,0,0,0,null,null,null,null,{"$f":"[2]ورقة1!A48","v":3013},{"$f":"[2]ورقة1!B48","v":"بردورة حدائق أحمر كامل150-10سم "}]
[null,"","","","","","","",null,null,null,null,null,null,null,null,0,0,0,0,null,null,null,null,{"$f":"[2]ورقة1!A49","v":3014},{"$f":"[2]ورقة1!B49","v":"بردروة متوسطة مسح رمادى كامل200"}]
[null,"","","","","","","",null,null,null,null,null,null,null,null,0,0,0,0,null,null,null,null,{"$f":"[2]ورقة1!A50","v":3015},{"$f":"[2]ورقة1!B50","v":"بردورة حدائق رمادى كامل250"}]
[null,"","","","","","","",null,null,null,null,null,null,null,null,0,0,0,0,null,null,null,null,{"$f":"[2]ورقة1!A51","v":3016},{"$f":"[2]ورقة1!B51","v":"بردروة متوسطة مسح أصفر فيس250"}]
[null,"","","","","","","",null,null,null,null,null,null,null,null,0,0,0,0,null,null,null,null,{"$f":"[2]ورقة1!A52","v":3017},{"$f":"[2]ورقة1!B52","v":"بردروة متوسطة مسح رمادى غامق فيس250"}]
[null,"","","","","","","",null,null,null,null,null,null,null,null,0,0,0,0,null,null,null,null,{"$f":"[2]ورقة1!A53","v":3018},{"$f":"[2]ورقة1!B53","v":"بردورة حدائق رمادى كامل300"}]
[null,"","","","","","","",null,null,null,null,null,null,null,null,0,0,0,0,null,null,null,null,{"$f":"[2]ورقة1!A54","v":4001},{"$f":"[2]ورقة1!B54","v":"انترلوك بيهاتون6سم أحمر كامل250"}]
[null,"","","","","","","",null,null,null,null,null,null,null,null,0,0,0,0,null,null,null,null,{"$f":"[2]ورقة1!A55","v":4002},{"$f":"[2]ورقة1!B55","v":"انترلوك بيهاتون6سم أحمر كامل350"}]
[null,"","","","","","","",null,null,null,null,null,null,null,null,0,0,0,0,null,null,null,null,{"$f":"[2]ورقة1!A56","v":4003},{"$f":"[2]ورقة1!B56","v":"انترلوك بيهاتون6سم رمادى غامق كامل250"}]
[null,"","","","","","","",null,null,null,null,null,null,null,null,0,0,0,0,null,null,null,null,{"$f":"[2]ورقة1!A57","v":4004},{"$f":"[2]ورقة1!B57","v":"انترلوك بيهاتون6سم رمادى غامق كامل350"}]
[null,"","","","","","","",null,null,null,null,null,null,null,null,0,0,0,0,null,null,null,null,{"$f":"[2]ورقة1!A58","v":4005},{"$f":"[2]ورقة1!B58","v":"انترلوك بيهاتون6سم رمادى كامل250"}]
[null,"","","","","","","",null,null,null,null,null,null,null,null,0,0,0,0,null,null,null,null,{"$f":"[2]ورقة1!A59","v":4006},{"$f":"[2]ورقة1!B59","v":"انترلوك بيهاتون6سم رمادى كامل350"}]
[null,"","","","","","","",null,null,null,null,null,null,null,null,0,0,0,0,null,null,null,null,{"$f":"[2]ورقة1!A60","v":4007},{"$f":"[2]ورقة1!B60","v":"انترلوك بيهاتون8سم أحمر كامل250"}]
[null,"","","","","","","",null,null,null,null,null,null,null,null,0,0,0,0,null,null,null,null,{"$f":"[2]ورقة1!A61","v":4008},{"$f":"[2]ورقة1!B61","v":"انترلوك بيهاتون8سم أحمر كامل350"}]
[null,"","","","","","","",null,null,null,null,null,null,null,null,0,0,0,0,null,null,null,null,{"$f":"[2]ورقة1!A62","v":4009},{"$f":"[2]ورقة1!B62","v":"انترلوك بيهاتون8سم أحمر كامل400"}]
[null,"","","","","","","",null,null,null,null,null,null,null,null,0,0,0,0,null,null,null,null,{"$f":"[2]ورقة1!A63","v":4010},{"$f":"[2]ورقة1!B63","v":"انترلوك بيهاتون8سم رمادى كامل250"}]
[null,"","","","","","","",null,null,null,null,null,null,null,null,0,0,0,0,null,null,null,null,{"$f":"[2]ورقة1!A64","v":4011},{"$f":"[2]ورقة1!B64","v":"انترلوك بيهاتون8سم رمادى كامل400"}]
[null,"","","","","","","",null,null,null,null,null,null,null,null,0,0,0,0,null,null,null,null,{"$f":"[2]ورقة1!A65","v":4012},{"$f":"[2]ورقة1!B65","v":"انترلوك بيهاتون8سم رمادى كامل350"}]
[null,"","","","","","","",null,null,null,null,null,null,null,null,0,0,0,0,null,null,null,null,{"$f":"[2]ورقة1!A66","v":4013},{"$f":"[2]ورقة1!B66","v":"انترلوك مستطيل6سم بيج كامل250"}]
[null,{"$f":"IF(ISERROR(INDIRECT(\"'\"&A67&\"'!c4\")),\"\",INDIRECT(\"'\"&A67&\"'!c4\"))","v":""},{"$f":"IF(ISERROR(INDIRECT(\"'\"&A67&\"'!n1\")),\"\",INDIRECT(\"'\"&A67&\"'!n1\"))","v":""},{"$f":"IF(ISERROR(INDIRECT(\"'\"&A67&\"'!AB8\")),\"\",INDIRECT(\"'\"&A67&\"'!AB8\"))","v":""},{"$f":"IF(ISERROR(INDIRECT(\"'\"&A67&\"'!AB9\")),\"\",INDIRECT(\"'\"&A67&\"'!AB9\"))","v":""},{"$f":"IF(ISERROR(INDIRECT(\"'\"&A67&\"'!AB10\")),\"\",INDIRECT(\"'\"&A67&\"'!AB10\"))","v":""},{"$f":"IF(ISERROR(INDIRECT(\"'\"&A67&\"'!AB7\")),\"\",INDIRECT(\"'\"&A67&\"'!AB7\"))","v":""},{"$f":"IF(ISERROR(INDIRECT(\"'\"&A67&\"'!k4\")),\"\",INDIRECT(\"'\"&A67&\"'!k4\"))","v":""},null,null,null,null,null,null,null,null,{"$f":"IF(D67=\"\",0,D67)","v":0},{"$f":"IF(H67=\"\",0,H67)","v":0},{"$f":"IF(J67=\"\",0,J67)","v":0},{"$f":"R67+S67+Q67","v":0},null,null,null,null,{"$f":"[2]ورقة1!A67","v":4014},{"$f":"[2]ورقة1!B67","v":"انترلوك مستطيل6سم أحمر فيس250"}]
[null,"","","","","","","",null,null,null,null,null,null,null,null,0,0,0,0,null,null,null,null,{"$f":"[2]ورقة1!A68","v":4015},{"$f":"[2]ورقة1!B68","v":"انترلوك مستطيل6سم أحمر فيس350"}]
[null,"","","","","","","",null,null,null,null,null,null,null,null,0,0,0,0,null,null,null,null,{"$f":"[2]ورقة1!A69","v":4016},{"$f":"[2]ورقة1!B69","v":"انترلوك مستطيل6سم أحمر كامل250"}]
[null,"","","","","","","",null,null,null,null,null,null,null,null,0,0,0,0,null,null,null,null,{"$f":"[2]ورقة1!A70","v":4017},{"$f":"[2]ورقة1!B70","v":"انترلوك مستطيل6سم رمادى غامق كامل250"}]
[null,"","","","","","","",null,null,null,null,null,null,null,null,0,0,0,0,null,null,null,null,{"$f":"[2]ورقة1!A71","v":4018},{"$f":"[2]ورقة1!B71","v":"انترلوك مستطيل6سم أصفر فيس250"}]
[null,"","","","","","","",null,null,null,null,null,null,null,null,0,0,0,0,null,null,null,null,{"$f":"[2]ورقة1!A72","v":4019},{"$f":"[2]ورقة1!B72","v":"انترلوك مستطيل6سم أصفر كامل250"}]
[null,"","","","","","","",null,null,null,null,null,null,null,null,0,0,0,0,null,null,null,null,{"$f":"[2]ورقة1!A73","v":4020},{"$f":"[2]ورقة1!B73","v":"انترلوك مستطيل6سم رمادى كامل250"}]
[null,"","","","","","","",null,null,null,null,null,null,null,null,0,0,0,0,null,null,null,null,{"$f":"[2]ورقة1!A74","v":4021},{"$f":"[2]ورقة1!B74","v":"انترلوك مستطيل6سم رمادى غامق فيس250"}]
[null,"","","","","","","",null,null,null,null,null,null,null,null,0,0,0,0,null,null,null,null,{"$f":"[2]ورقة1!A75","v":4022},{"$f":"[2]ورقة1!B75","v":"انترلوك مستطيل8سم أحمر كامل500"}]
[null,"","","","","","","",null,null,null,null,null,null,null,null,0,0,0,0,null,null,null,null,{"$f":"[2]ورقة1!A76","v":4023},{"$f":"[2]ورقة1!B76","v":"انترلوك مستطيل8سم رمادى غامق كامل500"}]
[null,"","","","","","","",null,null,null,null,null,null,null,null,0,0,0,0,null,null,null,null,{"$f":"[2]ورقة1!A77","v":4024},{"$f":"[2]ورقة1!B77","v":"انترلوك مستطيل8سم رمادى كامل250"}]
[null,"","","","","","","",null,null,null,null,null,null,null,null,0,0,0,0,null,null,null,null,{"$f":"[2]ورقة1!A78","v":4025},{"$f":"[2]ورقة1!B78","v":"انترلوك مستطيل8سم رمادى كامل350"}]
[null,"","","","","","","",null,null,null,null,null,null,null,null,0,0,0,0,null,null,null,null,{"$f":"[2]ورقة1!A79","v":4026},{"$f":"[2]ورقة1!B79","v":"انترلوك مستطيل8سم رمادى كامل500"}]
[null,"","","","","","","",null,null,null,null,null,null,null,null,0,0,0,0,null,null,null,null,{"$f":"[2]ورقة1!A80","v":4027},{"$f":"[2]ورقة1!B80","v":"انترلوك مستطيل6سم رمادى كامل350"}]
[null,"","","","","","","",null,null,null,null,null,null,null,null,0,0,0,0,null,null,null,null,{"$f":"[2]ورقة1!A81","v":4028},{"$f":"[2]ورقة1!B81","v":"انترلوك سداسى6سم أحمر كامل250"}]
[null,"","","","","","","",null,null,null,null,null,null,null,null,0,0,0,0,null,null,null,null,{"$f":"[2]ورقة1!A82","v":4029},{"$f":"[2]ورقة1!B82","v":"انترلوك سداسى6سم أحمر كامل350"}]
[null,"","","","","","","",null,null,null,null,null,null,null,null,0,0,0,0,null,null,null,null,{"$f":"[2]ورقة1!A83","v":4030},{"$f":"[2]ورقة1!B83","v":"انترلوك سداسى6سم رمادى غامق كامل250"}]
[null,"","","","","","","",null,null,null,null,null,null,null,null,0,0,0,0,null,null,null,null,{"$f":"[2]ورقة1!A84","v":4031},{"$f":"[2]ورقة1!B84","v":"انترلوك سداسى6سم رمادى غامق كامل350"}]
[null,"","","","","","","",null,null,null,null,null,null,null,null,0,0,0,0,null,null,null,null,{"$f":"[2]ورقة1!A85","v":4032},{"$f":"[2]ورقة1!B85","v":"انترلوك سداسى6سم رمادى كامل250"}]
[null,"","","","","","","",null,null,null,null,null,null,null,null,0,0,0,0,null,null,null,null,{"$f":"[2]ورقة1!A86","v":4033},{"$f":"[2]ورقة1!B86","v":"انترلوك سداسى6سم رمادى كامل350"}]
[null,"","","","","","","",null,null,null,null,null,null,null,null,0,0,0,0,null,null,null,null,{"$f":"[2]ورقة1!A87","v":4034},{"$f":"[2]ورقة1!B87","v":"انترلوك سداسى8سم أحمر كامل250"}]
[null,"","","","","","","",null,null,null,null,null,null,null,null,0,0,0,0,null,null,null,null,{"$f":"[2]ورقة1!A88","v":4035},{"$f":"[2]ورقة1!B88","v":"انترلوك سداسى8سم رمادى كامل250"}]
[null,"","","","","","","",null,null,null,null,null,null,null,null,0,0,0,0,null,null,null,null,{"$f":"[2]ورقة1!A89","v":4036},{"$f":"[2]ورقة1!B89","v":"انترلوك سداسى8سم رمادى كامل550"}]
[null,"","","","","","","",null,null,null,null,null,null,null,null,0,0,0,0,null,null,null,null,{"$f":"[2]ورقة1!A90","v":4037},{"$f":"[2]ورقة1!B90","v":"انترلوك سداسى8سم رمادى كامل400"}]
[null,"","","","","","","",null,null,null,null,null,null,null,null,0,0,0,0,null,null,null,null,{"$f":"[2]ورقة1!A91","v":4038},{"$f":"[2]ورقة1!B91","v":"انترلوك سداسى8سم أحمر كامل400"}]
[null,"","","","","","","",null,null,null,null,null,null,null,null,0,0,0,0,null,null,null,null,{"$f":"[2]ورقة1!A92","v":4039},{"$f":"[2]ورقة1!B92","v":"انترلوك مستطيل8سم أورانج كامل350"}]
[null,"","","","","","","",null,null,null,null,null,null,null,null,0,0,0,0,null,null,null,null,{"$f":"[2]ورقة1!A93","v":4040},{"$f":"[2]ورقة1!B93","v":"انترلوك مستطيل8سم كافيه كامل350"}]
[null,"","","","","","","",null,null,null,null,null,null,null,null,0,0,0,0,null,null,null,null,{"$f":"[2]ورقة1!A94","v":4041},{"$f":"[2]ورقة1!B94","v":"انترلوك مستطيل8سم أحمر كامل250"}]
[null,"","","","","","","",null,null,null,null,null,null,null,null,0,0,0,0,null,null,null,null,{"$f":"[2]ورقة1!A95","v":4042},{"$f":"[2]ورقة1!B95","v":"انترلوك مستطيل8سم رمادى غامق كامل250"}]
[null,"","","","","","","",null,null,null,null,null,null,null,null,0,0,0,0,null,null,null,null,{"$f":"[2]ورقة1!A96","v":4043},{"$f":"[2]ورقة1!B96","v":"انترلوك مربع6سم رمادى كامل350"}]
[null,"","","","","","","",null,null,null,null,null,null,null,null,0,0,0,0,null,null,null,null,{"$f":"[2]ورقة1!A97","v":4044},{"$f":"[2]ورقة1!B97","v":"انترلوك مربع6سم رمادى كامل500"}]
[null,"","","","","","","",null,null,null,null,null,null,null,null,0,0,0,0,null,null,null,null,{"$f":"[2]ورقة1!A98","v":4045},{"$f":"[2]ورقة1!B98","v":"انترلوك مربع6سم أحمر كامل350"}]
[null,"","","","","","","",null,null,null,null,null,null,null,null,0,0,0,0,null,null,null,null,{"$f":"[2]ورقة1!A99","v":4046},{"$f":"[2]ورقة1!B99","v":"انترلوك سداسى8سم أحمر كامل500"}]
[null,"","","","","","","",null,null,null,null,null,null,null,null,0,0,0,0,null,null,null,null,{"$f":"[2]ورقة1!A100","v":4047},{"$f":"[2]ورقة1!B100","v":"انترلوك بيهاتون8سم رمادى كامل600"}]
[null,"","","","","","","",null,null,null,null,null,null,null,null,0,0,0,0,null,null,null,null,{"$f":"[2]ورقة1!A101","v":4048},{"$f":"[2]ورقة1!B101","v":"انترلوك مربع6سم رمادى غامق كامل350"}]
[null,"","","","","","","",null,null,null,null,null,null,null,null,0,0,0,0,null,null,null,null,{"$f":"[2]ورقة1!A102","v":4049},{"$f":"[2]ورقة1!B102","v":"انترلوك مربع6سم رمادى غامق كامل500"}]
[null,"","","","","","","",null,null,null,null,null,null,null,null,0,0,0,0,null,null,null,null,{"$f":"[2]ورقة1!A103","v":4050},{"$f":"[2]ورقة1!B103","v":"انترلوك مربع6سم أصفر فيس250"}]
[null,"","","","","","","",null,null,null,null,null,null,null,null,0,0,0,0,null,null,null,null,{"$f":"[2]ورقة1!A104","v":4051},{"$f":"[2]ورقة1!B104","v":"انترلوك مربع6سم أحمر كامل250"}]
[null,"","","","","","","",null,null,null,null,null,null,null,null,0,0,0,0,null,null,null,null,{"$f":"[2]ورقة1!A105","v":4052},{"$f":"[2]ورقة1!B105","v":"انترلوك مستطيل6سم رمادى غامق كامل500"}]
[null,"","","","","","","",null,null,null,null,null,null,null,null,0,0,0,0,null,null,null,null,{"$f":"[2]ورقة1!A106","v":4053},{"$f":"[2]ورقة1!B106","v":"انترلوك مستطيل6سم رمادى كامل500"}]
[null,"","","","","","","",null,null,null,null,null,null,null,null,0,0,0,0,null,null,null,null,{"$f":"[2]ورقة1!A107","v":4054},{"$f":"[2]ورقة1!B107","v":"انترلوك سداسى8سم رمادى كامل350"}]
[null,"","","","","","","",null,null,null,null,null,null,null,null,0,0,0,0,null,null,null,null,{"$f":"[2]ورقة1!A108","v":4055},{"$f":"[2]ورقة1!B108","v":"انترلوك سداسى8سم أحمر كامل350"}]
[null,"","","","","","","",null,null,null,null,null,null,null,null,0,0,0,0,null,null,null,null,{"$f":"[2]ورقة1!A109","v":4056},{"$f":"[2]ورقة1!B109","v":"انترلوك بيهاتون6سم أحمر كامل300"}]
[null,"","","","","","","",null,null,null,null,null,null,null,null,0,0,0,0,null,null,null,null,{"$f":"[2]ورقة1!A110","v":4057},{"$f":"[2]ورقة1!B110","v":"انترلوك مستطيل6سم بيج كامل350"}]
[null,"","","","","","","",null,null,null,null,null,null,null,null,0,0,0,0,null,null,null,null,{"$f":"[2]ورقة1!A111","v":4058},{"$f":"[2]ورقة1!B111","v":"انترلوك مستطيل6سم بيج فيس350"}]
[null,"","","","","","","",null,null,null,null,null,null,null,null,0,0,0,0,null,null,null,null,{"$f":"[2]ورقة1!A112","v":4059},{"$f":"[2]ورقة1!B112","v":"انترلوك بيهاتون6سم رمادى كامل300"}]
[null,"","","","","","","",null,null,null,null,null,null,null,null,0,0,0,0,null,null,null,null,{"$f":"[2]ورقة1!A113","v":4060},{"$f":"[2]ورقة1!B113","v":"انترلوك مستطيل6سم بيج فيس500"}]
[null,"","","","","","","",null,null,null,null,null,null,null,null,0,0,0,0,null,null,null,null,{"$f":"[2]ورقة1!A114","v":4061},{"$f":"[2]ورقة1!B114","v":"انترلوك مستطيل6سم أصفر فيس500"}]
[null,"","","","","","","",null,null,null,null,null,null,null,null,0,0,0,0,null,null,null,null,{"$f":"[2]ورقة1!A115","v":4062},{"$f":"[2]ورقة1!B115","v":"انترلوك مربع6سم بيج فيس350"}]
[null,"","","","","","","",null,null,null,null,null,null,null,null,0,0,0,0,null,null,null,null,{"$f":"[2]ورقة1!A116","v":4063},{"$f":"[2]ورقة1!B116","v":"انترلوك مربع6سم بيج كامل350"}]
[null,"","","","","","","",null,null,null,null,null,null,null,null,0,0,0,0,null,null,null,null,{"$f":"[2]ورقة1!A117","v":4064},{"$f":"[2]ورقة1!B117","v":"انترلوك بيهاتون8سم رمادى كامل500"}]
[null,"","","","","","","",null,null,null,null,null,null,null,null,0,0,0,0,null,null,null,null,{"$f":"[2]ورقة1!A118","v":4065},{"$f":"[2]ورقة1!B118","v":"انترلوك بيهاتون8سم أحمر كامل500"}]
[null,"","","","","","","",null,null,null,null,null,null,null,null,0,0,0,0,null,null,null,null,{"$f":"[2]ورقة1!A119","v":4066},{"$f":"[2]ورقة1!B119","v":"انترلوك مستطيل8سم بيج فيس500"}]
[null,"","","","","","","",null,null,null,null,null,null,null,null,0,0,0,0,null,null,null,null,{"$f":"[2]ورقة1!A120","v":4067},{"$f":"[2]ورقة1!B120","v":"انترلوك مستطيل8سم أصفر فيس500"}]
[null,"","","","","","","",null,null,null,null,null,null,null,null,0,0,0,0,null,null,null,null,{"$f":"[2]ورقة1!A121","v":4068},{"$f":"[2]ورقة1!B121","v":"انترلوك مستطيل6سم رمادى غامق كامل350"}]
[null,"","","","","","","",null,null,null,null,null,null,null,null,0,0,0,0,null,null,null,null,{"$f":"[2]ورقة1!A122","v":4069},{"$f":"[2]ورقة1!B122","v":"انترلوك مستطيل6سم أحمر كامل350"}]
[null,"","","","","","","",null,null,null,null,null,null,null,null,0,0,0,0,null,null,null,null,{"$f":"[2]ورقة1!A123","v":4070},{"$f":"[2]ورقة1!B123","v":"انترلوك مستطيل6سم رمادى كامل300"}]
[null,"","","","","","","",null,null,null,null,null,null,null,null,0,0,0,0,null,null,null,null,{"$f":"[2]ورقة1!A124","v":4071},{"$f":"[2]ورقة1!B124","v":"انترلوك مستطيل6سم أحمر فيس300"}]
[null,"","","","","","","",null,null,null,null,null,null,null,null,0,0,0,0,null,null,null,null,{"$f":"[2]ورقة1!A125","v":4072},{"$f":"[2]ورقة1!B125","v":"انترلوك بيهاتون8سم رمادى غامق كامل500"}]
[null,"","","","","","","",null,null,null,null,null,null,null,null,0,0,0,0,null,null,null,null,{"$f":"[2]ورقة1!A126","v":4073},{"$f":"[2]ورقة1!B126","v":"انترلوك مربع8سم بيج فيس500"}]
[null,"","","","","","","",null,null,null,null,null,null,null,null,0,0,0,0,null,null,null,null,{"$f":"[2]ورقة1!A127","v":4074},{"$f":"[2]ورقة1!B127","v":"انترلوك مربع8سم×20بيج فيس500"}]
[null,"","","","","","","",null,null,null,null,null,null,null,null,0,0,0,0,null,null,null,null,{"$f":"[2]ورقة1!A128","v":4075},{"$f":"[2]ورقة1!B128","v":"انترلوك مربع8سم بيج كامل500"}]
[null,"","","","","","","",null,null,null,null,null,null,null,null,0,0,0,0,null,null,null,null,{"$f":"[2]ورقة1!A129","v":4076},{"$f":"[2]ورقة1!B129","v":"انترلوك مربع8سم×20بيج كامل500"}]
[null,"","","","","","","",null,null,null,null,null,null,null,null,0,0,0,0,null,null,null,null,{"$f":"[2]ورقة1!A130","v":4077},{"$f":"[2]ورقة1!B130","v":"انترلوك مربع8سم×20أحمر كامل500"}]
[null,{"$f":"IF(ISERROR(INDIRECT(\"'\"&A131&\"'!c4\")),\"\",INDIRECT(\"'\"&A131&\"'!c4\"))","v":""},{"$f":"IF(ISERROR(INDIRECT(\"'\"&A131&\"'!n1\")),\"\",INDIRECT(\"'\"&A131&\"'!n1\"))","v":""},{"$f":"IF(ISERROR(INDIRECT(\"'\"&A131&\"'!AB8\")),\"\",INDIRECT(\"'\"&A131&\"'!AB8\"))","v":""},{"$f":"IF(ISERROR(INDIRECT(\"'\"&A131&\"'!AB9\")),\"\",INDIRECT(\"'\"&A131&\"'!AB9\"))","v":""},{"$f":"IF(ISERROR(INDIRECT(\"'\"&A131&\"'!AB10\")),\"\",INDIRECT(\"'\"&A131&\"'!AB10\"))","v":""},{"$f":"IF(ISERROR(INDIRECT(\"'\"&A131&\"'!AB7\")),\"\",INDIRECT(\"'\"&A131&\"'!AB7\"))","v":""},{"$f":"IF(ISERROR(INDIRECT(\"'\"&A131&\"'!k4\")),\"\",INDIRECT(\"'\"&A131&\"'!k4\"))","v":""},null,null,null,null,null,null,null,null,{"$f":"IF(D131=\"\",0,D131)","v":0},{"$f":"IF(H131=\"\",0,H131)","v":0},{"$f":"IF(J131=\"\",0,J131)","v":0},{"$f":"R131+S131+Q131","v":0},null,null,null,null,{"$f":"[2]ورقة1!A131","v":4078},{"$f":"[2]ورقة1!B131","v":"انترلوك مربع8سم×20رمادى كامل500"}]
[null,"","","","","","","",null,null,null,null,null,null,null,null,0,0,0,0,null,null,null,null,{"$f":"[2]ورقة1!A132","v":4079},{"$f":"[2]ورقة1!B132","v":"انترلوك مربع8سم رمادى غامق كامل500"}]
[null,"","","","","","","",null,null,null,null,null,null,null,null,0,0,0,0,null,null,null,null,{"$f":"[2]ورقة1!A133","v":4080},{"$f":"[2]ورقة1!B133","v":"انترلوك مربع8سم أحمر كامل500"}]
[null,"","","","","","","",null,null,null,null,null,null,null,null,0,0,0,0,null,null,null,null,{"$f":"[2]ورقة1!A134","v":4081},{"$f":"[2]ورقة1!B134","v":"انترلوك مربع8سم رمادى كامل500"}]
[null,"","","","","","","",null,null,null,null,null,null,null,null,0,0,0,0,null,null,null,null,{"$f":"[2]ورقة1!A135","v":4082},{"$f":"[2]ورقة1!B135","v":"انترلوك مربع8سم أصفر فيس350"}]
[null,"","","","","","","",null,null,null,null,null,null,null,null,0,0,0,0,null,null,null,null,{"$f":"[2]ورقة1!A136","v":4083},{"$f":"[2]ورقة1!B136","v":"انترلوك مربع6سم أصفر فيس500"}]
[null,"","","","","","","",null,null,null,null,null,null,null,null,0,0,0,0,null,null,null,null,{"$f":"[2]ورقة1!A137","v":4084},{"$f":"[2]ورقة1!B137","v":"انترلوك مربع8سم×60رمادى غامق كامل500"}]
[null,"","","","","","","",null,null,null,null,null,null,null,null,0,0,0,0,null,null,null,null,{"$f":"[2]ورقة1!A138","v":4085},{"$f":"[2]ورقة1!B138","v":"انترلوك مربع8سم×60رمادى كامل500"}]
[null,"","","","","","","",null,null,null,null,null,null,null,null,0,0,0,0,null,null,null,null,{"$f":"[2]ورقة1!A139","v":4086},{"$f":"[2]ورقة1!B139","v":"انترلوك مستطيل6سم بيج كامل500"}]
[null,"","","","","","","",null,null,null,null,null,null,null,null,0,0,0,0,null,null,null,null,{"$f":"[2]ورقة1!A140","v":4087},{"$f":"[2]ورقة1!B140","v":"انترلوك مستطيل8سم بيج كامل500"}]
[null,"","","","","","","",null,null,null,null,null,null,null,null,0,0,0,0,null,null,null,null,{"$f":"[2]ورقة1!A141","v":4088},{"$f":"[2]ورقة1!B141","v":"انترلوك مستطيل8سم30×60رمادى غامق كامل500"}]
[null,"","","","","","","",null,null,null,null,null,null,null,null,0,0,0,0,null,null,null,null,{"$f":"[2]ورقة1!A142","v":4089},{"$f":"[2]ورقة1!B142","v":"انترلوك مستطيل8سم30×60رمادى كامل500"}]
[null,"","","","","","","",null,null,null,null,null,null,null,null,0,0,0,0,null,null,null,null,{"$f":"[2]ورقة1!A143","v":4090},{"$f":"[2]ورقة1!B143","v":"انترلوك مستطيل6سم أحمر كامل500"}]
[null,"","","","","","","",null,null,null,null,null,null,null,null,0,0,0,0,null,null,null,null,{"$f":"[2]ورقة1!A144","v":4091},{"$f":"[2]ورقة1!B144","v":"انترلوك سداسى6سم رمادى كامل450"}]
[null,"","","","","","","",null,null,null,null,null,null,null,null,0,0,0,0,null,null,null,null,{"$f":"[2]ورقة1!A145","v":4092},{"$f":"[2]ورقة1!B145","v":"انترلوك مربع8سم×30رمادى غامق كامل500"}]
[null,"","","","","","","",null,null,null,null,null,null,null,null,0,0,0,0,null,null,null,null,{"$f":"[2]ورقة1!A146","v":4093},{"$f":"[2]ورقة1!B146","v":"انترلوك مربع8سم×30رمادى غامق فيس500"}]
[null,"","","","","","","",null,null,null,null,null,null,null,null,0,0,0,0,null,null,null,null,{"$f":"[2]ورقة1!A147","v":4094},{"$f":"[2]ورقة1!B147","v":"انترلوك مربع8سم×30رمادى كامل350"}]
[null,"","","","","","","",null,null,null,null,null,null,null,null,0,0,0,0,null,null,null,null,{"$f":"[2]ورقة1!A148","v":4095},{"$f":"[2]ورقة1!B148","v":"انترلوك مستطيل8سم رمادى غامق كامل350"}]
[null,"","","","","","","",null,null,null,null,null,null,null,null,0,0,0,0,null,null,null,null,{"$f":"[2]ورقة1!A149","v":4096},{"$f":"[2]ورقة1!B149","v":"انترلوك مستطيل8سم أحمر كامل350"}]
[null,"","","","","","","",null,null,null,null,null,null,null,null,0,0,0,0,null,null,null,null,{"$f":"[2]ورقة1!A150","v":4097},{"$f":"[2]ورقة1!B150","v":"انترلوك مستطيل6سم أصفر كامل350"}]
[null,"","","","","","","",null,null,null,null,null,null,null,null,0,0,0,0,null,null,null,null,{"$f":"[2]ورقة1!A151","v":4098},{"$f":"[2]ورقة1!B151","v":"انترلوك مربع8سم×20أصفر كامل500"}]
[null,"","","","","","","",null,null,null,null,null,null,null,null,0,0,0,0,null,null,null,null,{"$f":"[2]ورقة1!A152","v":4099},{"$f":"[2]ورقة1!B152","v":"انترلوك مستطيل8سم بني كامل350"}]
[null,"","","","","","","",null,null,null,null,null,null,null,null,0,0,0,0,null,null,null,null,{"$f":"[2]ورقة1!A153","v":4100},{"$f":"[2]ورقة1!B153","v":"انترلوك مستطيل6سم رمادى غامق كامل300"}]
[null,"","","","","","","",null,null,null,null,null,null,null,null,0,0,0,0,null,null,null,null,{"$f":"[2]ورقة1!A154","v":4101},{"$f":"[2]ورقة1!B154","v":"انترلوك مربع8سم×60رمادى كامل350"}]
[null,"","","","","","","",null,null,null,null,null,null,null,null,0,0,0,0,null,null,null,null,{"$f":"[2]ورقة1!A155","v":4102},{"$f":"[2]ورقة1!B155","v":"انترلوك مربع8سم×20رمادى غامق كامل350"}]
[null,"","","","","","","",null,null,null,null,null,null,null,null,0,0,0,0,null,null,null,null,{"$f":"[2]ورقة1!A156","v":4103},{"$f":"[2]ورقة1!B156","v":"انترلوك مستطيل8سم20×40رمادى كامل350"}]
[null,"","","","","","","",null,null,null,null,null,null,null,null,0,0,0,0,null,null,null,null,{"$f":"[2]ورقة1!A157","v":4104},{"$f":"[2]ورقة1!B157","v":"انترلوك مستطيل8سم رمادى غامق كامل550"}]
[null,"","","","","","","",null,null,null,null,null,null,null,null,0,0,0,0,null,null,null,null,{"$f":"[2]ورقة1!A158","v":4105},{"$f":"[2]ورقة1!B158","v":"انترلوك مستطيل8سم30×60رمادى غامق كامل350"}]
[null,"","","","","","","",null,null,null,null,null,null,null,null,0,0,0,0,null,null,null,null,{"$f":"[2]ورقة1!A159","v":4106},{"$f":"[2]ورقة1!B159","v":"انترلوك مربع8سم×60رمادى غامق كامل350"}]
[null,"","","","","","","",null,null,null,null,null,null,null,null,0,0,0,0,null,null,null,null,{"$f":"[2]ورقة1!A160","v":4107},{"$f":"[2]ورقة1!B160","v":"انترلوك مستطيل8سم30×60رمادى كامل350"}]
[null,"","","","","","","",null,null,null,null,null,null,null,null,0,0,0,0,null,null,null,null,{"$f":"[2]ورقة1!A161","v":4108},{"$f":"[2]ورقة1!B161","v":"انترلوك مستطيل8سم20×40رمادى كامل500"}]
[null,"","","","","","","",null,null,null,null,null,null,null,null,0,0,0,0,null,null,null,null,{"$f":"[2]ورقة1!A162","v":4109},{"$f":"[2]ورقة1!B162","v":"انترلوك مربع8سم×30رمادى غامق فيس350"}]
[null,"","","","","","","",null,null,null,null,null,null,null,null,0,0,0,0,null,null,null,null,{"$f":"[2]ورقة1!A163","v":4110},{"$f":"[2]ورقة1!B163","v":"انترلوك مربع8سم×30أحمر فيس350"}]
[null,"","","","","","","",null,null,null,null,null,null,null,null,0,0,0,0,null,null,null,null,{"$f":"[2]ورقة1!A164","v":4111},{"$f":"[2]ورقة1!B164","v":"انترلوك مربع8سم×20رمادى كامل350"}]
[null,"","","","","","","",null,null,null,null,null,null,null,null,0,0,0,0,null,null,null,null,{"$f":"[2]ورقة1!A165","v":4112},{"$f":"[2]ورقة1!B165","v":"انترلوك مستطيل8سم رمادى كامل400"}]
[null,"","","","","","","",null,null,null,null,null,null,null,null,0,0,0,0,null,null,null,null,{"$f":"[2]ورقة1!A166","v":4113},{"$f":"[2]ورقة1!B166","v":"انترلوك مربع8سم×20رمادى فاتح فيس350"}]
[null,"","","","","","","",null,null,null,null,null,null,null,null,0,0,0,0,null,null,null,null,{"$f":"[2]ورقة1!A167","v":4114},{"$f":"[2]ورقة1!B167","v":"انترلوك مربع8سم×30رمادى غامق كامل350"}]
[null,"","","","","","","",null,null,null,null,null,null,null,null,0,0,0,0,null,null,null,null,{"$f":"[2]ورقة1!A168","v":4115},{"$f":"[2]ورقة1!B168","v":"انترلوك بيهاتون6سم رمادى فاتح فيس400"}]
[null,"","","","","","","",null,null,null,null,null,null,null,null,0,0,0,0,null,null,null,null,{"$f":"[2]ورقة1!A169","v":4116},{"$f":"[2]ورقة1!B169","v":"انترلوك مستطيل6سم أصفر فيس300"}]
[null,"","","","","","","",null,null,null,null,null,null,null,null,0,0,0,0,null,null,null,null,{"$f":"[2]ورقة1!A170","v":4117},{"$f":"[2]ورقة1!B170","v":"انترلوك بيهاتون6سم أحمر كامل400"}]
[null,"","","","","","","",null,null,null,null,null,null,null,null,0,0,0,0,null,null,null,null,{"$f":"[2]ورقة1!A171","v":4118},{"$f":"[2]ورقة1!B171","v":"انترلوك مستطيل6سم أحمر كامل300"}]
[null,"","","","","","","",null,null,null,null,null,null,null,null,0,0,0,0,null,null,null,null,{"$f":"[2]ورقة1!A172","v":4119},{"$f":"[2]ورقة1!B172","v":"انترلوك سداسى8سم رمادى كامل500"}]
[null,"","","","","","","",null,null,null,null,null,null,null,null,0,0,0,0,null,null,null,null,{"$f":"[2]ورقة1!A173","v":4120},{"$f":"[2]ورقة1!B173","v":"انترلوك مستطيل8سم رمادى غامق كامل450"}]
[null,"","","","","","","",null,null,null,null,null,null,null,null,0,0,0,0,null,null,null,null,{"$f":"[2]ورقة1!A174","v":4121},{"$f":"[2]ورقة1!B174","v":"انترلوك مستطيل6سم رمادى فاتح فيس300"}]
[null,"","","","","","","",null,null,null,null,null,null,null,null,0,0,0,0,null,null,null,null,{"$f":"[2]ورقة1!A175","v":4122},{"$f":"[2]ورقة1!B175","v":"انترلوك بيهاتون8سم رمادى فاتح فيس450"}]
[null,"","","","","","","",null,null,null,null,null,null,null,null,0,0,0,0,null,null,null,null,{"$f":"[2]ورقة1!A176","v":4123},{"$f":"[2]ورقة1!B176","v":"انترلوك سداسى6سم رمادى كامل300"}]
[null,"","","","","","","",null,null,null,null,null,null,null,null,0,0,0,0,null,null,null,null,{"$f":"[2]ورقة1!A177","v":4124},{"$f":"[2]ورقة1!B177","v":"انترلوك مستطيل8سم20×40رمادى غامق350"}]
[null,"","","","","","","",null,null,null,null,null,null,null,null,0,0,0,0,null,null,null,null,{"$f":"[2]ورقة1!A178","v":4125},{"$f":"[2]ورقة1!B178","v":"انترلوك مربع8سم رمادى كامل350"}]
[null,"","","","","","","",null,null,null,null,null,null,null,null,0,0,0,0,null,null,null,null,{"$f":"[2]ورقة1!A179","v":4126},{"$f":"[2]ورقة1!B179","v":"انترلوك مستطيل6سم أصفر فيس350"}]
[null,"","","","","","","",null,null,null,null,null,null,null,null,0,0,0,0,null,null,null,null,{"$f":"[2]ورقة1!A180","v":4127},{"$f":"[2]ورقة1!B180","v":"انترلوك مستطيل8سم رمادى فاتح فيس400"}]
[null,"","","","","","","",null,null,null,null,null,null,null,null,0,0,0,0,null,null,null,null,{"$f":"[2]ورقة1!A181","v":4128},{"$f":"[2]ورقة1!B181","v":"انترلوك مستطيل8سم أحمر كامل400"}]
[null,"","","","","","","",null,null,null,null,null,null,null,null,0,0,0,0,null,null,null,null,{"$f":"[2]ورقة1!A182","v":4129},{"$f":"[2]ورقة1!B182","v":"انترلوك مربع8سم×20أحمركامل400"}]
[null,"","","","","","","",null,null,null,null,null,null,null,null,0,0,0,0,null,null,null,null,{"$f":"[2]ورقة1!A183","v":4130},{"$f":"[2]ورقة1!B183","v":"انترلوك مربع8سم رمادى كامل400"}]
[null,"","","","","","","",null,null,null,null,null,null,null,null,0,0,0,0,null,null,null,null,{"$f":"[2]ورقة1!A184","v":4131},{"$f":"[2]ورقة1!B184","v":"انترلوك مستطيل8سم رمادى كامل300"}]
[null,"","","","","","","",null,null,null,null,null,null,null,null,0,0,0,0,null,null,null,null,{"$f":"[2]ورقة1!A185","v":4132},{"$f":"[2]ورقة1!B185","v":"انترلوك مستطيل8سم رمادى غامق كامل400"}]
[null,"","","","","","","",null,null,null,null,null,null,null,null,0,0,0,0,null,null,null,null,{"$f":"[2]ورقة1!A186","v":4133},{"$f":"[2]ورقة1!B186","v":"انترلوك مربع8سم أصفر كامل500"}]
[null,"","","","","","","",null,null,null,null,null,null,null,null,0,0,0,0,null,null,null,null,{"$f":"[2]ورقة1!A187","v":4134},{"$f":"[2]ورقة1!B187","v":"انترلوك فير فيس8سم20×40أحمر350"}]
[null,"","","","","","","",null,null,null,null,null,null,null,null,0,0,0,0,null,null,null,null,{"$f":"[2]ورقة1!A188","v":4135},{"$f":"[2]ورقة1!B188","v":"انترلوك فير فيس8سم20×40رمادى350"}]
[null,"","","","","","","",null,null,null,null,null,null,null,null,0,0,0,0,null,null,null,null,{"$f":"[2]ورقة1!A189","v":4136},{"$f":"[2]ورقة1!B189","v":"انترلوك مستطيل6سم بيج كامل300"}]
[null,"","","","","","","",null,null,null,null,null,null,null,null,0,0,0,0,null,null,null,null,{"$f":"[2]ورقة1!A190","v":4137},{"$f":"[2]ورقة1!B190","v":"انترلوك مربع8سم بيج فيس350"}]
[null,"","","","","","","",null,null,null,null,null,null,null,null,0,0,0,0,null,null,null,null,{"$f":"[2]ورقة1!A191","v":4138},{"$f":"[2]ورقة1!B191","v":"انترلوك مستطيل8سم20×40رمادى غامق كامل500"}]
[null,"","","","","","","",null,null,null,null,null,null,null,null,0,0,0,0,null,null,null,null,{"$f":"[2]ورقة1!A192","v":4139},{"$f":"[2]ورقة1!B192","v":"انترلوك بيهاتون6سم رمادى فاتح فيس300"}]
[null,"","","","","","","",null,null,null,null,null,null,null,null,0,0,0,0,null,null,null,null,{"$f":"[2]ورقة1!A193","v":4140},{"$f":"[2]ورقة1!B193","v":"انترلوك مستطيل8سم رمادى فاتح فيس450"}]
[null,"","","","","","","",null,null,null,null,null,null,null,null,0,0,0,0,null,null,null,null,{"$f":"[2]ورقة1!A194","v":4141},{"$f":"[2]ورقة1!B194","v":"انترلوك مربع6سم رمادى غامق كامل300"}]
[null,{"$f":"IF(ISERROR(INDIRECT(\"'\"&A195&\"'!c4\")),\"\",INDIRECT(\"'\"&A195&\"'!c4\"))","v":""},{"$f":"IF(ISERROR(INDIRECT(\"'\"&A195&\"'!n1\")),\"\",INDIRECT(\"'\"&A195&\"'!n1\"))","v":""},{"$f":"IF(ISERROR(INDIRECT(\"'\"&A195&\"'!AB8\")),\"\",INDIRECT(\"'\"&A195&\"'!AB8\"))","v":""},{"$f":"IF(ISERROR(INDIRECT(\"'\"&A195&\"'!AB9\")),\"\",INDIRECT(\"'\"&A195&\"'!AB9\"))","v":""},{"$f":"IF(ISERROR(INDIRECT(\"'\"&A195&\"'!AB10\")),\"\",INDIRECT(\"'\"&A195&\"'!AB10\"))","v":""},{"$f":"IF(ISERROR(INDIRECT(\"'\"&A195&\"'!AB7\")),\"\",INDIRECT(\"'\"&A195&\"'!AB7\"))","v":""},{"$f":"IF(ISERROR(INDIRECT(\"'\"&A195&\"'!k4\")),\"\",INDIRECT(\"'\"&A195&\"'!k4\"))","v":""},null,null,null,null,null,null,null,null,{"$f":"IF(D195=\"\",0,D195)","v":0},{"$f":"IF(H195=\"\",0,H195)","v":0},{"$f":"IF(J195=\"\",0,J195)","v":0},{"$f":"R195+S195+Q195","v":0},null,null,null,null,{"$f":"[2]ورقة1!A195","v":4142},{"$f":"[2]ورقة1!B195","v":"انترلوك مربع8سم×20رمادى غامق كامل500"}]
[null,"","","","","","","",null,null,null,null,null,null,null,null,0,0,0,0,null,null,null,null,{"$f":"[2]ورقة1!A196","v":4143},{"$f":"[2]ورقة1!B196","v":"انترلوك بيهاتون8سم رمادى غامق كامل450"}]
[null,"","","","","","","",null,null,null,null,null,null,null,null,0,0,0,0,null,null,null,null,{"$f":"[2]ورقة1!A197","v":4144},{"$f":"[2]ورقة1!B197","v":"انترلوك بيهاتون8سم رمادى غامق فيس300"}]
[null,"","","","","","","",null,null,null,null,null,null,null,null,0,0,0,0,null,null,null,null,{"$f":"[2]ورقة1!A198","v":4145},{"$f":"[2]ورقة1!B198","v":"انترلوك بيهاتون8سم أحمر فيس350"}]
[null,"","","","","","","",null,null,null,null,null,null,null,null,0,0,0,0,null,null,null,null,{"$f":"[2]ورقة1!A199","v":4146},{"$f":"[2]ورقة1!B199","v":"انترلوك مستطيل8سم20×40رمادى غامق فيس350"}]
[null,"","","","","","","",null,null,null,null,null,null,null,null,0,0,0,0,null,null,null,null,{"$f":"[2]ورقة1!A200","v":4147},{"$f":"[2]ورقة1!B200","v":"انترلوك مربع8سم رمادى غامق كامل350"}]
[null,"",{"$f":"IF(ISERROR(INDIRECT(\"'\"&A201&\"'!n1\")),\"\",INDIRECT(\"'\"&A201&\"'!n1\"))","v":""},{"$f":"IF(ISERROR(INDIRECT(\"'\"&A201&\"'!AB8\")),\"\",INDIRECT(\"'\"&A201&\"'!AB8\"))","v":""},{"$f":"IF(ISERROR(INDIRECT(\"'\"&A201&\"'!AB9\")),\"\",INDIRECT(\"'\"&A201&\"'!AB9\"))","v":""},{"$f":"IF(ISERROR(INDIRECT(\"'\"&A201&\"'!AB10\")),\"\",INDIRECT(\"'\"&A201&\"'!AB10\"))","v":""},{"$f":"IF(ISERROR(INDIRECT(\"'\"&A201&\"'!AB7\")),\"\",INDIRECT(\"'\"&A201&\"'!AB7\"))","v":""},"",null,null,null,null,null,null,null,null,0,0,0,0,null,null,null,null,{"$f":"[2]ورقة1!A201","v":4148},{"$f":"[2]ورقة1!B201","v":"انترلوك بيهاتون8سم أحمر فيس300"}]
[null,"","","","","","","",null,null,null,null,null,null,null,null,0,0,0,0,null,null,null,null,{"$f":"[2]ورقة1!A202","v":4149},{"$f":"[2]ورقة1!B202","v":"انترلوك بيهاتون8سم أحمر فيس600"}]
[null,"","","","","","","",null,null,null,null,null,null,null,null,0,0,0,0,null,null,null,null,{"$f":"[2]ورقة1!A203","v":4150},{"$f":"[2]ورقة1!B203","v":"انترلوك مستطيل8سم بيج كامل350"}]
[null,"","","","","","","",null,null,null,null,null,null,null,null,null,null,null,null,null,null,null,null,{"$f":"[2]ورقة1!A204","v":4151},{"$f":"[2]ورقة1!B204","v":"انترلوك مستطيل8سم أصفركامل350"}]
[null,"","","","","","","",null,null,null,null,null,null,null,null,null,null,null,null,null,null,null,null,{"$f":"[2]ورقة1!A205","v":4152},{"$f":"[2]ورقة1!B205","v":"انترلوك مستطيل8سم رمادى فاتح فيس350"}]
[null,"","","","","","","",null,null,null,null,null,null,null,null,null,null,null,null,null,null,null,null,{"$f":"[2]ورقة1!A206","v":4153},{"$f":"[2]ورقة1!B206","v":"انترلوك مربع6سم رمادى فاتح كامل350 "}]
[null,"","","","","","","",null,null,null,null,null,null,null,null,null,null,null,null,null,null,null,null,{"$f":"[2]ورقة1!A207","v":4154},{"$f":"[2]ورقة1!B207","v":"انترلوك مستطيل8سم أصفر كامل500"}]
[null,"","","","","","","",null,null,null,null,null,null,null,null,null,null,null,null,null,null,null,null,{"$f":"[2]ورقة1!A208","v":4155},{"$f":"[2]ورقة1!B208","v":"انترلوك مستطيل8سم كافيه كامل500"}]
[null,"","","","","","","",null,null,null,null,null,null,null,null,null,null,null,null,null,null,null,null,{"$f":"[2]ورقة1!A209","v":4156},{"$f":"[2]ورقة1!B209","v":"انترلوك مستطيل8سم بنى كامل500"}]
[null,"","","","","","","",null,null,null,null,null,null,null,null,null,null,null,null,null,null,null,null,{"$f":"[2]ورقة1!A210","v":4157},{"$f":"[2]ورقة1!B210","v":"انترلوك بيهاتون8سم أحمر فيس500"}]
[null,"","","","","","","",null,null,null,null,null,null,null,null,null,null,null,null,null,null,null,null,{"$f":"[2]ورقة1!A211","v":4158},{"$f":"[2]ورقة1!B211","v":"انترلوك مربع8سم×20بيج كامل350"}]
[null,"","","","","","","",null,null,null,null,null,null,null,null,null,null,null,null,null,null,null,null,{"$f":"[2]ورقة1!A212","v":4159},{"$f":"[2]ورقة1!B212","v":"انترلوك مستطيل6سم رمادى غامق فيس350"}]
[null,"","","","","","","",null,null,null,null,null,null,null,null,null,null,null,null,null,null,null,null,{"$f":"[2]ورقة1!A213","v":4160},{"$f":"[2]ورقة1!B213","v":"انترلوك بيهاتون6سم اصفر فيس350"}]
[null,"","","","","","","",null,null,null,null,null,null,null,null,null,null,null,null,null,null,null,null,{"$f":"[2]ورقة1!A214","v":93001},{"$f":"[2]ورقة1!B214","v":"بردورة حدائق رمادى كامل150فرز"}]
[null,"","","","","","","",null,null,null,null,null,null,null,null,null,null,null,null,null,null,null,null,{"$f":"[2]ورقة1!A215","v":93005},{"$f":"[2]ورقة1!B215","v":"بردورة متوسطة متداخلة رمادى كامل250 فرزة"}]
[null,"","","","","","","",null,null,null,null,null,null,null,null,null,null,null,null,null,null,null,null,{"$f":"[2]ورقة1!A216","v":93008},{"$f":"[2]ورقة1!B216","v":"بردروة متوسطة مسح رمادى كامل250 فرز"}]
[null,"","","","","","","",null,null,null,null,null,null,null,null,null,null,null,null,null,null,null,null,{"$f":"[2]ورقة1!A217","v":94002},{"$f":"[2]ورقة1!B217","v":"انترلوك بيهاتون6سم أحمر كامل350فرز"}]
[null,"","","","","","","",null,null,null,null,null,null,null,null,null,null,null,null,null,null,null,null,{"$f":"[2]ورقة1!A218","v":94006},{"$f":"[2]ورقة1!B218","v":"انترلوك بيهاتون6سم رمادى كامل350فرز"}]
[null,"","","","","","","",null,null,null,null,null,null,null,null,null,null,null,null,null,null,null,null,{"$f":"[2]ورقة1!A219","v":4161},{"$f":"[2]ورقة1!B219","v":"انترلوك بيهاتون8سم أحمر كامل600"}]
[null,"","","","","","","",null,null,null,null,null,null,null,null,null,null,null,null,null,null,null,null,{"$f":"[2]ورقة1!A220","v":4162},{"$f":"[2]ورقة1!B220","v":"انترلوك مستطيل8سم رمادى كامل450"}]
[null,"","","","","","","",null,null,null,null,null,null,null,null,null,null,null,null,null,null,null,null,{"$f":"[2]ورقة1!A221","v":4163},{"$f":"[2]ورقة1!B221","v":"انترلوك مستطيل8سم رمادى فاتح كامل450"}]
[null,"","","","","","","",null,null,null,null,null,null,null,null,null,null,null,null,null,null,null,null,{"$f":"[2]ورقة1!A222","v":4164},{"$f":"[2]ورقة1!B222","v":"انترلوك مستطيل8سم أحمر كامل450"}]
[null,"","","","","","","",null,null,null,null,null,null,null,null,null,null,null,null,null,null,null,null,{"$f":"[2]ورقة1!A223","v":4165},{"$f":"[2]ورقة1!B223","v":"انترلوك مستطيل8سم أصفر كامل450"}]
[null,"","","","","","","",null,null,null,null,null,null,null,null,null,null,null,null,null,null,null,null,{"$f":"[2]ورقة1!A224","v":4166},{"$f":"[2]ورقة1!B224","v":"انترلوك مستطيل8سم بيج كامل450"}]
[null,"","","","","","","",null,null,null,null,null,null,null,null,null,null,null,null,null,null,null,null,{"$f":"[2]ورقة1!A225","v":94026},{"$f":"[2]ورقة1!B225","v":"انترلوك مستطيل8سم رمادى كامل500فرز"}]
[null,"","","","","","","",null,null,null,null,null,null,null,null,null,null,null,null,null,null,null,null,{"$f":"[2]ورقة1!A226","v":94022},{"$f":"[2]ورقة1!B226","v":"انترلوك مستطيل8سم أحمر كامل500فرز"}]
[null,"","","","","","","",null,null,null,null,null,null,null,null,null,null,null,null,null,null,null,null,{"$f":"[2]ورقة1!A227","v":94023},{"$f":"[2]ورقة1!B227","v":"انترلوك مستطيل8سم رمادى غامق كامل500فرز"}]
[null,"","","","","","","",null,null,null,null,null,null,null,null,null,null,null,null,null,null,null,null,{"$f":"[2]ورقة1!A228","v":4167},{"$f":"[2]ورقة1!B228","v":"انترلوك مربع6سم×40بيج فيس350"}]
[null,"","","","","","","",null,null,null,null,null,null,null,null,null,null,null,null,null,null,null,null,{"$f":"[2]ورقة1!A229","v":4168},{"$f":"[2]ورقة1!B229","v":"انترلوك مربع6سم×40رمادى كامل350"}]
[null,"","","","","","","",null,null,null,null,null,null,null,null,null,null,null,null,null,null,null,null,{"$f":"[2]ورقة1!A230","v":94027},{"$f":"[2]ورقة1!B230","v":"انترلوك مستطيل6سم رمادى كامل350فرز"}]
[null,"","","","","","","",null,null,null,null,null,null,null,null,null,null,null,null,null,null,null,null,{"$f":"[2]ورقة1!A231","v":4169},{"$f":"[2]ورقة1!B231","v":"انترلوك مستطيل6سم أزرق غامق كامل350"}]
[null,"","","","","","","",null,null,null,null,null,null,null,null,null,null,null,null,null,null,null,null,{"$f":"[2]ورقة1!A232","v":93009},{"$f":"[2]ورقة1!B232","v":"بردورة متوسطة مسح1متر رمادى كامل250فرز"}]
[null,"","","","","","","",null,null,null,null,null,null,null,null,null,null,null,null,null,null,null,null,{"$f":"[2]ورقة1!A233","v":92018},{"$f":"[2]ورقة1!B233","v":"بلوك مفرغ20سم رمادى ناعم100فرز"}]
[null,"","","","","","","",null,null,null,null,null,null,null,null,null,null,null,null,null,null,null,null,{"$f":"[2]ورقة1!A234","v":1003},{"$f":"[2]ورقة1!B234","v":"طوب مصمت6×9.5×20خشن رمادى100 "}]
[null,"","","","","","","",null,null,null,null,null,null,null,null,null,null,null,null,null,null,null,null,{"$f":"[2]ورقة1!A235","v":4170},{"$f":"[2]ورقة1!B235","v":"انترلوك مستطيل6سم أزرق فاتح كامل350"}]
[null,"","","","","","","",null,null,null,null,null,null,null,null,null,null,null,null,null,null,null,null,{"$f":"[2]ورقة1!A236","v":4171},{"$f":"[2]ورقة1!B236","v":"انترلوك مربع8سم×20رمادى غامق فيس350"}]
[null,"","","","","","","",null,null,null,null,null,null,null,null,null,null,null,null,null,null,null,null,{"$f":"[2]ورقة1!A237","v":4172},{"$f":"[2]ورقة1!B237","v":"انترلوك مستطيل6سم أحمر كامل450"}]
[null,"","","","","","","",null,null,null,null,null,null,null,null,null,null,null,null,null,null,null,null,{"$f":"[2]ورقة1!A238","v":94029},{"$f":"[2]ورقة1!B238","v":"انترلوك سداسى6سم أحمر كامل فرزه 350"}]
[null,"","","","","","","",null,null,null,null,null,null,null,null,null,null,null,null,null,null,null,null,{"$f":"[2]ورقة1!A239","v":2033},{"$f":"[2]ورقة1!B239","v":"بلوك مفرغ25سم رمادى ناعم100"}]
[null,"","","","","","","",null,null,null,null,null,null,null,null,null,null,null,null,null,null,null,null,{"$f":"[2]ورقة1!A240","v":2034},{"$f":"[2]ورقة1!B240","v":"بلوك مفرغ25سم رمادى خشن100"}]
[null,"","","","","","","",null,null,null,null,null,null,null,null,null,null,null,null,null,null,null,null,{"$f":"[2]ورقة1!A241","v":4173},{"$f":"[2]ورقة1!B241","v":"انترلوك مستطيل6سم رمادى فاتح كامل350"}]
[null,"","","","","","","",null,null,null,null,null,null,null,null,null,null,null,null,null,null,null,null,{"$f":"[2]ورقة1!A242","v":94036},{"$f":"[2]ورقة1!B242","v":"انترلوك سداسى8سم رمادى كامل550فرز"}]
[null,"","","","","","","",null,null,null,null,null,null,null,null,null,null,null,null,null,null,null,null,{"$f":"[2]ورقة1!A243","v":94038},{"$f":"[2]ورقة1!B243","v":"انترلوك سداسي8سم احمر كامل400فرزه"}]
[null,"","","","","","","",null,null,null,null,null,null,null,null,null,null,null,null,null,null,null,null,{"$f":"[2]ورقة1!A244","v":4174},{"$f":"[2]ورقة1!B244","v":"انترلوك سداسى8سم أحمر كامل550"}]
[null,"","","","","","","",null,null,null,null,null,null,null,null,null,null,null,null,null,null,null,null,{"$f":"[2]ورقة1!A245","v":94130},{"$f":"[2]ورقة1!B245","v":"انترلوك مربع8سم رمادى كامل400فرزه"}]
[null,"","","","","","","",null,null,null,null,null,null,null,null,null,null,null,null,null,null,null,null,{"$f":"[2]ورقة1!A246","v":94114},{"$f":"[2]ورقة1!B246","v":"انترلوك مربع8سم رمادى غامق كامل350فرزه"}]
[null,"","","","","","","",null,null,null,null,null,null,null,null,null,null,null,null,null,null,null,null,{"$f":"[2]ورقة1!A247","v":94025},{"$f":"[2]ورقة1!B247","v":"انترلوك مستطيل8سم رمادى كامل350 فرز"}]
[null,"","","","","","","",null,null,null,null,null,null,null,null,null,null,null,null,null,null,null,null,{"$f":"[2]ورقة1!A248","v":92024},{"$f":"[2]ورقة1!B248","v":"بلوك مفرغ12سم رمادى ناعم100فرزه"}]
[null,"","","","","","","",null,null,null,null,null,null,null,null,null,null,null,null,null,null,null,null,{"$f":"[2]ورقة1!A249","v":3020},{"$f":"[2]ورقة1!B249","v":"بردورة حدائق8×25×50دائرية رمادى كامل130"}]
[null,"","","","","","","",null,null,null,null,null,null,null,null,null,null,null,null,null,null,null,null,{"$f":"[2]ورقة1!A250","v":3021},{"$f":"[2]ورقة1!B250","v":"بردورة حدائق8×25×50زاوية رمادى كامل130"}]
[null,"","","","","","","",null,null,null,null,null,null,null,null,null,null,null,null,null,null,null,null,{"$f":"[2]ورقة1!A251","v":94107},{"$f":"[2]ورقة1!B251","v":"انترلوك مستطيل8سم30×60رمادى كامل350 فرزه"}]
[null,"","","","","","","",null,null,null,null,null,null,null,null,null,null,null,null,null,null,null,null,{"$f":"[2]ورقة1!A252","v":94103},{"$f":"[2]ورقة1!B252","v":"انترلوك مستطيل8سم20×40رمادى كامل350فرزه"}]
[null,"","","","","","","",null,null,null,null,null,null,null,null,null,null,null,null,null,null,null,null,{"$f":"[2]ورقة1!A253","v":94065},{"$f":"[2]ورقة1!B253","v":"انترلوك بيهاتون8سم أحمر كامل500فرزه"}]
[null,"","","","","","","",null,null,null,null,null,null,null,null,null,null,null,null,null,null,null,null,{"$f":"[2]ورقة1!A254","v":4175},{"$f":"[2]ورقة1!B254","v":"انترلوك مستطيل8سم رمادى غامق فيس350"}]
[null,"","","","","","","",null,null,null,null,null,null,null,null,null,null,null,null,null,null,null,null,{"$f":"[2]ورقة1!A255","v":4176},{"$f":"[2]ورقة1!B255","v":"انترلوك مستطيل8سم أحمر فيس350"}]
[null,"","","","","","","",null,null,null,null,null,null,null,null,null,null,null,null,null,null,null,null,{"$f":"[2]ورقة1!A256","v":94064},{"$f":"[2]ورقة1!B256","v":"انترلوك بيهاتون8سم رمادى كامل500فرزه"}]
[null,"","","","","","","",null,null,null,null,null,null,null,null,null,null,null,null,null,null,null,null,{"$f":"[2]ورقة1!A257","v":94033},{"$f":"[2]ورقة1!B257","v":"انترلوك سداسى6سم رمادى كامل350فرزه"}]
[null,"","","","","","","",null,null,null,null,null,null,null,null,null,null,null,null,null,null,null,null,{"$f":"[2]ورقة1!A258","v":2035},{"$f":"[2]ورقة1!B258","v":"بلوك مفرغ20سم رمادى خشن130"}]
[null,{"$f":"IF(ISERROR(INDIRECT(\"'\"&A259&\"'!c4\")),\"\",INDIRECT(\"'\"&A259&\"'!c4\"))","v":""},"","","","","",{"$f":"IF(ISERROR(INDIRECT(\"'\"&A259&\"'!k4\")),\"\",INDIRECT(\"'\"&A259&\"'!k4\"))","v":""},null,null,null,null,null,null,null,null,null,null,null,null,null,null,null,null,{"$f":"[2]ورقة1!A259","v":93021},{"$f":"[2]ورقة1!B259","v":"بردورة حدائق8×25×50زاوية رمادى كامل130فرزه"}]
[null,"","","","","","","",null,null,null,null,null,null,null,null,null,null,null,null,null,null,null,null,{"$f":"[2]ورقة1!A260","v":4177},{"$f":"[2]ورقة1!B260","v":"انترلوك بيهاتون8سم رمادى كامل550"}]
[null,"","","","","","","",null,null,null,null,null,null,null,null,null,null,null,null,null,null,null,null,{"$f":"[2]ورقة1!A261","v":94068},{"$f":"[2]ورقة1!B261","v":"مستطيل6سم رمادى غامق كامل350 فرزه"}]
[null,"","","","","","","",null,null,null,null,null,null,null,null,null,null,null,null,null,null,null,null,{"$f":"[2]ورقة1!A262","v":94075},{"$f":"[2]ورقة1!B262","v":"انترلوك مربع8سم بيج كامل500 فرزه"}]
[null,"","","","","","","",null,null,null,null,null,null,null,null,null,null,null,null,null,null,null,null,{"$f":"[2]ورقة1!A263","v":94094},{"$f":"[2]ورقة1!B263","v":"انترلوك مربع8سم×30رمادى كامل 350 فرزه"}]
[null,"","","","","","","",null,null,null,null,null,null,null,null,null,null,null,null,null,null,null,null,{"$f":"[2]ورقة1!A264","v":94057},{"$f":"[2]ورقة1!B264","v":"انترلوك مستطيل6سم بيج كامل350 فرز"}]
[null,"",{"$f":"IF(ISERROR(INDIRECT(\"'\"&A265&\"'!n1\")),\"\",INDIRECT(\"'\"&A265&\"'!n1\"))","v":""},{"$f":"IF(ISERROR(INDIRECT(\"'\"&A265&\"'!AB8\")),\"\",INDIRECT(\"'\"&A265&\"'!AB8\"))","v":""},{"$f":"IF(ISERROR(INDIRECT(\"'\"&A265&\"'!AB9\")),\"\",INDIRECT(\"'\"&A265&\"'!AB9\"))","v":""},{"$f":"IF(ISERROR(INDIRECT(\"'\"&A265&\"'!AB10\")),\"\",INDIRECT(\"'\"&A265&\"'!AB10\"))","v":""},{"$f":"IF(ISERROR(INDIRECT(\"'\"&A265&\"'!AB7\")),\"\",INDIRECT(\"'\"&A265&\"'!AB7\"))","v":""},"",null,null,null,null,null,null,null,null,null,null,null,null,null,null,null,null,{"$f":"[2]ورقة1!A265","v":94097},{"$f":"[2]ورقة1!B265","v":"انترلوك مستطيل6سم أصفر كامل350 فرزة"}]
[null,"","","","","","","",null,null,null,null,null,null,null,null,null,null,null,null,null,null,null,null,{"$f":"[2]ورقة1!A266","v":94137},{"$f":"[2]ورقة1!B266","v":"انترلوك مربع8سم بيج فيس 350 فرزة"}]
[null,"","","","","","","",null,null,null,null,null,null,null,null,null,null,null,null,null,null,null,null,{"$f":"[2]ورقة1!A267","v":94051},{"$f":"[2]ورقة1!B267","v":"انترلوك مربع6سم أحمر كامل250 فرزة"}]
[null,"","","","","","","",null,null,null,null,null,null,null,null,null,null,null,null,null,null,null,null,{"$f":"[2]ورقة1!A268","v":0},{"$f":"[2]ورقة1!B268","v":0}]
[null,"","","","","","","",null,null,null,null,null,null,null,null,null,null,null,null,null,null,null,null,{"$f":"[2]ورقة1!A269","v":0},{"$f":"[2]ورقة1!B269","v":0}]
[null,"","","","","","","",null,null,null,null,null,null,null,null,null,null,null,null,null,null,null,null,{"$f":"[2]ورقة1!A270","v":0},{"$f":"[2]ورقة1!B270","v":0}]
[null,"","","","","","","",null,null,null,null,null,null,null,null,null,null,null,null,null,null,null,null,{"$f":"[2]ورقة1!A271","v":0},{"$f":"[2]ورقة1!B271","v":0}]
[null,"","","","","","","",null,null,null,null,null,null,null,null,null,null,null,null,null,null,null,null,{"$f":"[2]ورقة1!A272","v":0},{"$f":"[2]ورقة1!B272","v":0}]
[null,"","","","","","","",null,null,null,null,null,null,null,null,null,null,null,null,null,null,null,null,{"$f":"[2]ورقة1!A273","v":0},{"$f":"[2]ورقة1!B273","v":0}]
[null,"","","","","","","",null,null,null,null,null,null,null,null,null,null,null,null,null,null,null,null,{"$f":"[2]ورقة1!A274","v":0},{"$f":"[2]ورقة1!B274","v":0}]
[null,"","","","","","","",null,null,null,null,null,null,null,null,null,null,null,null,null,null,null,null,{"$f":"[2]ورقة1!A275","v":0},{"$f":"[2]ورقة1!B275","v":0}]
[null,"","","","","","","",null,null,null,null,null,null,null,null,null,null,null,null,null,null,null,null,{"$f":"[2]ورقة1!A276","v":0},{"$f":"[2]ورقة1!B276","v":0}]
[null,"","","","","","","",null,null,null,null,null,null,null,null,null,null,null,null,null,null,null,null,{"$f":"[2]ورقة1!A277","v":0},{"$f":"[2]ورقة1!B277","v":0}]
[null,"","","","","","","",null,null,null,null,null,null,null,null,null,null,null,null,null,null,null,null,{"$f":"[2]ورقة1!A278","v":0},{"$f":"[2]ورقة1!B278","v":0}]
[null,"","","","","","","",null,null,null,null,null,null,null,null,null,null,null,null,null,null,null,null,{"$f":"[2]ورقة1!A279","v":0},{"$f":"[2]ورقة1!B279","v":0}]
[null,"","","","","","","",null,null,null,null,null,null,null,null,null,null,null,null,null,null,null,null,{"$f":"[2]ورقة1!A280","v":0},{"$f":"[2]ورقة1!B280","v":0}]
[null,"","","","","","","",null,null,null,null,null,null,null,null,null,null,null,null,null,null,null,null,{"$f":"[2]ورقة1!A281","v":0},{"$f":"[2]ورقة1!B281","v":0}]
[null,"","","","","","","",null,null,null,null,null,null,null,null,null,null,null,null,null,null,null,null,{"$f":"[2]ورقة1!A282","v":0},{"$f":"[2]ورقة1!B282","v":0}]
[null,"","","","","","","",null,null,null,null,null,null,null,null,null,null,null,null,null,null,null,null,{"$f":"[2]ورقة1!A283","v":0},{"$f":"[2]ورقة1!B283","v":0}]
[null,"","","","","","","",null,null,null,null,null,null,null,null,null,null,null,null,null,null,null,null,{"$f":"[2]ورقة1!A284","v":0},{"$f":"[2]ورقة1!B284","v":0}]
[null,"","","","","","","",null,null,null,null,null,null,null,null,null,null,null,null,null,null,null,null,{"$f":"[2]ورقة1!A285","v":0},{"$f":"[2]ورقة1!B285","v":0}]
[null,"","","","","","","",null,null,null,null,null,null,null,null,null,null,null,null,null,null,null,null,{"$f":"[2]ورقة1!A286","v":0},{"$f":"[2]ورقة1!B286","v":0}]
[null,"","","","","","","",null,null,null,null,null,null,null,null,null,null,null,null,null,null,null,null,{"$f":"[2]ورقة1!A287","v":0},{"$f":"[2]ورقة1!B287","v":0}]
[null,"","","","","","","",null,null,null,null,null,null,null,null,null,null,null,null,null,null,null,null,{"$f":"[2]ورقة1!A288","v":0},{"$f":"[2]ورقة1!B288","v":0}]
[null,"","","","","","","",null,null,null,null,null,null,null,null,null,null,null,null,null,null,null,null,{"$f":"[2]ورقة1!A289","v":0},{"$f":"[2]ورقة1!B289","v":0}]
[null,"","","","","","","",null,null,null,null,null,null,null,null,null,null,null,null,null,null,null,null,{"$f":"[2]ورقة1!A290","v":0},{"$f":"[2]ورقة1!B290","v":0}]
[null,"","","","","","","",null,null,null,null,null,null,null,null,null,null,null,null,null,null,null,null,{"$f":"[2]ورقة1!A291","v":0},{"$f":"[2]ورقة1!B291","v":0}]
[null,"","","","","","","",null,null,null,null,null,null,null,null,null,null,null,null,null,null,null,null,{"$f":"[2]ورقة1!A292","v":0},{"$f":"[2]ورقة1!B292","v":0}]
[null,"","","","","","","",null,null,null,null,null,null,null,null,null,null,null,null,null,null,null,null,{"$f":"[2]ورقة1!A293","v":0},{"$f":"[2]ورقة1!B293","v":0}]
[null,"","","","","","","",null,null,null,null,null,null,null,null,null,null,null,null,null,null,null,null,{"$f":"[2]ورقة1!A294","v":0},{"$f":"[2]ورقة1!B294","v":0}]
[null,"","","","","","","",null,null,null,null,null,null,null,null,null,null,null,null,null,null,null,null,{"$f":"[2]ورقة1!A295","v":0},{"$f":"[2]ورقة1!B295","v":0}]
[null,"","","","","","","",null,null,null,null,null,null,null,null,null,null,null,null,null,null,null,null,{"$f":"[2]ورقة1!A296","v":0},{"$f":"[2]ورقة1!B296","v":0}]
[null,"","","","","","","",null,null,null,null,null,null,null,null,null,null,null,null,null,null,null,null,{"$f":"[2]ورقة1!A297","v":0},{"$f":"[2]ورقة1!B297","v":0}]
[null,"","","","","","","",null,null,null,null,null,null,null,null,null,null,null,null,null,null,null,null,{"$f":"[2]ورقة1!A298","v":0},{"$f":"[2]ورقة1!B298","v":0}]
[null,"","","","","","","",null,null,null,null,null,null,null,null,null,null,null,null,null,null,null,null,{"$f":"[2]ورقة1!A299","v":0},{"$f":"[2]ورقة1!B299","v":0}]
[null,"","","","","","","",null,null,null,null,null,null,null,null,null,null,null,null,null,null,null,null,{"$f":"[2]ورقة1!A300","v":0},{"$f":"[2]ورقة1!B300","v":0}]
[null,"","","","","","","",null,null,null,null,null,null,null,null,null,null,null,null,null,null,null,null,{"$f":"[2]ورقة1!A301","v":0},{"$f":"[2]ورقة1!B301","v":0}]
[null,"","","","","","","",null,null,null,null,null,null,null,null,null,null,null,null,null,null,null,null,{"$f":"[2]ورقة1!A302","v":0},{"$f":"[2]ورقة1!B302","v":0}]
[null,"","","","","","","",null,null,null,null,null,null,null,null,null,null,null,null,null,null,null,null,{"$f":"[2]ورقة1!A303","v":0},{"$f":"[2]ورقة1!B303","v":0}]
[null,"","","","","","","",null,null,null,null,null,null,null,null,null,null,null,null,null,null,null,null,{"$f":"[2]ورقة1!A304","v":0},{"$f":"[2]ورقة1!B304","v":0}]
[null,"","","","","","","",null,null,null,null,null,null,null,null,null,null,null,null,null,null,null,null,{"$f":"[2]ورقة1!A305","v":0},{"$f":"[2]ورقة1!B305","v":0}]
[null,"","","","","","","",null,null,null,null,null,null,null,null,null,null,null,null,null,null,null,null,{"$f":"[2]ورقة1!A306","v":0},{"$f":"[2]ورقة1!B306","v":0}]
[null,"","","","","","","",null,null,null,null,null,null,null,null,null,null,null,null,null,null,null,null,{"$f":"[2]ورقة1!A307","v":0},{"$f":"[2]ورقة1!B307","v":0}]
[null,"","","","","","","",null,null,null,null,null,null,null,null,null,null,null,null,null,null,null,null,{"$f":"[2]ورقة1!A308","v":0},{"$f":"[2]ورقة1!B308","v":0}]
[null,"","","","","","","",null,null,null,null,null,null,null,null,null,null,null,null,null,null,null,null,{"$f":"[2]ورقة1!A309","v":0},{"$f":"[2]ورقة1!B309","v":0}]
[null,"","","","","","","",null,null,null,null,null,null,null,null,null,null,null,null,null,null,null,null,{"$f":"[2]ورقة1!A310","v":0},{"$f":"[2]ورقة1!B310","v":0}]
[null,"","","","","","","",null,null,null,null,null,null,null,null,null,null,null,null,null,null,null,null,{"$f":"[2]ورقة1!A311","v":0},{"$f":"[2]ورقة1!B311","v":0}]
[null,"","","","","","","",null,null,null,null,null,null,null,null,null,null,null,null,null,null,null,null,{"$f":"[2]ورقة1!A312","v":0},{"$f":"[2]ورقة1!B312","v":0}]
[null,"","","","","","","",null,null,null,null,null,null,null,null,null,null,null,null,null,null,null,null,{"$f":"[2]ورقة1!A313","v":0},{"$f":"[2]ورقة1!B313","v":0}]
[null,"","","","","","","",null,null,null,null,null,null,null,null,null,null,null,null,null,null,null,null,{"$f":"[2]ورقة1!A314","v":0},{"$f":"[2]ورقة1!B314","v":0}]
[null,"","","","","","","",null,null,null,null,null,null,null,null,null,null,null,null,null,null,null,null,{"$f":"[2]ورقة1!A315","v":0},{"$f":"[2]ورقة1!B315","v":0}]
[null,"","","","","","","",null,null,null,null,null,null,null,null,null,null,null,null,null,null,null,null,{"$f":"[2]ورقة1!A316","v":0},{"$f":"[2]ورقة1!B316","v":0}]
[null,"","","","","","","",null,null,null,null,null,null,null,null,null,null,null,null,null,null,null,null,{"$f":"[2]ورقة1!A317","v":0},{"$f":"[2]ورقة1!B317","v":0}]
[null,"","","","","","","",null,null,null,null,null,null,null,null,null,null,null,null,null,null,null,null,{"$f":"[2]ورقة1!A318","v":0},{"$f":"[2]ورقة1!B318","v":0}]
[null,"","","","","","","",null,null,null,null,null,null,null,null,null,null,null,null,null,null,null,null,{"$f":"[2]ورقة1!A319","v":0},{"$f":"[2]ورقة1!B319","v":0}]
[null,"","","","","","","",null,null,null,null,null,null,null,null,null,null,null,null,null,null,null,null,{"$f":"[2]ورقة1!A320","v":0},{"$f":"[2]ورقة1!B320","v":0}]
[null,"","","","","","","",null,null,null,null,null,null,null,null,null,null,null,null,null,null,null,null,{"$f":"[2]ورقة1!A321","v":0},{"$f":"[2]ورقة1!B321","v":0}]
[null,"","","","","","","",null,null,null,null,null,null,null,null,null,null,null,null,null,null,null,null,{"$f":"[2]ورقة1!A322","v":0},{"$f":"[2]ورقة1!B322","v":0}]
[null,{"$f":"IF(ISERROR(INDIRECT(\"'\"&A323&\"'!c4\")),\"\",INDIRECT(\"'\"&A323&\"'!c4\"))","v":""},"","","","","",{"$f":"IF(ISERROR(INDIRECT(\"'\"&A323&\"'!k4\")),\"\",INDIRECT(\"'\"&A323&\"'!k4\"))","v":""},null,null,null,null,null,null,null,null,null,null,null,null,null,null,null,null,{"$f":"[2]ورقة1!A323","v":0},{"$f":"[2]ورقة1!B323","v":0}]
[null,"","","","","","","",null,null,null,null,null,null,null,null,null,null,null,null,null,null,null,null,{"$f":"[2]ورقة1!A324","v":0},{"$f":"[2]ورقة1!B324","v":0}]
[null,"","","","","","","",null,null,null,null,null,null,null,null,null,null,null,null,null,null,null,null,{"$f":"[2]ورقة1!A325","v":0},{"$f":"[2]ورقة1!B325","v":0}]
[null,"","","","","","","",null,null,null,null,null,null,null,null,null,null,null,null,null,null,null,null,{"$f":"[2]ورقة1!A326","v":0},{"$f":"[2]ورقة1!B326","v":0}]
[null,"","","","","","","",null,null,null,null,null,null,null,null,null,null,null,null,null,null,null,null,{"$f":"[2]ورقة1!A327","v":0},{"$f":"[2]ورقة1!B327","v":0}]
[null,"","","","","","","",null,null,null,null,null,null,null,null,null,null,null,null,null,null,null,null,{"$f":"[2]ورقة1!A328","v":0},{"$f":"[2]ورقة1!B328","v":0}]
[null,"",{"$f":"IF(ISERROR(INDIRECT(\"'\"&A329&\"'!n1\")),\"\",INDIRECT(\"'\"&A329&\"'!n1\"))","v":""},{"$f":"IF(ISERROR(INDIRECT(\"'\"&A329&\"'!AB8\")),\"\",INDIRECT(\"'\"&A329&\"'!AB8\"))","v":""},{"$f":"IF(ISERROR(INDIRECT(\"'\"&A329&\"'!AB9\")),\"\",INDIRECT(\"'\"&A329&\"'!AB9\"))","v":""},{"$f":"IF(ISERROR(INDIRECT(\"'\"&A329&\"'!AB10\")),\"\",INDIRECT(\"'\"&A329&\"'!AB10\"))","v":""},{"$f":"IF(ISERROR(INDIRECT(\"'\"&A329&\"'!AB7\")),\"\",INDIRECT(\"'\"&A329&\"'!AB7\"))","v":""},"",null,null,null,null,null,null,null,null,null,null,null,null,null,null,null,null,{"$f":"[2]ورقة1!A329","v":0},{"$f":"[2]ورقة1!B329","v":0}]
[null,"","","","","","","",null,null,null,null,null,null,null,null,null,null,null,null,null,null,null,null,{"$f":"[2]ورقة1!A330","v":0},{"$f":"[2]ورقة1!B330","v":0}]
[null,"","","","","","","",null,null,null,null,null,null,null,null,null,null,null,null,null,null,null,null,{"$f":"[2]ورقة1!A331","v":0},{"$f":"[2]ورقة1!B331","v":0}]
[null,"","","","","","","",null,null,null,null,null,null,null,null,null,null,null,null,null,null,null,null,{"$f":"[2]ورقة1!A332","v":0},{"$f":"[2]ورقة1!B332","v":0}]
[null,"","","","","","","",null,null,null,null,null,null,null,null,null,null,null,null,null,null,null,null,{"$f":"[2]ورقة1!A333","v":0},{"$f":"[2]ورقة1!B333","v":0}]
[null,"","","","","","","",null,null,null,null,null,null,null,null,null,null,null,null,null,null,null,null,{"$f":"[2]ورقة1!A334","v":0},{"$f":"[2]ورقة1!B334","v":0}]
[null,"","","","","","","",null,null,null,null,null,null,null,null,null,null,null,null,null,null,null,null,{"$f":"[2]ورقة1!A335","v":0},{"$f":"[2]ورقة1!B335","v":0}]
[null,"","","","","","","",null,null,null,null,null,null,null,null,null,null,null,null,null,null,null,null,{"$f":"[2]ورقة1!A336","v":0},{"$f":"[2]ورقة1!B336","v":0}]
[null,"","","","","","","",null,null,null,null,null,null,null,null,null,null,null,null,null,null,null,null,{"$f":"[2]ورقة1!A337","v":0},{"$f":"[2]ورقة1!B337","v":0}]
[null,"","","","","","","",null,null,null,null,null,null,null,null,null,null,null,null,null,null,null,null,{"$f":"[2]ورقة1!A338","v":0},{"$f":"[2]ورقة1!B338","v":0}]
[null,"","","","","","","",null,null,null,null,null,null,null,null,null,null,null,null,null,null,null,null,{"$f":"[2]ورقة1!A339","v":0},{"$f":"[2]ورقة1!B339","v":0}]
[null,"","","","","","","",null,null,null,null,null,null,null,null,null,null,null,null,null,null,null,null,{"$f":"[2]ورقة1!A340","v":0},{"$f":"[2]ورقة1!B340","v":0}]
[null,"","","","","","","",null,null,null,null,null,null,null,null,null,null,null,null,null,null,null,null,{"$f":"[2]ورقة1!A341","v":0},{"$f":"[2]ورقة1!B341","v":0}]
[null,"","","","","","","",null,null,null,null,null,null,null,null,null,null,null,null,null,null,null,null,{"$f":"[2]ورقة1!A342","v":0},{"$f":"[2]ورقة1!B342","v":0}]
[null,"","","","","","","",null,null,null,null,null,null,null,null,null,null,null,null,null,null,null,null,{"$f":"[2]ورقة1!A343","v":0},{"$f":"[2]ورقة1!B343","v":0}]
[null,"","","","","","","",null,null,null,null,null,null,null,null,null,null,null,null,null,null,null,null,{"$f":"[2]ورقة1!A344","v":0},{"$f":"[2]ورقة1!B344","v":0}]
[null,"","","","","","","",null,null,null,null,null,null,null,null,null,null,null,null,null,null,null,null,{"$f":"[2]ورقة1!A345","v":0},{"$f":"[2]ورقة1!B345","v":0}]
[null,"","","","","","","",null,null,null,null,null,null,null,null,null,null,null,null,null,null,null,null,{"$f":"[2]ورقة1!A346","v":0},{"$f":"[2]ورقة1!B346","v":0}]
[null,"","","","","","","",null,null,null,null,null,null,null,null,null,null,null,null,null,null,null,null,{"$f":"[2]ورقة1!A347","v":0},{"$f":"[2]ورقة1!B347","v":0}]
[null,"","","","","","","",null,null,null,null,null,null,null,null,null,null,null,null,null,null,null,null,{"$f":"[2]ورقة1!A348","v":0},{"$f":"[2]ورقة1!B348","v":0}]
[null,"","","","","","","",null,null,null,null,null,null,null,null,null,null,null,null,null,null,null,null,{"$f":"[2]ورقة1!A349","v":0},{"$f":"[2]ورقة1!B349","v":0}]
[null,"","","","","","","",null,null,null,null,null,null,null,null,null,null,null,null,null,null,null,null,{"$f":"[2]ورقة1!A350","v":0},{"$f":"[2]ورقة1!B350","v":0}]
[null,"","","","","","","",null,null,null,null,null,null,null,null,null,null,null,null,null,null,null,null,{"$f":"[2]ورقة1!A351","v":0},{"$f":"[2]ورقة1!B351","v":0}]
[null,"","","","","","","",null,null,null,null,null,null,null,null,null,null,null,null,null,null,null,null,{"$f":"[2]ورقة1!A352","v":0},{"$f":"[2]ورقة1!B352","v":0}]
[null,"","","","","","","",null,null,null,null,null,null,null,null,null,null,null,null,null,null,null,null,{"$f":"[2]ورقة1!A353","v":0},{"$f":"[2]ورقة1!B353","v":0}]
[null,"","","","","","","",null,null,null,null,null,null,null,null,null,null,null,null,null,null,null,null,{"$f":"[2]ورقة1!A354","v":0},{"$f":"[2]ورقة1!B354","v":0}]
[null,"","","","","","","",null,null,null,null,null,null,null,null,null,null,null,null,null,null,null,null,{"$f":"[2]ورقة1!A355","v":0},{"$f":"[2]ورقة1!B355","v":0}]
[null,"","","","","","","",null,null,null,null,null,null,null,null,null,null,null,null,null,null,null,null,{"$f":"[2]ورقة1!A356","v":0},{"$f":"[2]ورقة1!B356","v":0}]
[null,"","","","","","","",null,null,null,null,null,null,null,null,null,null,null,null,null,null,null,null,{"$f":"[2]ورقة1!A357","v":0},{"$f":"[2]ورقة1!B357","v":0}]
[null,"","","","","","","",null,null,null,null,null,null,null,null,null,null,null,null,null,null,null,null,{"$f":"[2]ورقة1!A358","v":0},{"$f":"[2]ورقة1!B358","v":0}]
[null,"","","","","","","",null,null,null,null,null,null,null,null,null,null,null,null,null,null,null,null,{"$f":"[2]ورقة1!A359","v":0},{"$f":"[2]ورقة1!B359","v":0}]
[null,"","","","","","","",null,null,null,null,null,null,null,null,null,null,null,null,null,null,null,null,{"$f":"[2]ورقة1!A360","v":0},{"$f":"[2]ورقة1!B360","v":0}]
[null,"","","","","","","",null,null,null,null,null,null,null,null,null,null,null,null,null,null,null,null,{"$f":"[2]ورقة1!A361","v":0},{"$f":"[2]ورقة1!B361","v":0}]
[null,"","","","","","","",null,null,null,null,null,null,null,null,null,null,null,null,null,null,null,null,{"$f":"[2]ورقة1!A362","v":0},{"$f":"[2]ورقة1!B362","v":0}]
[null,"","","","","","","",null,null,null,null,null,null,null,null,null,null,null,null,null,null,null,null,{"$f":"[2]ورقة1!A363","v":0},{"$f":"[2]ورقة1!B363","v":0}]
[null,"","","","","","","",null,null,null,null,null,null,null,null,null,null,null,null,null,null,null,null,{"$f":"[2]ورقة1!A364","v":0},{"$f":"[2]ورقة1!B364","v":0}]
[null,"","","","","","","",null,null,null,null,null,null,null,null,null,null,null,null,null,null,null,null,{"$f":"[2]ورقة1!A365","v":0},{"$f":"[2]ورقة1!B365","v":0}]
[null,"","","","","","","",null,null,null,null,null,null,null,null,null,null,null,null,null,null,null,null,{"$f":"[2]ورقة1!A366","v":0},{"$f":"[2]ورقة1!B366","v":0}]
[null,"","","","","","","",null,null,null,null,null,null,null,null,null,null,null,null,null,null,null,null,{"$f":"[2]ورقة1!A367","v":0},{"$f":"[2]ورقة1!B367","v":0}]
[null,"","","","","","","",null,null,null,null,null,null,null,null,null,null,null,null,null,null,null,null,{"$f":"[2]ورقة1!A368","v":0},{"$f":"[2]ورقة1!B368","v":0}]
[null,"","","","","","","",null,null,null,null,null,null,null,null,null,null,null,null,null,null,null,null,{"$f":"[2]ورقة1!A369","v":0},{"$f":"[2]ورقة1!B369","v":0}]
[null,"","","","","","","",null,null,null,null,null,null,null,null,null,null,null,null,null,null,null,null,{"$f":"[2]ورقة1!A370","v":0},{"$f":"[2]ورقة1!B370","v":0}]
[null,"","","","","","","",null,null,null,null,null,null,null,null,null,null,null,null,null,null,null,null,{"$f":"[2]ورقة1!A371","v":0},{"$f":"[2]ورقة1!B371","v":0}]
[null,"","","","","","","",null,null,null,null,null,null,null,null,null,null,null,null,null,null,null,null,{"$f":"[2]ورقة1!A372","v":0},{"$f":"[2]ورقة1!B372","v":0}]
[null,"","","","","","","",null,null,null,null,null,null,null,null,null,null,null,null,null,null,null,null,{"$f":"[2]ورقة1!A373","v":0},{"$f":"[2]ورقة1!B373","v":0}]
[null,"","","","","","","",null,null,null,null,null,null,null,null,null,null,null,null,null,null,null,null,{"$f":"[2]ورقة1!A374","v":0},{"$f":"[2]ورقة1!B374","v":0}]
[null,"","","","","","","",null,null,null,null,null,null,null,null,null,null,null,null,null,null,null,null,{"$f":"[2]ورقة1!A375","v":0},{"$f":"[2]ورقة1!B375","v":0}]
[null,"","","","","","","",null,null,null,null,null,null,null,null,null,null,null,null,null,null,null,null,{"$f":"[2]ورقة1!A376","v":0},{"$f":"[2]ورقة1!B376","v":0}]
[null,"","","","","","","",null,null,null,null,null,null,null,null,null,null,null,null,null,null,null,null,{"$f":"[2]ورقة1!A377","v":0},{"$f":"[2]ورقة1!B377","v":0}]
[null,"","","","","","","",null,null,null,null,null,null,null,null,null,null,null,null,null,null,null,null,{"$f":"[2]ورقة1!A378","v":0},{"$f":"[2]ورقة1!B378","v":0}]
[null,"","","","","","","",null,null,null,null,null,null,null,null,null,null,null,null,null,null,null,null,{"$f":"[2]ورقة1!A379","v":0},{"$f":"[2]ورقة1!B379","v":0}]
[null,"","","","","","","",null,null,null,null,null,null,null,null,null,null,null,null,null,null,null,null,{"$f":"[2]ورقة1!A380","v":0},{"$f":"[2]ورقة1!B380","v":0}]
[null,"","","","","","","",null,null,null,null,null,null,null,null,null,null,null,null,null,null,null,null,{"$f":"[2]ورقة1!A381","v":0},{"$f":"[2]ورقة1!B381","v":0}]
[null,"","","","","","","",null,null,null,null,null,null,null,null,null,null,null,null,null,null,null,null,{"$f":"[2]ورقة1!A382","v":0},{"$f":"[2]ورقة1!B382","v":0}]
[null,"","","","","","","",null,null,null,null,null,null,null,null,null,null,null,null,null,null,null,null,{"$f":"[2]ورقة1!A383","v":0},{"$f":"[2]ورقة1!B383","v":0}]
[null,"","","","","","","",null,null,null,null,null,null,null,null,null,null,null,null,null,null,null,null,{"$f":"[2]ورقة1!A384","v":0},{"$f":"[2]ورقة1!B384","v":0}]
[null,"","","","","","","",null,null,null,null,null,null,null,null,null,null,null,null,null,null,null,null,{"$f":"[2]ورقة1!A385","v":0},{"$f":"[2]ورقة1!B385","v":0}]
[null,"","","","","","","",null,null,null,null,null,null,null,null,null,null,null,null,null,null,null,null,{"$f":"[2]ورقة1!A386","v":0},{"$f":"[2]ورقة1!B386","v":0}]
[null,{"$f":"IF(ISERROR(INDIRECT(\"'\"&A387&\"'!c4\")),\"\",INDIRECT(\"'\"&A387&\"'!c4\"))","v":""},"","","","","",{"$f":"IF(ISERROR(INDIRECT(\"'\"&A387&\"'!k4\")),\"\",INDIRECT(\"'\"&A387&\"'!k4\"))","v":""},null,null,null,null,null,null,null,null,null,null,null,null,null,null,null,null,{"$f":"[2]ورقة1!A387","v":0},{"$f":"[2]ورقة1!B387","v":0}]
[null,"","","","","","","",null,null,null,null,null,null,null,null,null,null,null,null,null,null,null,null,{"$f":"[2]ورقة1!A388","v":0},{"$f":"[2]ورقة1!B388","v":0}]
[null,"","","","","","","",null,null,null,null,null,null,null,null,null,null,null,null,null,null,null,null,{"$f":"[2]ورقة1!A389","v":0},{"$f":"[2]ورقة1!B389","v":0}]
[null,"","","","","","","",null,null,null,null,null,null,null,null,null,null,null,null,null,null,null,null,{"$f":"[2]ورقة1!A390","v":0},{"$f":"[2]ورقة1!B390","v":0}]
[null,"","","","","","","",null,null,null,null,null,null,null,null,null,null,null,null,null,null,null,null,{"$f":"[2]ورقة1!A391","v":0},{"$f":"[2]ورقة1!B391","v":0}]
[null,"","","","","","","",null,null,null,null,null,null,null,null,null,null,null,null,null,null,null,null,{"$f":"[2]ورقة1!A392","v":0},{"$f":"[2]ورقة1!B392","v":0}]
[null,"",{"$f":"IF(ISERROR(INDIRECT(\"'\"&A393&\"'!n1\")),\"\",INDIRECT(\"'\"&A393&\"'!n1\"))","v":""},{"$f":"IF(ISERROR(INDIRECT(\"'\"&A393&\"'!AB8\")),\"\",INDIRECT(\"'\"&A393&\"'!AB8\"))","v":""},{"$f":"IF(ISERROR(INDIRECT(\"'\"&A393&\"'!AB9\")),\"\",INDIRECT(\"'\"&A393&\"'!AB9\"))","v":""},{"$f":"IF(ISERROR(INDIRECT(\"'\"&A393&\"'!AB10\")),\"\",INDIRECT(\"'\"&A393&\"'!AB10\"))","v":""},{"$f":"IF(ISERROR(INDIRECT(\"'\"&A393&\"'!AB7\")),\"\",INDIRECT(\"'\"&A393&\"'!AB7\"))","v":""},"",null,null,null,null,null,null,null,null,null,null,null,null,null,null,null,null,{"$f":"[2]ورقة1!A393","v":0},{"$f":"[2]ورقة1!B393","v":0}]
[null,"","","","","","","",null,null,null,null,null,null,null,null,null,null,null,null,null,null,null,null,{"$f":"[2]ورقة1!A394","v":0},{"$f":"[2]ورقة1!B394","v":0}]
[null,"","","","","","","",null,null,null,null,null,null,null,null,null,null,null,null,null,null,null,null,{"$f":"[2]ورقة1!A395","v":0},{"$f":"[2]ورقة1!B395","v":0}]
[null,"","","","","","","",null,null,null,null,null,null,null,null,null,null,null,null,null,null,null,null,{"$f":"[2]ورقة1!A396","v":0},{"$f":"[2]ورقة1!B396","v":0}]
[null,"","","","","","","",null,null,null,null,null,null,null,null,null,null,null,null,null,null,null,null,{"$f":"[2]ورقة1!A397","v":0},{"$f":"[2]ورقة1!B397","v":0}]
[null,"","","","","","","",null,null,null,null,null,null,null,null,null,null,null,null,null,null,null,null,{"$f":"[2]ورقة1!A398","v":0},{"$f":"[2]ورقة1!B398","v":0}]
[null,null,null,null,null,null,null,null,null,null,null,null,null,null,null,null,null,null,null,null,null,null,null,null,{"$f":"[2]ورقة1!A399","v":0},{"$f":"[2]ورقة1!B399","v":0}]
[null,null,null,null,null,null,null,null,null,null,null,null,null,null,null,null,null,null,null,null,null,null,null,null,{"$f":"[2]ورقة1!A400","v":0},{"$f":"[2]ورقة1!B400","v":0}]
[null,null,null,null,null,null,null,null,null,null,null,null,null,null,null,null,null,null,null,null,null,null,null,null,{"$f":"[2]ورقة1!A401","v":0},{"$f":"[2]ورقة1!B401","v":0}]
[null,null,null,null,null,null,null,null,null,null,null,null,null,null,null,null,null,null,null,null,null,null,null,null,{"$f":"[2]ورقة1!A402","v":0},{"$f":"[2]ورقة1!B402","v":0}]
[null,null,null,null,null,null,null,null,null,null,null,null,null,null,null,null,null,null,null,null,null,null,null,null,{"$f":"[2]ورقة1!A403","v":0},{"$f":"[2]ورقة1!B403","v":0}]
[null,null,null,null,null,null,null,null,null,null,null,null,null,null,null,null,null,null,null,null,null,null,null,null,{"$f":"[2]ورقة1!A404","v":0},{"$f":"[2]ورقة1!B404","v":0}]
[null,null,null,null,null,null,null,null,null,null,null,null,null,null,null,null,null,null,null,null,null,null,null,null,{"$f":"[2]ورقة1!A405","v":0},{"$f":"[2]ورقة1!B405","v":0}]
[null,null,null,null,null,null,null,null,null,null,null,null,null,null,null,null,null,null,null,null,null,null,null,null,{"$f":"[2]ورقة1!A406","v":0},{"$f":"[2]ورقة1!B406","v":0}]
[null,null,null,null,null,null,null,null,null,null,null,null,null,null,null,null,null,null,null,null,null,null,null,null,{"$f":"[2]ورقة1!A407","v":0},{"$f":"[2]ورقة1!B407","v":0}]
[null,null,null,null,null,null,null,null,null,null,null,null,null,null,null,null,null,null,null,null,null,null,null,null,{"$f":"[2]ورقة1!A408","v":0},{"$f":"[2]ورقة1!B408","v":0}]
[null,null,null,null,null,null,null,null,null,null,null,null,null,null,null,null,null,null,null,null,null,null,null,null,{"$f":"[2]ورقة1!A409","v":0},{"$f":"[2]ورقة1!B409","v":0}]
[null,null,null,null,null,null,null,null,null,null,null,null,null,null,null,null,null,null,null,null,null,null,null,null,{"$f":"[2]ورقة1!A410","v":0},{"$f":"[2]ورقة1!B410","v":0}]
[null,null,null,null,null,null,null,null,null,null,null,null,null,null,null,null,null,null,null,null,null,null,null,null,{"$f":"[2]ورقة1!A411","v":0},{"$f":"[2]ورقة1!B411","v":0}]
[null,null,null,null,null,null,null,null,null,null,null,null,null,null,null,null,null,null,null,null,null,null,null,null,{"$f":"[2]ورقة1!A412","v":0},{"$f":"[2]ورقة1!B412","v":0}]
[null,null,null,null,null,null,null,null,null,null,null,null,null,null,null,null,null,null,null,null,null,null,null,null,{"$f":"[2]ورقة1!A413","v":0},{"$f":"[2]ورقة1!B413","v":0}]
[null,null,null,null,null,null,null,null,null,null,null,null,null,null,null,null,null,null,null,null,null,null,null,null,{"$f":"[2]ورقة1!A414","v":0},{"$f":"[2]ورقة1!B414","v":0}]
[null,null,null,null,null,null,null,null,null,null,null,null,null,null,null,null,null,null,null,null,null,null,null,null,{"$f":"[2]ورقة1!A415","v":0},{"$f":"[2]ورقة1!B415","v":0}]
[null,null,null,null,null,null,null,null,null,null,null,null,null,null,null,null,null,null,null,null,null,null,null,null,{"$f":"[2]ورقة1!A416","v":0},{"$f":"[2]ورقة1!B416","v":0}]
[null,null,null,null,null,null,null,null,null,null,null,null,null,null,null,null,null,null,null,null,null,null,null,null,{"$f":"[2]ورقة1!A417","v":0},{"$f":"[2]ورقة1!B417","v":0}]
[null,null,null,null,null,null,null,null,null,null,null,null,null,null,null,null,null,null,null,null,null,null,null,null,{"$f":"[2]ورقة1!A418","v":0},{"$f":"[2]ورقة1!B418","v":0}]
[null,null,null,null,null,null,null,null,null,null,null,null,null,null,null,null,null,null,null,null,null,null,null,null,{"$f":"[2]ورقة1!A419","v":0},{"$f":"[2]ورقة1!B419","v":0}]
[null,null,null,null,null,null,null,null,null,null,null,null,null,null,null,null,null,null,null,null,null,null,null,null,{"$f":"[2]ورقة1!A420","v":0},{"$f":"[2]ورقة1!B420","v":0}]
[null,null,null,null,null,null,null,null,null,null,null,null,null,null,null,null,null,null,null,null,null,null,null,null,{"$f":"[2]ورقة1!A421","v":0},{"$f":"[2]ورقة1!B421","v":0}]
[null,null,null,null,null,null,null,null,null,null,null,null,null,null,null,null,null,null,null,null,null,null,null,null,{"$f":"[2]ورقة1!A422","v":0},{"$f":"[2]ورقة1!B422","v":0}]
[null,null,null,null,null,null,null,null,null,null,null,null,null,null,null,null,null,null,null,null,null,null,null,null,{"$f":"[2]ورقة1!A423","v":0},{"$f":"[2]ورقة1!B423","v":0}]
[null,null,null,null,null,null,null,null,null,null,null,null,null,null,null,null,null,null,null,null,null,null,null,null,{"$f":"[2]ورقة1!A424","v":0},{"$f":"[2]ورقة1!B424","v":0}]
[null,null,null,null,null,null,null,null,null,null,null,null,null,null,null,null,null,null,null,null,null,null,null,null,{"$f":"[2]ورقة1!A425","v":0},{"$f":"[2]ورقة1!B425","v":0}]
[null,null,null,null,null,null,null,null,null,null,null,null,null,null,null,null,null,null,null,null,null,null,null,null,{"$f":"[2]ورقة1!A426","v":0},{"$f":"[2]ورقة1!B426","v":0}]
[null,null,null,null,null,null,null,null,null,null,null,null,null,null,null,null,null,null,null,null,null,null,null,null,{"$f":"[2]ورقة1!A427","v":0},{"$f":"[2]ورقة1!B427","v":0}]
[null,null,null,null,null,null,null,null,null,null,null,null,null,null,null,null,null,null,null,null,null,null,null,null,{"$f":"[2]ورقة1!A428","v":0},{"$f":"[2]ورقة1!B428","v":0}]
[null,null,null,null,null,null,null,null,null,null,null,null,null,null,null,null,null,null,null,null,null,null,null,null,{"$f":"[2]ورقة1!A429","v":0},{"$f":"[2]ورقة1!B429","v":0}]
[null,null,null,null,null,null,null,null,null,null,null,null,null,null,null,null,null,null,null,null,null,null,null,null,{"$f":"[2]ورقة1!A430","v":0},{"$f":"[2]ورقة1!B430","v":0}]
[null,null,null,null,null,null,null,null,null,null,null,null,null,null,null,null,null,null,null,null,null,null,null,null,{"$f":"[2]ورقة1!A431","v":0},{"$f":"[2]ورقة1!B431","v":0}]
[null,null,null,null,null,null,null,null,null,null,null,null,null,null,null,null,null,null,null,null,null,null,null,null,{"$f":"[2]ورقة1!A432","v":0},{"$f":"[2]ورقة1!B432","v":0}]
[null,null,null,null,null,null,null,null,null,null,null,null,null,null,null,null,null,null,null,null,null,null,null,null,{"$f":"[2]ورقة1!A433","v":0},{"$f":"[2]ورقة1!B433","v":0}]
[null,null,null,null,null,null,null,null,null,null,null,null,null,null,null,null,null,null,null,null,null,null,null,null,{"$f":"[2]ورقة1!A434","v":0},{"$f":"[2]ورقة1!B434","v":0}]
[null,null,null,null,null,null,null,null,null,null,null,null,null,null,null,null,null,null,null,null,null,null,null,null,{"$f":"[2]ورقة1!A435","v":0},{"$f":"[2]ورقة1!B435","v":0}]
[null,null,null,null,null,null,null,null,null,null,null,null,null,null,null,null,null,null,null,null,null,null,null,null,{"$f":"[2]ورقة1!A436","v":0},{"$f":"[2]ورقة1!B436","v":0}]
[null,null,null,null,null,null,null,null,null,null,null,null,null,null,null,null,null,null,null,null,null,null,null,null,{"$f":"[2]ورقة1!A437","v":0},{"$f":"[2]ورقة1!B437","v":0}]
[null,null,null,null,null,null,null,null,null,null,null,null,null,null,null,null,null,null,null,null,null,null,null,null,{"$f":"[2]ورقة1!A438","v":0},{"$f":"[2]ورقة1!B438","v":0}]
[null,null,null,null,null,null,null,null,null,null,null,null,null,null,null,null,null,null,null,null,null,null,null,null,{"$f":"[2]ورقة1!A439","v":0},{"$f":"[2]ورقة1!B439","v":0}]
[null,null,null,null,null,null,null,null,null,null,null,null,null,null,null,null,null,null,null,null,null,null,null,null,{"$f":"[2]ورقة1!A440","v":0},{"$f":"[2]ورقة1!B440","v":0}]
[null,null,null,null,null,null,null,null,null,null,null,null,null,null,null,null,null,null,null,null,null,null,null,null,{"$f":"[2]ورقة1!A441","v":0},{"$f":"[2]ورقة1!B441","v":0}]
[null,null,null,null,null,null,null,null,null,null,null,null,null,null,null,null,null,null,null,null,null,null,null,null,{"$f":"[2]ورقة1!A442","v":0},{"$f":"[2]ورقة1!B442","v":0}]
[null,null,null,null,null,null,null,null,null,null,null,null,null,null,null,null,null,null,null,null,null,null,null,null,{"$f":"[2]ورقة1!A443","v":0},{"$f":"[2]ورقة1!B443","v":0}]
[null,null,null,null,null,null,null,null,null,null,null,null,null,null,null,null,null,null,null,null,null,null,null,null,{"$f":"[2]ورقة1!A444","v":0},{"$f":"[2]ورقة1!B444","v":0}]
[null,null,null,null,null,null,null,null,null,null,null,null,null,null,null,null,null,null,null,null,null,null,null,null,{"$f":"[2]ورقة1!A445","v":0},{"$f":"[2]ورقة1!B445","v":0}]
[null,null,null,null,null,null,null,null,null,null,null,null,null,null,null,null,null,null,null,null,null,null,null,null,{"$f":"[2]ورقة1!A446","v":0},{"$f":"[2]ورقة1!B446","v":0}]
[null,null,null,null,null,null,null,null,null,null,null,null,null,null,null,null,null,null,null,null,null,null,null,null,{"$f":"[2]ورقة1!A447","v":0},{"$f":"[2]ورقة1!B447","v":0}]
[null,null,null,null,null,null,null,null,null,null,null,null,null,null,null,null,null,null,null,null,null,null,null,null,{"$f":"[2]ورقة1!A448","v":0},{"$f":"[2]ورقة1!B448","v":0}]
[null,null,null,null,null,null,null,null,null,null,null,null,null,null,null,null,null,null,null,null,null,null,null,null,{"$f":"[2]ورقة1!A449","v":0},{"$f":"[2]ورقة1!B449","v":0}]
[null,null,null,null,null,null,null,null,null,null,null,null,null,null,null,null,null,null,null,null,null,null,null,null,{"$f":"[2]ورقة1!A450","v":0},{"$f":"[2]ورقة1!B450","v":0}]
[null,null,null,null,null,null,null,null,null,null,null,null,null,null,null,null,null,null,null,null,null,null,null,null,{"$f":"[2]ورقة1!A451","v":0},{"$f":"[2]ورقة1!B451","v":0}]
[null,null,null,null,null,null,null,null,null,null,null,null,null,null,null,null,null,null,null,null,null,null,null,null,{"$f":"[2]ورقة1!A452","v":0},{"$f":"[2]ورقة1!B452","v":0}]
[null,null,null,null,null,null,null,null,null,null,null,null,null,null,null,null,null,null,null,null,null,null,null,null,{"$f":"[2]ورقة1!A453","v":0},{"$f":"[2]ورقة1!B453","v":0}]
[null,null,null,null,null,null,null,null,null,null,null,null,null,null,null,null,null,null,null,null,null,null,null,null,{"$f":"[2]ورقة1!A454","v":0},{"$f":"[2]ورقة1!B454","v":0}]
[null,null,null,null,null,null,null,null,null,null,null,null,null,null,null,null,null,null,null,null,null,null,null,null,{"$f":"[2]ورقة1!A455","v":0},{"$f":"[2]ورقة1!B455","v":0}]
[null,null,null,null,null,null,null,null,null,null,null,null,null,null,null,null,null,null,null,null,null,null,null,null,{"$f":"[2]ورقة1!A456","v":0},{"$f":"[2]ورقة1!B456","v":0}]
[null,null,null,null,null,null,null,null,null,null,null,null,null,null,null,null,null,null,null,null,null,null,null,null,{"$f":"[2]ورقة1!A457","v":0},{"$f":"[2]ورقة1!B457","v":0}]
[null,null,null,null,null,null,null,null,null,null,null,null,null,null,null,null,null,null,null,null,null,null,null,null,{"$f":"[2]ورقة1!A458","v":0},{"$f":"[2]ورقة1!B458","v":0}]
[null,null,null,null,null,null,null,null,null,null,null,null,null,null,null,null,null,null,null,null,null,null,null,null,{"$f":"[2]ورقة1!A459","v":0},{"$f":"[2]ورقة1!B459","v":0}]
[null,null,null,null,null,null,null,null,null,null,null,null,null,null,null,null,null,null,null,null,null,null,null,null,{"$f":"[2]ورقة1!A460","v":0},{"$f":"[2]ورقة1!B460","v":0}]
[null,null,null,null,null,null,null,null,null,null,null,null,null,null,null,null,null,null,null,null,null,null,null,null,{"$f":"[2]ورقة1!A461","v":0},{"$f":"[2]ورقة1!B461","v":0}]
[null,null,null,null,null,null,null,null,null,null,null,null,null,null,null,null,null,null,null,null,null,null,null,null,{"$f":"[2]ورقة1!A462","v":0},{"$f":"[2]ورقة1!B462","v":0}]
[null,null,null,null,null,null,null,null,null,null,null,null,null,null,null,null,null,null,null,null,null,null,null,null,{"$f":"[2]ورقة1!A463","v":0},{"$f":"[2]ورقة1!B463","v":0}]
[null,null,null,null,null,null,null,null,null,null,null,null,null,null,null,null,null,null,null,null,null,null,null,null,{"$f":"[2]ورقة1!A464","v":0},{"$f":"[2]ورقة1!B464","v":0}]
[null,null,null,null,null,null,null,null,null,null,null,null,null,null,null,null,null,null,null,null,null,null,null,null,{"$f":"[2]ورقة1!A465","v":0},{"$f":"[2]ورقة1!B465","v":0}]
[null,null,null,null,null,null,null,null,null,null,null,null,null,null,null,null,null,null,null,null,null,null,null,null,{"$f":"[2]ورقة1!A466","v":0},{"$f":"[2]ورقة1!B466","v":0}]
[null,null,null,null,null,null,null,null,null,null,null,null,null,null,null,null,null,null,null,null,null,null,null,null,{"$f":"[2]ورقة1!A467","v":0},{"$f":"[2]ورقة1!B467","v":0}]
[null,null,null,null,null,null,null,null,null,null,null,null,null,null,null,null,null,null,null,null,null,null,null,null,{"$f":"[2]ورقة1!A468","v":0},{"$f":"[2]ورقة1!B468","v":0}]
[null,null,null,null,null,null,null,null,null,null,null,null,null,null,null,null,null,null,null,null,null,null,null,null,{"$f":"[2]ورقة1!A469","v":0},{"$f":"[2]ورقة1!B469","v":0}]
[null,null,null,null,null,null,null,null,null,null,null,null,null,null,null,null,null,null,null,null,null,null,null,null,{"$f":"[2]ورقة1!A470","v":0},{"$f":"[2]ورقة1!B470","v":0}]
[null,null,null,null,null,null,null,null,null,null,null,null,null,null,null,null,null,null,null,null,null,null,null,null,{"$f":"[2]ورقة1!A471","v":0},{"$f":"[2]ورقة1!B471","v":0}]
[null,null,null,null,null,null,null,null,null,null,null,null,null,null,null,null,null,null,null,null,null,null,null,null,{"$f":"[2]ورقة1!A472","v":0},{"$f":"[2]ورقة1!B472","v":0}]
[null,null,null,null,null,null,null,null,null,null,null,null,null,null,null,null,null,null,null,null,null,null,null,null,{"$f":"[2]ورقة1!A473","v":0},{"$f":"[2]ورقة1!B473","v":0}]
[null,null,null,null,null,null,null,null,null,null,null,null,null,null,null,null,null,null,null,null,null,null,null,null,{"$f":"[2]ورقة1!A474","v":0},{"$f":"[2]ورقة1!B474","v":0}]
[null,null,null,null,null,null,null,null,null,null,null,null,null,null,null,null,null,null,null,null,null,null,null,null,{"$f":"[2]ورقة1!A475","v":0},{"$f":"[2]ورقة1!B475","v":0}]
[null,null,null,null,null,null,null,null,null,null,null,null,null,null,null,null,null,null,null,null,null,null,null,null,{"$f":"[2]ورقة1!A476","v":0},{"$f":"[2]ورقة1!B476","v":0}]
[null,null,null,null,null,null,null,null,null,null,null,null,null,null,null,null,null,null,null,null,null,null,null,null,{"$f":"[2]ورقة1!A477","v":0},{"$f":"[2]ورقة1!B477","v":0}]
[null,null,null,null,null,null,null,null,null,null,null,null,null,null,null,null,null,null,null,null,null,null,null,null,{"$f":"[2]ورقة1!A478","v":0},{"$f":"[2]ورقة1!B478","v":0}]
[null,null,null,null,null,null,null,null,null,null,null,null,null,null,null,null,null,null,null,null,null,null,null,null,{"$f":"[2]ورقة1!A479","v":0},{"$f":"[2]ورقة1!B479","v":0}]
[null,null,null,null,null,null,null,null,null,null,null,null,null,null,null,null,null,null,null,null,null,null,null,null,{"$f":"[2]ورقة1!A480","v":0},{"$f":"[2]ورقة1!B480","v":0}]
[null,null,null,null,null,null,null,null,null,null,null,null,null,null,null,null,null,null,null,null,null,null,null,null,{"$f":"[2]ورقة1!A481","v":0},{"$f":"[2]ورقة1!B481","v":0}]
[null,null,null,null,null,null,null,null,null,null,null,null,null,null,null,null,null,null,null,null,null,null,null,null,{"$f":"[2]ورقة1!A482","v":0},{"$f":"[2]ورقة1!B482","v":0}]
[null,null,null,null,null,null,null,null,null,null,null,null,null,null,null,null,null,null,null,null,null,null,null,null,{"$f":"[2]ورقة1!A483","v":0},{"$f":"[2]ورقة1!B483","v":0}]
[null,null,null,null,null,null,null,null,null,null,null,null,null,null,null,null,null,null,null,null,null,null,null,null,{"$f":"[2]ورقة1!A484","v":0},{"$f":"[2]ورقة1!B484","v":0}]
[null,null,null,null,null,null,null,null,null,null,null,null,null,null,null,null,null,null,null,null,null,null,null,null,{"$f":"[2]ورقة1!A485","v":0},{"$f":"[2]ورقة1!B485","v":0}]
[null,null,null,null,null,null,null,null,null,null,null,null,null,null,null,null,null,null,null,null,null,null,null,null,{"$f":"[2]ورقة1!A486","v":0},{"$f":"[2]ورقة1!B486","v":0}]
[null,null,null,null,null,null,null,null,null,null,null,null,null,null,null,null,null,null,null,null,null,null,null,null,{"$f":"[2]ورقة1!A487","v":0},{"$f":"[2]ورقة1!B487","v":0}]
[null,null,null,null,null,null,null,null,null,null,null,null,null,null,null,null,null,null,null,null,null,null,null,null,{"$f":"[2]ورقة1!A488","v":0},{"$f":"[2]ورقة1!B488","v":0}]
[null,null,null,null,null,null,null,null,null,null,null,null,null,null,null,null,null,null,null,null,null,null,null,null,{"$f":"[2]ورقة1!A489","v":0},{"$f":"[2]ورقة1!B489","v":0}]
[null,null,null,null,null,null,null,null,null,null,null,null,null,null,null,null,null,null,null,null,null,null,null,null,{"$f":"[2]ورقة1!A490","v":0},{"$f":"[2]ورقة1!B490","v":0}]
[null,null,null,null,null,null,null,null,null,null,null,null,null,null,null,null,null,null,null,null,null,null,null,null,{"$f":"[2]ورقة1!A491","v":0},{"$f":"[2]ورقة1!B491","v":0}]
[null,null,null,null,null,null,null,null,null,null,null,null,null,null,null,null,null,null,null,null,null,null,null,null,{"$f":"[2]ورقة1!A492","v":0},{"$f":"[2]ورقة1!B492","v":0}]
[null,null,null,null,null,null,null,null,null,null,null,null,null,null,null,null,null,null,null,null,null,null,null,null,{"$f":"[2]ورقة1!A493","v":0},{"$f":"[2]ورقة1!B493","v":0}]
[null,null,null,null,null,null,null,null,null,null,null,null,null,null,null,null,null,null,null,null,null,null,null,null,{"$f":"[2]ورقة1!A494","v":0},{"$f":"[2]ورقة1!B494","v":0}]
[null,null,null,null,null,null,null,null,null,null,null,null,null,null,null,null,null,null,null,null,null,null,null,null,{"$f":"[2]ورقة1!A495","v":0},{"$f":"[2]ورقة1!B495","v":0}]
[null,null,null,null,null,null,null,null,null,null,null,null,null,null,null,null,null,null,null,null,null,null,null,null,{"$f":"[2]ورقة1!A496","v":0},{"$f":"[2]ورقة1!B496","v":0}]
[null,null,null,null,null,null,null,null,null,null,null,null,null,null,null,null,null,null,null,null,null,null,null,null,{"$f":"[2]ورقة1!A497","v":0},{"$f":"[2]ورقة1!B497","v":0}]
[null,null,null,null,null,null,null,null,null,null,null,null,null,null,null,null,null,null,null,null,null,null,null,null,{"$f":"[2]ورقة1!A498","v":0},{"$f":"[2]ورقة1!B498","v":0}]
[null,null,null,null,null,null,null,null,null,null,null,null,null,null,null,null,null,null,null,null,null,null,null,null,{"$f":"[2]ورقة1!A499","v":0},{"$f":"[2]ورقة1!B499","v":0}]
[null,null,null,null,null,null,null,null,null,null,null,null,null,null,null,null,null,null,null,null,null,null,null,null,{"$f":"[2]ورقة1!A500","v":0},{"$f":"[2]ورقة1!B500","v":0}]
[null,null,null,null,null,null,null,null,null,null,null,null,null,null,null,null,null,null,null,null,null,null,null,null,{"$f":"[2]ورقة1!A501","v":0},{"$f":"[2]ورقة1!B501","v":0}]
[null,null,null,null,null,null,null,null,null,null,null,null,null,null,null,null,null,null,null,null,null,null,null,null,{"$f":"[2]ورقة1!A502","v":0},{"$f":"[2]ورقة1!B502","v":0}]
[null,null,null,null,null,null,null,null,null,null,null,null,null,null,null,null,null,null,null,null,null,null,null,null,{"$f":"[2]ورقة1!A503","v":0},{"$f":"[2]ورقة1!B503","v":0}]
[null,null,null,null,null,null,null,null,null,null,null,null,null,null,null,null,null,null,null,null,null,null,null,null,{"$f":"[2]ورقة1!A504","v":0},{"$f":"[2]ورقة1!B504","v":0}]
[null,null,null,null,null,null,null,null,null,null,null,null,null,null,null,null,null,null,null,null,null,null,null,null,{"$f":"[2]ورقة1!A505","v":0},{"$f":"[2]ورقة1!B505","v":0}]
[null,null,null,null,null,null,null,null,null,null,null,null,null,null,null,null,null,null,null,null,null,null,null,null,{"$f":"[2]ورقة1!A506","v":0},{"$f":"[2]ورقة1!B506","v":0}]
[null,null,null,null,null,null,null,null,null,null,null,null,null,null,null,null,null,null,null,null,null,null,null,null,{"$f":"[2]ورقة1!A507","v":0},{"$f":"[2]ورقة1!B507","v":0}]
[null,null,null,null,null,null,null,null,null,null,null,null,null,null,null,null,null,null,null,null,null,null,null,null,{"$f":"[2]ورقة1!A508","v":0},{"$f":"[2]ورقة1!B508","v":0}]
[null,null,null,null,null,null,null,null,null,null,null,null,null,null,null,null,null,null,null,null,null,null,null,null,{"$f":"[2]ورقة1!A509","v":0},{"$f":"[2]ورقة1!B509","v":0}]
[null,null,null,null,null,null,null,null,null,null,null,null,null,null,null,null,null,null,null,null,null,null,null,null,{"$f":"[2]ورقة1!A510","v":0},{"$f":"[2]ورقة1!B510","v":0}]
[null,null,null,null,null,null,null,null,null,null,null,null,null,null,null,null,null,null,null,null,null,null,null,null,{"$f":"[2]ورقة1!A511","v":0},{"$f":"[2]ورقة1!B511","v":0}]
[null,null,null,null,null,null,null,null,null,null,null,null,null,null,null,null,null,null,null,null,null,null,null,null,{"$f":"[2]ورقة1!A512","v":0},{"$f":"[2]ورقة1!B512","v":0}]
[null,null,null,null,null,null,null,null,null,null,null,null,null,null,null,null,null,null,null,null,null,null,null,null,{"$f":"[2]ورقة1!A513","v":0},{"$f":"[2]ورقة1!B513","v":0}]
[null,null,null,null,null,null,null,null,null,null,null,null,null,null,null,null,null,null,null,null,null,null,null,null,{"$f":"[2]ورقة1!A514","v":0},{"$f":"[2]ورقة1!B514","v":0}]
[null,null,null,null,null,null,null,null,null,null,null,null,null,null,null,null,null,null,null,null,null,null,null,null,{"$f":"[2]ورقة1!A515","v":0},{"$f":"[2]ورقة1!B515","v":0}]
[null,null,null,null,null,null,null,null,null,null,null,null,null,null,null,null,null,null,null,null,null,null,null,null,{"$f":"[2]ورقة1!A516","v":0},{"$f":"[2]ورقة1!B516","v":0}]
[null,null,null,null,null,null,null,null,null,null,null,null,null,null,null,null,null,null,null,null,null,null,null,null,{"$f":"[2]ورقة1!A517","v":0},{"$f":"[2]ورقة1!B517","v":0}]
[null,null,null,null,null,null,null,null,null,null,null,null,null,null,null,null,null,null,null,null,null,null,null,null,{"$f":"[2]ورقة1!A518","v":0},{"$f":"[2]ورقة1!B518","v":0}]
[null,null,null,null,null,null,null,null,null,null,null,null,null,null,null,null,null,null,null,null,null,null,null,null,{"$f":"[2]ورقة1!A519","v":0},{"$f":"[2]ورقة1!B519","v":0}]
[null,null,null,null,null,null,null,null,null,null,null,null,null,null,null,null,null,null,null,null,null,null,null,null,{"$f":"[2]ورقة1!A520","v":0},{"$f":"[2]ورقة1!B520","v":0}]
[null,null,null,null,null,null,null,null,null,null,null,null,null,null,null,null,null,null,null,null,null,null,null,null,{"$f":"[2]ورقة1!A521","v":0},{"$f":"[2]ورقة1!B521","v":0}]
[null,null,null,null,null,null,null,null,null,null,null,null,null,null,null,null,null,null,null,null,null,null,null,null,{"$f":"[2]ورقة1!A522","v":0},{"$f":"[2]ورقة1!B522","v":0}]
[null,null,null,null,null,null,null,null,null,null,null,null,null,null,null,null,null,null,null,null,null,null,null,null,{"$f":"[2]ورقة1!A523","v":0},{"$f":"[2]ورقة1!B523","v":0}]
[null,null,null,null,null,null,null,null,null,null,null,null,null,null,null,null,null,null,null,null,null,null,null,null,{"$f":"[2]ورقة1!A524","v":0},{"$f":"[2]ورقة1!B524","v":0}]
[null,null,null,null,null,null,null,null,null,null,null,null,null,null,null,null,null,null,null,null,null,null,null,null,{"$f":"[2]ورقة1!A525","v":0},{"$f":"[2]ورقة1!B525","v":0}]
[null,null,null,null,null,null,null,null,null,null,null,null,null,null,null,null,null,null,null,null,null,null,null,null,{"$f":"[2]ورقة1!A526","v":0},{"$f":"[2]ورقة1!B526","v":0}]
[null,null,null,null,null,null,null,null,null,null,null,null,null,null,null,null,null,null,null,null,null,null,null,null,{"$f":"[2]ورقة1!A527","v":0},{"$f":"[2]ورقة1!B527","v":0}]
[null,null,null,null,null,null,null,null,null,null,null,null,null,null,null,null,null,null,null,null,null,null,null,null,{"$f":"[2]ورقة1!A528","v":0},{"$f":"[2]ورقة1!B528","v":0}]
[null,null,null,null,null,null,null,null,null,null,null,null,null,null,null,null,null,null,null,null,null,null,null,null,{"$f":"[2]ورقة1!A529","v":0},{"$f":"[2]ورقة1!B529","v":0}]
[null,null,null,null,null,null,null,null,null,null,null,null,null,null,null,null,null,null,null,null,null,null,null,null,{"$f":"[2]ورقة1!A530","v":0},{"$f":"[2]ورقة1!B530","v":0}]
[null,null,null,null,null,null,null,null,null,null,null,null,null,null,null,null,null,null,null,null,null,null,null,null,{"$f":"[2]ورقة1!A531","v":0},{"$f":"[2]ورقة1!B531","v":0}]
[null,null,null,null,null,null,null,null,null,null,null,null,null,null,null,null,null,null,null,null,null,null,null,null,{"$f":"[2]ورقة1!A532","v":0},{"$f":"[2]ورقة1!B532","v":0}]
[null,null,null,null,null,null,null,null,null,null,null,null,null,null,null,null,null,null,null,null,null,null,null,null,{"$f":"[2]ورقة1!A533","v":0},{"$f":"[2]ورقة1!B533","v":0}]
[null,null,null,null,null,null,null,null,null,null,null,null,null,null,null,null,null,null,null,null,null,null,null,null,{"$f":"[2]ورقة1!A534","v":0},{"$f":"[2]ورقة1!B534","v":0}]
[null,null,null,null,null,null,null,null,null,null,null,null,null,null,null,null,null,null,null,null,null,null,null,null,{"$f":"[2]ورقة1!A535","v":0},{"$f":"[2]ورقة1!B535","v":0}]
[null,null,null,null,null,null,null,null,null,null,null,null,null,null,null,null,null,null,null,null,null,null,null,null,{"$f":"[2]ورقة1!A536","v":0},{"$f":"[2]ورقة1!B536","v":0}]
[null,null,null,null,null,null,null,null,null,null,null,null,null,null,null,null,null,null,null,null,null,null,null,null,{"$f":"[2]ورقة1!A537","v":0},{"$f":"[2]ورقة1!B537","v":0}]
[null,null,null,null,null,null,null,null,null,null,null,null,null,null,null,null,null,null,null,null,null,null,null,null,{"$f":"[2]ورقة1!A538","v":0},{"$f":"[2]ورقة1!B538","v":0}]
[null,null,null,null,null,null,null,null,null,null,null,null,null,null,null,null,null,null,null,null,null,null,null,null,{"$f":"[2]ورقة1!A539","v":0},{"$f":"[2]ورقة1!B539","v":0}]
[null,null,null,null,null,null,null,null,null,null,null,null,null,null,null,null,null,null,null,null,null,null,null,null,{"$f":"[2]ورقة1!A540","v":0},{"$f":"[2]ورقة1!B540","v":0}]
[null,null,null,null,null,null,null,null,null,null,null,null,null,null,null,null,null,null,null,null,null,null,null,null,{"$f":"[2]ورقة1!A541","v":0},{"$f":"[2]ورقة1!B541","v":0}]
[null,null,null,null,null,null,null,null,null,null,null,null,null,null,null,null,null,null,null,null,null,null,null,null,{"$f":"[2]ورقة1!A542","v":0},{"$f":"[2]ورقة1!B542","v":0}]
[null,null,null,null,null,null,null,null,null,null,null,null,null,null,null,null,null,null,null,null,null,null,null,null,{"$f":"[2]ورقة1!A543","v":0},{"$f":"[2]ورقة1!B543","v":0}]
[null,null,null,null,null,null,null,null,null,null,null,null,null,null,null,null,null,null,null,null,null,null,null,null,{"$f":"[2]ورقة1!A544","v":0},{"$f":"[2]ورقة1!B544","v":0}]
[null,null,null,null,null,null,null,null,null,null,null,null,null,null,null,null,null,null,null,null,null,null,null,null,{"$f":"[2]ورقة1!A545","v":0},{"$f":"[2]ورقة1!B545","v":0}]
[null,null,null,null,null,null,null,null,null,null,null,null,null,null,null,null,null,null,null,null,null,null,null,null,{"$f":"[2]ورقة1!A546","v":0},{"$f":"[2]ورقة1!B546","v":0}]
[null,null,null,null,null,null,null,null,null,null,null,null,null,null,null,null,null,null,null,null,null,null,null,null,{"$f":"[2]ورقة1!A547","v":0},{"$f":"[2]ورقة1!B547","v":0}]
[null,null,null,null,null,null,null,null,null,null,null,null,null,null,null,null,null,null,null,null,null,null,null,null,{"$f":"[2]ورقة1!A548","v":0},{"$f":"[2]ورقة1!B548","v":0}]
[null,null,null,null,null,null,null,null,null,null,null,null,null,null,null,null,null,null,null,null,null,null,null,null,{"$f":"[2]ورقة1!A549","v":0},{"$f":"[2]ورقة1!B549","v":0}]
[null,null,null,null,null,null,null,null,null,null,null,null,null,null,null,null,null,null,null,null,null,null,null,null,{"$f":"[2]ورقة1!A550","v":0},{"$f":"[2]ورقة1!B550","v":0}]
[null,null,null,null,null,null,null,null,null,null,null,null,null,null,null,null,null,null,null,null,null,null,null,null,{"$f":"[2]ورقة1!A551","v":0},{"$f":"[2]ورقة1!B551","v":0}]
[null,null,null,null,null,null,null,null,null,null,null,null,null,null,null,null,null,null,null,null,null,null,null,null,{"$f":"[2]ورقة1!A552","v":0},{"$f":"[2]ورقة1!B552","v":0}]
[null,null,null,null,null,null,null,null,null,null,null,null,null,null,null,null,null,null,null,null,null,null,null,null,{"$f":"[2]ورقة1!A553","v":0},{"$f":"[2]ورقة1!B553","v":0}]
[null,null,null,null,null,null,null,null,null,null,null,null,null,null,null,null,null,null,null,null,null,null,null,null,{"$f":"[2]ورقة1!A554","v":0},{"$f":"[2]ورقة1!B554","v":0}]
[null,null,null,null,null,null,null,null,null,null,null,null,null,null,null,null,null,null,null,null,null,null,null,null,{"$f":"[2]ورقة1!A555","v":0},{"$f":"[2]ورقة1!B555","v":0}]
[null,null,null,null,null,null,null,null,null,null,null,null,null,null,null,null,null,null,null,null,null,null,null,null,{"$f":"[2]ورقة1!A556","v":0},{"$f":"[2]ورقة1!B556","v":0}]
[null,null,null,null,null,null,null,null,null,null,null,null,null,null,null,null,null,null,null,null,null,null,null,null,{"$f":"[2]ورقة1!A557","v":0},{"$f":"[2]ورقة1!B557","v":0}]
[null,null,null,null,null,null,null,null,null,null,null,null,null,null,null,null,null,null,null,null,null,null,null,null,{"$f":"[2]ورقة1!A558","v":0},{"$f":"[2]ورقة1!B558","v":0}]
[null,null,null,null,null,null,null,null,null,null,null,null,null,null,null,null,null,null,null,null,null,null,null,null,{"$f":"[2]ورقة1!A559","v":0},{"$f":"[2]ورقة1!B559","v":0}]
[null,null,null,null,null,null,null,null,null,null,null,null,null,null,null,null,null,null,null,null,null,null,null,null,{"$f":"[2]ورقة1!A560","v":0},{"$f":"[2]ورقة1!B560","v":0}]
[null,null,null,null,null,null,null,null,null,null,null,null,null,null,null,null,null,null,null,null,null,null,null,null,{"$f":"[2]ورقة1!A561","v":0},{"$f":"[2]ورقة1!B561","v":0}]
[null,null,null,null,null,null,null,null,null,null,null,null,null,null,null,null,null,null,null,null,null,null,null,null,{"$f":"[2]ورقة1!A562","v":0},{"$f":"[2]ورقة1!B562","v":0}]
[null,null,null,null,null,null,null,null,null,null,null,null,null,null,null,null,null,null,null,null,null,null,null,null,{"$f":"[2]ورقة1!A563","v":0},{"$f":"[2]ورقة1!B563","v":0}]
[null,null,null,null,null,null,null,null,null,null,null,null,null,null,null,null,null,null,null,null,null,null,null,null,{"$f":"[2]ورقة1!A564","v":0},{"$f":"[2]ورقة1!B564","v":0}]
[null,null,null,null,null,null,null,null,null,null,null,null,null,null,null,null,null,null,null,null,null,null,null,null,{"$f":"[2]ورقة1!A565","v":0},{"$f":"[2]ورقة1!B565","v":0}]
[null,null,null,null,null,null,null,null,null,null,null,null,null,null,null,null,null,null,null,null,null,null,null,null,{"$f":"[2]ورقة1!A566","v":0},{"$f":"[2]ورقة1!B566","v":0}]
[null,null,null,null,null,null,null,null,null,null,null,null,null,null,null,null,null,null,null,null,null,null,null,null,{"$f":"[2]ورقة1!A567","v":0},{"$f":"[2]ورقة1!B567","v":0}]
[null,null,null,null,null,null,null,null,null,null,null,null,null,null,null,null,null,null,null,null,null,null,null,null,{"$f":"[2]ورقة1!A568","v":0},{"$f":"[2]ورقة1!B568","v":0}]
[null,null,null,null,null,null,null,null,null,null,null,null,null,null,null,null,null,null,null,null,null,null,null,null,{"$f":"[2]ورقة1!A569","v":0},{"$f":"[2]ورقة1!B569","v":0}]
[null,null,null,null,null,null,null,null,null,null,null,null,null,null,null,null,null,null,null,null,null,null,null,null,{"$f":"[2]ورقة1!A570","v":0},{"$f":"[2]ورقة1!B570","v":0}]
[null,null,null,null,null,null,null,null,null,null,null,null,null,null,null,null,null,null,null,null,null,null,null,null,{"$f":"[2]ورقة1!A571","v":0},{"$f":"[2]ورقة1!B571","v":0}]
[null,null,null,null,null,null,null,null,null,null,null,null,null,null,null,null,null,null,null,null,null,null,null,null,{"$f":"[2]ورقة1!A572","v":0},{"$f":"[2]ورقة1!B572","v":0}]
[null,null,null,null,null,null,null,null,null,null,null,null,null,null,null,null,null,null,null,null,null,null,null,null,{"$f":"[2]ورقة1!A573","v":0},{"$f":"[2]ورقة1!B573","v":0}]
[null,null,null,null,null,null,null,null,null,null,null,null,null,null,null,null,null,null,null,null,null,null,null,null,{"$f":"[2]ورقة1!A574","v":0},{"$f":"[2]ورقة1!B574","v":0}]
[null,null,null,null,null,null,null,null,null,null,null,null,null,null,null,null,null,null,null,null,null,null,null,null,{"$f":"[2]ورقة1!A575","v":0},{"$f":"[2]ورقة1!B575","v":0}]
[null,null,null,null,null,null,null,null,null,null,null,null,null,null,null,null,null,null,null,null,null,null,null,null,{"$f":"[2]ورقة1!A576","v":0},{"$f":"[2]ورقة1!B576","v":0}]
[null,null,null,null,null,null,null,null,null,null,null,null,null,null,null,null,null,null,null,null,null,null,null,null,{"$f":"[2]ورقة1!A577","v":0},{"$f":"[2]ورقة1!B577","v":0}]
[null,null,null,null,null,null,null,null,null,null,null,null,null,null,null,null,null,null,null,null,null,null,null,null,{"$f":"[2]ورقة1!A578","v":0},{"$f":"[2]ورقة1!B578","v":0}]
[null,null,null,null,null,null,null,null,null,null,null,null,null,null,null,null,null,null,null,null,null,null,null,null,{"$f":"[2]ورقة1!A579","v":0},{"$f":"[2]ورقة1!B579","v":0}]
[null,null,null,null,null,null,null,null,null,null,null,null,null,null,null,null,null,null,null,null,null,null,null,null,{"$f":"[2]ورقة1!A580","v":0},{"$f":"[2]ورقة1!B580","v":0}]
[null,null,null,null,null,null,null,null,null,null,null,null,null,null,null,null,null,null,null,null,null,null,null,null,{"$f":"[2]ورقة1!A581","v":0},{"$f":"[2]ورقة1!B581","v":0}]
[null,null,null,null,null,null,null,null,null,null,null,null,null,null,null,null,null,null,null,null,null,null,null,null,{"$f":"[2]ورقة1!A582","v":0},{"$f":"[2]ورقة1!B582","v":0}]
[null,null,null,null,null,null,null,null,null,null,null,null,null,null,null,null,null,null,null,null,null,null,null,null,{"$f":"[2]ورقة1!A583","v":0},{"$f":"[2]ورقة1!B583","v":0}]
[null,null,null,null,null,null,null,null,null,null,null,null,null,null,null,null,null,null,null,null,null,null,null,null,{"$f":"[2]ورقة1!A584","v":0},{"$f":"[2]ورقة1!B584","v":0}]
[null,null,null,null,null,null,null,null,null,null,null,null,null,null,null,null,null,null,null,null,null,null,null,null,{"$f":"[2]ورقة1!A585","v":0},{"$f":"[2]ورقة1!B585","v":0}]
[null,null,null,null,null,null,null,null,null,null,null,null,null,null,null,null,null,null,null,null,null,null,null,null,{"$f":"[2]ورقة1!A586","v":0},{"$f":"[2]ورقة1!B586","v":0}]
[null,null,null,null,null,null,null,null,null,null,null,null,null,null,null,null,null,null,null,null,null,null,null,null,{"$f":"[2]ورقة1!A587","v":0},{"$f":"[2]ورقة1!B587","v":0}]
[null,null,null,null,null,null,null,null,null,null,null,null,null,null,null,null,null,null,null,null,null,null,null,null,{"$f":"[2]ورقة1!A588","v":0},{"$f":"[2]ورقة1!B588","v":0}]
[null,null,null,null,null,null,null,null,null,null,null,null,null,null,null,null,null,null,null,null,null,null,null,null,{"$f":"[2]ورقة1!A589","v":0},{"$f":"[2]ورقة1!B589","v":0}]
[null,null,null,null,null,null,null,null,null,null,null,null,null,null,null,null,null,null,null,null,null,null,null,null,{"$f":"[2]ورقة1!A590","v":0},{"$f":"[2]ورقة1!B590","v":0}]
[null,null,null,null,null,null,null,null,null,null,null,null,null,null,null,null,null,null,null,null,null,null,null,null,{"$f":"[2]ورقة1!A591","v":0},{"$f":"[2]ورقة1!B591","v":0}]
[null,null,null,null,null,null,null,null,null,null,null,null,null,null,null,null,null,null,null,null,null,null,null,null,{"$f":"[2]ورقة1!A592","v":0},{"$f":"[2]ورقة1!B592","v":0}]
[null,null,null,null,null,null,null,null,null,null,null,null,null,null,null,null,null,null,null,null,null,null,null,null,{"$f":"[2]ورقة1!A593","v":0},{"$f":"[2]ورقة1!B593","v":0}]
[null,null,null,null,null,null,null,null,null,null,null,null,null,null,null,null,null,null,null,null,null,null,null,null,{"$f":"[2]ورقة1!A594","v":0},{"$f":"[2]ورقة1!B594","v":0}]
[null,null,null,null,null,null,null,null,null,null,null,null,null,null,null,null,null,null,null,null,null,null,null,null,{"$f":"[2]ورقة1!A595","v":0},{"$f":"[2]ورقة1!B595","v":0}]
[null,null,null,null,null,null,null,null,null,null,null,null,null,null,null,null,null,null,null,null,null,null,null,null,{"$f":"[2]ورقة1!A596","v":0},{"$f":"[2]ورقة1!B596","v":0}]
[null,null,null,null,null,null,null,null,null,null,null,null,null,null,null,null,null,null,null,null,null,null,null,null,{"$f":"[2]ورقة1!A597","v":0},{"$f":"[2]ورقة1!B597","v":0}]
[null,null,null,null,null,null,null,null,null,null,null,null,null,null,null,null,null,null,null,null,null,null,null,null,{"$f":"[2]ورقة1!A598","v":0},{"$f":"[2]ورقة1!B598","v":0}]
[null,null,null,null,null,null,null,null,null,null,null,null,null,null,null,null,null,null,null,null,null,null,null,null,{"$f":"[2]ورقة1!A599","v":0},{"$f":"[2]ورقة1!B599","v":0}]
[null,null,null,null,null,null,null,null,null,null,null,null,null,null,null,null,null,null,null,null,null,null,null,null,{"$f":"[2]ورقة1!A600","v":0},{"$f":"[2]ورقة1!B600","v":0}]
[null,null,null,null,null,null,null,null,null,null,null,null,null,null,null,null,null,null,null,null,null,null,null,null,{"$f":"[2]ورقة1!A601","v":0},{"$f":"[2]ورقة1!B601","v":0}]
[null,null,null,null,null,null,null,null,null,null,null,null,null,null,null,null,null,null,null,null,null,null,null,null,{"$f":"[2]ورقة1!A602","v":0},{"$f":"[2]ورقة1!B602","v":0}]
[null,null,null,null,null,null,null,null,null,null,null,null,null,null,null,null,null,null,null,null,null,null,null,null,{"$f":"[2]ورقة1!A603","v":0},{"$f":"[2]ورقة1!B603","v":0}]
[null,null,null,null,null,null,null,null,null,null,null,null,null,null,null,null,null,null,null,null,null,null,null,null,{"$f":"[2]ورقة1!A604","v":0},{"$f":"[2]ورقة1!B604","v":0}]
[null,null,null,null,null,null,null,null,null,null,null,null,null,null,null,null,null,null,null,null,null,null,null,null,{"$f":"[2]ورقة1!A605","v":0},{"$f":"[2]ورقة1!B605","v":0}]
[null,null,null,null,null,null,null,null,null,null,null,null,null,null,null,null,null,null,null,null,null,null,null,null,{"$f":"[2]ورقة1!A606","v":0},{"$f":"[2]ورقة1!B606","v":0}]
[null,null,null,null,null,null,null,null,null,null,null,null,null,null,null,null,null,null,null,null,null,null,null,null,{"$f":"[2]ورقة1!A607","v":0},{"$f":"[2]ورقة1!B607","v":0}]
[null,null,null,null,null,null,null,null,null,null,null,null,null,null,null,null,null,null,null,null,null,null,null,null,{"$f":"[2]ورقة1!A608","v":0},{"$f":"[2]ورقة1!B608","v":0}]
[null,null,null,null,null,null,null,null,null,null,null,null,null,null,null,null,null,null,null,null,null,null,null,null,{"$f":"[2]ورقة1!A609","v":0},{"$f":"[2]ورقة1!B609","v":0}]
[null,null,null,null,null,null,null,null,null,null,null,null,null,null,null,null,null,null,null,null,null,null,null,null,{"$f":"[2]ورقة1!A610","v":0},{"$f":"[2]ورقة1!B610","v":0}]
[null,null,null,null,null,null,null,null,null,null,null,null,null,null,null,null,null,null,null,null,null,null,null,null,{"$f":"[2]ورقة1!A611","v":0},{"$f":"[2]ورقة1!B611","v":0}]
[null,null,null,null,null,null,null,null,null,null,null,null,null,null,null,null,null,null,null,null,null,null,null,null,{"$f":"[2]ورقة1!A612","v":0},{"$f":"[2]ورقة1!B612","v":0}]
[null,null,null,null,null,null,null,null,null,null,null,null,null,null,null,null,null,null,null,null,null,null,null,null,{"$f":"[2]ورقة1!A613","v":0},{"$f":"[2]ورقة1!B613","v":0}]
[null,null,null,null,null,null,null,null,null,null,null,null,null,null,null,null,null,null,null,null,null,null,null,null,{"$f":"[2]ورقة1!A614","v":0},{"$f":"[2]ورقة1!B614","v":0}]
[null,null,null,null,null,null,null,null,null,null,null,null,null,null,null,null,null,null,null,null,null,null,null,null,{"$f":"[2]ورقة1!A615","v":0},{"$f":"[2]ورقة1!B615","v":0}]
[null,null,null,null,null,null,null,null,null,null,null,null,null,null,null,null,null,null,null,null,null,null,null,null,{"$f":"[2]ورقة1!A616","v":0},{"$f":"[2]ورقة1!B616","v":0}]
[null,null,null,null,null,null,null,null,null,null,null,null,null,null,null,null,null,null,null,null,null,null,null,null,{"$f":"[2]ورقة1!A617","v":0},{"$f":"[2]ورقة1!B617","v":0}]
[null,null,null,null,null,null,null,null,null,null,null,null,null,null,null,null,null,null,null,null,null,null,null,null,{"$f":"[2]ورقة1!A618","v":0},{"$f":"[2]ورقة1!B618","v":0}]
[null,null,null,null,null,null,null,null,null,null,null,null,null,null,null,null,null,null,null,null,null,null,null,null,{"$f":"[2]ورقة1!A619","v":0},{"$f":"[2]ورقة1!B619","v":0}]
[null,null,null,null,null,null,null,null,null,null,null,null,null,null,null,null,null,null,null,null,null,null,null,null,{"$f":"[2]ورقة1!A620","v":0},{"$f":"[2]ورقة1!B620","v":0}]
[null,null,null,null,null,null,null,null,null,null,null,null,null,null,null,null,null,null,null,null,null,null,null,null,{"$f":"[2]ورقة1!A621","v":0},{"$f":"[2]ورقة1!B621","v":0}]
[null,null,null,null,null,null,null,null,null,null,null,null,null,null,null,null,null,null,null,null,null,null,null,null,{"$f":"[2]ورقة1!A622","v":0},{"$f":"[2]ورقة1!B622","v":0}]
[null,null,null,null,null,null,null,null,null,null,null,null,null,null,null,null,null,null,null,null,null,null,null,null,{"$f":"[2]ورقة1!A623","v":0},{"$f":"[2]ورقة1!B623","v":0}]
[null,null,null,null,null,null,null,null,null,null,null,null,null,null,null,null,null,null,null,null,null,null,null,null,{"$f":"[2]ورقة1!A624","v":0},{"$f":"[2]ورقة1!B624","v":0}]
[null,null,null,null,null,null,null,null,null,null,null,null,null,null,null,null,null,null,null,null,null,null,null,null,{"$f":"[2]ورقة1!A625","v":0},{"$f":"[2]ورقة1!B625","v":0}]
[null,null,null,null,null,null,null,null,null,null,null,null,null,null,null,null,null,null,null,null,null,null,null,null,{"$f":"[2]ورقة1!A626","v":0},{"$f":"[2]ورقة1!B626","v":0}]
[null,null,null,null,null,null,null,null,null,null,null,null,null,null,null,null,null,null,null,null,null,null,null,null,{"$f":"[2]ورقة1!A627","v":0},{"$f":"[2]ورقة1!B627","v":0}]
[null,null,null,null,null,null,null,null,null,null,null,null,null,null,null,null,null,null,null,null,null,null,null,null,{"$f":"[2]ورقة1!A628","v":0},{"$f":"[2]ورقة1!B628","v":0}]
[null,null,null,null,null,null,null,null,null,null,null,null,null,null,null,null,null,null,null,null,null,null,null,null,{"$f":"[2]ورقة1!A629","v":0},{"$f":"[2]ورقة1!B629","v":0}]
[null,null,null,null,null,null,null,null,null,null,null,null,null,null,null,null,null,null,null,null,null,null,null,null,{"$f":"[2]ورقة1!A630","v":0},{"$f":"[2]ورقة1!B630","v":0}]
[null,null,null,null,null,null,null,null,null,null,null,null,null,null,null,null,null,null,null,null,null,null,null,null,{"$f":"[2]ورقة1!A631","v":0},{"$f":"[2]ورقة1!B631","v":0}]
[null,null,null,null,null,null,null,null,null,null,null,null,null,null,null,null,null,null,null,null,null,null,null,null,{"$f":"[2]ورقة1!A632","v":0},{"$f":"[2]ورقة1!B632","v":0}]
[null,null,null,null,null,null,null,null,null,null,null,null,null,null,null,null,null,null,null,null,null,null,null,null,{"$f":"[2]ورقة1!A633","v":0},{"$f":"[2]ورقة1!B633","v":0}]
[null,null,null,null,null,null,null,null,null,null,null,null,null,null,null,null,null,null,null,null,null,null,null,null,{"$f":"[2]ورقة1!A634","v":0},{"$f":"[2]ورقة1!B634","v":0}]
[null,null,null,null,null,null,null,null,null,null,null,null,null,null,null,null,null,null,null,null,null,null,null,null,{"$f":"[2]ورقة1!A635","v":0},{"$f":"[2]ورقة1!B635","v":0}]
[null,null,null,null,null,null,null,null,null,null,null,null,null,null,null,null,null,null,null,null,null,null,null,null,{"$f":"[2]ورقة1!A636","v":0},{"$f":"[2]ورقة1!B636","v":0}]
[null,null,null,null,null,null,null,null,null,null,null,null,null,null,null,null,null,null,null,null,null,null,null,null,{"$f":"[2]ورقة1!A637","v":0},{"$f":"[2]ورقة1!B637","v":0}]
[null,null,null,null,null,null,null,null,null,null,null,null,null,null,null,null,null,null,null,null,null,null,null,null,{"$f":"[2]ورقة1!A638","v":0},{"$f":"[2]ورقة1!B638","v":0}]
[null,null,null,null,null,null,null,null,null,null,null,null,null,null,null,null,null,null,null,null,null,null,null,null,{"$f":"[2]ورقة1!A639","v":0},{"$f":"[2]ورقة1!B639","v":0}]
[null,null,null,null,null,null,null,null,null,null,null,null,null,null,null,null,null,null,null,null,null,null,null,null,{"$f":"[2]ورقة1!A640","v":0},{"$f":"[2]ورقة1!B640","v":0}]
[null,null,null,null,null,null,null,null,null,null,null,null,null,null,null,null,null,null,null,null,null,null,null,null,{"$f":"[2]ورقة1!A641","v":0},{"$f":"[2]ورقة1!B641","v":0}]
[null,null,null,null,null,null,null,null,null,null,null,null,null,null,null,null,null,null,null,null,null,null,null,null,{"$f":"[2]ورقة1!A642","v":0},{"$f":"[2]ورقة1!B642","v":0}]
[null,null,null,null,null,null,null,null,null,null,null,null,null,null,null,null,null,null,null,null,null,null,null,null,{"$f":"[2]ورقة1!A643","v":0},{"$f":"[2]ورقة1!B643","v":0}]
[null,null,null,null,null,null,null,null,null,null,null,null,null,null,null,null,null,null,null,null,null,null,null,null,{"$f":"[2]ورقة1!A644","v":0},{"$f":"[2]ورقة1!B644","v":0}]
[null,null,null,null,null,null,null,null,null,null,null,null,null,null,null,null,null,null,null,null,null,null,null,null,{"$f":"[2]ورقة1!A645","v":0},{"$f":"[2]ورقة1!B645","v":0}]
[null,null,null,null,null,null,null,null,null,null,null,null,null,null,null,null,null,null,null,null,null,null,null,null,{"$f":"[2]ورقة1!A646","v":0},{"$f":"[2]ورقة1!B646","v":0}]
[null,null,null,null,null,null,null,null,null,null,null,null,null,null,null,null,null,null,null,null,null,null,null,null,{"$f":"[2]ورقة1!A647","v":0},{"$f":"[2]ورقة1!B647","v":0}]
[null,null,null,null,null,null,null,null,null,null,null,null,null,null,null,null,null,null,null,null,null,null,null,null,{"$f":"[2]ورقة1!A648","v":0},{"$f":"[2]ورقة1!B648","v":0}]
[null,null,null,null,null,null,null,null,null,null,null,null,null,null,null,null,null,null,null,null,null,null,null,null,{"$f":"[2]ورقة1!A649","v":0},{"$f":"[2]ورقة1!B649","v":0}]
[null,null,null,null,null,null,null,null,null,null,null,null,null,null,null,null,null,null,null,null,null,null,null,null,{"$f":"[2]ورقة1!A650","v":0},{"$f":"[2]ورقة1!B650","v":0}]
[null,null,null,null,null,null,null,null,null,null,null,null,null,null,null,null,null,null,null,null,null,null,null,null,{"$f":"[2]ورقة1!A651","v":0},{"$f":"[2]ورقة1!B651","v":0}]
[null,null,null,null,null,null,null,null,null,null,null,null,null,null,null,null,null,null,null,null,null,null,null,null,{"$f":"[2]ورقة1!A652","v":0},{"$f":"[2]ورقة1!B652","v":0}]
[null,null,null,null,null,null,null,null,null,null,null,null,null,null,null,null,null,null,null,null,null,null,null,null,{"$f":"[2]ورقة1!A653","v":0},{"$f":"[2]ورقة1!B653","v":0}]
[null,null,null,null,null,null,null,null,null,null,null,null,null,null,null,null,null,null,null,null,null,null,null,null,{"$f":"[2]ورقة1!A654","v":0},{"$f":"[2]ورقة1!B654","v":0}]
[null,null,null,null,null,null,null,null,null,null,null,null,null,null,null,null,null,null,null,null,null,null,null,null,{"$f":"[2]ورقة1!A655","v":0},{"$f":"[2]ورقة1!B655","v":0}]
[null,null,null,null,null,null,null,null,null,null,null,null,null,null,null,null,null,null,null,null,null,null,null,null,{"$f":"[2]ورقة1!A656","v":0},{"$f":"[2]ورقة1!B656","v":0}]
[null,null,null,null,null,null,null,null,null,null,null,null,null,null,null,null,null,null,null,null,null,null,null,null,{"$f":"[2]ورقة1!A657","v":0},{"$f":"[2]ورقة1!B657","v":0}]
[null,null,null,null,null,null,null,null,null,null,null,null,null,null,null,null,null,null,null,null,null,null,null,null,{"$f":"[2]ورقة1!A658","v":0},{"$f":"[2]ورقة1!B658","v":0}]
[null,null,null,null,null,null,null,null,null,null,null,null,null,null,null,null,null,null,null,null,null,null,null,null,{"$f":"[2]ورقة1!A659","v":0},{"$f":"[2]ورقة1!B659","v":0}]
[null,null,null,null,null,null,null,null,null,null,null,null,null,null,null,null,null,null,null,null,null,null,null,null,{"$f":"[2]ورقة1!A660","v":0},{"$f":"[2]ورقة1!B660","v":0}]
[null,null,null,null,null,null,null,null,null,null,null,null,null,null,null,null,null,null,null,null,null,null,null,null,{"$f":"[2]ورقة1!A661","v":0},{"$f":"[2]ورقة1!B661","v":0}]
[null,null,null,null,null,null,null,null,null,null,null,null,null,null,null,null,null,null,null,null,null,null,null,null,{"$f":"[2]ورقة1!A662","v":0},{"$f":"[2]ورقة1!B662","v":0}]
[null,null,null,null,null,null,null,null,null,null,null,null,null,null,null,null,null,null,null,null,null,null,null,null,{"$f":"[2]ورقة1!A663","v":0},{"$f":"[2]ورقة1!B663","v":0}]
[null,null,null,null,null,null,null,null,null,null,null,null,null,null,null,null,null,null,null,null,null,null,null,null,{"$f":"[2]ورقة1!A664","v":0},{"$f":"[2]ورقة1!B664","v":0}]
[null,null,null,null,null,null,null,null,null,null,null,null,null,null,null,null,null,null,null,null,null,null,null,null,{"$f":"[2]ورقة1!A665","v":0},{"$f":"[2]ورقة1!B665","v":0}]
[null,null,null,null,null,null,null,null,null,null,null,null,null,null,null,null,null,null,null,null,null,null,null,null,{"$f":"[2]ورقة1!A666","v":0},{"$f":"[2]ورقة1!B666","v":0}]
[null,null,null,null,null,null,null,null,null,null,null,null,null,null,null,null,null,null,null,null,null,null,null,null,{"$f":"[2]ورقة1!A667","v":0},{"$f":"[2]ورقة1!B667","v":0}]
[null,null,null,null,null,null,null,null,null,null,null,null,null,null,null,null,null,null,null,null,null,null,null,null,{"$f":"[2]ورقة1!A668","v":0},{"$f":"[2]ورقة1!B668","v":0}]
[null,null,null,null,null,null,null,null,null,null,null,null,null,null,null,null,null,null,null,null,null,null,null,null,{"$f":"[2]ورقة1!A669","v":0},{"$f":"[2]ورقة1!B669","v":0}]
[null,null,null,null,null,null,null,null,null,null,null,null,null,null,null,null,null,null,null,null,null,null,null,null,{"$f":"[2]ورقة1!A670","v":0},{"$f":"[2]ورقة1!B670","v":0}]
[null,null,null,null,null,null,null,null,null,null,null,null,null,null,null,null,null,null,null,null,null,null,null,null,{"$f":"[2]ورقة1!A671","v":0},{"$f":"[2]ورقة1!B671","v":0}]
[null,null,null,null,null,null,null,null,null,null,null,null,null,null,null,null,null,null,null,null,null,null,null,null,{"$f":"[2]ورقة1!A672","v":0},{"$f":"[2]ورقة1!B672","v":0}]
[null,null,null,null,null,null,null,null,null,null,null,null,null,null,null,null,null,null,null,null,null,null,null,null,{"$f":"[2]ورقة1!A673","v":0},{"$f":"[2]ورقة1!B673","v":0}]
[null,null,null,null,null,null,null,null,null,null,null,null,null,null,null,null,null,null,null,null,null,null,null,null,{"$f":"[2]ورقة1!A674","v":0},{"$f":"[2]ورقة1!B674","v":0}]
[null,null,null,null,null,null,null,null,null,null,null,null,null,null,null,null,null,null,null,null,null,null,null,null,{"$f":"[2]ورقة1!A675","v":0},{"$f":"[2]ورقة1!B675","v":0}]
[null,null,null,null,null,null,null,null,null,null,null,null,null,null,null,null,null,null,null,null,null,null,null,null,{"$f":"[2]ورقة1!A676","v":0},{"$f":"[2]ورقة1!B676","v":0}]
[null,null,null,null,null,null,null,null,null,null,null,null,null,null,null,null,null,null,null,null,null,null,null,null,{"$f":"[2]ورقة1!A677","v":0},{"$f":"[2]ورقة1!B677","v":0}]
[null,null,null,null,null,null,null,null,null,null,null,null,null,null,null,null,null,null,null,null,null,null,null,null,{"$f":"[2]ورقة1!A678","v":0},{"$f":"[2]ورقة1!B678","v":0}]
[null,null,null,null,null,null,null,null,null,null,null,null,null,null,null,null,null,null,null,null,null,null,null,null,{"$f":"[2]ورقة1!A679","v":0},{"$f":"[2]ورقة1!B679","v":0}]
[null,null,null,null,null,null,null,null,null,null,null,null,null,null,null,null,null,null,null,null,null,null,null,null,{"$f":"[2]ورقة1!A680","v":0},{"$f":"[2]ورقة1!B680","v":0}]
[null,null,null,null,null,null,null,null,null,null,null,null,null,null,null,null,null,null,null,null,null,null,null,null,{"$f":"[2]ورقة1!A681","v":0},{"$f":"[2]ورقة1!B681","v":0}]
[null,null,null,null,null,null,null,null,null,null,null,null,null,null,null,null,null,null,null,null,null,null,null,null,{"$f":"[2]ورقة1!A682","v":0},{"$f":"[2]ورقة1!B682","v":0}]
[null,null,null,null,null,null,null,null,null,null,null,null,null,null,null,null,null,null,null,null,null,null,null,null,{"$f":"[2]ورقة1!A683","v":0},{"$f":"[2]ورقة1!B683","v":0}]
[null,null,null,null,null,null,null,null,null,null,null,null,null,null,null,null,null,null,null,null,null,null,null,null,{"$f":"[2]ورقة1!A684","v":0},{"$f":"[2]ورقة1!B684","v":0}]
[null,null,null,null,null,null,null,null,null,null,null,null,null,null,null,null,null,null,null,null,null,null,null,null,{"$f":"[2]ورقة1!A685","v":0},{"$f":"[2]ورقة1!B685","v":0}]
[null,null,null,null,null,null,null,null,null,null,null,null,null,null,null,null,null,null,null,null,null,null,null,null,{"$f":"[2]ورقة1!A686","v":0},{"$f":"[2]ورقة1!B686","v":0}]
[null,null,null,null,null,null,null,null,null,null,null,null,null,null,null,null,null,null,null,null,null,null,null,null,{"$f":"[2]ورقة1!A687","v":0},{"$f":"[2]ورقة1!B687","v":0}]
[null,null,null,null,null,null,null,null,null,null,null,null,null,null,null,null,null,null,null,null,null,null,null,null,{"$f":"[2]ورقة1!A688","v":0},{"$f":"[2]ورقة1!B688","v":0}]
[null,null,null,null,null,null,null,null,null,null,null,null,null,null,null,null,null,null,null,null,null,null,null,null,{"$f":"[2]ورقة1!A689","v":0},{"$f":"[2]ورقة1!B689","v":0}]
[null,null,null,null,null,null,null,null,null,null,null,null,null,null,null,null,null,null,null,null,null,null,null,null,{"$f":"[2]ورقة1!A690","v":0},{"$f":"[2]ورقة1!B690","v":0}]
[null,null,null,null,null,null,null,null,null,null,null,null,null,null,null,null,null,null,null,null,null,null,null,null,{"$f":"[2]ورقة1!A691","v":0},{"$f":"[2]ورقة1!B691","v":0}]
[null,null,null,null,null,null,null,null,null,null,null,null,null,null,null,null,null,null,null,null,null,null,null,null,{"$f":"[2]ورقة1!A692","v":0},{"$f":"[2]ورقة1!B692","v":0}]
[null,null,null,null,null,null,null,null,null,null,null,null,null,null,null,null,null,null,null,null,null,null,null,null,{"$f":"[2]ورقة1!A693","v":0},{"$f":"[2]ورقة1!B693","v":0}]
[null,null,null,null,null,null,null,null,null,null,null,null,null,null,null,null,null,null,null,null,null,null,null,null,{"$f":"[2]ورقة1!A694","v":0},{"$f":"[2]ورقة1!B694","v":0}]
[null,null,null,null,null,null,null,null,null,null,null,null,null,null,null,null,null,null,null,null,null,null,null,null,{"$f":"[2]ورقة1!A695","v":0},{"$f":"[2]ورقة1!B695","v":0}]
[null,null,null,null,null,null,null,null,null,null,null,null,null,null,null,null,null,null,null,null,null,null,null,null,{"$f":"[2]ورقة1!A696","v":0},{"$f":"[2]ورقة1!B696","v":0}]
[null,null,null,null,null,null,null,null,null,null,null,null,null,null,null,null,null,null,null,null,null,null,null,null,{"$f":"[2]ورقة1!A697","v":0},{"$f":"[2]ورقة1!B697","v":0}]
[null,null,null,null,null,null,null,null,null,null,null,null,null,null,null,null,null,null,null,null,null,null,null,null,{"$f":"[2]ورقة1!A698","v":0},{"$f":"[2]ورقة1!B698","v":0}]
[null,null,null,null,null,null,null,null,null,null,null,null,null,null,null,null,null,null,null,null,null,null,null,null,{"$f":"[2]ورقة1!A699","v":0},{"$f":"[2]ورقة1!B699","v":0}]
[null,null,null,null,null,null,null,null,null,null,null,null,null,null,null,null,null,null,null,null,null,null,null,null,{"$f":"[2]ورقة1!A700","v":0},{"$f":"[2]ورقة1!B700","v":0}]
[null,null,null,null,null,null,null,null,null,null,null,null,null,null,null,null,null,null,null,null,null,null,null,null,{"$f":"[2]ورقة1!A701","v":0},{"$f":"[2]ورقة1!B701","v":0}]
[null,null,null,null,null,null,null,null,null,null,null,null,null,null,null,null,null,null,null,null,null,null,null,null,{"$f":"[2]ورقة1!A702","v":0},{"$f":"[2]ورقة1!B702","v":0}]
[null,null,null,null,null,null,null,null,null,null,null,null,null,null,null,null,null,null,null,null,null,null,null,null,{"$f":"[2]ورقة1!A703","v":0},{"$f":"[2]ورقة1!B703","v":0}]
[null,null,null,null,null,null,null,null,null,null,null,null,null,null,null,null,null,null,null,null,null,null,null,null,{"$f":"[2]ورقة1!A704","v":0},{"$f":"[2]ورقة1!B704","v":0}]
[null,null,null,null,null,null,null,null,null,null,null,null,null,null,null,null,null,null,null,null,null,null,null,null,{"$f":"[2]ورقة1!A705","v":0},{"$f":"[2]ورقة1!B705","v":0}]
[null,null,null,null,null,null,null,null,null,null,null,null,null,null,null,null,null,null,null,null,null,null,null,null,{"$f":"[2]ورقة1!A706","v":0},{"$f":"[2]ورقة1!B706","v":0}]
[null,null,null,null,null,null,null,null,null,null,null,null,null,null,null,null,null,null,null,null,null,null,null,null,{"$f":"[2]ورقة1!A707","v":0},{"$f":"[2]ورقة1!B707","v":0}]
[null,null,null,null,null,null,null,null,null,null,null,null,null,null,null,null,null,null,null,null,null,null,null,null,{"$f":"[2]ورقة1!A708","v":0},{"$f":"[2]ورقة1!B708","v":0}]
[null,null,null,null,null,null,null,null,null,null,null,null,null,null,null,null,null,null,null,null,null,null,null,null,{"$f":"[2]ورقة1!A709","v":0},{"$f":"[2]ورقة1!B709","v":0}]
[null,null,null,null,null,null,null,null,null,null,null,null,null,null,null,null,null,null,null,null,null,null,null,null,{"$f":"[2]ورقة1!A710","v":0},{"$f":"[2]ورقة1!B710","v":0}]
[null,null,null,null,null,null,null,null,null,null,null,null,null,null,null,null,null,null,null,null,null,null,null,null,{"$f":"[2]ورقة1!A711","v":0},{"$f":"[2]ورقة1!B711","v":0}]
[null,null,null,null,null,null,null,null,null,null,null,null,null,null,null,null,null,null,null,null,null,null,null,null,{"$f":"[2]ورقة1!A712","v":0},{"$f":"[2]ورقة1!B712","v":0}]
[null,null,null,null,null,null,null,null,null,null,null,null,null,null,null,null,null,null,null,null,null,null,null,null,{"$f":"[2]ورقة1!A713","v":0},{"$f":"[2]ورقة1!B713","v":0}]
[null,null,null,null,null,null,null,null,null,null,null,null,null,null,null,null,null,null,null,null,null,null,null,null,{"$f":"[2]ورقة1!A714","v":0},{"$f":"[2]ورقة1!B714","v":0}]
[null,null,null,null,null,null,null,null,null,null,null,null,null,null,null,null,null,null,null,null,null,null,null,null,{"$f":"[2]ورقة1!A715","v":0},{"$f":"[2]ورقة1!B715","v":0}]
[null,null,null,null,null,null,null,null,null,null,null,null,null,null,null,null,null,null,null,null,null,null,null,null,{"$f":"[2]ورقة1!A716","v":0},{"$f":"[2]ورقة1!B716","v":0}]
[null,null,null,null,null,null,null,null,null,null,null,null,null,null,null,null,null,null,null,null,null,null,null,null,{"$f":"[2]ورقة1!A717","v":0},{"$f":"[2]ورقة1!B717","v":0}]
[null,null,null,null,null,null,null,null,null,null,null,null,null,null,null,null,null,null,null,null,null,null,null,null,{"$f":"[2]ورقة1!A718","v":0},{"$f":"[2]ورقة1!B718","v":0}]
[null,null,null,null,null,null,null,null,null,null,null,null,null,null,null,null,null,null,null,null,null,null,null,null,{"$f":"[2]ورقة1!A719","v":0},{"$f":"[2]ورقة1!B719","v":0}]
[null,null,null,null,null,null,null,null,null,null,null,null,null,null,null,null,null,null,null,null,null,null,null,null,{"$f":"[2]ورقة1!A720","v":0},{"$f":"[2]ورقة1!B720","v":0}]
[null,null,null,null,null,null,null,null,null,null,null,null,null,null,null,null,null,null,null,null,null,null,null,null,{"$f":"[2]ورقة1!A721","v":0},{"$f":"[2]ورقة1!B721","v":0}]
[null,null,null,null,null,null,null,null,null,null,null,null,null,null,null,null,null,null,null,null,null,null,null,null,{"$f":"[2]ورقة1!A722","v":0},{"$f":"[2]ورقة1!B722","v":0}]
[null,null,null,null,null,null,null,null,null,null,null,null,null,null,null,null,null,null,null,null,null,null,null,null,{"$f":"[2]ورقة1!A723","v":0},{"$f":"[2]ورقة1!B723","v":0}]
[null,null,null,null,null,null,null,null,null,null,null,null,null,null,null,null,null,null,null,null,null,null,null,null,{"$f":"[2]ورقة1!A724","v":0},{"$f":"[2]ورقة1!B724","v":0}]
[null,null,null,null,null,null,null,null,null,null,null,null,null,null,null,null,null,null,null,null,null,null,null,null,{"$f":"[2]ورقة1!A725","v":0},{"$f":"[2]ورقة1!B725","v":0}]
[null,null,null,null,null,null,null,null,null,null,null,null,null,null,null,null,null,null,null,null,null,null,null,null,{"$f":"[2]ورقة1!A726","v":0},{"$f":"[2]ورقة1!B726","v":0}]
[null,null,null,null,null,null,null,null,null,null,null,null,null,null,null,null,null,null,null,null,null,null,null,null,{"$f":"[2]ورقة1!A727","v":0},{"$f":"[2]ورقة1!B727","v":0}]
[null,null,null,null,null,null,null,null,null,null,null,null,null,null,null,null,null,null,null,null,null,null,null,null,{"$f":"[2]ورقة1!A728","v":0},{"$f":"[2]ورقة1!B728","v":0}]
[null,null,null,null,null,null,null,null,null,null,null,null,null,null,null,null,null,null,null,null,null,null,null,null,{"$f":"[2]ورقة1!A729","v":0},{"$f":"[2]ورقة1!B729","v":0}]
[null,null,null,null,null,null,null,null,null,null,null,null,null,null,null,null,null,null,null,null,null,null,null,null,{"$f":"[2]ورقة1!A730","v":0},{"$f":"[2]ورقة1!B730","v":0}]
[null,null,null,null,null,null,null,null,null,null,null,null,null,null,null,null,null,null,null,null,null,null,null,null,{"$f":"[2]ورقة1!A731","v":0},{"$f":"[2]ورقة1!B731","v":0}]
[null,null,null,null,null,null,null,null,null,null,null,null,null,null,null,null,null,null,null,null,null,null,null,null,{"$f":"[2]ورقة1!A732","v":0},{"$f":"[2]ورقة1!B732","v":0}]
[null,null,null,null,null,null,null,null,null,null,null,null,null,null,null,null,null,null,null,null,null,null,null,null,{"$f":"[2]ورقة1!A733","v":0},{"$f":"[2]ورقة1!B733","v":0}]
[null,null,null,null,null,null,null,null,null,null,null,null,null,null,null,null,null,null,null,null,null,null,null,null,{"$f":"[2]ورقة1!A734","v":0},{"$f":"[2]ورقة1!B734","v":0}]
[null,null,null,null,null,null,null,null,null,null,null,null,null,null,null,null,null,null,null,null,null,null,null,null,{"$f":"[2]ورقة1!A735","v":0},{"$f":"[2]ورقة1!B735","v":0}]
[null,null,null,null,null,null,null,null,null,null,null,null,null,null,null,null,null,null,null,null,null,null,null,null,{"$f":"[2]ورقة1!A736","v":0},{"$f":"[2]ورقة1!B736","v":0}]
[null,null,null,null,null,null,null,null,null,null,null,null,null,null,null,null,null,null,null,null,null,null,null,null,{"$f":"[2]ورقة1!A737","v":0},{"$f":"[2]ورقة1!B737","v":0}]
[null,null,null,null,null,null,null,null,null,null,null,null,null,null,null,null,null,null,null,null,null,null,null,null,{"$f":"[2]ورقة1!A738","v":0},{"$f":"[2]ورقة1!B738","v":0}]
[null,null,null,null,null,null,null,null,null,null,null,null,null,null,null,null,null,null,null,null,null,null,null,null,{"$f":"[2]ورقة1!A739","v":0},{"$f":"[2]ورقة1!B739","v":0}]
[null,null,null,null,null,null,null,null,null,null,null,null,null,null,null,null,null,null,null,null,null,null,null,null,{"$f":"[2]ورقة1!A740","v":0},{"$f":"[2]ورقة1!B740","v":0}]
[null,null,null,null,null,null,null,null,null,null,null,null,null,null,null,null,null,null,null,null,null,null,null,null,{"$f":"[2]ورقة1!A741","v":0},{"$f":"[2]ورقة1!B741","v":0}]
[null,null,null,null,null,null,null,null,null,null,null,null,null,null,null,null,null,null,null,null,null,null,null,null,{"$f":"[2]ورقة1!A742","v":0},{"$f":"[2]ورقة1!B742","v":0}]
[null,null,null,null,null,null,null,null,null,null,null,null,null,null,null,null,null,null,null,null,null,null,null,null,{"$f":"[2]ورقة1!A743","v":0},{"$f":"[2]ورقة1!B743","v":0}]
[null,null,null,null,null,null,null,null,null,null,null,null,null,null,null,null,null,null,null,null,null,null,null,null,{"$f":"[2]ورقة1!A744","v":0},{"$f":"[2]ورقة1!B744","v":0}]
[null,null,null,null,null,null,null,null,null,null,null,null,null,null,null,null,null,null,null,null,null,null,null,null,{"$f":"[2]ورقة1!A745","v":0},{"$f":"[2]ورقة1!B745","v":0}]
[null,null,null,null,null,null,null,null,null,null,null,null,null,null,null,null,null,null,null,null,null,null,null,null,{"$f":"[2]ورقة1!A746","v":0},{"$f":"[2]ورقة1!B746","v":0}]
[null,null,null,null,null,null,null,null,null,null,null,null,null,null,null,null,null,null,null,null,null,null,null,null,{"$f":"[2]ورقة1!A747","v":0},{"$f":"[2]ورقة1!B747","v":0}]
[null,null,null,null,null,null,null,null,null,null,null,null,null,null,null,null,null,null,null,null,null,null,null,null,{"$f":"[2]ورقة1!A748","v":0},{"$f":"[2]ورقة1!B748","v":0}]
[null,null,null,null,null,null,null,null,null,null,null,null,null,null,null,null,null,null,null,null,null,null,null,null,{"$f":"[2]ورقة1!A749","v":0},{"$f":"[2]ورقة1!B749","v":0}]
[null,null,null,null,null,null,null,null,null,null,null,null,null,null,null,null,null,null,null,null,null,null,null,null,{"$f":"[2]ورقة1!A750","v":0},{"$f":"[2]ورقة1!B750","v":0}]
[null,null,null,null,null,null,null,null,null,null,null,null,null,null,null,null,null,null,null,null,null,null,null,null,{"$f":"[2]ورقة1!A751","v":0},{"$f":"[2]ورقة1!B751","v":0}]
[null,null,null,null,null,null,null,null,null,null,null,null,null,null,null,null,null,null,null,null,null,null,null,null,{"$f":"[2]ورقة1!A752","v":0},{"$f":"[2]ورقة1!B752","v":0}]
[null,null,null,null,null,null,null,null,null,null,null,null,null,null,null,null,null,null,null,null,null,null,null,null,{"$f":"[2]ورقة1!A753","v":0},{"$f":"[2]ورقة1!B753","v":0}]
[null,null,null,null,null,null,null,null,null,null,null,null,null,null,null,null,null,null,null,null,null,null,null,null,{"$f":"[2]ورقة1!A754","v":0},{"$f":"[2]ورقة1!B754","v":0}]
[null,null,null,null,null,null,null,null,null,null,null,null,null,null,null,null,null,null,null,null,null,null,null,null,{"$f":"[2]ورقة1!A755","v":0},{"$f":"[2]ورقة1!B755","v":0}]
[null,null,null,null,null,null,null,null,null,null,null,null,null,null,null,null,null,null,null,null,null,null,null,null,{"$f":"[2]ورقة1!A756","v":0},{"$f":"[2]ورقة1!B756","v":0}]
[null,null,null,null,null,null,null,null,null,null,null,null,null,null,null,null,null,null,null,null,null,null,null,null,{"$f":"[2]ورقة1!A757","v":0},{"$f":"[2]ورقة1!B757","v":0}]
[null,null,null,null,null,null,null,null,null,null,null,null,null,null,null,null,null,null,null,null,null,null,null,null,{"$f":"[2]ورقة1!A758","v":0},{"$f":"[2]ورقة1!B758","v":0}]
[null,null,null,null,null,null,null,null,null,null,null,null,null,null,null,null,null,null,null,null,null,null,null,null,{"$f":"[2]ورقة1!A759","v":0},{"$f":"[2]ورقة1!B759","v":0}]
[null,null,null,null,null,null,null,null,null,null,null,null,null,null,null,null,null,null,null,null,null,null,null,null,{"$f":"[2]ورقة1!A760","v":0},{"$f":"[2]ورقة1!B760","v":0}]
[null,null,null,null,null,null,null,null,null,null,null,null,null,null,null,null,null,null,null,null,null,null,null,null,{"$f":"[2]ورقة1!A761","v":0},{"$f":"[2]ورقة1!B761","v":0}]
[null,null,null,null,null,null,null,null,null,null,null,null,null,null,null,null,null,null,null,null,null,null,null,null,{"$f":"[2]ورقة1!A762","v":0},{"$f":"[2]ورقة1!B762","v":0}]
[null,null,null,null,null,null,null,null,null,null,null,null,null,null,null,null,null,null,null,null,null,null,null,null,{"$f":"[2]ورقة1!A763","v":0},{"$f":"[2]ورقة1!B763","v":0}]
[null,null,null,null,null,null,null,null,null,null,null,null,null,null,null,null,null,null,null,null,null,null,null,null,{"$f":"[2]ورقة1!A764","v":0},{"$f":"[2]ورقة1!B764","v":0}]
[null,null,null,null,null,null,null,null,null,null,null,null,null,null,null,null,null,null,null,null,null,null,null,null,{"$f":"[2]ورقة1!A765","v":0},{"$f":"[2]ورقة1!B765","v":0}]
[null,null,null,null,null,null,null,null,null,null,null,null,null,null,null,null,null,null,null,null,null,null,null,null,{"$f":"[2]ورقة1!A766","v":0},{"$f":"[2]ورقة1!B766","v":0}]
[null,null,null,null,null,null,null,null,null,null,null,null,null,null,null,null,null,null,null,null,null,null,null,null,{"$f":"[2]ورقة1!A767","v":0},{"$f":"[2]ورقة1!B767","v":0}]
[null,null,null,null,null,null,null,null,null,null,null,null,null,null,null,null,null,null,null,null,null,null,null,null,{"$f":"[2]ورقة1!A768","v":0},{"$f":"[2]ورقة1!B768","v":0}]
[null,null,null,null,null,null,null,null,null,null,null,null,null,null,null,null,null,null,null,null,null,null,null,null,{"$f":"[2]ورقة1!A769","v":0},{"$f":"[2]ورقة1!B769","v":0}]
[null,null,null,null,null,null,null,null,null,null,null,null,null,null,null,null,null,null,null,null,null,null,null,null,{"$f":"[2]ورقة1!A770","v":0},{"$f":"[2]ورقة1!B770","v":0}]
[null,null,null,null,null,null,null,null,null,null,null,null,null,null,null,null,null,null,null,null,null,null,null,null,{"$f":"[2]ورقة1!A771","v":0},{"$f":"[2]ورقة1!B771","v":0}]
[null,null,null,null,null,null,null,null,null,null,null,null,null,null,null,null,null,null,null,null,null,null,null,null,{"$f":"[2]ورقة1!A772","v":0},{"$f":"[2]ورقة1!B772","v":0}]
[null,null,null,null,null,null,null,null,null,null,null,null,null,null,null,null,null,null,null,null,null,null,null,null,{"$f":"[2]ورقة1!A773","v":0},{"$f":"[2]ورقة1!B773","v":0}]
[null,null,null,null,null,null,null,null,null,null,null,null,null,null,null,null,null,null,null,null,null,null,null,null,{"$f":"[2]ورقة1!A774","v":0},{"$f":"[2]ورقة1!B774","v":0}]
[null,null,null,null,null,null,null,null,null,null,null,null,null,null,null,null,null,null,null,null,null,null,null,null,{"$f":"[2]ورقة1!A775","v":0},{"$f":"[2]ورقة1!B775","v":0}]
[null,null,null,null,null,null,null,null,null,null,null,null,null,null,null,null,null,null,null,null,null,null,null,null,{"$f":"[2]ورقة1!A776","v":0},{"$f":"[2]ورقة1!B776","v":0}]
[null,null,null,null,null,null,null,null,null,null,null,null,null,null,null,null,null,null,null,null,null,null,null,null,{"$f":"[2]ورقة1!A777","v":0},{"$f":"[2]ورقة1!B777","v":0}]
[null,null,null,null,null,null,null,null,null,null,null,null,null,null,null,null,null,null,null,null,null,null,null,null,{"$f":"[2]ورقة1!A778","v":0},{"$f":"[2]ورقة1!B778","v":0}]
[null,null,null,null,null,null,null,null,null,null,null,null,null,null,null,null,null,null,null,null,null,null,null,null,{"$f":"[2]ورقة1!A779","v":0},{"$f":"[2]ورقة1!B779","v":0}]
[null,null,null,null,null,null,null,null,null,null,null,null,null,null,null,null,null,null,null,null,null,null,null,null,{"$f":"[2]ورقة1!A780","v":0},{"$f":"[2]ورقة1!B780","v":0}]
[null,null,null,null,null,null,null,null,null,null,null,null,null,null,null,null,null,null,null,null,null,null,null,null,{"$f":"[2]ورقة1!A781","v":0},{"$f":"[2]ورقة1!B781","v":0}]
[null,null,null,null,null,null,null,null,null,null,null,null,null,null,null,null,null,null,null,null,null,null,null,null,{"$f":"[2]ورقة1!A782","v":0},{"$f":"[2]ورقة1!B782","v":0}]
[null,null,null,null,null,null,null,null,null,null,null,null,null,null,null,null,null,null,null,null,null,null,null,null,{"$f":"[2]ورقة1!A783","v":0},{"$f":"[2]ورقة1!B783","v":0}]
[null,null,null,null,null,null,null,null,null,null,null,null,null,null,null,null,null,null,null,null,null,null,null,null,{"$f":"[2]ورقة1!A784","v":0},{"$f":"[2]ورقة1!B784","v":0}]
[null,null,null,null,null,null,null,null,null,null,null,null,null,null,null,null,null,null,null,null,null,null,null,null,{"$f":"[2]ورقة1!A785","v":0},{"$f":"[2]ورقة1!B785","v":0}]
[null,null,null,null,null,null,null,null,null,null,null,null,null,null,null,null,null,null,null,null,null,null,null,null,{"$f":"[2]ورقة1!A786","v":0},{"$f":"[2]ورقة1!B786","v":0}]
[null,null,null,null,null,null,null,null,null,null,null,null,null,null,null,null,null,null,null,null,null,null,null,null,{"$f":"[2]ورقة1!A787","v":0},{"$f":"[2]ورقة1!B787","v":0}]
[null,null,null,null,null,null,null,null,null,null,null,null,null,null,null,null,null,null,null,null,null,null,null,null,{"$f":"[2]ورقة1!A788","v":0},{"$f":"[2]ورقة1!B788","v":0}]
[null,null,null,null,null,null,null,null,null,null,null,null,null,null,null,null,null,null,null,null,null,null,null,null,{"$f":"[2]ورقة1!A789","v":0},{"$f":"[2]ورقة1!B789","v":0}]
[null,null,null,null,null,null,null,null,null,null,null,null,null,null,null,null,null,null,null,null,null,null,null,null,{"$f":"[2]ورقة1!A790","v":0},{"$f":"[2]ورقة1!B790","v":0}]
[null,null,null,null,null,null,null,null,null,null,null,null,null,null,null,null,null,null,null,null,null,null,null,null,{"$f":"[2]ورقة1!A791","v":0},{"$f":"[2]ورقة1!B791","v":0}]
[null,null,null,null,null,null,null,null,null,null,null,null,null,null,null,null,null,null,null,null,null,null,null,null,{"$f":"[2]ورقة1!A792","v":0},{"$f":"[2]ورقة1!B792","v":0}]
[null,null,null,null,null,null,null,null,null,null,null,null,null,null,null,null,null,null,null,null,null,null,null,null,{"$f":"[2]ورقة1!A793","v":0},{"$f":"[2]ورقة1!B793","v":0}]
[null,null,null,null,null,null,null,null,null,null,null,null,null,null,null,null,null,null,null,null,null,null,null,null,{"$f":"[2]ورقة1!A794","v":0},{"$f":"[2]ورقة1!B794","v":0}]
[null,null,null,null,null,null,null,null,null,null,null,null,null,null,null,null,null,null,null,null,null,null,null,null,{"$f":"[2]ورقة1!A795","v":0},{"$f":"[2]ورقة1!B795","v":0}]
[null,null,null,null,null,null,null,null,null,null,null,null,null,null,null,null,null,null,null,null,null,null,null,null,{"$f":"[2]ورقة1!A796","v":0},{"$f":"[2]ورقة1!B796","v":0}]
[null,null,null,null,null,null,null,null,null,null,null,null,null,null,null,null,null,null,null,null,null,null,null,null,{"$f":"[2]ورقة1!A797","v":0},{"$f":"[2]ورقة1!B797","v":0}]
[null,null,null,null,null,null,null,null,null,null,null,null,null,null,null,null,null,null,null,null,null,null,null,null,{"$f":"[2]ورقة1!A798","v":0},{"$f":"[2]ورقة1!B798","v":0}]
[null,null,null,null,null,null,null,null,null,null,null,null,null,null,null,null,null,null,null,null,null,null,null,null,{"$f":"[2]ورقة1!A799","v":0},{"$f":"[2]ورقة1!B799","v":0}]
[null,null,null,null,null,null,null,null,null,null,null,null,null,null,null,null,null,null,null,null,null,null,null,null,{"$f":"[2]ورقة1!A800","v":0},{"$f":"[2]ورقة1!B800","v":0}]
[null,null,null,null,null,null,null,null,null,null,null,null,null,null,null,null,null,null,null,null,null,null,null,null,{"$f":"[2]ورقة1!A801","v":0},{"$f":"[2]ورقة1!B801","v":0}]
[null,null,null,null,null,null,null,null,null,null,null,null,null,null,null,null,null,null,null,null,null,null,null,null,{"$f":"[2]ورقة1!A802","v":0},{"$f":"[2]ورقة1!B802","v":0}]
[null,null,null,null,null,null,null,null,null,null,null,null,null,null,null,null,null,null,null,null,null,null,null,null,{"$f":"[2]ورقة1!A803","v":0},{"$f":"[2]ورقة1!B803","v":0}]
[null,null,null,null,null,null,null,null,null,null,null,null,null,null,null,null,null,null,null,null,null,null,null,null,{"$f":"[2]ورقة1!A804","v":0},{"$f":"[2]ورقة1!B804","v":0}]
[null,null,null,null,null,null,null,null,null,null,null,null,null,null,null,null,null,null,null,null,null,null,null,null,{"$f":"[2]ورقة1!A805","v":0},{"$f":"[2]ورقة1!B805","v":0}]
[null,null,null,null,null,null,null,null,null,null,null,null,null,null,null,null,null,null,null,null,null,null,null,null,{"$f":"[2]ورقة1!A806","v":0},{"$f":"[2]ورقة1!B806","v":0}]
[null,null,null,null,null,null,null,null,null,null,null,null,null,null,null,null,null,null,null,null,null,null,null,null,{"$f":"[2]ورقة1!A807","v":0},{"$f":"[2]ورقة1!B807","v":0}]
[null,null,null,null,null,null,null,null,null,null,null,null,null,null,null,null,null,null,null,null,null,null,null,null,{"$f":"[2]ورقة1!A808","v":0},{"$f":"[2]ورقة1!B808","v":0}]
[null,null,null,null,null,null,null,null,null,null,null,null,null,null,null,null,null,null,null,null,null,null,null,null,{"$f":"[2]ورقة1!A809","v":0},{"$f":"[2]ورقة1!B809","v":0}]
[null,null,null,null,null,null,null,null,null,null,null,null,null,null,null,null,null,null,null,null,null,null,null,null,{"$f":"[2]ورقة1!A810","v":0},{"$f":"[2]ورقة1!B810","v":0}]
[null,null,null,null,null,null,null,null,null,null,null,null,null,null,null,null,null,null,null,null,null,null,null,null,{"$f":"[2]ورقة1!A811","v":0},{"$f":"[2]ورقة1!B811","v":0}]
[null,null,null,null,null,null,null,null,null,null,null,null,null,null,null,null,null,null,null,null,null,null,null,null,{"$f":"[2]ورقة1!A812","v":0},{"$f":"[2]ورقة1!B812","v":0}]
[null,null,null,null,null,null,null,null,null,null,null,null,null,null,null,null,null,null,null,null,null,null,null,null,{"$f":"[2]ورقة1!A813","v":0},{"$f":"[2]ورقة1!B813","v":0}]
[null,null,null,null,null,null,null,null,null,null,null,null,null,null,null,null,null,null,null,null,null,null,null,null,{"$f":"[2]ورقة1!A814","v":0},{"$f":"[2]ورقة1!B814","v":0}]
[null,null,null,null,null,null,null,null,null,null,null,null,null,null,null,null,null,null,null,null,null,null,null,null,{"$f":"[2]ورقة1!A815","v":0},{"$f":"[2]ورقة1!B815","v":0}]
[null,null,null,null,null,null,null,null,null,null,null,null,null,null,null,null,null,null,null,null,null,null,null,null,{"$f":"[2]ورقة1!A816","v":0},{"$f":"[2]ورقة1!B816","v":0}]
[null,null,null,null,null,null,null,null,null,null,null,null,null,null,null,null,null,null,null,null,null,null,null,null,{"$f":"[2]ورقة1!A817","v":0},{"$f":"[2]ورقة1!B817","v":0}]
[null,null,null,null,null,null,null,null,null,null,null,null,null,null,null,null,null,null,null,null,null,null,null,null,{"$f":"[2]ورقة1!A818","v":0},{"$f":"[2]ورقة1!B818","v":0}]
[null,null,null,null,null,null,null,null,null,null,null,null,null,null,null,null,null,null,null,null,null,null,null,null,{"$f":"[2]ورقة1!A819","v":0},{"$f":"[2]ورقة1!B819","v":0}]
[null,null,null,null,null,null,null,null,null,null,null,null,null,null,null,null,null,null,null,null,null,null,null,null,{"$f":"[2]ورقة1!A820","v":0},{"$f":"[2]ورقة1!B820","v":0}]
[null,null,null,null,null,null,null,null,null,null,null,null,null,null,null,null,null,null,null,null,null,null,null,null,{"$f":"[2]ورقة1!A821","v":0},{"$f":"[2]ورقة1!B821","v":0}]
[null,null,null,null,null,null,null,null,null,null,null,null,null,null,null,null,null,null,null,null,null,null,null,null,{"$f":"[2]ورقة1!A822","v":0},{"$f":"[2]ورقة1!B822","v":0}]
[null,null,null,null,null,null,null,null,null,null,null,null,null,null,null,null,null,null,null,null,null,null,null,null,{"$f":"[2]ورقة1!A823","v":0},{"$f":"[2]ورقة1!B823","v":0}]
[null,null,null,null,null,null,null,null,null,null,null,null,null,null,null,null,null,null,null,null,null,null,null,null,{"$f":"[2]ورقة1!A824","v":0},{"$f":"[2]ورقة1!B824","v":0}]
[null,null,null,null,null,null,null,null,null,null,null,null,null,null,null,null,null,null,null,null,null,null,null,null,{"$f":"[2]ورقة1!A825","v":0},{"$f":"[2]ورقة1!B825","v":0}]
[null,null,null,null,null,null,null,null,null,null,null,null,null,null,null,null,null,null,null,null,null,null,null,null,{"$f":"[2]ورقة1!A826","v":0},{"$f":"[2]ورقة1!B826","v":0}]
[null,null,null,null,null,null,null,null,null,null,null,null,null,null,null,null,null,null,null,null,null,null,null,null,{"$f":"[2]ورقة1!A827","v":0},{"$f":"[2]ورقة1!B827","v":0}]
[null,null,null,null,null,null,null,null,null,null,null,null,null,null,null,null,null,null,null,null,null,null,null,null,{"$f":"[2]ورقة1!A828","v":0},{"$f":"[2]ورقة1!B828","v":0}]
[null,null,null,null,null,null,null,null,null,null,null,null,null,null,null,null,null,null,null,null,null,null,null,null,{"$f":"[2]ورقة1!A829","v":0},{"$f":"[2]ورقة1!B829","v":0}]
[null,null,null,null,null,null,null,null,null,null,null,null,null,null,null,null,null,null,null,null,null,null,null,null,{"$f":"[2]ورقة1!A830","v":0},{"$f":"[2]ورقة1!B830","v":0}]
[null,null,null,null,null,null,null,null,null,null,null,null,null,null,null,null,null,null,null,null,null,null,null,null,{"$f":"[2]ورقة1!A831","v":0},{"$f":"[2]ورقة1!B831","v":0}]
[null,null,null,null,null,null,null,null,null,null,null,null,null,null,null,null,null,null,null,null,null,null,null,null,{"$f":"[2]ورقة1!A832","v":0},{"$f":"[2]ورقة1!B832","v":0}]
[null,null,null,null,null,null,null,null,null,null,null,null,null,null,null,null,null,null,null,null,null,null,null,null,{"$f":"[2]ورقة1!A833","v":0},{"$f":"[2]ورقة1!B833","v":0}]
[null,null,null,null,null,null,null,null,null,null,null,null,null,null,null,null,null,null,null,null,null,null,null,null,{"$f":"[2]ورقة1!A834","v":0},{"$f":"[2]ورقة1!B834","v":0}]
[null,null,null,null,null,null,null,null,null,null,null,null,null,null,null,null,null,null,null,null,null,null,null,null,{"$f":"[2]ورقة1!A835","v":0},{"$f":"[2]ورقة1!B835","v":0}]
[null,null,null,null,null,null,null,null,null,null,null,null,null,null,null,null,null,null,null,null,null,null,null,null,{"$f":"[2]ورقة1!A836","v":0},{"$f":"[2]ورقة1!B836","v":0}]
[null,null,null,null,null,null,null,null,null,null,null,null,null,null,null,null,null,null,null,null,null,null,null,null,{"$f":"[2]ورقة1!A837","v":0},{"$f":"[2]ورقة1!B837","v":0}]
[null,null,null,null,null,null,null,null,null,null,null,null,null,null,null,null,null,null,null,null,null,null,null,null,{"$f":"[2]ورقة1!A838","v":0},{"$f":"[2]ورقة1!B838","v":0}]
[null,null,null,null,null,null,null,null,null,null,null,null,null,null,null,null,null,null,null,null,null,null,null,null,{"$f":"[2]ورقة1!A839","v":0},{"$f":"[2]ورقة1!B839","v":0}]
[null,null,null,null,null,null,null,null,null,null,null,null,null,null,null,null,null,null,null,null,null,null,null,null,{"$f":"[2]ورقة1!A840","v":0},{"$f":"[2]ورقة1!B840","v":0}]
[null,null,null,null,null,null,null,null,null,null,null,null,null,null,null,null,null,null,null,null,null,null,null,null,{"$f":"[2]ورقة1!A841","v":0},{"$f":"[2]ورقة1!B841","v":0}]
[null,null,null,null,null,null,null,null,null,null,null,null,null,null,null,null,null,null,null,null,null,null,null,null,{"$f":"[2]ورقة1!A842","v":0},{"$f":"[2]ورقة1!B842","v":0}]
[null,null,null,null,null,null,null,null,null,null,null,null,null,null,null,null,null,null,null,null,null,null,null,null,{"$f":"[2]ورقة1!A843","v":0},{"$f":"[2]ورقة1!B843","v":0}]
[null,null,null,null,null,null,null,null,null,null,null,null,null,null,null,null,null,null,null,null,null,null,null,null,{"$f":"[2]ورقة1!A844","v":0},{"$f":"[2]ورقة1!B844","v":0}]
[null,null,null,null,null,null,null,null,null,null,null,null,null,null,null,null,null,null,null,null,null,null,null,null,{"$f":"[2]ورقة1!A845","v":0},{"$f":"[2]ورقة1!B845","v":0}]
[null,null,null,null,null,null,null,null,null,null,null,null,null,null,null,null,null,null,null,null,null,null,null,null,{"$f":"[2]ورقة1!A846","v":0},{"$f":"[2]ورقة1!B846","v":0}]
[null,null,null,null,null,null,null,null,null,null,null,null,null,null,null,null,null,null,null,null,null,null,null,null,{"$f":"[2]ورقة1!A847","v":0},{"$f":"[2]ورقة1!B847","v":0}]
[null,null,null,null,null,null,null,null,null,null,null,null,null,null,null,null,null,null,null,null,null,null,null,null,{"$f":"[2]ورقة1!A848","v":0},{"$f":"[2]ورقة1!B848","v":0}]
[null,null,null,null,null,null,null,null,null,null,null,null,null,null,null,null,null,null,null,null,null,null,null,null,{"$f":"[2]ورقة1!A849","v":0},{"$f":"[2]ورقة1!B849","v":0}]
[null,null,null,null,null,null,null,null,null,null,null,null,null,null,null,null,null,null,null,null,null,null,null,null,{"$f":"[2]ورقة1!A850","v":0},{"$f":"[2]ورقة1!B850","v":0}]
[null,null,null,null,null,null,null,null,null,null,null,null,null,null,null,null,null,null,null,null,null,null,null,null,{"$f":"[2]ورقة1!A851","v":0},{"$f":"[2]ورقة1!B851","v":0}]
[null,null,null,null,null,null,null,null,null,null,null,null,null,null,null,null,null,null,null,null,null,null,null,null,{"$f":"[2]ورقة1!A852","v":0},{"$f":"[2]ورقة1!B852","v":0}]
[null,null,null,null,null,null,null,null,null,null,null,null,null,null,null,null,null,null,null,null,null,null,null,null,{"$f":"[2]ورقة1!A853","v":0},{"$f":"[2]ورقة1!B853","v":0}]
[null,null,null,null,null,null,null,null,null,null,null,null,null,null,null,null,null,null,null,null,null,null,null,null,{"$f":"[2]ورقة1!A854","v":0},{"$f":"[2]ورقة1!B854","v":0}]
[null,null,null,null,null,null,null,null,null,null,null,null,null,null,null,null,null,null,null,null,null,null,null,null,{"$f":"[2]ورقة1!A855","v":0},{"$f":"[2]ورقة1!B855","v":0}]
[null,null,null,null,null,null,null,null,null,null,null,null,null,null,null,null,null,null,null,null,null,null,null,null,{"$f":"[2]ورقة1!A856","v":0},{"$f":"[2]ورقة1!B856","v":0}]
[null,null,null,null,null,null,null,null,null,null,null,null,null,null,null,null,null,null,null,null,null,null,null,null,{"$f":"[2]ورقة1!A857","v":0},{"$f":"[2]ورقة1!B857","v":0}]
[null,null,null,null,null,null,null,null,null,null,null,null,null,null,null,null,null,null,null,null,null,null,null,null,{"$f":"[2]ورقة1!A858","v":0},{"$f":"[2]ورقة1!B858","v":0}]
[null,null,null,null,null,null,null,null,null,null,null,null,null,null,null,null,null,null,null,null,null,null,null,null,{"$f":"[2]ورقة1!A859","v":0},{"$f":"[2]ورقة1!B859","v":0}]
[null,null,null,null,null,null,null,null,null,null,null,null,null,null,null,null,null,null,null,null,null,null,null,null,{"$f":"[2]ورقة1!A860","v":0},{"$f":"[2]ورقة1!B860","v":0}]
[null,null,null,null,null,null,null,null,null,null,null,null,null,null,null,null,null,null,null,null,null,null,null,null,{"$f":"[2]ورقة1!A861","v":0},{"$f":"[2]ورقة1!B861","v":0}]
[null,null,null,null,null,null,null,null,null,null,null,null,null,null,null,null,null,null,null,null,null,null,null,null,{"$f":"[2]ورقة1!A862","v":0},{"$f":"[2]ورقة1!B862","v":0}]
[null,null,null,null,null,null,null,null,null,null,null,null,null,null,null,null,null,null,null,null,null,null,null,null,{"$f":"[2]ورقة1!A863","v":0},{"$f":"[2]ورقة1!B863","v":0}]
[null,null,null,null,null,null,null,null,null,null,null,null,null,null,null,null,null,null,null,null,null,null,null,null,{"$f":"[2]ورقة1!A864","v":0},{"$f":"[2]ورقة1!B864","v":0}]
[null,null,null,null,null,null,null,null,null,null,null,null,null,null,null,null,null,null,null,null,null,null,null,null,{"$f":"[2]ورقة1!A865","v":0},{"$f":"[2]ورقة1!B865","v":0}]
[null,null,null,null,null,null,null,null,null,null,null,null,null,null,null,null,null,null,null,null,null,null,null,null,{"$f":"[2]ورقة1!A866","v":0},{"$f":"[2]ورقة1!B866","v":0}]
[null,null,null,null,null,null,null,null,null,null,null,null,null,null,null,null,null,null,null,null,null,null,null,null,{"$f":"[2]ورقة1!A867","v":0},{"$f":"[2]ورقة1!B867","v":0}]
[null,null,null,null,null,null,null,null,null,null,null,null,null,null,null,null,null,null,null,null,null,null,null,null,{"$f":"[2]ورقة1!A868","v":0},{"$f":"[2]ورقة1!B868","v":0}]
[null,null,null,null,null,null,null,null,null,null,null,null,null,null,null,null,null,null,null,null,null,null,null,null,{"$f":"[2]ورقة1!A869","v":0},{"$f":"[2]ورقة1!B869","v":0}]
[null,null,null,null,null,null,null,null,null,null,null,null,null,null,null,null,null,null,null,null,null,null,null,null,{"$f":"[2]ورقة1!A870","v":0},{"$f":"[2]ورقة1!B870","v":0}]
[null,null,null,null,null,null,null,null,null,null,null,null,null,null,null,null,null,null,null,null,null,null,null,null,{"$f":"[2]ورقة1!A871","v":0},{"$f":"[2]ورقة1!B871","v":0}]
[null,null,null,null,null,null,null,null,null,null,null,null,null,null,null,null,null,null,null,null,null,null,null,null,{"$f":"[2]ورقة1!A872","v":0},{"$f":"[2]ورقة1!B872","v":0}]
[null,null,null,null,null,null,null,null,null,null,null,null,null,null,null,null,null,null,null,null,null,null,null,null,{"$f":"[2]ورقة1!A873","v":0},{"$f":"[2]ورقة1!B873","v":0}]
[null,null,null,null,null,null,null,null,null,null,null,null,null,null,null,null,null,null,null,null,null,null,null,null,{"$f":"[2]ورقة1!A874","v":0},{"$f":"[2]ورقة1!B874","v":0}]
[null,null,null,null,null,null,null,null,null,null,null,null,null,null,null,null,null,null,null,null,null,null,null,null,{"$f":"[2]ورقة1!A875","v":0},{"$f":"[2]ورقة1!B875","v":0}]
[null,null,null,null,null,null,null,null,null,null,null,null,null,null,null,null,null,null,null,null,null,null,null,null,{"$f":"[2]ورقة1!A876","v":0},{"$f":"[2]ورقة1!B876","v":0}]
[null,null,null,null,null,null,null,null,null,null,null,null,null,null,null,null,null,null,null,null,null,null,null,null,{"$f":"[2]ورقة1!A877","v":0},{"$f":"[2]ورقة1!B877","v":0}]
[null,null,null,null,null,null,null,null,null,null,null,null,null,null,null,null,null,null,null,null,null,null,null,null,{"$f":"[2]ورقة1!A878","v":0},{"$f":"[2]ورقة1!B878","v":0}]
[null,null,null,null,null,null,null,null,null,null,null,null,null,null,null,null,null,null,null,null,null,null,null,null,{"$f":"[2]ورقة1!A879","v":0},{"$f":"[2]ورقة1!B879","v":0}]
[null,null,null,null,null,null,null,null,null,null,null,null,null,null,null,null,null,null,null,null,null,null,null,null,{"$f":"[2]ورقة1!A880","v":0},{"$f":"[2]ورقة1!B880","v":0}]
[null,null,null,null,null,null,null,null,null,null,null,null,null,null,null,null,null,null,null,null,null,null,null,null,{"$f":"[2]ورقة1!A881","v":0},{"$f":"[2]ورقة1!B881","v":0}]
[null,null,null,null,null,null,null,null,null,null,null,null,null,null,null,null,null,null,null,null,null,null,null,null,{"$f":"[2]ورقة1!A882","v":0},{"$f":"[2]ورقة1!B882","v":0}]
[null,null,null,null,null,null,null,null,null,null,null,null,null,null,null,null,null,null,null,null,null,null,null,null,{"$f":"[2]ورقة1!A883","v":0},{"$f":"[2]ورقة1!B883","v":0}]
[null,null,null,null,null,null,null,null,null,null,null,null,null,null,null,null,null,null,null,null,null,null,null,null,{"$f":"[2]ورقة1!A884","v":0},{"$f":"[2]ورقة1!B884","v":0}]
[null,null,null,null,null,null,null,null,null,null,null,null,null,null,null,null,null,null,null,null,null,null,null,null,{"$f":"[2]ورقة1!A885","v":0},{"$f":"[2]ورقة1!B885","v":0}]
[null,null,null,null,null,null,null,null,null,null,null,null,null,null,null,null,null,null,null,null,null,null,null,null,{"$f":"[2]ورقة1!A886","v":0},{"$f":"[2]ورقة1!B886","v":0}]
[null,null,null,null,null,null,null,null,null,null,null,null,null,null,null,null,null,null,null,null,null,null,null,null,{"$f":"[2]ورقة1!A887","v":0},{"$f":"[2]ورقة1!B887","v":0}]
[null,null,null,null,null,null,null,null,null,null,null,null,null,null,null,null,null,null,null,null,null,null,null,null,{"$f":"[2]ورقة1!A888","v":0},{"$f":"[2]ورقة1!B888","v":0}]
[null,null,null,null,null,null,null,null,null,null,null,null,null,null,null,null,null,null,null,null,null,null,null,null,{"$f":"[2]ورقة1!A889","v":0},{"$f":"[2]ورقة1!B889","v":0}]
[null,null,null,null,null,null,null,null,null,null,null,null,null,null,null,null,null,null,null,null,null,null,null,null,{"$f":"[2]ورقة1!A890","v":0},{"$f":"[2]ورقة1!B890","v":0}]
[null,null,null,null,null,null,null,null,null,null,null,null,null,null,null,null,null,null,null,null,null,null,null,null,{"$f":"[2]ورقة1!A891","v":0},{"$f":"[2]ورقة1!B891","v":0}]
[null,null,null,null,null,null,null,null,null,null,null,null,null,null,null,null,null,null,null,null,null,null,null,null,{"$f":"[2]ورقة1!A892","v":0},{"$f":"[2]ورقة1!B892","v":0}]
[null,null,null,null,null,null,null,null,null,null,null,null,null,null,null,null,null,null,null,null,null,null,null,null,{"$f":"[2]ورقة1!A893","v":0},{"$f":"[2]ورقة1!B893","v":0}]
[null,null,null,null,null,null,null,null,null,null,null,null,null,null,null,null,null,null,null,null,null,null,null,null,{"$f":"[2]ورقة1!A894","v":0},{"$f":"[2]ورقة1!B894","v":0}]
[null,null,null,null,null,null,null,null,null,null,null,null,null,null,null,null,null,null,null,null,null,null,null,null,{"$f":"[2]ورقة1!A895","v":0},{"$f":"[2]ورقة1!B895","v":0}]
[null,null,null,null,null,null,null,null,null,null,null,null,null,null,null,null,null,null,null,null,null,null,null,null,{"$f":"[2]ورقة1!A896","v":0},{"$f":"[2]ورقة1!B896","v":0}]
[null,null,null,null,null,null,null,null,null,null,null,null,null,null,null,null,null,null,null,null,null,null,null,null,{"$f":"[2]ورقة1!A897","v":0},{"$f":"[2]ورقة1!B897","v":0}]
[null,null,null,null,null,null,null,null,null,null,null,null,null,null,null,null,null,null,null,null,null,null,null,null,{"$f":"[2]ورقة1!A898","v":0},{"$f":"[2]ورقة1!B898","v":0}]
[null,null,null,null,null,null,null,null,null,null,null,null,null,null,null,null,null,null,null,null,null,null,null,null,{"$f":"[2]ورقة1!A899","v":0},{"$f":"[2]ورقة1!B899","v":0}]
[null,null,null,null,null,null,null,null,null,null,null,null,null,null,null,null,null,null,null,null,null,null,null,null,{"$f":"[2]ورقة1!A900","v":0},{"$f":"[2]ورقة1!B900","v":0}]
[null,null,null,null,null,null,null,null,null,null,null,null,null,null,null,null,null,null,null,null,null,null,null,null,{"$f":"[2]ورقة1!A901","v":0},{"$f":"[2]ورقة1!B901","v":0}]
[null,null,null,null,null,null,null,null,null,null,null,null,null,null,null,null,null,null,null,null,null,null,null,null,{"$f":"[2]ورقة1!A902","v":0},{"$f":"[2]ورقة1!B902","v":0}]
[null,null,null,null,null,null,null,null,null,null,null,null,null,null,null,null,null,null,null,null,null,null,null,null,{"$f":"[2]ورقة1!A903","v":0},{"$f":"[2]ورقة1!B903","v":0}]
[null,null,null,null,null,null,null,null,null,null,null,null,null,null,null,null,null,null,null,null,null,null,null,null,{"$f":"[2]ورقة1!A904","v":0},{"$f":"[2]ورقة1!B904","v":0}]
[null,null,null,null,null,null,null,null,null,null,null,null,null,null,null,null,null,null,null,null,null,null,null,null,{"$f":"[2]ورقة1!A905","v":0},{"$f":"[2]ورقة1!B905","v":0}]
[null,null,null,null,null,null,null,null,null,null,null,null,null,null,null,null,null,null,null,null,null,null,null,null,{"$f":"[2]ورقة1!A906","v":0},{"$f":"[2]ورقة1!B906","v":0}]
[null,null,null,null,null,null,null,null,null,null,null,null,null,null,null,null,null,null,null,null,null,null,null,null,{"$f":"[2]ورقة1!A907","v":0},{"$f":"[2]ورقة1!B907","v":0}]
[null,null,null,null,null,null,null,null,null,null,null,null,null,null,null,null,null,null,null,null,null,null,null,null,{"$f":"[2]ورقة1!A908","v":0},{"$f":"[2]ورقة1!B908","v":0}]
[null,null,null,null,null,null,null,null,null,null,null,null,null,null,null,null,null,null,null,null,null,null,null,null,{"$f":"[2]ورقة1!A909","v":0},{"$f":"[2]ورقة1!B909","v":0}]
[null,null,null,null,null,null,null,null,null,null,null,null,null,null,null,null,null,null,null,null,null,null,null,null,{"$f":"[2]ورقة1!A910","v":0},{"$f":"[2]ورقة1!B910","v":0}]
[null,null,null,null,null,null,null,null,null,null,null,null,null,null,null,null,null,null,null,null,null,null,null,null,{"$f":"[2]ورقة1!A911","v":0},{"$f":"[2]ورقة1!B911","v":0}]
[null,null,null,null,null,null,null,null,null,null,null,null,null,null,null,null,null,null,null,null,null,null,null,null,{"$f":"[2]ورقة1!A912","v":0},{"$f":"[2]ورقة1!B912","v":0}]
[null,null,null,null,null,null,null,null,null,null,null,null,null,null,null,null,null,null,null,null,null,null,null,null,{"$f":"[2]ورقة1!A913","v":0},{"$f":"[2]ورقة1!B913","v":0}]
[null,null,null,null,null,null,null,null,null,null,null,null,null,null,null,null,null,null,null,null,null,null,null,null,{"$f":"[2]ورقة1!A914","v":0},{"$f":"[2]ورقة1!B914","v":0}]
[null,null,null,null,null,null,null,null,null,null,null,null,null,null,null,null,null,null,null,null,null,null,null,null,{"$f":"[2]ورقة1!A915","v":0},{"$f":"[2]ورقة1!B915","v":0}]
[null,null,null,null,null,null,null,null,null,null,null,null,null,null,null,null,null,null,null,null,null,null,null,null,{"$f":"[2]ورقة1!A916","v":0},{"$f":"[2]ورقة1!B916","v":0}]
[null,null,null,null,null,null,null,null,null,null,null,null,null,null,null,null,null,null,null,null,null,null,null,null,{"$f":"[2]ورقة1!A917","v":0},{"$f":"[2]ورقة1!B917","v":0}]
[null,null,null,null,null,null,null,null,null,null,null,null,null,null,null,null,null,null,null,null,null,null,null,null,{"$f":"[2]ورقة1!A918","v":0},{"$f":"[2]ورقة1!B918","v":0}]
[null,null,null,null,null,null,null,null,null,null,null,null,null,null,null,null,null,null,null,null,null,null,null,null,{"$f":"[2]ورقة1!A919","v":0},{"$f":"[2]ورقة1!B919","v":0}]
[null,null,null,null,null,null,null,null,null,null,null,null,null,null,null,null,null,null,null,null,null,null,null,null,{"$f":"[2]ورقة1!A920","v":0},{"$f":"[2]ورقة1!B920","v":0}]
[null,null,null,null,null,null,null,null,null,null,null,null,null,null,null,null,null,null,null,null,null,null,null,null,{"$f":"[2]ورقة1!A921","v":0},{"$f":"[2]ورقة1!B921","v":0}]
[null,null,null,null,null,null,null,null,null,null,null,null,null,null,null,null,null,null,null,null,null,null,null,null,{"$f":"[2]ورقة1!A922","v":0},{"$f":"[2]ورقة1!B922","v":0}]
[null,null,null,null,null,null,null,null,null,null,null,null,null,null,null,null,null,null,null,null,null,null,null,null,{"$f":"[2]ورقة1!A923","v":0},{"$f":"[2]ورقة1!B923","v":0}]
[null,null,null,null,null,null,null,null,null,null,null,null,null,null,null,null,null,null,null,null,null,null,null,null,{"$f":"[2]ورقة1!A924","v":0},{"$f":"[2]ورقة1!B924","v":0}]
[null,null,null,null,null,null,null,null,null,null,null,null,null,null,null,null,null,null,null,null,null,null,null,null,{"$f":"[2]ورقة1!A925","v":0},{"$f":"[2]ورقة1!B925","v":0}]
[null,null,null,null,null,null,null,null,null,null,null,null,null,null,null,null,null,null,null,null,null,null,null,null,{"$f":"[2]ورقة1!A926","v":0},{"$f":"[2]ورقة1!B926","v":0}]
[null,null,null,null,null,null,null,null,null,null,null,null,null,null,null,null,null,null,null,null,null,null,null,null,{"$f":"[2]ورقة1!A927","v":0},{"$f":"[2]ورقة1!B927","v":0}]
[null,null,null,null,null,null,null,null,null,null,null,null,null,null,null,null,null,null,null,null,null,null,null,null,{"$f":"[2]ورقة1!A928","v":0},{"$f":"[2]ورقة1!B928","v":0}]
[null,null,null,null,null,null,null,null,null,null,null,null,null,null,null,null,null,null,null,null,null,null,null,null,{"$f":"[2]ورقة1!A929","v":0},{"$f":"[2]ورقة1!B929","v":0}]
[null,null,null,null,null,null,null,null,null,null,null,null,null,null,null,null,null,null,null,null,null,null,null,null,{"$f":"[2]ورقة1!A930","v":0},{"$f":"[2]ورقة1!B930","v":0}]
[null,null,null,null,null,null,null,null,null,null,null,null,null,null,null,null,null,null,null,null,null,null,null,null,{"$f":"[2]ورقة1!A931","v":0},{"$f":"[2]ورقة1!B931","v":0}]
[null,null,null,null,null,null,null,null,null,null,null,null,null,null,null,null,null,null,null,null,null,null,null,null,{"$f":"[2]ورقة1!A932","v":0},{"$f":"[2]ورقة1!B932","v":0}]
[null,null,null,null,null,null,null,null,null,null,null,null,null,null,null,null,null,null,null,null,null,null,null,null,{"$f":"[2]ورقة1!A933","v":0},{"$f":"[2]ورقة1!B933","v":0}]
[null,null,null,null,null,null,null,null,null,null,null,null,null,null,null,null,null,null,null,null,null,null,null,null,{"$f":"[2]ورقة1!A934","v":0},{"$f":"[2]ورقة1!B934","v":0}]
[null,null,null,null,null,null,null,null,null,null,null,null,null,null,null,null,null,null,null,null,null,null,null,null,{"$f":"[2]ورقة1!A935","v":0},{"$f":"[2]ورقة1!B935","v":0}]
[null,null,null,null,null,null,null,null,null,null,null,null,null,null,null,null,null,null,null,null,null,null,null,null,{"$f":"[2]ورقة1!A936","v":0},{"$f":"[2]ورقة1!B936","v":0}]
[null,null,null,null,null,null,null,null,null,null,null,null,null,null,null,null,null,null,null,null,null,null,null,null,{"$f":"[2]ورقة1!A937","v":0},{"$f":"[2]ورقة1!B937","v":0}]
[null,null,null,null,null,null,null,null,null,null,null,null,null,null,null,null,null,null,null,null,null,null,null,null,{"$f":"[2]ورقة1!A938","v":0},{"$f":"[2]ورقة1!B938","v":0}]
[null,null,null,null,null,null,null,null,null,null,null,null,null,null,null,null,null,null,null,null,null,null,null,null,{"$f":"[2]ورقة1!A939","v":0},{"$f":"[2]ورقة1!B939","v":0}]
[null,null,null,null,null,null,null,null,null,null,null,null,null,null,null,null,null,null,null,null,null,null,null,null,{"$f":"[2]ورقة1!A940","v":0},{"$f":"[2]ورقة1!B940","v":0}]
[null,null,null,null,null,null,null,null,null,null,null,null,null,null,null,null,null,null,null,null,null,null,null,null,{"$f":"[2]ورقة1!A941","v":0},{"$f":"[2]ورقة1!B941","v":0}]
[null,null,null,null,null,null,null,null,null,null,null,null,null,null,null,null,null,null,null,null,null,null,null,null,{"$f":"[2]ورقة1!A942","v":0},{"$f":"[2]ورقة1!B942","v":0}]
[null,null,null,null,null,null,null,null,null,null,null,null,null,null,null,null,null,null,null,null,null,null,null,null,{"$f":"[2]ورقة1!A943","v":0},{"$f":"[2]ورقة1!B943","v":0}]
[null,null,null,null,null,null,null,null,null,null,null,null,null,null,null,null,null,null,null,null,null,null,null,null,{"$f":"[2]ورقة1!A944","v":0},{"$f":"[2]ورقة1!B944","v":0}]
[null,null,null,null,null,null,null,null,null,null,null,null,null,null,null,null,null,null,null,null,null,null,null,null,{"$f":"[2]ورقة1!A945","v":0},{"$f":"[2]ورقة1!B945","v":0}]
[null,null,null,null,null,null,null,null,null,null,null,null,null,null,null,null,null,null,null,null,null,null,null,null,{"$f":"[2]ورقة1!A946","v":0},{"$f":"[2]ورقة1!B946","v":0}]
[null,null,null,null,null,null,null,null,null,null,null,null,null,null,null,null,null,null,null,null,null,null,null,null,{"$f":"[2]ورقة1!A947","v":0},{"$f":"[2]ورقة1!B947","v":0}]
[null,null,null,null,null,null,null,null,null,null,null,null,null,null,null,null,null,null,null,null,null,null,null,null,{"$f":"[2]ورقة1!A948","v":0},{"$f":"[2]ورقة1!B948","v":0}]
[null,null,null,null,null,null,null,null,null,null,null,null,null,null,null,null,null,null,null,null,null,null,null,null,{"$f":"[2]ورقة1!A949","v":0},{"$f":"[2]ورقة1!B949","v":0}]
[null,null,null,null,null,null,null,null,null,null,null,null,null,null,null,null,null,null,null,null,null,null,null,null,{"$f":"[2]ورقة1!A950","v":0},{"$f":"[2]ورقة1!B950","v":0}]
[null,null,null,null,null,null,null,null,null,null,null,null,null,null,null,null,null,null,null,null,null,null,null,null,{"$f":"[2]ورقة1!A951","v":0},{"$f":"[2]ورقة1!B951","v":0}]
[null,null,null,null,null,null,null,null,null,null,null,null,null,null,null,null,null,null,null,null,null,null,null,null,{"$f":"[2]ورقة1!A952","v":0},{"$f":"[2]ورقة1!B952","v":0}]
[null,null,null,null,null,null,null,null,null,null,null,null,null,null,null,null,null,null,null,null,null,null,null,null,{"$f":"[2]ورقة1!A953","v":0},{"$f":"[2]ورقة1!B953","v":0}]
[null,null,null,null,null,null,null,null,null,null,null,null,null,null,null,null,null,null,null,null,null,null,null,null,{"$f":"[2]ورقة1!A954","v":0},{"$f":"[2]ورقة1!B954","v":0}]
[null,null,null,null,null,null,null,null,null,null,null,null,null,null,null,null,null,null,null,null,null,null,null,null,{"$f":"[2]ورقة1!A955","v":0},{"$f":"[2]ورقة1!B955","v":0}]
[null,null,null,null,null,null,null,null,null,null,null,null,null,null,null,null,null,null,null,null,null,null,null,null,{"$f":"[2]ورقة1!A956","v":0},{"$f":"[2]ورقة1!B956","v":0}]
[null,null,null,null,null,null,null,null,null,null,null,null,null,null,null,null,null,null,null,null,null,null,null,null,{"$f":"[2]ورقة1!A957","v":0},{"$f":"[2]ورقة1!B957","v":0}]
[null,null,null,null,null,null,null,null,null,null,null,null,null,null,null,null,null,null,null,null,null,null,null,null,{"$f":"[2]ورقة1!A958","v":0},{"$f":"[2]ورقة1!B958","v":0}]
[null,null,null,null,null,null,null,null,null,null,null,null,null,null,null,null,null,null,null,null,null,null,null,null,{"$f":"[2]ورقة1!A959","v":0},{"$f":"[2]ورقة1!B959","v":0}]
[null,null,null,null,null,null,null,null,null,null,null,null,null,null,null,null,null,null,null,null,null,null,null,null,{"$f":"[2]ورقة1!A960","v":0},{"$f":"[2]ورقة1!B960","v":0}]
[null,null,null,null,null,null,null,null,null,null,null,null,null,null,null,null,null,null,null,null,null,null,null,null,{"$f":"[2]ورقة1!A961","v":0},{"$f":"[2]ورقة1!B961","v":0}]
[null,null,null,null,null,null,null,null,null,null,null,null,null,null,null,null,null,null,null,null,null,null,null,null,{"$f":"[2]ورقة1!A962","v":0},{"$f":"[2]ورقة1!B962","v":0}]
[null,null,null,null,null,null,null,null,null,null,null,null,null,null,null,null,null,null,null,null,null,null,null,null,{"$f":"[2]ورقة1!A963","v":0},{"$f":"[2]ورقة1!B963","v":0}]
[null,null,null,null,null,null,null,null,null,null,null,null,null,null,null,null,null,null,null,null,null,null,null,null,{"$f":"[2]ورقة1!A964","v":0},{"$f":"[2]ورقة1!B964","v":0}]
[null,null,null,null,null,null,null,null,null,null,null,null,null,null,null,null,null,null,null,null,null,null,null,null,{"$f":"[2]ورقة1!A965","v":0},{"$f":"[2]ورقة1!B965","v":0}]
[null,null,null,null,null,null,null,null,null,null,null,null,null,null,null,null,null,null,null,null,null,null,null,null,{"$f":"[2]ورقة1!A966","v":0},{"$f":"[2]ورقة1!B966","v":0}]
[null,null,null,null,null,null,null,null,null,null,null,null,null,null,null,null,null,null,null,null,null,null,null,null,{"$f":"[2]ورقة1!A967","v":0},{"$f":"[2]ورقة1!B967","v":0}]
[null,null,null,null,null,null,null,null,null,null,null,null,null,null,null,null,null,null,null,null,null,null,null,null,{"$f":"[2]ورقة1!A968","v":0},{"$f":"[2]ورقة1!B968","v":0}]
[null,null,null,null,null,null,null,null,null,null,null,null,null,null,null,null,null,null,null,null,null,null,null,null,{"$f":"[2]ورقة1!A969","v":0},{"$f":"[2]ورقة1!B969","v":0}]
[null,null,null,null,null,null,null,null,null,null,null,null,null,null,null,null,null,null,null,null,null,null,null,null,{"$f":"[2]ورقة1!A970","v":0},{"$f":"[2]ورقة1!B970","v":0}]
[null,null,null,null,null,null,null,null,null,null,null,null,null,null,null,null,null,null,null,null,null,null,null,null,{"$f":"[2]ورقة1!A971","v":0},{"$f":"[2]ورقة1!B971","v":0}]
[null,null,null,null,null,null,null,null,null,null,null,null,null,null,null,null,null,null,null,null,null,null,null,null,{"$f":"[2]ورقة1!A972","v":0},{"$f":"[2]ورقة1!B972","v":0}]
[null,null,null,null,null,null,null,null,null,null,null,null,null,null,null,null,null,null,null,null,null,null,null,null,{"$f":"[2]ورقة1!A973","v":0},{"$f":"[2]ورقة1!B973","v":0}]
[null,null,null,null,null,null,null,null,null,null,null,null,null,null,null,null,null,null,null,null,null,null,null,null,{"$f":"[2]ورقة1!A974","v":0},{"$f":"[2]ورقة1!B974","v":0}]
[null,null,null,null,null,null,null,null,null,null,null,null,null,null,null,null,null,null,null,null,null,null,null,null,{"$f":"[2]ورقة1!A975","v":0},{"$f":"[2]ورقة1!B975","v":0}]
[null,null,null,null,null,null,null,null,null,null,null,null,null,null,null,null,null,null,null,null,null,null,null,null,{"$f":"[2]ورقة1!A976","v":0},{"$f":"[2]ورقة1!B976","v":0}]
[null,null,null,null,null,null,null,null,null,null,null,null,null,null,null,null,null,null,null,null,null,null,null,null,{"$f":"[2]ورقة1!A977","v":0},{"$f":"[2]ورقة1!B977","v":0}]
[null,null,null,null,null,null,null,null,null,null,null,null,null,null,null,null,null,null,null,null,null,null,null,null,{"$f":"[2]ورقة1!A978","v":0},{"$f":"[2]ورقة1!B978","v":0}]
[null,null,null,null,null,null,null,null,null,null,null,null,null,null,null,null,null,null,null,null,null,null,null,null,{"$f":"[2]ورقة1!A979","v":0},{"$f":"[2]ورقة1!B979","v":0}]
[null,null,null,null,null,null,null,null,null,null,null,null,null,null,null,null,null,null,null,null,null,null,null,null,{"$f":"[2]ورقة1!A980","v":0},{"$f":"[2]ورقة1!B980","v":0}]
[null,null,null,null,null,null,null,null,null,null,null,null,null,null,null,null,null,null,null,null,null,null,null,null,{"$f":"[2]ورقة1!A981","v":0},{"$f":"[2]ورقة1!B981","v":0}]
[null,null,null,null,null,null,null,null,null,null,null,null,null,null,null,null,null,null,null,null,null,null,null,null,{"$f":"[2]ورقة1!A982","v":0},{"$f":"[2]ورقة1!B982","v":0}]
[null,null,null,null,null,null,null,null,null,null,null,null,null,null,null,null,null,null,null,null,null,null,null,null,{"$f":"[2]ورقة1!A983","v":0},{"$f":"[2]ورقة1!B983","v":0}]
[null,null,null,null,null,null,null,null,null,null,null,null,null,null,null,null,null,null,null,null,null,null,null,null,{"$f":"[2]ورقة1!A984","v":0},{"$f":"[2]ورقة1!B984","v":0}]
[null,null,null,null,null,null,null,null,null,null,null,null,null,null,null,null,null,null,null,null,null,null,null,null,{"$f":"[2]ورقة1!A985","v":0},{"$f":"[2]ورقة1!B985","v":0}]
[null,null,null,null,null,null,null,null,null,null,null,null,null,null,null,null,null,null,null,null,null,null,null,null,{"$f":"[2]ورقة1!A986","v":0},{"$f":"[2]ورقة1!B986","v":0}]
[null,null,null,null,null,null,null,null,null,null,null,null,null,null,null,null,null,null,null,null,null,null,null,null,{"$f":"[2]ورقة1!A987","v":0},{"$f":"[2]ورقة1!B987","v":0}]
[null,null,null,null,null,null,null,null,null,null,null,null,null,null,null,null,null,null,null,null,null,null,null,null,{"$f":"[2]ورقة1!A988","v":0},{"$f":"[2]ورقة1!B988","v":0}]
[null,null,null,null,null,null,null,null,null,null,null,null,null,null,null,null,null,null,null,null,null,null,null,null,{"$f":"[2]ورقة1!A989","v":0},{"$f":"[2]ورقة1!B989","v":0}]
[null,null,null,null,null,null,null,null,null,null,null,null,null,null,null,null,null,null,null,null,null,null,null,null,{"$f":"[2]ورقة1!A990","v":0},{"$f":"[2]ورقة1!B990","v":0}]
[null,null,null,null,null,null,null,null,null,null,null,null,null,null,null,null,null,null,null,null,null,null,null,null,{"$f":"[2]ورقة1!A991","v":0},{"$f":"[2]ورقة1!B991","v":0}]
[null,null,null,null,null,null,null,null,null,null,null,null,null,null,null,null,null,null,null,null,null,null,null,null,{"$f":"[2]ورقة1!A992","v":0},{"$f":"[2]ورقة1!B992","v":0}]
[null,null,null,null,null,null,null,null,null,null,null,null,null,null,null,null,null,null,null,null,null,null,null,null,{"$f":"[2]ورقة1!A993","v":0},{"$f":"[2]ورقة1!B993","v":0}]
[null,null,null,null,null,null,null,null,null,null,null,null,null,null,null,null,null,null,null,null,null,null,null,null,{"$f":"[2]ورقة1!A994","v":0},{"$f":"[2]ورقة1!B994","v":0}]
[null,null,null,null,null,null,null,null,null,null,null,null,null,null,null,null,null,null,null,null,null,null,null,null,{"$f":"[2]ورقة1!A995","v":0},{"$f":"[2]ورقة1!B995","v":0}]
[null,null,null,null,null,null,null,null,null,null,null,null,null,null,null,null,null,null,null,null,null,null,null,null,{"$f":"[2]ورقة1!A996","v":0},{"$f":"[2]ورقة1!B996","v":0}]
[null,null,null,null,null,null,null,null,null,null,null,null,null,null,null,null,null,null,null,null,null,null,null,null,{"$f":"[2]ورقة1!A997","v":0},{"$f":"[2]ورقة1!B997","v":0}]
[null,null,null,null,null,null,null,null,null,null,null,null,null,null,null,null,null,null,null,null,null,null,null,null,{"$f":"[2]ورقة1!A998","v":0},{"$f":"[2]ورقة1!B998","v":0}]
[null,null,null,null,null,null,null,null,null,null,null,null,null,null,null,null,null,null,null,null,null,null,null,null,{"$f":"[2]ورقة1!A999","v":0},{"$f":"[2]ورقة1!B999","v":0}]
[null,null,null,null,null,null,null,null,null,null,null,null,null,null,null,null,null,null,null,null,null,null,null,null,{"$f":"[2]ورقة1!A1000","v":0},{"$f":"[2]ورقة1!B1000","v":0}]
[null,null,null,null,null,null,null,null,null,null,null,null,null,null,null,null,null,null,null,null,null,null,null,null,{"$f":"[2]ورقة1!A1001","v":0},{"$f":"[2]ورقة1!B1001","v":0}]
[null,null,null,null,null,null,null,null,null,null,null,null,null,null,null,null,null,null,null,null,null,null,null,null,{"$f":"[2]ورقة1!A1002","v":0},{"$f":"[2]ورقة1!B1002","v":0}]
[null,null,null,null,null,null,null,null,null,null,null,null,null,null,null,null,null,null,null,null,null,null,null,null,{"$f":"[2]ورقة1!A1003","v":0},{"$f":"[2]ورقة1!B1003","v":0}]
[null,null,null,null,null,null,null,null,null,null,null,null,null,null,null,null,null,null,null,null,null,null,null,null,{"$f":"[2]ورقة1!A1004","v":0},{"$f":"[2]ورقة1!B1004","v":0}]
[null,null,null,null,null,null,null,null,null,null,null,null,null,null,null,null,null,null,null,null,null,null,null,null,{"$f":"[2]ورقة1!A1005","v":0},{"$f":"[2]ورقة1!B1005","v":0}]
[null,null,null,null,null,null,null,null,null,null,null,null,null,null,null,null,null,null,null,null,null,null,null,null,{"$f":"[2]ورقة1!A1006","v":0},{"$f":"[2]ورقة1!B1006","v":0}]
[null,null,null,null,null,null,null,null,null,null,null,null,null,null,null,null,null,null,null,null,null,null,null,null,{"$f":"[2]ورقة1!A1007","v":0},{"$f":"[2]ورقة1!B1007","v":0}]
[null,null,null,null,null,null,null,null,null,null,null,null,null,null,null,null,null,null,null,null,null,null,null,null,{"$f":"[2]ورقة1!A1008","v":0},{"$f":"[2]ورقة1!B1008","v":0}]
[null,null,null,null,null,null,null,null,null,null,null,null,null,null,null,null,null,null,null,null,null,null,null,null,{"$f":"[2]ورقة1!A1009","v":0},{"$f":"[2]ورقة1!B1009","v":0}]
[null,null,null,null,null,null,null,null,null,null,null,null,null,null,null,null,null,null,null,null,null,null,null,null,{"$f":"[2]ورقة1!A1010","v":0},{"$f":"[2]ورقة1!B1010","v":0}]
[null,null,null,null,null,null,null,null,null,null,null,null,null,null,null,null,null,null,null,null,null,null,null,null,{"$f":"[2]ورقة1!A1011","v":0},{"$f":"[2]ورقة1!B1011","v":0}]
[null,null,null,null,null,null,null,null,null,null,null,null,null,null,null,null,null,null,null,null,null,null,null,null,{"$f":"[2]ورقة1!A1012","v":0},{"$f":"[2]ورقة1!B1012","v":0}]
[null,null,null,null,null,null,null,null,null,null,null,null,null,null,null,null,null,null,null,null,null,null,null,null,{"$f":"[2]ورقة1!A1013","v":0},{"$f":"[2]ورقة1!B1013","v":0}]
[null,null,null,null,null,null,null,null,null,null,null,null,null,null,null,null,null,null,null,null,null,null,null,null,{"$f":"[2]ورقة1!A1014","v":0},{"$f":"[2]ورقة1!B1014","v":0}]
[null,null,null,null,null,null,null,null,null,null,null,null,null,null,null,null,null,null,null,null,null,null,null,null,{"$f":"[2]ورقة1!A1015","v":0},{"$f":"[2]ورقة1!B1015","v":0}]
[null,null,null,null,null,null,null,null,null,null,null,null,null,null,null,null,null,null,null,null,null,null,null,null,{"$f":"[2]ورقة1!A1016","v":0},{"$f":"[2]ورقة1!B1016","v":0}]
[null,null,null,null,null,null,null,null,null,null,null,null,null,null,null,null,null,null,null,null,null,null,null,null,{"$f":"[2]ورقة1!A1017","v":0},{"$f":"[2]ورقة1!B1017","v":0}]
[null,null,null,null,null,null,null,null,null,null,null,null,null,null,null,null,null,null,null,null,null,null,null,null,{"$f":"[2]ورقة1!A1018","v":0},{"$f":"[2]ورقة1!B1018","v":0}]
[null,null,null,null,null,null,null,null,null,null,null,null,null,null,null,null,null,null,null,null,null,null,null,null,{"$f":"[2]ورقة1!A1019","v":0},{"$f":"[2]ورقة1!B1019","v":0}]
[null,null,null,null,null,null,null,null,null,null,null,null,null,null,null,null,null,null,null,null,null,null,null,null,{"$f":"[2]ورقة1!A1020","v":0},{"$f":"[2]ورقة1!B1020","v":0}]
[null,null,null,null,null,null,null,null,null,null,null,null,null,null,null,null,null,null,null,null,null,null,null,null,{"$f":"[2]ورقة1!A1021","v":0},{"$f":"[2]ورقة1!B1021","v":0}]
[null,null,null,null,null,null,null,null,null,null,null,null,null,null,null,null,null,null,null,null,null,null,null,null,{"$f":"[2]ورقة1!A1022","v":0},{"$f":"[2]ورقة1!B1022","v":0}]
[null,null,null,null,null,null,null,null,null,null,null,null,null,null,null,null,null,null,null,null,null,null,null,null,{"$f":"[2]ورقة1!A1023","v":0},{"$f":"[2]ورقة1!B1023","v":0}]
[null,null,null,null,null,null,null,null,null,null,null,null,null,null,null,null,null,null,null,null,null,null,null,null,{"$f":"[2]ورقة1!A1024","v":0},{"$f":"[2]ورقة1!B1024","v":0}]
[null,null,null,null,null,null,null,null,null,null,null,null,null,null,null,null,null,null,null,null,null,null,null,null,{"$f":"[2]ورقة1!A1025","v":0},{"$f":"[2]ورقة1!B1025","v":0}]
[null,null,null,null,null,null,null,null,null,null,null,null,null,null,null,null,null,null,null,null,null,null,null,null,{"$f":"[2]ورقة1!A1026","v":0},{"$f":"[2]ورقة1!B1026","v":0}]
[null,null,null,null,null,null,null,null,null,null,null,null,null,null,null,null,null,null,null,null,null,null,null,null,{"$f":"[2]ورقة1!A1027","v":0},{"$f":"[2]ورقة1!B1027","v":0}]
[null,null,null,null,null,null,null,null,null,null,null,null,null,null,null,null,null,null,null,null,null,null,null,null,{"$f":"[2]ورقة1!A1028","v":0},{"$f":"[2]ورقة1!B1028","v":0}]
[null,null,null,null,null,null,null,null,null,null,null,null,null,null,null,null,null,null,null,null,null,null,null,null,{"$f":"[2]ورقة1!A1029","v":0},{"$f":"[2]ورقة1!B1029","v":0}]
[null,null,null,null,null,null,null,null,null,null,null,null,null,null,null,null,null,null,null,null,null,null,null,null,{"$f":"[2]ورقة1!A1030","v":0},{"$f":"[2]ورقة1!B1030","v":0}]
[null,null,null,null,null,null,null,null,null,null,null,null,null,null,null,null,null,null,null,null,null,null,null,null,{"$f":"[2]ورقة1!A1031","v":0},{"$f":"[2]ورقة1!B1031","v":0}]
[null,null,null,null,null,null,null,null,null,null,null,null,null,null,null,null,null,null,null,null,null,null,null,null,{"$f":"[2]ورقة1!A1032","v":0},{"$f":"[2]ورقة1!B1032","v":0}]
[null,null,null,null,null,null,null,null,null,null,null,null,null,null,null,null,null,null,null,null,null,null,null,null,{"$f":"[2]ورقة1!A1033","v":0},{"$f":"[2]ورقة1!B1033","v":0}]
[null,null,null,null,null,null,null,null,null,null,null,null,null,null,null,null,null,null,null,null,null,null,null,null,{"$f":"[2]ورقة1!A1034","v":0},{"$f":"[2]ورقة1!B1034","v":0}]
[null,null,null,null,null,null,null,null,null,null,null,null,null,null,null,null,null,null,null,null,null,null,null,null,{"$f":"[2]ورقة1!A1035","v":0},{"$f":"[2]ورقة1!B1035","v":0}]
[null,null,null,null,null,null,null,null,null,null,null,null,null,null,null,null,null,null,null,null,null,null,null,null,{"$f":"[2]ورقة1!A1036","v":0},{"$f":"[2]ورقة1!B1036","v":0}]
[null,null,null,null,null,null,null,null,null,null,null,null,null,null,null,null,null,null,null,null,null,null,null,null,{"$f":"[2]ورقة1!A1037","v":0},{"$f":"[2]ورقة1!B1037","v":0}]
[null,null,null,null,null,null,null,null,null,null,null,null,null,null,null,null,null,null,null,null,null,null,null,null,{"$f":"[2]ورقة1!A1038","v":0},{"$f":"[2]ورقة1!B1038","v":0}]
[null,null,null,null,null,null,null,null,null,null,null,null,null,null,null,null,null,null,null,null,null,null,null,null,{"$f":"[2]ورقة1!A1039","v":0},{"$f":"[2]ورقة1!B1039","v":0}]
[null,null,null,null,null,null,null,null,null,null,null,null,null,null,null,null,null,null,null,null,null,null,null,null,{"$f":"[2]ورقة1!A1040","v":0},{"$f":"[2]ورقة1!B1040","v":0}]
[null,null,null,null,null,null,null,null,null,null,null,null,null,null,null,null,null,null,null,null,null,null,null,null,{"$f":"[2]ورقة1!A1041","v":0},{"$f":"[2]ورقة1!B1041","v":0}]
[null,null,null,null,null,null,null,null,null,null,null,null,null,null,null,null,null,null,null,null,null,null,null,null,{"$f":"[2]ورقة1!A1042","v":0},{"$f":"[2]ورقة1!B1042","v":0}]
[null,null,null,null,null,null,null,null,null,null,null,null,null,null,null,null,null,null,null,null,null,null,null,null,{"$f":"[2]ورقة1!A1043","v":0},{"$f":"[2]ورقة1!B1043","v":0}]
[null,null,null,null,null,null,null,null,null,null,null,null,null,null,null,null,null,null,null,null,null,null,null,null,{"$f":"[2]ورقة1!A1044","v":0},{"$f":"[2]ورقة1!B1044","v":0}]
[null,null,null,null,null,null,null,null,null,null,null,null,null,null,null,null,null,null,null,null,null,null,null,null,{"$f":"[2]ورقة1!A1045","v":0},{"$f":"[2]ورقة1!B1045","v":0}]
[null,null,null,null,null,null,null,null,null,null,null,null,null,null,null,null,null,null,null,null,null,null,null,null,{"$f":"[2]ورقة1!A1046","v":0},{"$f":"[2]ورقة1!B1046","v":0}]
[null,null,null,null,null,null,null,null,null,null,null,null,null,null,null,null,null,null,null,null,null,null,null,null,{"$f":"[2]ورقة1!A1047","v":0},{"$f":"[2]ورقة1!B1047","v":0}]
[null,null,null,null,null,null,null,null,null,null,null,null,null,null,null,null,null,null,null,null,null,null,null,null,{"$f":"[2]ورقة1!A1048","v":0},{"$f":"[2]ورقة1!B1048","v":0}]
[null,null,null,null,null,null,null,null,null,null,null,null,null,null,null,null,null,null,null,null,null,null,null,null,{"$f":"[2]ورقة1!A1049","v":0},{"$f":"[2]ورقة1!B1049","v":0}]
[null,null,null,null,null,null,null,null,null,null,null,null,null,null,null,null,null,null,null,null,null,null,null,null,{"$f":"[2]ورقة1!A1050","v":0},{"$f":"[2]ورقة1!B1050","v":0}]
[null,null,null,null,null,null,null,null,null,null,null,null,null,null,null,null,null,null,null,null,null,null,null,null,{"$f":"[2]ورقة1!A1051","v":0},{"$f":"[2]ورقة1!B1051","v":0}]
[null,null,null,null,null,null,null,null,null,null,null,null,null,null,null,null,null,null,null,null,null,null,null,null,{"$f":"[2]ورقة1!A1052","v":0},{"$f":"[2]ورقة1!B1052","v":0}]
[null,null,null,null,null,null,null,null,null,null,null,null,null,null,null,null,null,null,null,null,null,null,null,null,{"$f":"[2]ورقة1!A1053","v":0},{"$f":"[2]ورقة1!B1053","v":0}]
[null,null,null,null,null,null,null,null,null,null,null,null,null,null,null,null,null,null,null,null,null,null,null,null,{"$f":"[2]ورقة1!A1054","v":0},{"$f":"[2]ورقة1!B1054","v":0}]
[null,null,null,null,null,null,null,null,null,null,null,null,null,null,null,null,null,null,null,null,null,null,null,null,{"$f":"[2]ورقة1!A1055","v":0},{"$f":"[2]ورقة1!B1055","v":0}]
[null,null,null,null,null,null,null,null,null,null,null,null,null,null,null,null,null,null,null,null,null,null,null,null,{"$f":"[2]ورقة1!A1056","v":0},{"$f":"[2]ورقة1!B1056","v":0}]
[null,null,null,null,null,null,null,null,null,null,null,null,null,null,null,null,null,null,null,null,null,null,null,null,{"$f":"[2]ورقة1!A1057","v":0},{"$f":"[2]ورقة1!B1057","v":0}]
[null,null,null,null,null,null,null,null,null,null,null,null,null,null,null,null,null,null,null,null,null,null,null,null,{"$f":"[2]ورقة1!A1058","v":0},{"$f":"[2]ورقة1!B1058","v":0}]
[null,null,null,null,null,null,null,null,null,null,null,null,null,null,null,null,null,null,null,null,null,null,null,null,{"$f":"[2]ورقة1!A1059","v":0},{"$f":"[2]ورقة1!B1059","v":0}]
[null,null,null,null,null,null,null,null,null,null,null,null,null,null,null,null,null,null,null,null,null,null,null,null,{"$f":"[2]ورقة1!A1060","v":0},{"$f":"[2]ورقة1!B1060","v":0}]
[null,null,null,null,null,null,null,null,null,null,null,null,null,null,null,null,null,null,null,null,null,null,null,null,{"$f":"[2]ورقة1!A1061","v":0},{"$f":"[2]ورقة1!B1061","v":0}]
[null,null,null,null,null,null,null,null,null,null,null,null,null,null,null,null,null,null,null,null,null,null,null,null,{"$f":"[2]ورقة1!A1062","v":0},{"$f":"[2]ورقة1!B1062","v":0}]
[null,null,null,null,null,null,null,null,null,null,null,null,null,null,null,null,null,null,null,null,null,null,null,null,{"$f":"[2]ورقة1!A1063","v":0},{"$f":"[2]ورقة1!B1063","v":0}]
[null,null,null,null,null,null,null,null,null,null,null,null,null,null,null,null,null,null,null,null,null,null,null,null,{"$f":"[2]ورقة1!A1064","v":0},{"$f":"[2]ورقة1!B1064","v":0}]
[null,null,null,null,null,null,null,null,null,null,null,null,null,null,null,null,null,null,null,null,null,null,null,null,{"$f":"[2]ورقة1!A1065","v":0},{"$f":"[2]ورقة1!B1065","v":0}]
[null,null,null,null,null,null,null,null,null,null,null,null,null,null,null,null,null,null,null,null,null,null,null,null,{"$f":"[2]ورقة1!A1066","v":0},{"$f":"[2]ورقة1!B1066","v":0}]
[null,null,null,null,null,null,null,null,null,null,null,null,null,null,null,null,null,null,null,null,null,null,null,null,{"$f":"[2]ورقة1!A1067","v":0},{"$f":"[2]ورقة1!B1067","v":0}]
[null,null,null,null,null,null,null,null,null,null,null,null,null,null,null,null,null,null,null,null,null,null,null,null,{"$f":"[2]ورقة1!A1068","v":0},{"$f":"[2]ورقة1!B1068","v":0}]
[null,null,null,null,null,null,null,null,null,null,null,null,null,null,null,null,null,null,null,null,null,null,null,null,{"$f":"[2]ورقة1!A1069","v":0},{"$f":"[2]ورقة1!B1069","v":0}]
[null,null,null,null,null,null,null,null,null,null,null,null,null,null,null,null,null,null,null,null,null,null,null,null,{"$f":"[2]ورقة1!A1070","v":0},{"$f":"[2]ورقة1!B1070","v":0}]
[null,null,null,null,null,null,null,null,null,null,null,null,null,null,null,null,null,null,null,null,null,null,null,null,{"$f":"[2]ورقة1!A1071","v":0},{"$f":"[2]ورقة1!B1071","v":0}]
[null,null,null,null,null,null,null,null,null,null,null,null,null,null,null,null,null,null,null,null,null,null,null,null,{"$f":"[2]ورقة1!A1072","v":0},{"$f":"[2]ورقة1!B1072","v":0}]
[null,null,null,null,null,null,null,null,null,null,null,null,null,null,null,null,null,null,null,null,null,null,null,null,{"$f":"[2]ورقة1!A1073","v":0},{"$f":"[2]ورقة1!B1073","v":0}]
[null,null,null,null,null,null,null,null,null,null,null,null,null,null,null,null,null,null,null,null,null,null,null,null,{"$f":"[2]ورقة1!A1074","v":0},{"$f":"[2]ورقة1!B1074","v":0}]
[null,null,null,null,null,null,null,null,null,null,null,null,null,null,null,null,null,null,null,null,null,null,null,null,{"$f":"[2]ورقة1!A1075","v":0},{"$f":"[2]ورقة1!B1075","v":0}]
[null,null,null,null,null,null,null,null,null,null,null,null,null,null,null,null,null,null,null,null,null,null,null,null,{"$f":"[2]ورقة1!A1076","v":0},{"$f":"[2]ورقة1!B1076","v":0}]
[null,null,null,null,null,null,null,null,null,null,null,null,null,null,null,null,null,null,null,null,null,null,null,null,{"$f":"[2]ورقة1!A1077","v":0},{"$f":"[2]ورقة1!B1077","v":0}]
[null,null,null,null,null,null,null,null,null,null,null,null,null,null,null,null,null,null,null,null,null,null,null,null,{"$f":"[2]ورقة1!A1078","v":0},{"$f":"[2]ورقة1!B1078","v":0}]
[null,null,null,null,null,null,null,null,null,null,null,null,null,null,null,null,null,null,null,null,null,null,null,null,{"$f":"[2]ورقة1!A1079","v":0},{"$f":"[2]ورقة1!B1079","v":0}]
[null,null,null,null,null,null,null,null,null,null,null,null,null,null,null,null,null,null,null,null,null,null,null,null,{"$f":"[2]ورقة1!A1080","v":0},{"$f":"[2]ورقة1!B1080","v":0}]
[null,null,null,null,null,null,null,null,null,null,null,null,null,null,null,null,null,null,null,null,null,null,null,null,{"$f":"[2]ورقة1!A1081","v":0},{"$f":"[2]ورقة1!B1081","v":0}]
[null,null,null,null,null,null,null,null,null,null,null,null,null,null,null,null,null,null,null,null,null,null,null,null,{"$f":"[2]ورقة1!A1082","v":0},{"$f":"[2]ورقة1!B1082","v":0}]
[null,null,null,null,null,null,null,null,null,null,null,null,null,null,null,null,null,null,null,null,null,null,null,null,{"$f":"[2]ورقة1!A1083","v":0},{"$f":"[2]ورقة1!B1083","v":0}]
[null,null,null,null,null,null,null,null,null,null,null,null,null,null,null,null,null,null,null,null,null,null,null,null,{"$f":"[2]ورقة1!A1084","v":0},{"$f":"[2]ورقة1!B1084","v":0}]
[null,null,null,null,null,null,null,null,null,null,null,null,null,null,null,null,null,null,null,null,null,null,null,null,{"$f":"[2]ورقة1!A1085","v":0},{"$f":"[2]ورقة1!B1085","v":0}]
[null,null,null,null,null,null,null,null,null,null,null,null,null,null,null,null,null,null,null,null,null,null,null,null,{"$f":"[2]ورقة1!A1086","v":0},{"$f":"[2]ورقة1!B1086","v":0}]
[null,null,null,null,null,null,null,null,null,null,null,null,null,null,null,null,null,null,null,null,null,null,null,null,{"$f":"[2]ورقة1!A1087","v":0},{"$f":"[2]ورقة1!B1087","v":0}]
[null,null,null,null,null,null,null,null,null,null,null,null,null,null,null,null,null,null,null,null,null,null,null,null,{"$f":"[2]ورقة1!A1088","v":0},{"$f":"[2]ورقة1!B1088","v":0}]
[null,null,null,null,null,null,null,null,null,null,null,null,null,null,null,null,null,null,null,null,null,null,null,null,{"$f":"[2]ورقة1!A1089","v":0},{"$f":"[2]ورقة1!B1089","v":0}]
[null,null,null,null,null,null,null,null,null,null,null,null,null,null,null,null,null,null,null,null,null,null,null,null,{"$f":"[2]ورقة1!A1090","v":0},{"$f":"[2]ورقة1!B1090","v":0}]
[null,null,null,null,null,null,null,null,null,null,null,null,null,null,null,null,null,null,null,null,null,null,null,null,{"$f":"[2]ورقة1!A1091","v":0},{"$f":"[2]ورقة1!B1091","v":0}]
[null,null,null,null,null,null,null,null,null,null,null,null,null,null,null,null,null,null,null,null,null,null,null,null,{"$f":"[2]ورقة1!A1092","v":0},{"$f":"[2]ورقة1!B1092","v":0}]
[null,null,null,null,null,null,null,null,null,null,null,null,null,null,null,null,null,null,null,null,null,null,null,null,{"$f":"[2]ورقة1!A1093","v":0},{"$f":"[2]ورقة1!B1093","v":0}]
[null,null,null,null,null,null,null,null,null,null,null,null,null,null,null,null,null,null,null,null,null,null,null,null,{"$f":"[2]ورقة1!A1094","v":0},{"$f":"[2]ورقة1!B1094","v":0}]
[null,null,null,null,null,null,null,null,null,null,null,null,null,null,null,null,null,null,null,null,null,null,null,null,{"$f":"[2]ورقة1!A1095","v":0},{"$f":"[2]ورقة1!B1095","v":0}]
[null,null,null,null,null,null,null,null,null,null,null,null,null,null,null,null,null,null,null,null,null,null,null,null,{"$f":"[2]ورقة1!A1096","v":0},{"$f":"[2]ورقة1!B1096","v":0}]
[null,null,null,null,null,null,null,null,null,null,null,null,null,null,null,null,null,null,null,null,null,null,null,null,{"$f":"[2]ورقة1!A1097","v":0},{"$f":"[2]ورقة1!B1097","v":0}]
[null,null,null,null,null,null,null,null,null,null,null,null,null,null,null,null,null,null,null,null,null,null,null,null,{"$f":"[2]ورقة1!A1098","v":0},{"$f":"[2]ورقة1!B1098","v":0}]
[null,null,null,null,null,null,null,null,null,null,null,null,null,null,null,null,null,null,null,null,null,null,null,null,{"$f":"[2]ورقة1!A1099","v":0},{"$f":"[2]ورقة1!B1099","v":0}]
[null,null,null,null,null,null,null,null,null,null,null,null,null,null,null,null,null,null,null,null,null,null,null,null,{"$f":"[2]ورقة1!A1100","v":0},{"$f":"[2]ورقة1!B1100","v":0}]

{"sheet":"new","index":1,"n_rows":669,"n_cols":30,"rows_kept":669,"cut":false,"hidden":false,"merged":[[667,3,667,6],[0,0,0,11],[1,4,1,8],[1,13,3,13],[3,2,3,3],[6,3,6,9]]}
[null,null,null,null,null,null,null,null,null,null,null,null,null,{"$f":"C668","v":0}]
[null,null,null,null,"بــطــاقــة عــمــيــل",null,null,null,null,null,null,null,null,"الفهرس","رصيد أول المدة",{"$f":"C7","v":0}]
[null,null,null,null,null,null,null,null,null,null,null,null,null,null,"إجمالي الصادر طرف العميل",{"$f":"SUMIF(C8:C667,\">0\")","v":0}]
[null,"الموقع",1,null,null,null,null,null,null,"كود العميل",1,null,null,null,"إجمالي المرتجع من العميل",{"$f":"SUMIF(C8:C667,\"<0\")","v":0}]
[null,null,null,null,null,null,null,null,null,null,null,null,null,null,"الرصيد طرف العميل",{"$f":"P2+P3+P4","v":0}]
["الشهر","التاريخ",null,null,null,"م","الصنف","كود المنتج","المنتج","المنصرف","الرصيــد","ملاحظات"]
[null,null,null,"رصيد أول المدة",null,null,null,null,null,null,null,null,null,null,null,{"$f":"SUMIF($G$8:$G$67,$O$7,$J$8:$J$67)","v":0},{"$f":"SUMIF($G$68:$G$123,$O$7,$J$68:$J$123)","v":0},{"$f":"SUMIF($G$124:$G$179,$O$7,$J$124:$J$179)","v":0},{"$f":"SUMIF($G$180:$G$235,$O$7,$J$180:$J$235)","v":0},{"$f":"SUMIF($G$236:$G$292,$O$7,$J$236:$J$292)","v":0},{"$f":"SUMIF($G$293:$G$345,$O$7,$J$293:$J$345)","v":0},{"$f":"SUMIF($G$346:$G$399,$O$7,$J$346:$J$399)","v":0},{"$f":"SUMIF($G$400:$G$450,$O$7,$J$400:$J$450)","v":0},{"$f":"SUMIF($G$451:$G$504,$O$7,$J$451:$J$504)","v":0},{"$f":"SUMIF($G$505:$G$557,$O$7,$J$505:$J$557)","v":0},{"$f":"SUMIF($G$558:$G$611,$O$7,$J$558:$J$611)","v":0},{"$f":"SUMIF($G$612:$G$667,$O$7,$J$612:$J$667)","v":0},{"$f":"SUM(P7:AA7)","v":0}]
[null,null,null,null,null,null,null,null,{"$f":"IF(H8>0,VLOOKUP(H8,prd,3,0),\"\")","v":""},{"$f":"IF(F8>0,C8*D8*E8,0)","v":0},{"$f":"K7+J8","v":0},null,null,null,null,{"$f":"SUMIF($G$8:$G$67,$O$8,$J$8:$J$67)","v":0},{"$f":"SUMIF($G$68:$G$123,$O$8,$J$68:$J$123)","v":0},{"$f":"SUMIF($G$124:$G$179,$O$8,$J$124:$J$179)","v":0},{"$f":"SUMIF($G$180:$G$235,$O$8,$J$180:$J$235)","v":0},{"$f":"SUMIF($G$236:$G$292,$O$8,$J$236:$J$292)","v":0},{"$f":"SUMIF($G$293:$G$345,$O$8,$J$293:$J$345)","v":0},{"$f":"SUMIF($G$346:$G$399,$O$8,$J$346:$J$399)","v":0},{"$f":"SUMIF($G$400:$G$450,$O$8,$J$400:$J$450)","v":0},{"$f":"SUMIF($G$451:$G$504,$O$8,$J$451:$J$504)","v":0},{"$f":"SUMIF($G$505:$G$557,$O$8,$J$505:$J$557)","v":0},{"$f":"SUMIF($G$558:$G$611,$O$8,$J$558:$J$611)","v":0},{"$f":"SUMIF($G$612:$G$667,$O$8,$J$612:$J$667)","v":0},{"$f":"SUM(P8:AA8)","v":0}]
[null,null,null,null,null,null,null,null,"",0,{"$f":"K8+J9","v":0},null,null,null,null,{"$f":"SUMIF($G$8:$G$67,$O$9,$J$8:$J$67)","v":0},{"$f":"SUMIF($G$68:$G$123,$O$9,$J$68:$J$123)","v":0},{"$f":"SUMIF($G$124:$G$179,$O$9,$J$124:$J$179)","v":0},{"$f":"SUMIF($G$180:$G$235,$O$9,$J$180:$J$235)","v":0},{"$f":"SUMIF($G$236:$G$292,$O$9,$J$236:$J$292)","v":0},{"$f":"SUMIF($G$293:$G$345,$O$9,$J$293:$J$345)","v":0},{"$f":"SUMIF($G$346:$G$399,$O$9,$J$346:$J$399)","v":0},{"$f":"SUMIF($G$400:$G$450,$O$9,$J$400:$J$450)","v":0},{"$f":"SUMIF($G$451:$G$504,$O$9,$J$451:$J$504)","v":0},{"$f":"SUMIF($G$505:$G$557,$O$9,$J$505:$J$557)","v":0},{"$f":"SUMIF($G$558:$G$611,$O$9,$J$558:$J$611)","v":0},{"$f":"SUMIF($G$612:$G$667,$O$9,$J$612:$J$667)","v":0},{"$f":"SUM(P9:AA9)","v":0}]
[null,null,null,null,null,null,null,null,"",0,0,null,null,null,null,{"$f":"SUMIF($G$8:$G$67,$O$10,$J$8:$J$67)","v":0},{"$f":"SUMIF($G$68:$G$123,$O$10,$J$68:$J$123)","v":0},{"$f":"SUMIF($G$124:$G$179,$O$10,$J$124:$J$179)","v":0},{"$f":"SUMIF($G$180:$G$235,$O$10,$J$180:$J$235)","v":0},{"$f":"SUMIF($G$236:$G$292,$O$10,$J$236:$J$292)","v":0},{"$f":"SUMIF($G$293:$G$345,$O$10,$J$293:$J$345)","v":0},{"$f":"SUMIF($G$346:$G$399,$O$10,$J$346:$J$399)","v":0},{"$f":"SUMIF($G$400:$G$450,$O$10,$J$400:$J$450)","v":0},{"$f":"SUMIF($G$451:$G$504,$O$10,$J$451:$J$504)","v":0},{"$f":"SUMIF($G$505:$G$557,$O$10,$J$505:$J$557)","v":0},{"$f":"SUMIF($G$558:$G$611,$O$10,$J$558:$J$611)","v":0},{"$f":"SUMIF($G$612:$G$667,$O$10,$J$612:$J$667)","v":0},{"$f":"SUM(P10:AA10)","v":0}]
[null,null,null,null,null,null,null,null,"",0,0,null,"كود المنتج","أوامر توريد","المنتج","يناير","فبراير","مارس","أبريل","مايو","يونيو","يوليو","أغسطس","سبتمبر","أكتوبر","نوفمبر","ديسمبر","الإجمالى","إجمالي أوامر"]
[null,null,null,null,null,null,null,null,"",0,0,null,100,{"$f":"AC12-AB12","v":50},{"$f":"VLOOKUP(M12,prod,2,0)","v":{"$error":"#N/A"}},{"$f":"SUMIFS($J$8:$J$667,$A$8:$A$667,$P$11,$I$8:$I$667,O12)","v":0},{"$f":"SUMIFS($J$8:$J$667,$A$8:$A$667,$Q$11,$I$8:$I$667,O12)","v":0},{"$f":"SUMIFS($J$8:$J$667,$A$8:$A$667,$R$11,$I$8:$I$667,O12)","v":0},{"$f":"SUMIFS($J$8:$J$667,$A$8:$A$667,$S$11,$I$8:$I$667,O12)","v":0},{"$f":"SUMIFS($J$8:$J$667,$A$8:$A$667,$T$11,$I$8:$I$667,O12)","v":0},{"$f":"SUMIFS($J$8:$J$667,$A$8:$A$667,$U$11,$I$8:$I$667,O12)","v":0},{"$f":"SUMIFS($J$8:$J$667,$A$8:$A$667,$V$11,$I$8:$I$667,O12)","v":0},{"$f":"SUMIFS($J$8:$J$667,$A$8:$A$667,$W$11,$I$8:$I$667,O12)","v":0},{"$f":"SUMIFS($J$8:$J$667,$A$8:$A$667,$X$11,$I$8:$I$667,O12)","v":0},{"$f":"SUMIFS($J$8:$J$667,$A$8:$A$667,$Y$11,$I$8:$I$667,O12)","v":0},{"$f":"SUMIFS($J$8:$J$667,$A$8:$A$667,$Z$11,$I$8:$I$667,O12)","v":0},50,{"$f":"SUM(P12:AA12)","v":50},{"$f":"SUM(AD12:BR12)","v":100},100]
[null,null,null,null,null,null,null,null,"",0,0,null,null,0,{"$f":"VLOOKUP(M13,prod,2,0)","v":0},{"$f":"SUMIFS($J$8:$J$667,$A$8:$A$667,$P$11,$I$8:$I$667,O13)","v":0},{"$f":"SUMIFS($J$8:$J$667,$A$8:$A$667,$Q$11,$I$8:$I$667,O13)","v":0},{"$f":"SUMIFS($J$8:$J$667,$A$8:$A$667,$R$11,$I$8:$I$667,O13)","v":0},{"$f":"SUMIFS($J$8:$J$667,$A$8:$A$667,$S$11,$I$8:$I$667,O13)","v":0},{"$f":"SUMIFS($J$8:$J$667,$A$8:$A$667,$T$11,$I$8:$I$667,O13)","v":0},{"$f":"SUMIFS($J$8:$J$667,$A$8:$A$667,$U$11,$I$8:$I$667,O13)","v":0},{"$f":"SUMIFS($J$8:$J$667,$A$8:$A$667,$V$11,$I$8:$I$667,O13)","v":0},{"$f":"SUMIFS($J$8:$J$667,$A$8:$A$667,$W$11,$I$8:$I$667,O13)","v":0},{"$f":"SUMIFS($J$8:$J$667,$A$8:$A$667,$X$11,$I$8:$I$667,O13)","v":0},{"$f":"SUMIFS($J$8:$J$667,$A$8:$A$667,$Y$11,$I$8:$I$667,O13)","v":0},{"$f":"SUMIFS($J$8:$J$667,$A$8:$A$667,$Z$11,$I$8:$I$667,O13)","v":0},{"$f":"SUMIFS($J$8:$J$667,$A$8:$A$667,$AA$11,$I$8:$I$667,O13)","v":0},{"$f":"SUM(P13:AA13)","v":0},{"$f":"SUM(AD13:BR13)","v":0}]
[null,null,null,null,null,null,null,null,"",0,0,null,null,0,0,0,0,0,0,0,0,0,0,0,0,0,0,0,0]
[null,null,null,null,null,null,null,null,"",0,0,null,null,0,0,0,0,0,0,0,0,0,0,0,0,0,0,0,0]
[null,null,null,null,null,null,null,null,"",0,0,null,null,0,0,0,0,0,0,0,0,0,0,0,0,0,0,0,0]
[null,null,null,null,null,null,null,null,"",0,0,null,null,0,0,0,0,0,0,0,0,0,0,0,0,0,0,0,0]
[null,null,null,null,null,null,null,null,"",0,0,null,null,0,0,0,0,0,0,0,0,0,0,0,0,0,0,0,0]
[null,null,null,null,null,null,null,null,"",0,0,null,null,0,0,0,0,0,0,0,0,0,0,0,0,0,0,0,0]
[null,null,null,null,null,null,null,null,"",0,0,null,null,0,0,0,0,0,0,0,0,0,0,0,0,0,0,0,0]
[null,null,null,null,null,null,null,null,"",0,0,null,null,0,0,0,0,0,0,0,0,0,0,0,0,0,0,0,0]
[null,null,null,null,null,null,null,null,"",0,0,null,null,0,0,0,0,0,0,0,0,0,0,0,0,0,0,0,0]
[null,null,null,null,null,null,null,null,"",0,0,null,null,0,0,0,0,0,0,0,0,0,0,0,0,0,0,0,0]
[null,null,null,null,null,null,null,null,"",0,0,null,null,0,0,0,0,0,0,0,0,0,0,0,0,0,0,0,0]
[null,null,null,null,null,null,null,null,"",0,0,null,null,0,0,0,0,0,0,0,0,0,0,0,0,0,0,0,0]
[null,null,null,null,null,null,null,null,"",0,0,null,null,0,0,0,0,0,0,0,0,0,0,0,0,0,0,0,0]
[null,null,null,null,null,null,null,null,"",0,0,null,null,0,0,0,0,0,0,0,0,0,0,0,0,0,0,0,0]
[null,null,null,null,null,null,null,null,"",0,0,null,null,0,0,0,0,0,0,0,0,0,0,0,0,0,0,0,0]
[null,null,null,null,null,null,null,null,"",0,0,null,null,0,0,0,0,0,0,0,0,0,0,0,0,0,0,0,0]
[null,null,null,null,null,null,null,null,"",0,0,null,null,0,0,0,0,0,0,0,0,0,0,0,0,0,0,0,0]
[null,null,null,null,null,null,null,null,"",0,0,null,null,0,0,0,0,0,0,0,0,0,0,0,0,0,0,0,0]
[null,null,null,null,null,null,null,null,"",0,0,null,null,0,0,0,0,0,0,0,0,0,0,0,0,0,0,0,0]
[null,null,null,null,null,null,null,null,"",0,0,null,null,0,0,0,0,0,0,0,0,0,0,0,0,0,0,0,0]
[null,null,null,null,null,null,null,null,"",0,0,null,null,0,0,0,0,0,0,0,0,0,0,0,0,0,0,0,0]
[null,null,null,null,null,null,null,null,"",0,0,null,null,0,0,0,0,0,0,0,0,0,0,0,0,0,0,0,0]
[null,null,null,null,null,null,null,null,"",0,0,null,null,0,0,0,0,0,0,0,0,0,0,0,0,0,0,0,0]
[null,null,null,null,null,null,null,null,"",0,0,null,null,0,0,0,0,0,0,0,0,0,0,0,0,0,0,0,0]
[null,null,null,null,null,null,null,null,"",0,0,null,null,0,0,0,0,0,0,0,0,0,0,0,0,0,0,0,0]
[null,null,null,null,null,null,null,null,"",0,0,null,null,0,0,0,0,0,0,0,0,0,0,0,0,0,0,0,0]
[null,null,null,null,null,null,null,null,"",0,0,null,null,0,0,0,0,0,0,0,0,0,0,0,0,0,0,0,0]
[null,null,null,null,null,null,null,null,"",0,0,null,null,0,0,0,0,0,0,0,0,0,0,0,0,0,0,0,0]
[null,null,null,null,null,null,null,null,"",0,0,null,null,0,0,0,0,0,0,0,0,0,0,0,0,0,0,0,0]
[null,null,null,null,null,null,null,null,"",0,0,null,null,0,0,0,0,0,0,0,0,0,0,0,0,0,0,0,0]
[null,null,null,null,null,null,null,null,"",0,0,null,null,0,{"$f":"VLOOKUP(M44,prod,2,0)","v":0},0,0,0,0,0,0,0,0,0,0,0,0,0,0]
[null,null,null,null,null,null,null,null,"",0,0,null,null,0,0,0,0,0,0,0,0,0,0,0,0,0,0,0,0]
[null,null,null,null,null,null,null,null,"",0,0,null,null,0,0,0,0,0,0,0,0,0,0,0,0,0,0,0,0]
[null,null,null,null,null,null,null,null,"",0,0,null,null,0,0,0,0,0,0,0,0,0,0,0,0,0,0,0,0]
[null,null,null,null,null,null,null,null,"",0,0,null,null,0,0,0,0,0,0,0,0,0,0,0,0,0,0,0,0]
[null,null,null,null,null,null,null,null,"",0,0,null,null,0,0,0,0,0,0,0,0,0,0,0,0,0,0,0,0]
[null,null,null,null,null,null,null,null,"",0,0,null,null,0,0,0,0,0,0,0,0,0,0,0,0,0,0,0,0]
[null,null,null,null,null,null,null,null,"",0,0,null,null,0,0,0,0,0,0,0,0,0,0,0,0,0,0,0,0]
[null,null,null,null,null,null,null,null,"",0,0,null,null,0,0,0,0,0,0,0,0,0,0,0,0,0,0,0,0]
[null,null,null,null,null,null,null,null,"",0,0,null,null,0,0,0,0,0,0,0,0,0,0,0,0,0,0,0,0]
[null,null,null,null,null,null,null,null,"",0,0,null,null,0,0,0,0,0,0,0,0,0,0,0,0,0,0,0,0]
[null,null,null,null,null,null,null,null,"",0,0,null,null,0,0,0,0,0,0,0,0,0,0,0,0,0,0,0,0]
[null,null,null,null,null,null,null,null,"",0,0,null,null,0,0,0,0,0,0,0,0,0,0,0,0,0,0,0,0]
[null,null,null,null,null,null,null,null,"",0,0,null,null,0,0,0,0,0,0,0,0,0,0,0,0,0,0,0,0]
[null,null,null,null,null,null,null,null,"",0,0,null,null,0,0,0,0,0,0,0,0,0,0,0,0,0,0,0,0]
[null,null,null,null,null,null,null,null,"",0,0,null,null,0,0,0,0,0,0,0,0,0,0,0,0,0,0,0,0]
[null,null,null,null,null,null,null,null,"",0,0,null,null,0,0,0,0,0,0,0,0,0,0,0,0,0,0,0,0]
[null,null,null,null,null,null,null,null,"",0,0,null,null,0,0,0,0,0,0,0,0,0,0,0,0,0,0,0,0]
[null,null,null,null,null,null,null,null,"",0,0,null,null,0,0,0,0,0,0,0,0,0,0,0,0,0,0,0,0]
[null,null,null,null,null,null,null,null,"",0,0,null,null,0,0,0,0,0,0,0,0,0,0,0,0,0,0,0,0]
[null,null,null,null,null,null,null,null,"",0,0,null,null,0,0,0,0,0,0,0,0,0,0,0,0,0,0,0,0]
[null,null,null,null,null,null,null,null,"",0,0,null,null,0,0,0,0,0,0,0,0,0,0,0,0,0,0,0,0]
[null,null,null,null,null,null,null,null,"",0,0,null,null,0,0,0,0,0,0,0,0,0,0,0,0,0,0,0,0]
[null,null,null,null,null,null,null,null,"",0,0,null,null,0,0,0,0,0,0,0,0,0,0,0,0,0,0,0,0]
[null,null,null,null,null,null,null,null,"",0,0,null,null,0,0,0,0,0,0,0,0,0,0,0,0,0,0,{"$f":"SUM(P68:AA68)","v":0},{"$f":"SUM(AD68:BR68)","v":0}]
[null,null,null,null,null,null,null,null,"",0,0,null,null,0,0,0,0,0,0,0,0,0,0,0,0,0,0,0,0]
[null,null,null,null,null,null,null,null,"",0,0,null,null,0,0,0,0,0,0,0,0,0,0,0,0,0,0,0,0]
[null,null,null,null,null,null,null,null,"",0,0,null,null,0,0,0,0,0,0,0,0,0,0,0,0,0,0,0,0]
[null,null,null,null,null,null,null,null,{"$f":"IF(H72>0,VLOOKUP(H72,prd,3,0),\"\")","v":""},{"$f":"IF(F72>0,C72*D72*E72,0)","v":0},0,null,null,0,0,0,0,0,0,0,0,0,0,0,0,0,0,0,0]
[null,null,null,null,null,null,null,null,"",0,{"$f":"K72+J73","v":0},null,null,0,0,0,0,0,0,0,0,0,0,0,0,0,0,0,0]
[null,null,null,null,null,null,null,null,"",0,0,null,null,0,0,0,0,0,0,0,0,0,0,0,0,0,0,0,0]
[null,null,null,null,null,null,null,null,"",0,0,null,null,0,0,0,0,0,0,0,0,0,0,0,0,0,0,0,0]
[null,null,null,null,null,null,null,null,"",0,0,null,null,{"$f":"AC76-AB76","v":0},{"$f":"VLOOKUP(M76,prod,2,0)","v":0},0,0,0,0,0,0,0,0,0,0,0,0,0,0]
[null,null,null,null,null,null,null,null,"",0,0,null,null,0,0,{"$f":"SUMIFS($J$8:$J$667,$A$8:$A$667,$P$11,$I$8:$I$667,O77)","v":0},{"$f":"SUMIFS($J$8:$J$667,$A$8:$A$667,$Q$11,$I$8:$I$667,O77)","v":0},{"$f":"SUMIFS($J$8:$J$667,$A$8:$A$667,$R$11,$I$8:$I$667,O77)","v":0},{"$f":"SUMIFS($J$8:$J$667,$A$8:$A$667,$S$11,$I$8:$I$667,O77)","v":0},{"$f":"SUMIFS($J$8:$J$667,$A$8:$A$667,$T$11,$I$8:$I$667,O77)","v":0},{"$f":"SUMIFS($J$8:$J$667,$A$8:$A$667,$U$11,$I$8:$I$667,O77)","v":0},{"$f":"SUMIFS($J$8:$J$667,$A$8:$A$667,$V$11,$I$8:$I$667,O77)","v":0},{"$f":"SUMIFS($J$8:$J$667,$A$8:$A$667,$W$11,$I$8:$I$667,O77)","v":0},{"$f":"SUMIFS($J$8:$J$667,$A$8:$A$667,$X$11,$I$8:$I$667,O77)","v":0},{"$f":"SUMIFS($J$8:$J$667,$A$8:$A$667,$Y$11,$I$8:$I$667,O77)","v":0},{"$f":"SUMIFS($J$8:$J$667,$A$8:$A$667,$Z$11,$I$8:$I$667,O77)","v":0},{"$f":"SUMIFS($J$8:$J$667,$A$8:$A$667,$AA$11,$I$8:$I$667,O77)","v":0},0,0]
[null,null,null,null,null,null,null,null,"",0,0,null,null,0,0,0,0,0,0,0,0,0,0,0,0,0,0,0,0]
[null,null,null,null,null,null,null,null,"",0,0,null,null,0,0,0,0,0,0,0,0,0,0,0,0,0,0,0,0]
[null,null,null,null,null,null,null,null,"",0,0,null,null,0,0,0,0,0,0,0,0,0,0,0,0,0,0,0,0]
[null,null,null,null,null,null,null,null,"",0,0,null,null,0,0,0,0,0,0,0,0,0,0,0,0,0,0,0,0]
[null,null,null,null,null,null,null,null,"",0,0,null,null,0,0,0,0,0,0,0,0,0,0,0,0,0,0,0,0]
[null,null,null,null,null,null,null,null,"",0,0,null,null,0,0,0,0,0,0,0,0,0,0,0,0,0,0,0,0]
[null,null,null,null,null,null,null,null,"",0,0,null,null,0,0,0,0,0,0,0,0,0,0,0,0,0,0,0,0]
[null,null,null,null,null,null,null,null,"",0,0,null,null,0,0,0,0,0,0,0,0,0,0,0,0,0,0,0,0]
[null,null,null,null,null,null,null,null,"",0,0,null,null,0,0,0,0,0,0,0,0,0,0,0,0,0,0,0,0]
[null,null,null,null,null,null,null,null,"",0,0,null,null,0,0,0,0,0,0,0,0,0,0,0,0,0,0,0,0]
[null,null,null,null,null,null,null,null,"",0,0,null,null,0,0,0,0,0,0,0,0,0,0,0,0,0,0,0,0]
[null,null,null,null,null,null,null,null,"",0,0,null,null,0,0,0,0,0,0,0,0,0,0,0,0,0,0,0,0]
[null,null,null,null,null,null,null,null,"",0,0,null,null,0,0,0,0,0,0,0,0,0,0,0,0,0,0,0,0]
[null,null,null,null,null,null,null,null,"",0,0,null,null,0,0,0,0,0,0,0,0,0,0,0,0,0,0,0,0]
[null,null,null,null,null,null,null,null,"",0,0,null,null,0,0,0,0,0,0,0,0,0,0,0,0,0,0,0,0]
[null,null,null,null,null,null,null,null,"",0,0,null,null,0,0,0,0,0,0,0,0,0,0,0,0,0,0,0,0]
[null,null,null,null,null,null,null,null,"",0,0,null,null,0,0,0,0,0,0,0,0,0,0,0,0,0,0,0,0]
[null,null,null,null,null,null,null,null,"",0,0,null,null,0,0,0,0,0,0,0,0,0,0,0,0,0,0,0,0]
[null,null,null,null,null,null,null,null,"",0,0,null,null,0,0,0,0,0,0,0,0,0,0,0,0,0,0,0,0]
[null,null,null,null,null,null,null,null,"",0,0,null,null,0,0,0,0,0,0,0,0,0,0,0,0,0,0,0,0]
[null,null,null,null,null,null,null,null,"",0,0,null,null,0,0,0,0,0,0,0,0,0,0,0,0,0,0,0,0]
[null,null,null,null,null,null,null,null,"",0,0,null,null,0,0,0,0,0,0,0,0,0,0,0,0,0,0,0,0]
[null,null,null,null,null,null,null,null,"",0,0,null,null,0,0,0,0,0,0,0,0,0,0,0,0,0,0,0,0]
[null,null,null,null,null,null,null,null,"",0,0,null,null,0,0,0,0,0,0,0,0,0,0,0,0,0,0,0,0]
[null,null,null,null,null,null,null,null,"",0,0,null,null,0,0,0,0,0,0,0,0,0,0,0,0,0,0,0,0]
[null,null,null,null,null,null,null,null,"",0,0,null,null,0,0,0,0,0,0,0,0,0,0,0,0,0,0,0,0]
[null,null,null,null,null,null,null,null,"",0,0,null,null,0,0,0,0,0,0,0,0,0,0,0,0,0,0,0,0]
[null,null,null,null,null,null,null,null,"",0,0,null,null,0,0,0,0,0,0,0,0,0,0,0,0,0,0,0,0]
[null,null,null,null,null,null,null,null,"",0,0,null,null,0,0,0,0,0,0,0,0,0,0,0,0,0,0,0,0]
[null,null,null,null,null,null,null,null,"",0,0,null,null,0,0,0,0,0,0,0,0,0,0,0,0,0,0,0,0]
[null,null,null,null,null,null,null,null,"",0,0,null,null,0,{"$f":"VLOOKUP(M108,prod,2,0)","v":0},0,0,0,0,0,0,0,0,0,0,0,0,0,0]
[null,null,null,null,null,null,null,null,"",0,0,null,null,0,0,0,0,0,0,0,0,0,0,0,0,0,0,0,0]
[null,null,null,null,null,null,null,null,"",0,0,null,null,0,0,0,0,0,0,0,0,0,0,0,0,0,0,0,0]
[null,null,null,null,null,null,null,null,"",0,0,null,null,0,0,0,0,0,0,0,0,0,0,0,0,0,0,0,0]
[null,null,null,null,null,null,null,null,"",0,0,null,null,0,0,0,0,0,0,0,0,0,0,0,0,0,0,0,0]
[null,null,null,null,null,null,null,null,"",0,0,null,null,0,0,0,0,0,0,0,0,0,0,0,0,0,0,0,0]
[null,null,null,null,null,null,null,null,"",0,0,null,null,0,0,0,0,0,0,0,0,0,0,0,0,0,0,0,0]
[null,null,null,null,null,null,null,null,"",0,0,null,null,0,0,0,0,0,0,0,0,0,0,0,0,0,0,0,0]
[null,null,null,null,null,null,null,null,"",0,0,null,null,0,0,0,0,0,0,0,0,0,0,0,0,0,0,0,0]
[null,null,null,null,null,null,null,null,"",0,0,null,null,0,0,0,0,0,0,0,0,0,0,0,0,0,0,0,0]
[null,null,null,null,null,null,null,null,"",0,0,null,null,0,0,0,0,0,0,0,0,0,0,0,0,0,0,0,0]
[null,null,null,null,null,null,null,null,"",0,0,null,null,0,0,0,0,0,0,0,0,0,0,0,0,0,0,0,0]
[null,null,null,null,null,null,null,null,"",0,0,null,null,0,0,0,0,0,0,0,0,0,0,0,0,0,0,0,0]
[null,null,null,null,null,null,null,null,"",0,0,null,null,0,0,0,0,0,0,0,0,0,0,0,0,0,0,0,0]
[null,null,null,null,null,null,null,null,"",0,0,null,null,0,0,0,0,0,0,0,0,0,0,0,0,0,0,0,0]
[null,null,null,null,null,null,null,null,"",0,0,null,null,0,0,0,0,0,0,0,0,0,0,0,0,0,0,0,0]
[null,null,null,null,null,null,null,null,"",0,0,null,null,0,0,0,0,0,0,0,0,0,0,0,0,0,0,0,0]
[null,null,null,null,null,null,null,null,"",0,0,null,null,0,0,0,0,0,0,0,0,0,0,0,0,0,0,0,0]
[null,null,null,null,null,null,null,null,"",0,0,null,null,0,0,0,0,0,0,0,0,0,0,0,0,0,0,0,0]
[null,null,null,null,null,null,null,null,"",0,0,null,null,0,0,0,0,0,0,0,0,0,0,0,0,0,0,0,0]
[null,null,null,null,null,null,null,null,"",0,0,null,null,0,0,0,0,0,0,0,0,0,0,0,0,0,0,0,0]
[null,null,null,null,null,null,null,null,"",0,0,null,null,0,0,0,0,0,0,0,0,0,0,0,0,0,0,0,0]
[null,null,null,null,null,null,null,null,"",0,0,null,null,0,0,0,0,0,0,0,0,0,0,0,0,0,0,0,0]
[null,null,null,null,null,null,null,null,"",0,0,null,null,0,0,0,0,0,0,0,0,0,0,0,0,0,0,0,0]
[null,null,null,null,null,null,null,null,"",0,0,null,null,0,0,0,0,0,0,0,0,0,0,0,0,0,0,{"$f":"SUM(P132:AA132)","v":0},{"$f":"SUM(AD132:BR132)","v":0}]
[null,null,null,null,null,null,null,null,"",0,0,null,null,0,0,0,0,0,0,0,0,0,0,0,0,0,0,0,0]
[null,null,null,null,null,null,null,null,"",0,0,null,null,0,0,0,0,0,0,0,0,0,0,0,0,0,0,0,0]
[null,null,null,null,null,null,null,null,"",0,0,null,null,0,0,0,0,0,0,0,0,0,0,0,0,0,0,0,0]
[null,null,null,null,null,null,null,null,{"$f":"IF(H136>0,VLOOKUP(H136,prd,3,0),\"\")","v":""},{"$f":"IF(F136>0,C136*D136*E136,0)","v":0},0,null,null,0,0,0,0,0,0,0,0,0,0,0,0,0,0,0,0]
[null,null,null,null,null,null,null,null,"",0,{"$f":"K136+J137","v":0},null,null,0,0,0,0,0,0,0,0,0,0,0,0,0,0,0,0]
[null,null,null,null,null,null,null,null,"",0,0,null,null,0,0,0,0,0,0,0,0,0,0,0,0,0,0,0,0]
[null,null,null,null,null,null,null,null,"",0,0,null,null,0,0,0,0,0,0,0,0,0,0,0,0,0,0,0,0]
[null,null,null,null,null,null,null,null,"",0,0,null,null,{"$f":"AC140-AB140","v":0},{"$f":"VLOOKUP(M140,prod,2,0)","v":0},0,0,0,0,0,0,0,0,0,0,0,0,0,0]
[null,null,null,null,null,null,null,null,"",0,0,null,null,0,0,{"$f":"SUMIFS($J$8:$J$667,$A$8:$A$667,$P$11,$I$8:$I$667,O141)","v":0},{"$f":"SUMIFS($J$8:$J$667,$A$8:$A$667,$Q$11,$I$8:$I$667,O141)","v":0},{"$f":"SUMIFS($J$8:$J$667,$A$8:$A$667,$R$11,$I$8:$I$667,O141)","v":0},{"$f":"SUMIFS($J$8:$J$667,$A$8:$A$667,$S$11,$I$8:$I$667,O141)","v":0},{"$f":"SUMIFS($J$8:$J$667,$A$8:$A$667,$T$11,$I$8:$I$667,O141)","v":0},{"$f":"SUMIFS($J$8:$J$667,$A$8:$A$667,$U$11,$I$8:$I$667,O141)","v":0},{"$f":"SUMIFS($J$8:$J$667,$A$8:$A$667,$V$11,$I$8:$I$667,O141)","v":0},{"$f":"SUMIFS($J$8:$J$667,$A$8:$A$667,$W$11,$I$8:$I$667,O141)","v":0},{"$f":"SUMIFS($J$8:$J$667,$A$8:$A$667,$X$11,$I$8:$I$667,O141)","v":0},{"$f":"SUMIFS($J$8:$J$667,$A$8:$A$667,$Y$11,$I$8:$I$667,O141)","v":0},{"$f":"SUMIFS($J$8:$J$667,$A$8:$A$667,$Z$11,$I$8:$I$667,O141)","v":0},{"$f":"SUMIFS($J$8:$J$667,$A$8:$A$667,$AA$11,$I$8:$I$667,O141)","v":0},0,0]
[null,null,null,null,null,null,null,null,"",0,0,null,null,0,0,0,0,0,0,0,0,0,0,0,0,0,0,0,0]
[null,null,null,null,null,null,null,null,"",0,0,null,null,0,0,0,0,0,0,0,0,0,0,0,0,0,0,0,0]
[null,null,null,null,null,null,null,null,"",0,0,null,null,0,0,0,0,0,0,0,0,0,0,0,0,0,0,0,0]
[null,null,null,null,null,null,null,null,"",0,0,null,null,0,0,0,0,0,0,0,0,0,0,0,0,0,0,0,0]
[null,null,null,null,null,null,null,null,"",0,0,null,null,0,0,0,0,0,0,0,0,0,0,0,0,0,0,0,0]
[null,null,null,null,null,null,null,null,"",0,0,null,null,0,0,0,0,0,0,0,0,0,0,0,0,0,0,0,0]
[null,null,null,null,null,null,null,null,"",0,0,null,null,0,0,0,0,0,0,0,0,0,0,0,0,0,0,0,0]
[null,null,null,null,null,null,null,null,"",0,0,null,null,0,0,0,0,0,0,0,0,0,0,0,0,0,0,0,0]
[null,null,null,null,null,null,null,null,"",0,0,null,null,0,0,0,0,0,0,0,0,0,0,0,0,0,0,0,0]
[null,null,null,null,null,null,null,null,"",0,0,null,null,0,0,0,0,0,0,0,0,0,0,0,0,0,0,0,0]
[null,null,null,null,null,null,null,null,"",0,0,null,null,0,0,0,0,0,0,0,0,0,0,0,0,0,0,0,0]
[null,null,null,null,null,null,null,null,"",0,0,null,null,0,0,0,0,0,0,0,0,0,0,0,0,0,0,0,0]
[null,null,null,null,null,null,null,null,"",0,0,null,null,0,0,0,0,0,0,0,0,0,0,0,0,0,0,0,0]
[null,null,null,null,null,null,null,null,"",0,0,null,null,0,0,0,0,0,0,0,0,0,0,0,0,0,0,0,0]
[null,null,null,null,null,null,null,null,"",0,0,null,null,0,0,0,0,0,0,0,0,0,0,0,0,0,0,0,0]
[null,null,null,null,null,null,null,null,"",0,0,null,null,0,0,0,0,0,0,0,0,0,0,0,0,0,0,0,0]
[null,null,null,null,null,null,null,null,"",0,0,null,null,0,0,0,0,0,0,0,0,0,0,0,0,0,0,0,0]
[null,null,null,null,null,null,null,null,"",0,0,null,null,0,0,0,0,0,0,0,0,0,0,0,0,0,0,0,0]
[null,null,null,null,null,null,null,null,"",0,0,null,null,0,0,0,0,0,0,0,0,0,0,0,0,0,0,0,0]
[null,null,null,null,null,null,null,null,"",0,0,null,null,0,0,0,0,0,0,0,0,0,0,0,0,0,0,0,0]
[null,null,null,null,null,null,null,null,"",0,0,null,null,0,0,0,0,0,0,0,0,0,0,0,0,0,0,0,0]
[null,null,null,null,null,null,null,null,"",0,0,null,null,0,0,0,0,0,0,0,0,0,0,0,0,0,0,0,0]
[null,null,null,null,null,null,null,null,"",0,0,null,null,0,0,0,0,0,0,0,0,0,0,0,0,0,0,0,0]
[null,null,null,null,null,null,null,null,"",0,0,null,null,0,0,0,0,0,0,0,0,0,0,0,0,0,0,0,0]
[null,null,null,null,null,null,null,null,"",0,0,null,null,0,0,0,0,0,0,0,0,0,0,0,0,0,0,0,0]
[null,null,null,null,null,null,null,null,"",0,0,null,null,0,0,0,0,0,0,0,0,0,0,0,0,0,0,0,0]
[null,null,null,null,null,null,null,null,"",0,0,null,null,0,0,0,0,0,0,0,0,0,0,0,0,0,0,0,0]
[null,null,null,null,null,null,null,null,"",0,0,null,null,0,0,0,0,0,0,0,0,0,0,0,0,0,0,0,0]
[null,null,null,null,null,null,null,null,"",0,0,null,null,0,0,0,0,0,0,0,0,0,0,0,0,0,0,0,0]
[null,null,null,null,null,null,null,null,"",0,0,null,null,0,0,0,0,0,0,0,0,0,0,0,0,0,0,0,0]
[null,null,null,null,null,null,null,null,"",0,0,null,null,0,{"$f":"VLOOKUP(M172,prod,2,0)","v":0},0,0,0,0,0,0,0,0,0,0,0,0,0,0]
[null,null,null,null,null,null,null,null,"",0,0,null,null,0,0,0,0,0,0,0,0,0,0,0,0,0,0,0,0]
[null,null,null,null,null,null,null,null,"",0,0,null,null,0,0,0,0,0,0,0,0,0,0,0,0,0,0,0,0]
[null,null,null,null,null,null,null,null,"",0,0,null,null,0,0,0,0,0,0,0,0,0,0,0,0,0,0,0,0]
[null,null,null,null,null,null,null,null,"",0,0,null,null,0,0,0,0,0,0,0,0,0,0,0,0,0,0,0,0]
[null,null,null,null,null,null,null,null,"",0,0,null,null,0,0,0,0,0,0,0,0,0,0,0,0,0,0,0,0]
[null,null,null,null,null,null,null,null,"",0,0,null,null,0,0,0,0,0,0,0,0,0,0,0,0,0,0,0,0]
[null,null,null,null,null,null,null,null,"",0,0,null,null,0,0,0,0,0,0,0,0,0,0,0,0,0,0,0,0]
[null,null,null,null,null,null,null,null,"",0,0,null,null,0,0,0,0,0,0,0,0,0,0,0,0,0,0,0,0]
[null,null,null,null,null,null,null,null,"",0,0,null,null,0,0,0,0,0,0,0,0,0,0,0,0,0,0,0,0]
[null,null,null,null,null,null,null,null,"",0,0,null,null,0,0,0,0,0,0,0,0,0,0,0,0,0,0,0,0]
[null,null,null,null,null,null,null,null,"",0,0,null,null,0,0,0,0,0,0,0,0,0,0,0,0,0,0,0,0]
[null,null,null,null,null,null,null,null,"",0,0,null,null,0,0,0,0,0,0,0,0,0,0,0,0,0,0,0,0]
[null,null,null,null,null,null,null,null,"",0,0,null,null,0,0,0,0,0,0,0,0,0,0,0,0,0,0,0,0]
[null,null,null,null,null,null,null,null,"",0,0,null,null,0,0,0,0,0,0,0,0,0,0,0,0,0,0,0,0]
[null,null,null,null,null,null,null,null,"",0,0,null,null,0,0,0,0,0,0,0,0,0,0,0,0,0,0,0,0]
[null,null,null,null,null,null,null,null,"",0,0,null,null,0,0,0,0,0,0,0,0,0,0,0,0,0,0,0,0]
[null,null,null,null,null,null,null,null,"",0,0,null,null,0,0,0,0,0,0,0,0,0,0,0,0,0,0,0,0]
[null,null,null,null,null,null,null,null,"",0,0,null,null,0,0,0,0,0,0,0,0,0,0,0,0,0,0,0,0]
[null,null,null,null,null,null,null,null,"",0,0,null,null,0,0,0,0,0,0,0,0,0,0,0,0,0,0,0,0]
[null,null,null,null,null,null,null,null,"",0,0,null,null,0,0,0,0,0,0,0,0,0,0,0,0,0,0,0,0]
[null,null,null,null,null,null,null,null,"",0,0,null,null,0,0,0,0,0,0,0,0,0,0,0,0,0,0,0,0]
[null,null,null,null,null,null,null,null,"",0,0,null,null,0,0,0,0,0,0,0,0,0,0,0,0,0,0,0,0]
[null,null,null,null,null,null,null,null,"",0,0,null,null,0,0,0,0,0,0,0,0,0,0,0,0,0,0,0,0]
[null,null,null,null,null,null,null,null,"",0,0,null,null,0,0,0,0,0,0,0,0,0,0,0,0,0,0,{"$f":"SUM(P196:AA196)","v":0},{"$f":"SUM(AD196:BR196)","v":0}]
[null,null,null,null,null,null,null,null,"",0,0,null,null,0,0,0,0,0,0,0,0,0,0,0,0,0,0,0,0]
[null,null,null,null,null,null,null,null,"",0,0,null,null,0,0,0,0,0,0,0,0,0,0,0,0,0,0,0,0]
[null,null,null,null,null,null,null,null,"",0,0,null,null,0,0,0,0,0,0,0,0,0,0,0,0,0,0,0,0]
[null,null,null,null,null,null,null,null,{"$f":"IF(H200>0,VLOOKUP(H200,prd,3,0),\"\")","v":""},{"$f":"IF(F200>0,C200*D200*E200,0)","v":0},0,null,null,0,0,0,0,0,0,0,0,0,0,0,0,0,0,0,0]
[null,null,null,null,null,null,null,null,"",0,{"$f":"K200+J201","v":0},null,null,0,0,0,0,0,0,0,0,0,0,0,0,0,0,0,0]
[null,null,null,null,null,null,null,null,"",0,0,null,null,0,0,0,0,0,0,0,0,0,0,0,0,0,0,0,0]
[null,null,null,null,null,null,null,null,"",0,0,null,null,0,0,0,0,0,0,0,0,0,0,0,0,0,0,0,0]
[null,null,null,null,null,null,null,null,"",0,0,null,null,{"$f":"AC204-AB204","v":0},0,0,0,0,0,0,0,0,0,0,0,0,0,0,0]
[null,null,null,null,null,null,null,null,"",0,0,null,null,0,0,{"$f":"SUMIFS($J$8:$J$667,$A$8:$A$667,$P$11,$I$8:$I$667,O205)","v":0},{"$f":"SUMIFS($J$8:$J$667,$A$8:$A$667,$Q$11,$I$8:$I$667,O205)","v":0},{"$f":"SUMIFS($J$8:$J$667,$A$8:$A$667,$R$11,$I$8:$I$667,O205)","v":0},{"$f":"SUMIFS($J$8:$J$667,$A$8:$A$667,$S$11,$I$8:$I$667,O205)","v":0},{"$f":"SUMIFS($J$8:$J$667,$A$8:$A$667,$T$11,$I$8:$I$667,O205)","v":0},{"$f":"SUMIFS($J$8:$J$667,$A$8:$A$667,$U$11,$I$8:$I$667,O205)","v":0},{"$f":"SUMIFS($J$8:$J$667,$A$8:$A$667,$V$11,$I$8:$I$667,O205)","v":0},{"$f":"SUMIFS($J$8:$J$667,$A$8:$A$667,$W$11,$I$8:$I$667,O205)","v":0},{"$f":"SUMIFS($J$8:$J$667,$A$8:$A$667,$X$11,$I$8:$I$667,O205)","v":0},{"$f":"SUMIFS($J$8:$J$667,$A$8:$A$667,$Y$11,$I$8:$I$667,O205)","v":0},{"$f":"SUMIFS($J$8:$J$667,$A$8:$A$667,$Z$11,$I$8:$I$667,O205)","v":0},{"$f":"SUMIFS($J$8:$J$667,$A$8:$A$667,$AA$11,$I$8:$I$667,O205)","v":0},0,0]
[null,null,null,null,null,null,null,null,"",0,0,null,null,0,0,{"$f":"SUMIFS($J$8:$J$667,$A$8:$A$667,$P$11,$I$8:$I$667,O206)","v":0},{"$f":"SUMIFS($J$8:$J$667,$A$8:$A$667,$Q$11,$I$8:$I$667,O206)","v":0},{"$f":"SUMIFS($J$8:$J$667,$A$8:$A$667,$R$11,$I$8:$I$667,O206)","v":0},{"$f":"SUMIFS($J$8:$J$667,$A$8:$A$667,$S$11,$I$8:$I$667,O206)","v":0},{"$f":"SUMIFS($J$8:$J$667,$A$8:$A$667,$T$11,$I$8:$I$667,O206)","v":0},{"$f":"SUMIFS($J$8:$J$667,$A$8:$A$667,$U$11,$I$8:$I$667,O206)","v":0},{"$f":"SUMIFS($J$8:$J$667,$A$8:$A$667,$V$11,$I$8:$I$667,O206)","v":0},{"$f":"SUMIFS($J$8:$J$667,$A$8:$A$667,$W$11,$I$8:$I$667,O206)","v":0},{"$f":"SUMIFS($J$8:$J$667,$A$8:$A$667,$X$11,$I$8:$I$667,O206)","v":0},{"$f":"SUMIFS($J$8:$J$667,$A$8:$A$667,$Y$11,$I$8:$I$667,O206)","v":0},{"$f":"SUMIFS($J$8:$J$667,$A$8:$A$667,$Z$11,$I$8:$I$667,O206)","v":0},{"$f":"SUMIFS($J$8:$J$667,$A$8:$A$667,$AA$11,$I$8:$I$667,O206)","v":0},0,0]
[null,null,null,null,null,null,null,null,"",0,0,null,null,0,0,{"$f":"SUMIFS($J$8:$J$667,$A$8:$A$667,$P$11,$I$8:$I$667,O207)","v":0},{"$f":"SUMIFS($J$8:$J$667,$A$8:$A$667,$Q$11,$I$8:$I$667,O207)","v":0},{"$f":"SUMIFS($J$8:$J$667,$A$8:$A$667,$R$11,$I$8:$I$667,O207)","v":0},{"$f":"SUMIFS($J$8:$J$667,$A$8:$A$667,$S$11,$I$8:$I$667,O207)","v":0},{"$f":"SUMIFS($J$8:$J$667,$A$8:$A$667,$T$11,$I$8:$I$667,O207)","v":0},{"$f":"SUMIFS($J$8:$J$667,$A$8:$A$667,$U$11,$I$8:$I$667,O207)","v":0},{"$f":"SUMIFS($J$8:$J$667,$A$8:$A$667,$V$11,$I$8:$I$667,O207)","v":0},{"$f":"SUMIFS($J$8:$J$667,$A$8:$A$667,$W$11,$I$8:$I$667,O207)","v":0},{"$f":"SUMIFS($J$8:$J$667,$A$8:$A$667,$X$11,$I$8:$I$667,O207)","v":0},{"$f":"SUMIFS($J$8:$J$667,$A$8:$A$667,$Y$11,$I$8:$I$667,O207)","v":0},{"$f":"SUMIFS($J$8:$J$667,$A$8:$A$667,$Z$11,$I$8:$I$667,O207)","v":0},{"$f":"SUMIFS($J$8:$J$667,$A$8:$A$667,$AA$11,$I$8:$I$667,O207)","v":0},0,0]
[null,null,null,null,null,null,null,null,"",0,0,null,null,0,0,{"$f":"SUMIFS($J$8:$J$667,$A$8:$A$667,$P$11,$I$8:$I$667,O208)","v":0},{"$f":"SUMIFS($J$8:$J$667,$A$8:$A$667,$Q$11,$I$8:$I$667,O208)","v":0},{"$f":"SUMIFS($J$8:$J$667,$A$8:$A$667,$R$11,$I$8:$I$667,O208)","v":0},{"$f":"SUMIFS($J$8:$J$667,$A$8:$A$667,$S$11,$I$8:$I$667,O208)","v":0},{"$f":"SUMIFS($J$8:$J$667,$A$8:$A$667,$T$11,$I$8:$I$667,O208)","v":0},{"$f":"SUMIFS($J$8:$J$667,$A$8:$A$667,$U$11,$I$8:$I$667,O208)","v":0},{"$f":"SUMIFS($J$8:$J$667,$A$8:$A$667,$V$11,$I$8:$I$667,O208)","v":0},{"$f":"SUMIFS($J$8:$J$667,$A$8:$A$667,$W$11,$I$8:$I$667,O208)","v":0},{"$f":"SUMIFS($J$8:$J$667,$A$8:$A$667,$X$11,$I$8:$I$667,O208)","v":0},{"$f":"SUMIFS($J$8:$J$667,$A$8:$A$667,$Y$11,$I$8:$I$667,O208)","v":0},{"$f":"SUMIFS($J$8:$J$667,$A$8:$A$667,$Z$11,$I$8:$I$667,O208)","v":0},{"$f":"SUMIFS($J$8:$J$667,$A$8:$A$667,$AA$11,$I$8:$I$667,O208)","v":0},0,0]
[null,null,null,null,null,null,null,null,"",0,0,null,null,-50,"الإجمالى",{"$f":"SUM(P12:P208)","v":0},0,0,0,0,0,0,0,0,0,0,50,50]
[null,null,null,null,null,null,null,null,"",0,0,null,null,0]
[null,null,null,null,null,null,null,null,"",0,0,null,null,0]
[null,null,null,null,null,null,null,null,"",0,0,null,null,0]
[null,null,null,null,null,null,null,null,"",0,0,null,null,0]
[null,null,null,null,null,null,null,null,"",0,0,null,null,0]
[null,null,null,null,null,null,null,null,"",0,0,null,null,0]
[null,null,null,null,null,null,null,null,"",0,0,null,null,0]
[null,null,null,null,null,null,null,null,"",0,0,null,null,0]
[null,null,null,null,null,null,null,null,"",0,0,null,null,0]
[null,null,null,null,null,null,null,null,"",0,0,null,null,0]
[null,null,null,null,null,null,null,null,"",0,0,null,null,0]
[null,null,null,null,null,null,null,null,"",0,0,null,null,0]
[null,null,null,null,null,null,null,null,"",0,0,null,null,0]
[null,null,null,null,null,null,null,null,"",0,0,null,null,0]
[null,null,null,null,null,null,null,null,"",0,0,null,null,0]
[null,null,null,null,null,null,null,null,"",0,0,null,null,0]
[null,null,null,null,null,null,null,null,"",0,0,null,null,0]
[null,null,null,null,null,null,null,null,"",0,0,null,null,0]
[null,null,null,null,null,null,null,null,"",0,0,null,null,0]
[null,null,null,null,null,null,null,null,"",0,0,null,null,0]
[null,null,null,null,null,null,null,null,"",0,0,null,null,0]
[null,null,null,null,null,null,null,null,"",0,0,null,null,0]
[null,null,null,null,null,null,null,null,"",0,0,null,null,0]
[null,null,null,null,null,null,null,null,"",0,0,null,null,0]
[null,null,null,null,null,null,null,null,"",0,0,null,null,0]
[null,null,null,null,null,null,null,null,"",0,0,null,null,0]
[null,null,null,null,null,null,null,null,"",0,0]
[null,null,null,null,null,null,null,null,"",0,0]
[null,null,null,null,null,null,null,null,"",0,0]
[null,null,null,null,null,null,null,null,"",0,0]
[null,null,null,null,null,null,null,null,"",0,0]
[null,null,null,null,null,null,null,null,"",0,0]
[null,null,null,null,null,null,null,null,"",0,0]
[null,null,null,null,null,null,null,null,"",0,0]
[null,null,null,null,null,null,null,null,"",0,0]
[null,null,null,null,null,null,null,null,"",0,0]
[null,null,null,null,null,null,null,null,"",0,0]
[null,null,null,null,null,null,null,null,"",0,0]
[null,null,null,null,null,null,null,null,"",0,0]
[null,null,null,null,null,null,null,null,"",0,0]
[null,null,null,null,null,null,null,null,"",0,0]
[null,null,null,null,null,null,null,null,"",0,0]
[null,null,null,null,null,null,null,null,"",0,0]
[null,null,null,null,null,null,null,null,"",0,0]
[null,null,null,null,null,null,null,null,"",0,0]
[null,null,null,null,null,null,null,null,"",0,0]
[null,null,null,null,null,null,null,null,"",0,0]
[null,null,null,null,null,null,null,null,"",0,0]
[null,null,null,null,null,null,null,null,"",0,0]
[null,null,null,null,null,null,null,null,"",0,0]
[null,null,null,null,null,null,null,null,"",0,0]
[null,null,null,null,null,null,null,null,"",0,0]
[null,null,null,null,null,null,null,null,"",0,0]
[null,null,null,null,null,null,null,null,"",0,0]
[null,null,null,null,null,null,null,null,{"$f":"IF(H264>0,VLOOKUP(H264,prd,3,0),\"\")","v":""},{"$f":"IF(F264>0,C264*D264*E264,0)","v":0},0]
[null,null,null,null,null,null,null,null,"",0,{"$f":"K264+J265","v":0}]
[null,null,null,null,null,null,null,null,"",0,0]
[null,null,null,null,null,null,null,null,"",0,0]
[null,null,null,null,null,null,null,null,"",0,0]
[null,null,null,null,null,null,null,null,"",0,0]
[null,null,null,null,null,null,null,null,"",0,0]
[null,null,null,null,null,null,null,null,"",0,0]
[null,null,null,null,null,null,null,null,"",0,0]
[null,null,null,null,null,null,null,null,"",0,0]
[null,null,null,null,null,null,null,null,"",0,0]
[null,null,null,null,null,null,null,null,"",0,0]
[null,null,null,null,null,null,null,null,"",0,0]
[null,null,null,null,null,null,null,null,"",0,0]
[null,null,null,null,null,null,null,null,"",0,0]
[null,null,null,null,null,null,null,null,"",0,0]
[null,null,null,null,null,null,null,null,"",0,0]
[null,null,null,null,null,null,null,null,"",0,0]
[null,null,null,null,null,null,null,null,"",0,0]
[null,null,null,null,null,null,null,null,"",0,0]
[null,null,null,null,null,null,null,null,"",0,0]
[null,null,null,null,null,null,null,null,"",0,0]
[null,null,null,null,null,null,null,null,"",0,0]
[null,null,null,null,null,null,null,null,"",0,0]
[null,null,null,null,null,null,null,null,"",0,0]
[null,null,null,null,null,null,null,null,"",0,0]
[null,null,null,null,null,null,null,null,"",0,0]
[null,null,null,null,null,null,null,null,"",0,0]
[null,null,null,null,null,null,null,null,"",0,0]
[null,null,null,null,null,null,null,null,"",0,0]
[null,null,null,null,null,null,null,null,"",0,0]
[null,null,null,null,null,null,null,null,"",0,0]
[null,null,null,null,null,null,null,null,"",0,0]
[null,null,null,null,null,null,null,null,"",0,0]
[null,null,null,null,null,null,null,null,"",0,0]
[null,null,null,null,null,null,null,null,"",0,0]
[null,null,null,null,null,null,null,null,"",0,0]
[null,null,null,null,null,null,null,null,"",0,0]
[null,null,null,null,null,null,null,null,"",0,0]
[null,null,null,null,null,null,null,null,"",0,0]
[null,null,null,null,null,null,null,null,"",0,0]
[null,null,null,null,null,null,null,null,"",0,0]
[null,null,null,null,null,null,null,null,"",0,0]
[null,null,null,null,null,null,null,null,"",0,0]
[null,null,null,null,null,null,null,null,"",0,0]
[null,null,null,null,null,null,null,null,"",0,0]
[null,null,null,null,null,null,null,null,"",0,0]
[null,null,null,null,null,null,null,null,"",0,0]
[null,null,null,null,null,null,null,null,"",0,0]
[null,null,null,null,null,null,null,null,"",0,0]
[null,null,null,null,null,null,null,null,"",0,0]
[null,null,null,null,null,null,null,null,"",0,0]
[null,null,null,null,null,null,null,null,"",0,0]
[null,null,null,null,null,null,null,null,"",0,0]
[null,null,null,null,null,null,null,null,"",0,0]
[null,null,null,null,null,null,null,null,"",0,0]
[null,null,null,null,null,null,null,null,"",0,0]
[null,null,null,null,null,null,null,null,"",0,0]
[null,null,null,null,null,null,null,null,"",0,0]
[null,null,null,null,null,null,null,null,"",0,0]
[null,null,null,null,null,null,null,null,"",0,0]
[null,null,null,null,null,null,null,null,"",0,0]
[null,null,null,null,null,null,null,null,"",0,0]
[null,null,null,null,null,null,null,null,"",0,0]
[null,null,null,null,null,null,null,null,{"$f":"IF(H328>0,VLOOKUP(H328,prd,3,0),\"\")","v":""},{"$f":"IF(F328>0,C328*D328*E328,0)","v":0},0]
[null,null,null,null,null,null,null,null,"",0,{"$f":"K328+J329","v":0}]
[null,null,null,null,null,null,null,null,"",0,0]
[null,null,null,null,null,null,null,null,"",0,0]
[null,null,null,null,null,null,null,null,"",0,0]
[null,null,null,null,null,null,null,null,"",0,0]
[null,null,null,null,null,null,null,null,"",0,0]
[null,null,null,null,null,null,null,null,"",0,0]
[null,null,null,null,null,null,null,null,"",0,0]
[null,null,null,null,null,null,null,null,"",0,0]
[null,null,null,null,null,null,null,null,"",0,0]
[null,null,null,null,null,null,null,null,"",0,0]
[null,null,null,null,null,null,null,null,"",0,0]
[null,null,null,null,null,null,null,null,"",0,0]
[null,null,null,null,null,null,null,null,"",0,0]
[null,null,null,null,null,null,null,null,"",0,0]
[null,null,null,null,null,null,null,null,"",0,0]
[null,null,null,null,null,null,null,null,"",0,0]
[null,null,null,null,null,null,null,null,"",0,0]
[null,null,null,null,null,null,null,null,"",0,0]
[null,null,null,null,null,null,null,null,"",0,0]
[null,null,null,null,null,null,null,null,"",0,0]
[null,null,null,null,null,null,null,null,"",0,0]
[null,null,null,null,null,null,null,null,"",0,0]
[null,null,null,null,null,null,null,null,"",0,0]
[null,null,null,null,null,null,null,null,"",0,0]
[null,null,null,null,null,null,null,null,"",0,0]
[null,null,null,null,null,null,null,null,"",0,0]
[null,null,null,null,null,null,null,null,"",0,0]
[null,null,null,null,null,null,null,null,"",0,0]
[null,null,null,null,null,null,null,null,"",0,0]
[null,null,null,null,null,null,null,null,"",0,0]
[null,null,null,null,null,null,null,null,"",0,0]
[null,null,null,null,null,null,null,null,"",0,0]
[null,null,null,null,null,null,null,null,"",0,0]
[null,null,null,null,null,null,null,null,"",0,0]
[null,null,null,null,null,null,null,null,"",0,0]
[null,null,null,null,null,null,null,null,"",0,0]
[null,null,null,null,null,null,null,null,"",0,0]
[null,null,null,null,null,null,null,null,"",0,0]
[null,null,null,null,null,null,null,null,"",0,0]
[null,null,null,null,null,null,null,null,"",0,0]
[null,null,null,null,null,null,null,null,"",0,0]
[null,null,null,null,null,null,null,null,"",0,0]
[null,null,null,null,null,null,null,null,"",0,0]
[null,null,null,null,null,null,null,null,"",0,0]
[null,null,null,null,null,null,null,null,"",0,0]
[null,null,null,null,null,null,null,null,"",0,0]
[null,null,null,null,null,null,null,null,"",0,0]
[null,null,null,null,null,null,null,null,"",0,0]
[null,null,null,null,null,null,null,null,"",0,0]
[null,null,null,null,null,null,null,null,"",0,0]
[null,null,null,null,null,null,null,null,"",0,0]
[null,null,null,null,null,null,null,null,"",0,0]
[null,null,null,null,null,null,null,null,"",0,0]
[null,null,null,null,null,null,null,null,"",0,0]
[null,null,null,null,null,null,null,null,"",0,0]
[null,null,null,null,null,null,null,null,"",0,0]
[null,null,null,null,null,null,null,null,"",0,0]
[null,null,null,null,null,null,null,null,"",0,0]
[null,null,null,null,null,null,null,null,"",0,0]
[null,null,null,null,null,null,null,null,"",0,0]
[null,null,null,null,null,null,null,null,"",0,0]
[null,null,null,null,null,null,null,null,"",0,0]
[null,null,null,null,null,null,null,null,{"$f":"IF(H392>0,VLOOKUP(H392,prd,3,0),\"\")","v":""},{"$f":"IF(F392>0,C392*D392*E392,0)","v":0},0]
[null,null,null,null,null,null,null,null,"",0,{"$f":"K392+J393","v":0}]
[null,null,null,null,null,null,null,null,"",0,0]
[null,null,null,null,null,null,null,null,"",0,0]
[null,null,null,null,null,null,null,null,"",0,0]
[null,null,null,null,null,null,null,null,"",0,0]
[null,null,null,null,null,null,null,null,"",0,0]
[null,null,null,null,null,null,null,null,"",0,0]
[null,null,null,null,null,null,null,null,"",0,0]
[null,null,null,null,null,null,null,null,"",0,0]
[null,null,null,null,null,null,null,null,"",0,0]
[null,null,null,null,null,null,null,null,"",0,0]
[null,null,null,null,null,null,null,null,"",0,0]
[null,null,null,null,null,null,null,null,"",0,0]
[null,null,null,null,null,null,null,null,"",0,0]
[null,null,null,null,null,null,null,null,"",0,0]
[null,null,null,null,null,null,null,null,"",0,0]
[null,null,null,null,null,null,null,null,"",0,0]
[null,null,null,null,null,null,null,null,"",0,0]
[null,null,null,null,null,null,null,null,"",0,0]
[null,null,null,null,null,null,null,null,"",0,0]
[null,null,null,null,null,null,null,null,"",0,0]
[null,null,null,null,null,null,null,null,"",0,0]
[null,null,null,null,null,null,null,null,"",0,0]
[null,null,null,null,null,null,null,null,"",0,0]
[null,null,null,null,null,null,null,null,"",0,0]
[null,null,null,null,null,null,null,null,"",0,0]
[null,null,null,null,null,null,null,null,"",0,0]
[null,null,null,null,null,null,null,null,"",0,0]
[null,null,null,null,null,null,null,null,"",0,0]
[null,null,null,null,null,null,null,null,"",0,0]
[null,null,null,null,null,null,null,null,"",0,0]
[null,null,null,null,null,null,null,null,"",0,0]
[null,null,null,null,null,null,null,null,"",0,0]
[null,null,null,null,null,null,null,null,"",0,0]
[null,null,null,null,null,null,null,null,"",0,0]
[null,null,null,null,null,null,null,null,"",0,0]
[null,null,null,null,null,null,null,null,"",0,0]
[null,null,null,null,null,null,null,null,"",0,0]
[null,null,null,null,null,null,null,null,"",0,0]
[null,null,null,null,null,null,null,null,"",0,0]
[null,null,null,null,null,null,null,null,"",0,0]
[null,null,null,null,null,null,null,null,"",0,0]
[null,null,null,null,null,null,null,null,"",0,0]
[null,null,null,null,null,null,null,null,"",0,0]
[null,null,null,null,null,null,null,null,"",0,0]
[null,null,null,null,null,null,null,null,"",0,0]
[null,null,null,null,null,null,null,null,"",0,0]
[null,null,null,null,null,null,null,null,"",0,0]
[null,null,null,null,null,null,null,null,"",0,0]
[null,null,null,null,null,null,null,null,"",0,0]
[null,null,null,null,null,null,null,null,"",0,0]
[null,null,null,null,null,null,null,null,"",0,0]
[null,null,null,null,null,null,null,null,"",0,0]
[null,null,null,null,null,null,null,null,"",0,0]
[null,null,null,null,null,null,null,null,"",0,0]
[null,null,null,null,null,null,null,null,"",0,0]
[null,null,null,null,null,null,null,null,"",0,0]
[null,null,null,null,null,null,null,null,"",0,0]
[null,null,null,null,null,null,null,null,"",0,0]
[null,null,null,null,null,null,null,null,"",0,0]
[null,null,null,null,null,null,null,null,"",0,0]
[null,null,null,null,null,null,null,null,"",0,0]
[null,null,null,null,null,null,null,null,"",0,0]
[null,null,null,null,null,null,null,null,{"$f":"IF(H456>0,VLOOKUP(H456,prd,3,0),\"\")","v":""},{"$f":"IF(F456>0,C456*D456*E456,0)","v":0},0]
[null,null,null,null,null,null,null,null,"",0,{"$f":"K456+J457","v":0}]
[null,null,null,null,null,null,null,null,"",0,0]
[null,null,null,null,null,null,null,null,"",0,0]
[null,null,null,null,null,null,null,null,"",0,0]
[null,null,null,null,null,null,null,null,"",0,0]
[null,null,null,null,null,null,null,null,"",0,0]
[null,null,null,null,null,null,null,null,"",0,0]
[null,null,null,null,null,null,null,null,"",0,0]
[null,null,null,null,null,null,null,null,"",0,0]
[null,null,null,null,null,null,null,null,"",0,0]
[null,null,null,null,null,null,null,null,"",0,0]
[null,null,null,null,null,null,null,null,"",0,0]
[null,null,null,null,null,null,null,null,"",0,0]
[null,null,null,null,null,null,null,null,"",0,0]
[null,null,null,null,null,null,null,null,"",0,0]
[null,null,null,null,null,null,null,null,"",0,0]
[null,null,null,null,null,null,null,null,"",0,0]
[null,null,null,null,null,null,null,null,"",0,0]
[null,null,null,null,null,null,null,null,"",0,0]
[null,null,null,null,null,null,null,null,"",0,0]
[null,null,null,null,null,null,null,null,"",0,0]
[null,null,null,null,null,null,null,null,"",0,0]
[null,null,null,null,null,null,null,null,"",0,0]
[null,null,null,null,null,null,null,null,"",0,0]
[null,null,null,null,null,null,null,null,"",0,0]
[null,null,null,null,null,null,null,null,"",0,0]
[null,null,null,null,null,null,null,null,"",0,0]
[null,null,null,null,null,null,null,null,"",0,0]
[null,null,null,null,null,null,null,null,"",0,0]
[null,null,null,null,null,null,null,null,"",0,0]
[null,null,null,null,null,null,null,null,"",0,0]
[null,null,null,null,null,null,null,null,"",0,0]
[null,null,null,null,null,null,null,null,"",0,0]
[null,null,null,null,null,null,null,null,"",0,0]
[null,null,null,null,null,null,null,null,"",0,0]
[null,null,null,null,null,null,null,null,"",0,0]
[null,null,null,null,null,null,null,null,"",0,0]
[null,null,null,null,null,null,null,null,"",0,0]
[null,null,null,null,null,null,null,null,"",0,0]
[null,null,null,null,null,null,null,null,"",0,0]
[null,null,null,null,null,null,null,null,"",0,0]
[null,null,null,null,null,null,null,null,"",0,0]
[null,null,null,null,null,null,null,null,"",0,0]
[null,null,null,null,null,null,null,null,"",0,0]
[null,null,null,null,null,null,null,null,"",0,0]
[null,null,null,null,null,null,null,null,"",0,0]
[null,null,null,null,null,null,null,null,"",0,0]
[null,null,null,null,null,null,null,null,"",0,0]
[null,null,null,null,null,null,null,null,"",0,0]
[null,null,null,null,null,null,null,null,"",0,0]
[null,null,null,null,null,null,null,null,"",0,0]
[null,null,null,null,null,null,null,null,"",0,0]
[null,null,null,null,null,null,null,null,"",0,0]
[null,null,null,null,null,null,null,null,"",0,0]
[null,null,null,null,null,null,null,null,"",0,0]
[null,null,null,null,null,null,null,null,"",0,0]
[null,null,null,null,null,null,null,null,"",0,0]
[null,null,null,null,null,null,null,null,"",0,0]
[null,null,null,null,null,null,null,null,"",0,0]
[null,null,null,null,null,null,null,null,"",0,0]
[null,null,null,null,null,null,null,null,"",0,0]
[null,null,null,null,null,null,null,null,"",0,0]
[null,null,null,null,null,null,null,null,"",0,0]
[null,null,null,null,null,null,null,null,{"$f":"IF(H520>0,VLOOKUP(H520,prd,3,0),\"\")","v":""},{"$f":"IF(F520>0,C520*D520*E520,0)","v":0},0]
[null,null,null,null,null,null,null,null,"",0,{"$f":"K520+J521","v":0}]
[null,null,null,null,null,null,null,null,"",0,0]
[null,null,null,null,null,null,null,null,"",0,0]
[null,null,null,null,null,null,null,null,"",0,0]
[null,null,null,null,null,null,null,null,"",0,0]
[null,null,null,null,null,null,null,null,"",0,0]
[null,null,null,null,null,null,null,null,"",0,0]
[null,null,null,null,null,null,null,null,"",0,0]
[null,null,null,null,null,null,null,null,"",0,0]
[null,null,null,null,null,null,null,null,"",0,0]
[null,null,null,null,null,null,null,null,"",0,0]
[null,null,null,null,null,null,null,null,"",0,0]
[null,null,null,null,null,null,null,null,"",0,0]
[null,null,null,null,null,null,null,null,"",0,0]
[null,null,null,null,null,null,null,null,"",0,0]
[null,null,null,null,null,null,null,null,"",0,0]
[null,null,null,null,null,null,null,null,"",0,0]
[null,null,null,null,null,null,null,null,"",0,0]
[null,null,null,null,null,null,null,null,"",0,0]
[null,null,null,null,null,null,null,null,"",0,0]
[null,null,null,null,null,null,null,null,"",0,0]
[null,null,null,null,null,null,null,null,"",0,0]
[null,null,null,null,null,null,null,null,"",0,0]
[null,null,null,null,null,null,null,null,"",0,0]
[null,null,null,null,null,null,null,null,"",0,0]
[null,null,null,null,null,null,null,null,"",0,0]
[null,null,null,null,null,null,null,null,"",0,0]
[null,null,null,null,null,null,null,null,"",0,0]
[null,null,null,null,null,null,null,null,"",0,0]
[null,null,null,null,null,null,null,null,"",0,0]
[null,null,null,null,null,null,null,null,"",0,0]
[null,null,null,null,null,null,null,null,"",0,0]
[null,null,null,null,null,null,null,null,"",0,0]
[null,null,null,null,null,null,null,null,"",0,0]
[null,null,null,null,null,null,null,null,"",0,0]
[null,null,null,null,null,null,null,null,"",0,0]
[null,null,null,null,null,null,null,null,"",0,0]
[null,null,null,null,null,null,null,null,"",0,0]
[null,null,null,null,null,null,null,null,"",0,0]
[null,null,null,null,null,null,null,null,"",0,0]
[null,null,null,null,null,null,null,null,"",0,0]
[null,null,null,null,null,null,null,null,"",0,0]
[null,null,null,null,null,null,null,null,"",0,0]
[null,null,null,null,null,null,null,null,"",0,0]
[null,null,null,null,null,null,null,null,"",0,0]
[null,null,null,null,null,null,null,null,"",0,0]
[null,null,null,null,null,null,null,null,"",0,0]
[null,null,null,null,null,null,null,null,"",0,0]
[null,null,null,null,null,null,null,null,"",0,0]
[null,null,null,null,null,null,null,null,"",0,0]
[null,null,null,null,null,null,null,null,"",0,0]
[null,null,null,null,null,null,null,null,"",0,0]
[null,null,null,null,null,null,null,null,"",0,0]
[null,null,null,null,null,null,null,null,"",0,0]
[null,null,null,null,null,null,null,null,"",0,0]
[null,null,null,null,null,null,null,null,"",0,0]
[null,null,null,null,null,null,null,null,"",0,0]
[null,null,null,null,null,null,null,null,"",0,0]
[null,null,null,null,null,null,null,null,"",0,0]
[null,null,null,null,null,null,null,null,"",0,0]
[null,null,null,null,null,null,null,null,"",0,0]
[null,null,null,null,null,null,null,null,"",0,0]
[null,null,null,null,null,null,null,null,"",0,0]
[null,null,null,null,null,null,null,null,{"$f":"IF(H584>0,VLOOKUP(H584,prd,3,0),\"\")","v":""},{"$f":"IF(F584>0,C584*D584*E584,0)","v":0},0]
[null,null,null,null,null,null,null,null,"",0,{"$f":"K584+J585","v":0}]
[null,null,null,null,null,null,null,null,"",0,0]
[null,null,null,null,null,null,null,null,"",0,0]
[null,null,null,null,null,null,null,null,"",0,0]
[null,null,null,null,null,null,null,null,"",0,0]
[null,null,null,null,null,null,null,null,"",0,0]
[null,null,null,null,null,null,null,null,"",0,0]
[null,null,null,null,null,null,null,null,"",0,0]
[null,null,null,null,null,null,null,null,"",0,0]
[null,null,null,null,null,null,null,null,"",0,0]
[null,null,null,null,null,null,null,null,"",0,0]
[null,null,null,null,null,null,null,null,"",0,0]
[null,null,null,null,null,null,null,null,"",0,0]
[null,null,null,null,null,null,null,null,"",0,0]
[null,null,null,null,null,null,null,null,"",0,0]
[null,null,null,null,null,null,null,null,"",0,0]
[null,null,null,null,null,null,null,null,"",0,0]
[null,null,null,null,null,null,null,null,"",0,0]
[null,null,null,null,null,null,null,null,"",0,0]
[null,null,null,null,null,null,null,null,"",0,0]
[null,null,null,null,null,null,null,null,"",0,0]
[null,null,null,null,null,null,null,null,"",0,0]
[null,null,null,null,null,null,null,null,"",0,0]
[null,null,null,null,null,null,null,null,"",0,0]
[null,null,null,null,null,null,null,null,"",0,0]
[null,null,null,null,null,null,null,null,"",0,0]
[null,null,null,null,null,null,null,null,"",0,0]
[null,null,null,null,null,null,null,null,"",0,0]
[null,null,null,null,null,null,null,null,"",0,0]
[null,null,null,null,null,null,null,null,"",0,0]
[null,null,null,null,null,null,null,null,"",0,0]
[null,null,null,null,null,null,null,null,"",0,0]
[null,null,null,null,null,null,null,null,"",0,0]
[null,null,null,null,null,null,null,null,"",0,0]
[null,null,null,null,null,null,null,null,"",0,0]
[null,null,null,null,null,null,null,null,"",0,0]
[null,null,null,null,null,null,null,null,"",0,0]
[null,null,null,null,null,null,null,null,"",0,0]
[null,null,null,null,null,null,null,null,"",0,0]
[null,null,null,null,null,null,null,null,"",0,0]
[null,null,null,null,null,null,null,null,"",0,0]
[null,null,null,null,null,null,null,null,"",0,0]
[null,null,null,null,null,null,null,null,"",0,0]
[null,null,null,null,null,null,null,null,"",0,0]
[null,null,null,null,null,null,null,null,"",0,0]
[null,null,null,null,null,null,null,null,"",0,0]
[null,null,null,null,null,null,null,null,"",0,0]
[null,null,null,null,null,null,null,null,"",0,0]
[null,null,null,null,null,null,null,null,"",0,0]
[null,null,null,null,null,null,null,null,"",0,0]
[null,null,null,null,null,null,null,null,"",0,0]
[null,null,null,null,null,null,null,null,"",0,0]
[null,null,null,null,null,null,null,null,"",0,0]
[null,null,null,null,null,null,null,null,"",0,0]
[null,null,null,null,null,null,null,null,"",0,0]
[null,null,null,null,null,null,null,null,"",0,0]
[null,null,null,null,null,null,null,null,"",0,0]
[null,null,null,null,null,null,null,null,"",0,0]
[null,null,null,null,null,null,null,null,"",0,0]
[null,null,null,null,null,null,null,null,"",0,0]
[null,null,null,null,null,null,null,null,"",0,0]
[null,null,null,null,null,null,null,null,"",0,0]
[null,null,null,null,null,null,null,null,"",0,0]
[null,null,null,null,null,null,null,null,{"$f":"IF(H648>0,VLOOKUP(H648,prd,3,0),\"\")","v":""},{"$f":"IF(F648>0,C648*D648*E648,0)","v":0},0]
[null,null,null,null,null,null,null,null,"",0,{"$f":"K648+J649","v":0}]
[null,null,null,null,null,null,null,null,"",0,0]
[null,null,null,null,null,null,null,null,"",0,0]
[null,null,null,null,null,null,null,null,"",0,0]
[null,null,null,null,null,null,null,null,"",0,0]
[null,null,null,null,null,null,null,null,"",0,0]
[null,null,null,null,null,null,null,null,"",0,0]
[null,null,null,null,null,null,null,null,"",0,0]
[null,null,null,null,null,null,null,null,"",0,0]
[null,null,null,null,null,null,null,null,"",0,0]
[null,null,null,null,null,null,null,null,"",0,0]
[null,null,null,null,null,null,null,null,"",0,0]
[null,null,null,null,null,null,null,null,"",0,0]
[null,null,null,null,null,null,null,null,"",0,0]
[null,null,null,null,null,null,null,null,"",0,0]
[null,null,null,null,null,null,null,null,"",0,0]
[null,null,null,null,null,null,null,null,"",0,0]
[null,null,null,null,null,null,null,null,"",0,0]
[null,null,null,null,null,null,null,null,"",0,0]
[null,null,{"$f":"SUM(C7:C667)","v":0},"الإجمـــــــــــــــــــــــــالى",null,null,null,null,null,{"$f":"SUM(J8:J667)","v":0},{"$f":"K667","v":0}]
[null,"أمين المخزن",null,null,null,null,null,null,null,null,"المراجعه"]

{"sheet":"محمود","index":2,"n_rows":669,"n_cols":30,"rows_kept":669,"cut":false,"hidden":false,"merged":[[0,0,0,11],[1,4,1,8],[1,13,3,13],[3,2,3,3],[6,3,6,9],[667,3,667,6]]}
["محمود",null,null,null,null,null,null,null,null,null,null,null,null,{"$f":"C668","v":0}]
[null,null,null,null,"بــطــاقــة عــمــيــل",null,null,null,null,null,null,null,null,"الفهرس","رصيد أول المدة",{"$f":"C7","v":0}]
[null,null,null,null,null,null,null,null,null,null,null,null,null,null,"إجمالي الصادر طرف العميل",{"$f":"SUMIF(C8:C667,\">0\")","v":0}]
[null,"الموقع",1,null,null,null,null,null,null,"كود العميل",1,null,null,null,"إجمالي المرتجع من العميل",{"$f":"SUMIF(C8:C667,\"<0\")","v":0}]
[null,null,null,null,null,null,null,null,null,null,null,null,null,null,"الرصيد طرف العميل",{"$f":"P2+P3+P4","v":0}]
["الشهر","التاريخ",null,null,null,"م","الصنف","كود المنتج","المنتج","المنصرف","الرصيــد","ملاحظات"]
[null,null,null,"رصيد أول المدة",null,null,null,null,null,null,null,null,null,null,null,{"$f":"SUMIF($G$8:$G$67,$O$7,$J$8:$J$67)","v":0},{"$f":"SUMIF($G$68:$G$123,$O$7,$J$68:$J$123)","v":0},{"$f":"SUMIF($G$124:$G$179,$O$7,$J$124:$J$179)","v":0},{"$f":"SUMIF($G$180:$G$235,$O$7,$J$180:$J$235)","v":0},{"$f":"SUMIF($G$236:$G$292,$O$7,$J$236:$J$292)","v":0},{"$f":"SUMIF($G$293:$G$345,$O$7,$J$293:$J$345)","v":0},{"$f":"SUMIF($G$346:$G$399,$O$7,$J$346:$J$399)","v":0},{"$f":"SUMIF($G$400:$G$450,$O$7,$J$400:$J$450)","v":0},{"$f":"SUMIF($G$451:$G$504,$O$7,$J$451:$J$504)","v":0},{"$f":"SUMIF($G$505:$G$557,$O$7,$J$505:$J$557)","v":0},{"$f":"SUMIF($G$558:$G$611,$O$7,$J$558:$J$611)","v":0},{"$f":"SUMIF($G$612:$G$667,$O$7,$J$612:$J$667)","v":0},{"$f":"SUM(P7:AA7)","v":0}]
[null,null,null,null,null,null,null,null,{"$f":"IF(H8>0,VLOOKUP(H8,prd,3,0),\"\")","v":""},{"$f":"IF(F8>0,C8*D8*E8,0)","v":0},{"$f":"K7+J8","v":0},null,null,null,null,{"$f":"SUMIF($G$8:$G$67,$O$8,$J$8:$J$67)","v":0},{"$f":"SUMIF($G$68:$G$123,$O$8,$J$68:$J$123)","v":0},{"$f":"SUMIF($G$124:$G$179,$O$8,$J$124:$J$179)","v":0},{"$f":"SUMIF($G$180:$G$235,$O$8,$J$180:$J$235)","v":0},{"$f":"SUMIF($G$236:$G$292,$O$8,$J$236:$J$292)","v":0},{"$f":"SUMIF($G$293:$G$345,$O$8,$J$293:$J$345)","v":0},{"$f":"SUMIF($G$346:$G$399,$O$8,$J$346:$J$399)","v":0},{"$f":"SUMIF($G$400:$G$450,$O$8,$J$400:$J$450)","v":0},{"$f":"SUMIF($G$451:$G$504,$O$8,$J$451:$J$504)","v":0},{"$f":"SUMIF($G$505:$G$557,$O$8,$J$505:$J$557)","v":0},{"$f":"SUMIF($G$558:$G$611,$O$8,$J$558:$J$611)","v":0},{"$f":"SUMIF($G$612:$G$667,$O$8,$J$612:$J$667)","v":0},{"$f":"SUM(P8:AA8)","v":0}]
[null,null,null,null,null,null,null,null,"",0,{"$f":"K8+J9","v":0},null,null,null,null,{"$f":"SUMIF($G$8:$G$67,$O$9,$J$8:$J$67)","v":0},{"$f":"SUMIF($G$68:$G$123,$O$9,$J$68:$J$123)","v":0},{"$f":"SUMIF($G$124:$G$179,$O$9,$J$124:$J$179)","v":0},{"$f":"SUMIF($G$180:$G$235,$O$9,$J$180:$J$235)","v":0},{"$f":"SUMIF($G$236:$G$292,$O$9,$J$236:$J$292)","v":0},{"$f":"SUMIF($G$293:$G$345,$O$9,$J$293:$J$345)","v":0},{"$f":"SUMIF($G$346:$G$399,$O$9,$J$346:$J$399)","v":0},{"$f":"SUMIF($G$400:$G$450,$O$9,$J$400:$J$450)","v":0},{"$f":"SUMIF($G$451:$G$504,$O$9,$J$451:$J$504)","v":0},{"$f":"SUMIF($G$505:$G$557,$O$9,$J$505:$J$557)","v":0},{"$f":"SUMIF($G$558:$G$611,$O$9,$J$558:$J$611)","v":0},{"$f":"SUMIF($G$612:$G$667,$O$9,$J$612:$J$667)","v":0},{"$f":"SUM(P9:AA9)","v":0}]
[null,null,null,null,null,null,null,null,"",0,0,null,null,null,null,{"$f":"SUMIF($G$8:$G$67,$O$10,$J$8:$J$67)","v":0},{"$f":"SUMIF($G$68:$G$123,$O$10,$J$68:$J$123)","v":0},{"$f":"SUMIF($G$124:$G$179,$O$10,$J$124:$J$179)","v":0},{"$f":"SUMIF($G$180:$G$235,$O$10,$J$180:$J$235)","v":0},{"$f":"SUMIF($G$236:$G$292,$O$10,$J$236:$J$292)","v":0},{"$f":"SUMIF($G$293:$G$345,$O$10,$J$293:$J$345)","v":0},{"$f":"SUMIF($G$346:$G$399,$O$10,$J$346:$J$399)","v":0},{"$f":"SUMIF($G$400:$G$450,$O$10,$J$400:$J$450)","v":0},{"$f":"SUMIF($G$451:$G$504,$O$10,$J$451:$J$504)","v":0},{"$f":"SUMIF($G$505:$G$557,$O$10,$J$505:$J$557)","v":0},{"$f":"SUMIF($G$558:$G$611,$O$10,$J$558:$J$611)","v":0},{"$f":"SUMIF($G$612:$G$667,$O$10,$J$612:$J$667)","v":0},{"$f":"SUM(P10:AA10)","v":0}]
[null,null,null,null,null,null,null,null,"",0,0,null,"كود المنتج","أوامر توريد","المنتج","يناير","فبراير","مارس","أبريل","مايو","يونيو","يوليو","أغسطس","سبتمبر","أكتوبر","نوفمبر","ديسمبر","الإجمالى","إجمالي أوامر"]
[null,null,null,null,null,null,null,null,"",0,0,null,100,{"$f":"AC12-AB12","v":50},{"$f":"VLOOKUP(M12,prod,2,0)","v":{"$error":"#N/A"}},{"$f":"SUMIFS($J$8:$J$667,$A$8:$A$667,$P$11,$I$8:$I$667,O12)","v":0},{"$f":"SUMIFS($J$8:$J$667,$A$8:$A$667,$Q$11,$I$8:$I$667,O12)","v":0},{"$f":"SUMIFS($J$8:$J$667,$A$8:$A$667,$R$11,$I$8:$I$667,O12)","v":0},{"$f":"SUMIFS($J$8:$J$667,$A$8:$A$667,$S$11,$I$8:$I$667,O12)","v":0},{"$f":"SUMIFS($J$8:$J$667,$A$8:$A$667,$T$11,$I$8:$I$667,O12)","v":0},{"$f":"SUMIFS($J$8:$J$667,$A$8:$A$667,$U$11,$I$8:$I$667,O12)","v":0},{"$f":"SUMIFS($J$8:$J$667,$A$8:$A$667,$V$11,$I$8:$I$667,O12)","v":0},{"$f":"SUMIFS($J$8:$J$667,$A$8:$A$667,$W$11,$I$8:$I$667,O12)","v":0},{"$f":"SUMIFS($J$8:$J$667,$A$8:$A$667,$X$11,$I$8:$I$667,O12)","v":0},{"$f":"SUMIFS($J$8:$J$667,$A$8:$A$667,$Y$11,$I$8:$I$667,O12)","v":0},{"$f":"SUMIFS($J$8:$J$667,$A$8:$A$667,$Z$11,$I$8:$I$667,O12)","v":0},50,{"$f":"SUM(P12:AA12)","v":50},{"$f":"SUM(AD12:BR12)","v":100},100]
[null,null,null,null,null,null,null,null,"",0,0,null,null,0,{"$f":"VLOOKUP(M13,prod,2,0)","v":0},{"$f":"SUMIFS($J$8:$J$667,$A$8:$A$667,$P$11,$I$8:$I$667,O13)","v":0},{"$f":"SUMIFS($J$8:$J$667,$A$8:$A$667,$Q$11,$I$8:$I$667,O13)","v":0},{"$f":"SUMIFS($J$8:$J$667,$A$8:$A$667,$R$11,$I$8:$I$667,O13)","v":0},{"$f":"SUMIFS($J$8:$J$667,$A$8:$A$667,$S$11,$I$8:$I$667,O13)","v":0},{"$f":"SUMIFS($J$8:$J$667,$A$8:$A$667,$T$11,$I$8:$I$667,O13)","v":0},{"$f":"SUMIFS($J$8:$J$667,$A$8:$A$667,$U$11,$I$8:$I$667,O13)","v":0},{"$f":"SUMIFS($J$8:$J$667,$A$8:$A$667,$V$11,$I$8:$I$667,O13)","v":0},{"$f":"SUMIFS($J$8:$J$667,$A$8:$A$667,$W$11,$I$8:$I$667,O13)","v":0},{"$f":"SUMIFS($J$8:$J$667,$A$8:$A$667,$X$11,$I$8:$I$667,O13)","v":0},{"$f":"SUMIFS($J$8:$J$667,$A$8:$A$667,$Y$11,$I$8:$I$667,O13)","v":0},{"$f":"SUMIFS($J$8:$J$667,$A$8:$A$667,$Z$11,$I$8:$I$667,O13)","v":0},{"$f":"SUMIFS($J$8:$J$667,$A$8:$A$667,$AA$11,$I$8:$I$667,O13)","v":0},{"$f":"SUM(P13:AA13)","v":0},{"$f":"SUM(AD13:BR13)","v":0}]
[null,null,null,null,null,null,null,null,"",0,0,null,null,0,0,0,0,0,0,0,0,0,0,0,0,0,0,0,0]
[null,null,null,null,null,null,null,null,"",0,0,null,null,0,0,0,0,0,0,0,0,0,0,0,0,0,0,0,0]
[null,null,null,null,null,null,null,null,"",0,0,null,null,0,0,0,0,0,0,0,0,0,0,0,0,0,0,0,0]
[null,null,null,null,null,null,null,null,"",0,0,null,null,0,0,0,0,0,0,0,0,0,0,0,0,0,0,0,0]
[null,null,null,null,null,null,null,null,"",0,0,null,null,0,0,0,0,0,0,0,0,0,0,0,0,0,0,0,0]
[null,null,null,null,null,null,null,null,"",0,0,null,null,0,0,0,0,0,0,0,0,0,0,0,0,0,0,0,0]
[null,null,null,null,null,null,null,null,"",0,0,null,null,0,0,0,0,0,0,0,0,0,0,0,0,0,0,0,0]
[null,null,null,null,null,null,null,null,"",0,0,null,null,0,0,0,0,0,0,0,0,0,0,0,0,0,0,0,0]
[null,null,null,null,null,null,null,null,"",0,0,null,null,0,0,0,0,0,0,0,0,0,0,0,0,0,0,0,0]
[null,null,null,null,null,null,null,null,"",0,0,null,null,0,0,0,0,0,0,0,0,0,0,0,0,0,0,0,0]
[null,null,null,null,null,null,null,null,"",0,0,null,null,0,0,0,0,0,0,0,0,0,0,0,0,0,0,0,0]
[null,null,null,null,null,null,null,null,"",0,0,null,null,0,0,0,0,0,0,0,0,0,0,0,0,0,0,0,0]
[null,null,null,null,null,null,null,null,"",0,0,null,null,0,0,0,0,0,0,0,0,0,0,0,0,0,0,0,0]
[null,null,null,null,null,null,null,null,"",0,0,null,null,0,0,0,0,0,0,0,0,0,0,0,0,0,0,0,0]
[null,null,null,null,null,null,null,null,"",0,0,null,null,0,0,0,0,0,0,0,0,0,0,0,0,0,0,0,0]
[null,null,null,null,null,null,null,null,"",0,0,null,null,0,0,0,0,0,0,0,0,0,0,0,0,0,0,0,0]
[null,null,null,null,null,null,null,null,"",0,0,null,null,0,0,0,0,0,0,0,0,0,0,0,0,0,0,0,0]
[null,null,null,null,null,null,null,null,"",0,0,null,null,0,0,0,0,0,0,0,0,0,0,0,0,0,0,0,0]
[null,null,null,null,null,null,null,null,"",0,0,null,null,0,0,0,0,0,0,0,0,0,0,0,0,0,0,0,0]
[null,null,null,null,null,null,null,null,"",0,0,null,null,0,0,0,0,0,0,0,0,0,0,0,0,0,0,0,0]
[null,null,null,null,null,null,null,null,"",0,0,null,null,0,0,0,0,0,0,0,0,0,0,0,0,0,0,0,0]
[null,null,null,null,null,null,null,null,"",0,0,null,null,0,0,0,0,0,0,0,0,0,0,0,0,0,0,0,0]
[null,null,null,null,null,null,null,null,"",0,0,null,null,0,0,0,0,0,0,0,0,0,0,0,0,0,0,0,0]
[null,null,null,null,null,null,null,null,"",0,0,null,null,0,0,0,0,0,0,0,0,0,0,0,0,0,0,0,0]
[null,null,null,null,null,null,null,null,"",0,0,null,null,0,0,0,0,0,0,0,0,0,0,0,0,0,0,0,0]
[null,null,null,null,null,null,null,null,"",0,0,null,null,0,0,0,0,0,0,0,0,0,0,0,0,0,0,0,0]
[null,null,null,null,null,null,null,null,"",0,0,null,null,0,0,0,0,0,0,0,0,0,0,0,0,0,0,0,0]
[null,null,null,null,null,null,null,null,"",0,0,null,null,0,0,0,0,0,0,0,0,0,0,0,0,0,0,0,0]
[null,null,null,null,null,null,null,null,"",0,0,null,null,0,0,0,0,0,0,0,0,0,0,0,0,0,0,0,0]
[null,null,null,null,null,null,null,null,"",0,0,null,null,0,0,0,0,0,0,0,0,0,0,0,0,0,0,0,0]
[null,null,null,null,null,null,null,null,"",0,0,null,null,0,{"$f":"VLOOKUP(M44,prod,2,0)","v":0},0,0,0,0,0,0,0,0,0,0,0,0,0,0]
[null,null,null,null,null,null,null,null,"",0,0,null,null,0,0,0,0,0,0,0,0,0,0,0,0,0,0,0,0]
[null,null,null,null,null,null,null,null,"",0,0,null,null,0,0,0,0,0,0,0,0,0,0,0,0,0,0,0,0]
[null,null,null,null,null,null,null,null,"",0,0,null,null,0,0,0,0,0,0,0,0,0,0,0,0,0,0,0,0]
[null,null,null,null,null,null,null,null,"",0,0,null,null,0,0,0,0,0,0,0,0,0,0,0,0,0,0,0,0]
[null,null,null,null,null,null,null,null,"",0,0,null,null,0,0,0,0,0,0,0,0,0,0,0,0,0,0,0,0]
[null,null,null,null,null,null,null,null,"",0,0,null,null,0,0,0,0,0,0,0,0,0,0,0,0,0,0,0,0]
[null,null,null,null,null,null,null,null,"",0,0,null,null,0,0,0,0,0,0,0,0,0,0,0,0,0,0,0,0]
[null,null,null,null,null,null,null,null,"",0,0,null,null,0,0,0,0,0,0,0,0,0,0,0,0,0,0,0,0]
[null,null,null,null,null,null,null,null,"",0,0,null,null,0,0,0,0,0,0,0,0,0,0,0,0,0,0,0,0]
[null,null,null,null,null,null,null,null,"",0,0,null,null,0,0,0,0,0,0,0,0,0,0,0,0,0,0,0,0]
[null,null,null,null,null,null,null,null,"",0,0,null,null,0,0,0,0,0,0,0,0,0,0,0,0,0,0,0,0]
[null,null,null,null,null,null,null,null,"",0,0,null,null,0,0,0,0,0,0,0,0,0,0,0,0,0,0,0,0]
[null,null,null,null,null,null,null,null,"",0,0,null,null,0,0,0,0,0,0,0,0,0,0,0,0,0,0,0,0]
[null,null,null,null,null,null,null,null,"",0,0,null,null,0,0,0,0,0,0,0,0,0,0,0,0,0,0,0,0]
[null,null,null,null,null,null,null,null,"",0,0,null,null,0,0,0,0,0,0,0,0,0,0,0,0,0,0,0,0]
[null,null,null,null,null,null,null,null,"",0,0,null,null,0,0,0,0,0,0,0,0,0,0,0,0,0,0,0,0]
[null,null,null,null,null,null,null,null,"",0,0,null,null,0,0,0,0,0,0,0,0,0,0,0,0,0,0,0,0]
[null,null,null,null,null,null,null,null,"",0,0,null,null,0,0,0,0,0,0,0,0,0,0,0,0,0,0,0,0]
[null,null,null,null,null,null,null,null,"",0,0,null,null,0,0,0,0,0,0,0,0,0,0,0,0,0,0,0,0]
[null,null,null,null,null,null,null,null,"",0,0,null,null,0,0,0,0,0,0,0,0,0,0,0,0,0,0,0,0]
[null,null,null,null,null,null,null,null,"",0,0,null,null,0,0,0,0,0,0,0,0,0,0,0,0,0,0,0,0]
[null,null,null,null,null,null,null,null,"",0,0,null,null,0,0,0,0,0,0,0,0,0,0,0,0,0,0,0,0]
[null,null,null,null,null,null,null,null,"",0,0,null,null,0,0,0,0,0,0,0,0,0,0,0,0,0,0,0,0]
[null,null,null,null,null,null,null,null,"",0,0,null,null,0,0,0,0,0,0,0,0,0,0,0,0,0,0,0,0]
[null,null,null,null,null,null,null,null,"",0,0,null,null,0,0,0,0,0,0,0,0,0,0,0,0,0,0,0,0]
[null,null,null,null,null,null,null,null,"",0,0,null,null,0,0,0,0,0,0,0,0,0,0,0,0,0,0,0,0]
[null,null,null,null,null,null,null,null,"",0,0,null,null,0,0,0,0,0,0,0,0,0,0,0,0,0,0,0,0]
[null,null,null,null,null,null,null,null,{"$f":"IF(H72>0,VLOOKUP(H72,prd,3,0),\"\")","v":""},{"$f":"IF(F72>0,C72*D72*E72,0)","v":0},0,null,null,0,0,0,0,0,0,0,0,0,0,0,0,0,0,0,0]
[null,null,null,null,null,null,null,null,"",0,{"$f":"K72+J73","v":0},null,null,0,0,0,0,0,0,0,0,0,0,0,0,0,0,0,0]
[null,null,null,null,null,null,null,null,"",0,0,null,null,0,0,0,0,0,0,0,0,0,0,0,0,0,0,0,0]
[null,null,null,null,null,null,null,null,"",0,0,null,null,0,0,0,0,0,0,0,0,0,0,0,0,0,0,0,0]
[null,null,null,null,null,null,null,null,"",0,0,null,null,{"$f":"AC76-AB76","v":0},{"$f":"VLOOKUP(M76,prod,2,0)","v":0},0,0,0,0,0,0,0,0,0,0,0,0,0,0]
[null,null,null,null,null,null,null,null,"",0,0,null,null,0,0,{"$f":"SUMIFS($J$8:$J$667,$A$8:$A$667,$P$11,$I$8:$I$667,O77)","v":0},{"$f":"SUMIFS($J$8:$J$667,$A$8:$A$667,$Q$11,$I$8:$I$667,O77)","v":0},{"$f":"SUMIFS($J$8:$J$667,$A$8:$A$667,$R$11,$I$8:$I$667,O77)","v":0},{"$f":"SUMIFS($J$8:$J$667,$A$8:$A$667,$S$11,$I$8:$I$667,O77)","v":0},{"$f":"SUMIFS($J$8:$J$667,$A$8:$A$667,$T$11,$I$8:$I$667,O77)","v":0},{"$f":"SUMIFS($J$8:$J$667,$A$8:$A$667,$U$11,$I$8:$I$667,O77)","v":0},{"$f":"SUMIFS($J$8:$J$667,$A$8:$A$667,$V$11,$I$8:$I$667,O77)","v":0},{"$f":"SUMIFS($J$8:$J$667,$A$8:$A$667,$W$11,$I$8:$I$667,O77)","v":0},{"$f":"SUMIFS($J$8:$J$667,$A$8:$A$667,$X$11,$I$8:$I$667,O77)","v":0},{"$f":"SUMIFS($J$8:$J$667,$A$8:$A$667,$Y$11,$I$8:$I$667,O77)","v":0},{"$f":"SUMIFS($J$8:$J$667,$A$8:$A$667,$Z$11,$I$8:$I$667,O77)","v":0},{"$f":"SUMIFS($J$8:$J$667,$A$8:$A$667,$AA$11,$I$8:$I$667,O77)","v":0},{"$f":"SUM(P77:AA77)","v":0},{"$f":"SUM(AD77:BR77)","v":0}]
[null,null,null,null,null,null,null,null,"",0,0,null,null,0,0,0,0,0,0,0,0,0,0,0,0,0,0,0,0]
[null,null,null,null,null,null,null,null,"",0,0,null,null,0,0,0,0,0,0,0,0,0,0,0,0,0,0,0,0]
[null,null,null,null,null,null,null,null,"",0,0,null,null,0,0,0,0,0,0,0,0,0,0,0,0,0,0,0,0]
[null,null,null,null,null,null,null,null,"",0,0,null,null,0,0,0,0,0,0,0,0,0,0,0,0,0,0,0,0]
[null,null,null,null,null,null,null,null,"",0,0,null,null,0,0,0,0,0,0,0,0,0,0,0,0,0,0,0,0]
[null,null,null,null,null,null,null,null,"",0,0,null,null,0,0,0,0,0,0,0,0,0,0,0,0,0,0,0,0]
[null,null,null,null,null,null,null,null,"",0,0,null,null,0,0,0,0,0,0,0,0,0,0,0,0,0,0,0,0]
[null,null,null,null,null,null,null,null,"",0,0,null,null,0,0,0,0,0,0,0,0,0,0,0,0,0,0,0,0]
[null,null,null,null,null,null,null,null,"",0,0,null,null,0,0,0,0,0,0,0,0,0,0,0,0,0,0,0,0]
[null,null,null,null,null,null,null,null,"",0,0,null,null,0,0,0,0,0,0,0,0,0,0,0,0,0,0,0,0]
[null,null,null,null,null,null,null,null,"",0,0,null,null,0,0,0,0,0,0,0,0,0,0,0,0,0,0,0,0]
[null,null,null,null,null,null,null,null,"",0,0,null,null,0,0,0,0,0,0,0,0,0,0,0,0,0,0,0,0]
[null,null,null,null,null,null,null,null,"",0,0,null,null,0,0,0,0,0,0,0,0,0,0,0,0,0,0,0,0]
[null,null,null,null,null,null,null,null,"",0,0,null,null,0,0,0,0,0,0,0,0,0,0,0,0,0,0,0,0]
[null,null,null,null,null,null,null,null,"",0,0,null,null,0,0,0,0,0,0,0,0,0,0,0,0,0,0,0,0]
[null,null,null,null,null,null,null,null,"",0,0,null,null,0,0,0,0,0,0,0,0,0,0,0,0,0,0,0,0]
[null,null,null,null,null,null,null,null,"",0,0,null,null,0,0,0,0,0,0,0,0,0,0,0,0,0,0,0,0]
[null,null,null,null,null,null,null,null,"",0,0,null,null,0,0,0,0,0,0,0,0,0,0,0,0,0,0,0,0]
[null,null,null,null,null,null,null,null,"",0,0,null,null,0,0,0,0,0,0,0,0,0,0,0,0,0,0,0,0]
[null,null,null,null,null,null,null,null,"",0,0,null,null,0,0,0,0,0,0,0,0,0,0,0,0,0,0,0,0]
[null,null,null,null,null,null,null,null,"",0,0,null,null,0,0,0,0,0,0,0,0,0,0,0,0,0,0,0,0]
[null,null,null,null,null,null,null,null,"",0,0,null,null,0,0,0,0,0,0,0,0,0,0,0,0,0,0,0,0]
[null,null,null,null,null,null,null,null,"",0,0,null,null,0,0,0,0,0,0,0,0,0,0,0,0,0,0,0,0]
[null,null,null,null,null,null,null,null,"",0,0,null,null,0,0,0,0,0,0,0,0,0,0,0,0,0,0,0,0]
[null,null,null,null,null,null,null,null,"",0,0,null,null,0,0,0,0,0,0,0,0,0,0,0,0,0,0,0,0]
[null,null,null,null,null,null,null,null,"",0,0,null,null,0,0,0,0,0,0,0,0,0,0,0,0,0,0,0,0]
[null,null,null,null,null,null,null,null,"",0,0,null,null,0,0,0,0,0,0,0,0,0,0,0,0,0,0,0,0]
[null,null,null,null,null,null,null,null,"",0,0,null,null,0,0,0,0,0,0,0,0,0,0,0,0,0,0,0,0]
[null,null,null,null,null,null,null,null,"",0,0,null,null,0,0,0,0,0,0,0,0,0,0,0,0,0,0,0,0]
[null,null,null,null,null,null,null,null,"",0,0,null,null,0,0,0,0,0,0,0,0,0,0,0,0,0,0,0,0]
[null,null,null,null,null,null,null,null,"",0,0,null,null,0,{"$f":"VLOOKUP(M108,prod,2,0)","v":0},0,0,0,0,0,0,0,0,0,0,0,0,0,0]
[null,null,null,null,null,null,null,null,"",0,0,null,null,0,0,0,0,0,0,0,0,0,0,0,0,0,0,0,0]
[null,null,null,null,null,null,null,null,"",0,0,null,null,0,0,0,0,0,0,0,0,0,0,0,0,0,0,0,0]
[null,null,null,null,null,null,null,null,"",0,0,null,null,0,0,0,0,0,0,0,0,0,0,0,0,0,0,0,0]
[null,null,null,null,null,null,null,null,"",0,0,null,null,0,0,0,0,0,0,0,0,0,0,0,0,0,0,0,0]
[null,null,null,null,null,null,null,null,"",0,0,null,null,0,0,0,0,0,0,0,0,0,0,0,0,0,0,0,0]
[null,null,null,null,null,null,null,null,"",0,0,null,null,0,0,0,0,0,0,0,0,0,0,0,0,0,0,0,0]
[null,null,null,null,null,null,null,null,"",0,0,null,null,0,0,0,0,0,0,0,0,0,0,0,0,0,0,0,0]
[null,null,null,null,null,null,null,null,"",0,0,null,null,0,0,0,0,0,0,0,0,0,0,0,0,0,0,0,0]
[null,null,null,null,null,null,null,null,"",0,0,null,null,0,0,0,0,0,0,0,0,0,0,0,0,0,0,0,0]
[null,null,null,null,null,null,null,null,"",0,0,null,null,0,0,0,0,0,0,0,0,0,0,0,0,0,0,0,0]
[null,null,null,null,null,null,null,null,"",0,0,null,null,0,0,0,0,0,0,0,0,0,0,0,0,0,0,0,0]
[null,null,null,null,null,null,null,null,"",0,0,null,null,0,0,0,0,0,0,0,0,0,0,0,0,0,0,0,0]
[null,null,null,null,null,null,null,null,"",0,0,null,null,0,0,0,0,0,0,0,0,0,0,0,0,0,0,0,0]
[null,null,null,null,null,null,null,null,"",0,0,null,null,0,0,0,0,0,0,0,0,0,0,0,0,0,0,0,0]
[null,null,null,null,null,null,null,null,"",0,0,null,null,0,0,0,0,0,0,0,0,0,0,0,0,0,0,0,0]
[null,null,null,null,null,null,null,null,"",0,0,null,null,0,0,0,0,0,0,0,0,0,0,0,0,0,0,0,0]
[null,null,null,null,null,null,null,null,"",0,0,null,null,0,0,0,0,0,0,0,0,0,0,0,0,0,0,0,0]
[null,null,null,null,null,null,null,null,"",0,0,null,null,0,0,0,0,0,0,0,0,0,0,0,0,0,0,0,0]
[null,null,null,null,null,null,null,null,"",0,0,null,null,0,0,0,0,0,0,0,0,0,0,0,0,0,0,0,0]
[null,null,null,null,null,null,null,null,"",0,0,null,null,0,0,0,0,0,0,0,0,0,0,0,0,0,0,0,0]
[null,null,null,null,null,null,null,null,"",0,0,null,null,0,0,0,0,0,0,0,0,0,0,0,0,0,0,0,0]
[null,null,null,null,null,null,null,null,"",0,0,null,null,0,0,0,0,0,0,0,0,0,0,0,0,0,0,0,0]
[null,null,null,null,null,null,null,null,"",0,0,null,null,0,0,0,0,0,0,0,0,0,0,0,0,0,0,0,0]
[null,null,null,null,null,null,null,null,"",0,0,null,null,0,0,0,0,0,0,0,0,0,0,0,0,0,0,0,0]
[null,null,null,null,null,null,null,null,"",0,0,null,null,0,0,0,0,0,0,0,0,0,0,0,0,0,0,0,0]
[null,null,null,null,null,null,null,null,"",0,0,null,null,0,0,0,0,0,0,0,0,0,0,0,0,0,0,0,0]
[null,null,null,null,null,null,null,null,"",0,0,null,null,0,0,0,0,0,0,0,0,0,0,0,0,0,0,0,0]
[null,null,null,null,null,null,null,null,{"$f":"IF(H136>0,VLOOKUP(H136,prd,3,0),\"\")","v":""},{"$f":"IF(F136>0,C136*D136*E136,0)","v":0},0,null,null,0,0,0,0,0,0,0,0,0,0,0,0,0,0,0,0]
[null,null,null,null,null,null,null,null,"",0,{"$f":"K136+J137","v":0},null,null,0,0,0,0,0,0,0,0,0,0,0,0,0,0,0,0]
[null,null,null,null,null,null,null,null,"",0,0,null,null,0,0,0,0,0,0,0,0,0,0,0,0,0,0,0,0]
[null,null,null,null,null,null,null,null,"",0,0,null,null,0,0,0,0,0,0,0,0,0,0,0,0,0,0,0,0]
[null,null,null,null,null,null,null,null,"",0,0,null,null,{"$f":"AC140-AB140","v":0},{"$f":"VLOOKUP(M140,prod,2,0)","v":0},0,0,0,0,0,0,0,0,0,0,0,0,0,0]
[null,null,null,null,null,null,null,null,"",0,0,null,null,0,0,{"$f":"SUMIFS($J$8:$J$667,$A$8:$A$667,$P$11,$I$8:$I$667,O141)","v":0},{"$f":"SUMIFS($J$8:$J$667,$A$8:$A$667,$Q$11,$I$8:$I$667,O141)","v":0},{"$f":"SUMIFS($J$8:$J$667,$A$8:$A$667,$R$11,$I$8:$I$667,O141)","v":0},{"$f":"SUMIFS($J$8:$J$667,$A$8:$A$667,$S$11,$I$8:$I$667,O141)","v":0},{"$f":"SUMIFS($J$8:$J$667,$A$8:$A$667,$T$11,$I$8:$I$667,O141)","v":0},{"$f":"SUMIFS($J$8:$J$667,$A$8:$A$667,$U$11,$I$8:$I$667,O141)","v":0},{"$f":"SUMIFS($J$8:$J$667,$A$8:$A$667,$V$11,$I$8:$I$667,O141)","v":0},{"$f":"SUMIFS($J$8:$J$667,$A$8:$A$667,$W$11,$I$8:$I$667,O141)","v":0},{"$f":"SUMIFS($J$8:$J$667,$A$8:$A$667,$X$11,$I$8:$I$667,O141)","v":0},{"$f":"SUMIFS($J$8:$J$667,$A$8:$A$667,$Y$11,$I$8:$I$667,O141)","v":0},{"$f":"SUMIFS($J$8:$J$667,$A$8:$A$667,$Z$11,$I$8:$I$667,O141)","v":0},{"$f":"SUMIFS($J$8:$J$667,$A$8:$A$667,$AA$11,$I$8:$I$667,O141)","v":0},{"$f":"SUM(P141:AA141)","v":0},{"$f":"SUM(AD141:BR141)","v":0}]
[null,null,null,null,null,null,null,null,"",0,0,null,null,0,0,0,0,0,0,0,0,0,0,0,0,0,0,0,0]
[null,null,null,null,null,null,null,null,"",0,0,null,null,0,0,0,0,0,0,0,0,0,0,0,0,0,0,0,0]
[null,null,null,null,null,null,null,null,"",0,0,null,null,0,0,0,0,0,0,0,0,0,0,0,0,0,0,0,0]
[null,null,null,null,null,null,null,null,"",0,0,null,null,0,0,0,0,0,0,0,0,0,0,0,0,0,0,0,0]
[null,null,null,null,null,null,null,null,"",0,0,null,null,0,0,0,0,0,0,0,0,0,0,0,0,0,0,0,0]
[null,null,null,null,null,null,null,null,"",0,0,null,null,0,0,0,0,0,0,0,0,0,0,0,0,0,0,0,0]
[null,null,null,null,null,null,null,null,"",0,0,null,null,0,0,0,0,0,0,0,0,0,0,0,0,0,0,0,0]
[null,null,null,null,null,null,null,null,"",0,0,null,null,0,0,0,0,0,0,0,0,0,0,0,0,0,0,0,0]
[null,null,null,null,null,null,null,null,"",0,0,null,null,0,0,0,0,0,0,0,0,0,0,0,0,0,0,0,0]
[null,null,null,null,null,null,null,null,"",0,0,null,null,0,0,0,0,0,0,0,0,0,0,0,0,0,0,0,0]
[null,null,null,null,null,null,null,null,"",0,0,null,null,0,0,0,0,0,0,0,0,0,0,0,0,0,0,0,0]
[null,null,null,null,null,null,null,null,"",0,0,null,null,0,0,0,0,0,0,0,0,0,0,0,0,0,0,0,0]
[null,null,null,null,null,null,null,null,"",0,0,null,null,0,0,0,0,0,0,0,0,0,0,0,0,0,0,0,0]
[null,null,null,null,null,null,null,null,"",0,0,null,null,0,0,0,0,0,0,0,0,0,0,0,0,0,0,0,0]
[null,null,null,null,null,null,null,null,"",0,0,null,null,0,0,0,0,0,0,0,0,0,0,0,0,0,0,0,0]
[null,null,null,null,null,null,null,null,"",0,0,null,null,0,0,0,0,0,0,0,0,0,0,0,0,0,0,0,0]
[null,null,null,null,null,null,null,null,"",0,0,null,null,0,0,0,0,0,0,0,0,0,0,0,0,0,0,0,0]
[null,null,null,null,null,null,null,null,"",0,0,null,null,0,0,0,0,0,0,0,0,0,0,0,0,0,0,0,0]
[null,null,null,null,null,null,null,null,"",0,0,null,null,0,0,0,0,0,0,0,0,0,0,0,0,0,0,0,0]
[null,null,null,null,null,null,null,null,"",0,0,null,null,0,0,0,0,0,0,0,0,0,0,0,0,0,0,0,0]
[null,null,null,null,null,null,null,null,"",0,0,null,null,0,0,0,0,0,0,0,0,0,0,0,0,0,0,0,0]
[null,null,null,null,null,null,null,null,"",0,0,null,null,0,0,0,0,0,0,0,0,0,0,0,0,0,0,0,0]
[null,null,null,null,null,null,null,null,"",0,0,null,null,0,0,0,0,0,0,0,0,0,0,0,0,0,0,0,0]
[null,null,null,null,null,null,null,null,"",0,0,null,null,0,0,0,0,0,0,0,0,0,0,0,0,0,0,0,0]
[null,null,null,null,null,null,null,null,"",0,0,null,null,0,0,0,0,0,0,0,0,0,0,0,0,0,0,0,0]
[null,null,null,null,null,null,null,null,"",0,0,null,null,0,0,0,0,0,0,0,0,0,0,0,0,0,0,0,0]
[null,null,null,null,null,null,null,null,"",0,0,null,null,0,0,0,0,0,0,0,0,0,0,0,0,0,0,0,0]
[null,null,null,null,null,null,null,null,"",0,0,null,null,0,0,0,0,0,0,0,0,0,0,0,0,0,0,0,0]
[null,null,null,null,null,null,null,null,"",0,0,null,null,0,0,0,0,0,0,0,0,0,0,0,0,0,0,0,0]
[null,null,null,null,null,null,null,null,"",0,0,null,null,0,0,0,0,0,0,0,0,0,0,0,0,0,0,0,0]
[null,null,null,null,null,null,null,null,"",0,0,null,null,0,{"$f":"VLOOKUP(M172,prod,2,0)","v":0},0,0,0,0,0,0,0,0,0,0,0,0,0,0]
[null,null,null,null,null,null,null,null,"",0,0,null,null,0,0,0,0,0,0,0,0,0,0,0,0,0,0,0,0]
[null,null,null,null,null,null,null,null,"",0,0,null,null,0,0,0,0,0,0,0,0,0,0,0,0,0,0,0,0]
[null,null,null,null,null,null,null,null,"",0,0,null,null,0,0,0,0,0,0,0,0,0,0,0,0,0,0,0,0]
[null,null,null,null,null,null,null,null,"",0,0,null,null,0,0,0,0,0,0,0,0,0,0,0,0,0,0,0,0]
[null,null,null,null,null,null,null,null,"",0,0,null,null,0,0,0,0,0,0,0,0,0,0,0,0,0,0,0,0]
[null,null,null,null,null,null,null,null,"",0,0,null,null,0,0,0,0,0,0,0,0,0,0,0,0,0,0,0,0]
[null,null,null,null,null,null,null,null,"",0,0,null,null,0,0,0,0,0,0,0,0,0,0,0,0,0,0,0,0]
[null,null,null,null,null,null,null,null,"",0,0,null,null,0,0,0,0,0,0,0,0,0,0,0,0,0,0,0,0]
[null,null,null,null,null,null,null,null,"",0,0,null,null,0,0,0,0,0,0,0,0,0,0,0,0,0,0,0,0]
[null,null,null,null,null,null,null,null,"",0,0,null,null,0,0,0,0,0,0,0,0,0,0,0,0,0,0,0,0]
[null,null,null,null,null,null,null,null,"",0,0,null,null,0,0,0,0,0,0,0,0,0,0,0,0,0,0,0,0]
[null,null,null,null,null,null,null,null,"",0,0,null,null,0,0,0,0,0,0,0,0,0,0,0,0,0,0,0,0]
[null,null,null,null,null,null,null,null,"",0,0,null,null,0,0,0,0,0,0,0,0,0,0,0,0,0,0,0,0]
[null,null,null,null,null,null,null,null,"",0,0,null,null,0,0,0,0,0,0,0,0,0,0,0,0,0,0,0,0]
[null,null,null,null,null,null,null,null,"",0,0,null,null,0,0,0,0,0,0,0,0,0,0,0,0,0,0,0,0]
[null,null,null,null,null,null,null,null,"",0,0,null,null,0,0,0,0,0,0,0,0,0,0,0,0,0,0,0,0]
[null,null,null,null,null,null,null,null,"",0,0,null,null,0,0,0,0,0,0,0,0,0,0,0,0,0,0,0,0]
[null,null,null,null,null,null,null,null,"",0,0,null,null,0,0,0,0,0,0,0,0,0,0,0,0,0,0,0,0]
[null,null,null,null,null,null,null,null,"",0,0,null,null,0,0,0,0,0,0,0,0,0,0,0,0,0,0,0,0]
[null,null,null,null,null,null,null,null,"",0,0,null,null,0,0,0,0,0,0,0,0,0,0,0,0,0,0,0,0]
[null,null,null,null,null,null,null,null,"",0,0,null,null,0,0,0,0,0,0,0,0,0,0,0,0,0,0,0,0]
[null,null,null,null,null,null,null,null,"",0,0,null,null,0,0,0,0,0,0,0,0,0,0,0,0,0,0,0,0]
[null,null,null,null,null,null,null,null,"",0,0,null,null,0,0,0,0,0,0,0,0,0,0,0,0,0,0,0,0]
[null,null,null,null,null,null,null,null,"",0,0,null,null,0,0,0,0,0,0,0,0,0,0,0,0,0,0,0,0]
[null,null,null,null,null,null,null,null,"",0,0,null,null,0,0,0,0,0,0,0,0,0,0,0,0,0,0,0,0]
[null,null,null,null,null,null,null,null,"",0,0,null,null,0,0,0,0,0,0,0,0,0,0,0,0,0,0,0,0]
[null,null,null,null,null,null,null,null,"",0,0,null,null,0,0,0,0,0,0,0,0,0,0,0,0,0,0,0,0]
[null,null,null,null,null,null,null,null,{"$f":"IF(H200>0,VLOOKUP(H200,prd,3,0),\"\")","v":""},{"$f":"IF(F200>0,C200*D200*E200,0)","v":0},0,null,null,0,0,0,0,0,0,0,0,0,0,0,0,0,0,0,0]
[null,null,null,null,null,null,null,null,"",0,{"$f":"K200+J201","v":0},null,null,0,0,0,0,0,0,0,0,0,0,0,0,0,0,0,0]
[null,null,null,null,null,null,null,null,"",0,0,null,null,0,0,0,0,0,0,0,0,0,0,0,0,0,0,0,0]
[null,null,null,null,null,null,null,null,"",0,0,null,null,0,0,0,0,0,0,0,0,0,0,0,0,0,0,0,0]
[null,null,null,null,null,null,null,null,"",0,0,null,null,{"$f":"AC204-AB204","v":0},0,0,0,0,0,0,0,0,0,0,0,0,0,0,0]
[null,null,null,null,null,null,null,null,"",0,0,null,null,0,0,{"$f":"SUMIFS($J$8:$J$667,$A$8:$A$667,$P$11,$I$8:$I$667,O205)","v":0},{"$f":"SUMIFS($J$8:$J$667,$A$8:$A$667,$Q$11,$I$8:$I$667,O205)","v":0},{"$f":"SUMIFS($J$8:$J$667,$A$8:$A$667,$R$11,$I$8:$I$667,O205)","v":0},{"$f":"SUMIFS($J$8:$J$667,$A$8:$A$667,$S$11,$I$8:$I$667,O205)","v":0},{"$f":"SUMIFS($J$8:$J$667,$A$8:$A$667,$T$11,$I$8:$I$667,O205)","v":0},{"$f":"SUMIFS($J$8:$J$667,$A$8:$A$667,$U$11,$I$8:$I$667,O205)","v":0},{"$f":"SUMIFS($J$8:$J$667,$A$8:$A$667,$V$11,$I$8:$I$667,O205)","v":0},{"$f":"SUMIFS($J$8:$J$667,$A$8:$A$667,$W$11,$I$8:$I$667,O205)","v":0},{"$f":"SUMIFS($J$8:$J$667,$A$8:$A$667,$X$11,$I$8:$I$667,O205)","v":0},{"$f":"SUMIFS($J$8:$J$667,$A$8:$A$667,$Y$11,$I$8:$I$667,O205)","v":0},{"$f":"SUMIFS($J$8:$J$667,$A$8:$A$667,$Z$11,$I$8:$I$667,O205)","v":0},{"$f":"SUMIFS($J$8:$J$667,$A$8:$A$667,$AA$11,$I$8:$I$667,O205)","v":0},{"$f":"SUM(P205:AA205)","v":0},{"$f":"SUM(AD205:BR205)","v":0}]
[null,null,null,null,null,null,null,null,"",0,0,null,null,0,0,{"$f":"SUMIFS($J$8:$J$667,$A$8:$A$667,$P$11,$I$8:$I$667,O206)","v":0},{"$f":"SUMIFS($J$8:$J$667,$A$8:$A$667,$Q$11,$I$8:$I$667,O206)","v":0},{"$f":"SUMIFS($J$8:$J$667,$A$8:$A$667,$R$11,$I$8:$I$667,O206)","v":0},{"$f":"SUMIFS($J$8:$J$667,$A$8:$A$667,$S$11,$I$8:$I$667,O206)","v":0},{"$f":"SUMIFS($J$8:$J$667,$A$8:$A$667,$T$11,$I$8:$I$667,O206)","v":0},{"$f":"SUMIFS($J$8:$J$667,$A$8:$A$667,$U$11,$I$8:$I$667,O206)","v":0},{"$f":"SUMIFS($J$8:$J$667,$A$8:$A$667,$V$11,$I$8:$I$667,O206)","v":0},{"$f":"SUMIFS($J$8:$J$667,$A$8:$A$667,$W$11,$I$8:$I$667,O206)","v":0},{"$f":"SUMIFS($J$8:$J$667,$A$8:$A$667,$X$11,$I$8:$I$667,O206)","v":0},{"$f":"SUMIFS($J$8:$J$667,$A$8:$A$667,$Y$11,$I$8:$I$667,O206)","v":0},{"$f":"SUMIFS($J$8:$J$667,$A$8:$A$667,$Z$11,$I$8:$I$667,O206)","v":0},{"$f":"SUMIFS($J$8:$J$667,$A$8:$A$667,$AA$11,$I$8:$I$667,O206)","v":0},0,0]
[null,null,null,null,null,null,null,null,"",0,0,null,null,0,0,{"$f":"SUMIFS($J$8:$J$667,$A$8:$A$667,$P$11,$I$8:$I$667,O207)","v":0},{"$f":"SUMIFS($J$8:$J$667,$A$8:$A$667,$Q$11,$I$8:$I$667,O207)","v":0},{"$f":"SUMIFS($J$8:$J$667,$A$8:$A$667,$R$11,$I$8:$I$667,O207)","v":0},{"$f":"SUMIFS($J$8:$J$667,$A$8:$A$667,$S$11,$I$8:$I$667,O207)","v":0},{"$f":"SUMIFS($J$8:$J$667,$A$8:$A$667,$T$11,$I$8:$I$667,O207)","v":0},{"$f":"SUMIFS($J$8:$J$667,$A$8:$A$667,$U$11,$I$8:$I$667,O207)","v":0},{"$f":"SUMIFS($J$8:$J$667,$A$8:$A$667,$V$11,$I$8:$I$667,O207)","v":0},{"$f":"SUMIFS($J$8:$J$667,$A$8:$A$667,$W$11,$I$8:$I$667,O207)","v":0},{"$f":"SUMIFS($J$8:$J$667,$A$8:$A$667,$X$11,$I$8:$I$667,O207)","v":0},{"$f":"SUMIFS($J$8:$J$667,$A$8:$A$667,$Y$11,$I$8:$I$667,O207)","v":0},{"$f":"SUMIFS($J$8:$J$667,$A$8:$A$667,$Z$11,$I$8:$I$667,O207)","v":0},{"$f":"SUMIFS($J$8:$J$667,$A$8:$A$667,$AA$11,$I$8:$I$667,O207)","v":0},0,0]
[null,null,null,null,null,null,null,null,"",0,0,null,null,0,0,{"$f":"SUMIFS($J$8:$J$667,$A$8:$A$667,$P$11,$I$8:$I$667,O208)","v":0},{"$f":"SUMIFS($J$8:$J$667,$A$8:$A$667,$Q$11,$I$8:$I$667,O208)","v":0},{"$f":"SUMIFS($J$8:$J$667,$A$8:$A$667,$R$11,$I$8:$I$667,O208)","v":0},{"$f":"SUMIFS($J$8:$J$667,$A$8:$A$667,$S$11,$I$8:$I$667,O208)","v":0},{"$f":"SUMIFS($J$8:$J$667,$A$8:$A$667,$T$11,$I$8:$I$667,O208)","v":0},{"$f":"SUMIFS($J$8:$J$667,$A$8:$A$667,$U$11,$I$8:$I$667,O208)","v":0},{"$f":"SUMIFS($J$8:$J$667,$A$8:$A$667,$V$11,$I$8:$I$667,O208)","v":0},{"$f":"SUMIFS($J$8:$J$667,$A$8:$A$667,$W$11,$I$8:$I$667,O208)","v":0},{"$f":"SUMIFS($J$8:$J$667,$A$8:$A$667,$X$11,$I$8:$I$667,O208)","v":0},{"$f":"SUMIFS($J$8:$J$667,$A$8:$A$667,$Y$11,$I$8:$I$667,O208)","v":0},{"$f":"SUMIFS($J$8:$J$667,$A$8:$A$667,$Z$11,$I$8:$I$667,O208)","v":0},{"$f":"SUMIFS($J$8:$J$667,$A$8:$A$667,$AA$11,$I$8:$I$667,O208)","v":0},0,0]
[null,null,null,null,null,null,null,null,"",0,0,null,null,-50,"الإجمالى",{"$f":"SUM(P12:P208)","v":0},0,0,0,0,0,0,0,0,0,0,50,50]
[null,null,null,null,null,null,null,null,"",0,0,null,null,0]
[null,null,null,null,null,null,null,null,"",0,0,null,null,0]
[null,null,null,null,null,null,null,null,"",0,0,null,null,0]
[null,null,null,null,null,null,null,null,"",0,0,null,null,0]
[null,null,null,null,null,null,null,null,"",0,0,null,null,0]
[null,null,null,null,null,null,null,null,"",0,0,null,null,0]
[null,null,null,null,null,null,null,null,"",0,0,null,null,0]
[null,null,null,null,null,null,null,null,"",0,0,null,null,0]
[null,null,null,null,null,null,null,null,"",0,0,null,null,0]
[null,null,null,null,null,null,null,null,"",0,0,null,null,0]
[null,null,null,null,null,null,null,null,"",0,0,null,null,0]
[null,null,null,null,null,null,null,null,"",0,0,null,null,0]
[null,null,null,null,null,null,null,null,"",0,0,null,null,0]
[null,null,null,null,null,null,null,null,"",0,0,null,null,0]
[null,null,null,null,null,null,null,null,"",0,0,null,null,0]
[null,null,null,null,null,null,null,null,"",0,0,null,null,0]
[null,null,null,null,null,null,null,null,"",0,0,null,null,0]
[null,null,null,null,null,null,null,null,"",0,0,null,null,0]
[null,null,null,null,null,null,null,null,"",0,0,null,null,0]
[null,null,null,null,null,null,null,null,"",0,0,null,null,0]
[null,null,null,null,null,null,null,null,"",0,0,null,null,0]
[null,null,null,null,null,null,null,null,"",0,0,null,null,0]
[null,null,null,null,null,null,null,null,"",0,0,null,null,0]
[null,null,null,null,null,null,null,null,"",0,0,null,null,0]
[null,null,null,null,null,null,null,null,"",0,0,null,null,0]
[null,null,null,null,null,null,null,null,"",0,0,null,null,0]
[null,null,null,null,null,null,null,null,"",0,0]
[null,null,null,null,null,null,null,null,"",0,0]
[null,null,null,null,null,null,null,null,"",0,0]
[null,null,null,null,null,null,null,null,"",0,0]
[null,null,null,null,null,null,null,null,"",0,0]
[null,null,null,null,null,null,null,null,"",0,0]
[null,null,null,null,null,null,null,null,"",0,0]
[null,null,null,null,null,null,null,null,"",0,0]
[null,null,null,null,null,null,null,null,"",0,0]
[null,null,null,null,null,null,null,null,"",0,0]
[null,null,null,null,null,null,null,null,"",0,0]
[null,null,null,null,null,null,null,null,"",0,0]
[null,null,null,null,null,null,null,null,"",0,0]
[null,null,null,null,null,null,null,null,"",0,0]
[null,null,null,null,null,null,null,null,"",0,0]
[null,null,null,null,null,null,null,null,"",0,0]
[null,null,null,null,null,null,null,null,"",0,0]
[null,null,null,null,null,null,null,null,"",0,0]
[null,null,null,null,null,null,null,null,"",0,0]
[null,null,null,null,null,null,null,null,"",0,0]
[null,null,null,null,null,null,null,null,"",0,0]
[null,null,null,null,null,null,null,null,"",0,0]
[null,null,null,null,null,null,null,null,"",0,0]
[null,null,null,null,null,null,null,null,"",0,0]
[null,null,null,null,null,null,null,null,"",0,0]
[null,null,null,null,null,null,null,null,"",0,0]
[null,null,null,null,null,null,null,null,"",0,0]
[null,null,null,null,null,null,null,null,"",0,0]
[null,null,null,null,null,null,null,null,{"$f":"IF(H264>0,VLOOKUP(H264,prd,3,0),\"\")","v":""},{"$f":"IF(F264>0,C264*D264*E264,0)","v":0},0]
[null,null,null,null,null,null,null,null,"",0,{"$f":"K264+J265","v":0}]
[null,null,null,null,null,null,null,null,"",0,0]
[null,null,null,null,null,null,null,null,"",0,0]
[null,null,null,null,null,null,null,null,"",0,0]
[null,null,null,null,null,null,null,null,"",0,0]
[null,null,null,null,null,null,null,null,"",0,0]
[null,null,null,null,null,null,null,null,"",0,0]
[null,null,null,null,null,null,null,null,"",0,0]
[null,null,null,null,null,null,null,null,"",0,0]
[null,null,null,null,null,null,null,null,"",0,0]
[null,null,null,null,null,null,null,null,"",0,0]
[null,null,null,null,null,null,null,null,"",0,0]
[null,null,null,null,null,null,null,null,"",0,0]
[null,null,null,null,null,null,null,null,"",0,0]
[null,null,null,null,null,null,null,null,"",0,0]
[null,null,null,null,null,null,null,null,"",0,0]
[null,null,null,null,null,null,null,null,"",0,0]
[null,null,null,null,null,null,null,null,"",0,0]
[null,null,null,null,null,null,null,null,"",0,0]
[null,null,null,null,null,null,null,null,"",0,0]
[null,null,null,null,null,null,null,null,"",0,0]
[null,null,null,null,null,null,null,null,"",0,0]
[null,null,null,null,null,null,null,null,"",0,0]
[null,null,null,null,null,null,null,null,"",0,0]
[null,null,null,null,null,null,null,null,"",0,0]
[null,null,null,null,null,null,null,null,"",0,0]
[null,null,null,null,null,null,null,null,"",0,0]
[null,null,null,null,null,null,null,null,"",0,0]
[null,null,null,null,null,null,null,null,"",0,0]
[null,null,null,null,null,null,null,null,"",0,0]
[null,null,null,null,null,null,null,null,"",0,0]
[null,null,null,null,null,null,null,null,"",0,0]
[null,null,null,null,null,null,null,null,"",0,0]
[null,null,null,null,null,null,null,null,"",0,0]
[null,null,null,null,null,null,null,null,"",0,0]
[null,null,null,null,null,null,null,null,"",0,0]
[null,null,null,null,null,null,null,null,"",0,0]
[null,null,null,null,null,null,null,null,"",0,0]
[null,null,null,null,null,null,null,null,"",0,0]
[null,null,null,null,null,null,null,null,"",0,0]
[null,null,null,null,null,null,null,null,"",0,0]
[null,null,null,null,null,null,null,null,"",0,0]
[null,null,null,null,null,null,null,null,"",0,0]
[null,null,null,null,null,null,null,null,"",0,0]
[null,null,null,null,null,null,null,null,"",0,0]
[null,null,null,null,null,null,null,null,"",0,0]
[null,null,null,null,null,null,null,null,"",0,0]
[null,null,null,null,null,null,null,null,"",0,0]
[null,null,null,null,null,null,null,null,"",0,0]
[null,null,null,null,null,null,null,null,"",0,0]
[null,null,null,null,null,null,null,null,"",0,0]
[null,null,null,null,null,null,null,null,"",0,0]
[null,null,null,null,null,null,null,null,"",0,0]
[null,null,null,null,null,null,null,null,"",0,0]
[null,null,null,null,null,null,null,null,"",0,0]
[null,null,null,null,null,null,null,null,"",0,0]
[null,null,null,null,null,null,null,null,"",0,0]
[null,null,null,null,null,null,null,null,"",0,0]
[null,null,null,null,null,null,null,null,"",0,0]
[null,null,null,null,null,null,null,null,"",0,0]
[null,null,null,null,null,null,null,null,"",0,0]
[null,null,null,null,null,null,null,null,"",0,0]
[null,null,null,null,null,null,null,null,"",0,0]
[null,null,null,null,null,null,null,null,{"$f":"IF(H328>0,VLOOKUP(H328,prd,3,0),\"\")","v":""},{"$f":"IF(F328>0,C328*D328*E328,0)","v":0},0]
[null,null,null,null,null,null,null,null,"",0,{"$f":"K328+J329","v":0}]
[null,null,null,null,null,null,null,null,"",0,0]
[null,null,null,null,null,null,null,null,"",0,0]
[null,null,null,null,null,null,null,null,"",0,0]
[null,null,null,null,null,null,null,null,"",0,0]
[null,null,null,null,null,null,null,null,"",0,0]
[null,null,null,null,null,null,null,null,"",0,0]
[null,null,null,null,null,null,null,null,"",0,0]
[null,null,null,null,null,null,null,null,"",0,0]
[null,null,null,null,null,null,null,null,"",0,0]
[null,null,null,null,null,null,null,null,"",0,0]
[null,null,null,null,null,null,null,null,"",0,0]
[null,null,null,null,null,null,null,null,"",0,0]
[null,null,null,null,null,null,null,null,"",0,0]
[null,null,null,null,null,null,null,null,"",0,0]
[null,null,null,null,null,null,null,null,"",0,0]
[null,null,null,null,null,null,null,null,"",0,0]
[null,null,null,null,null,null,null,null,"",0,0]
[null,null,null,null,null,null,null,null,"",0,0]
[null,null,null,null,null,null,null,null,"",0,0]
[null,null,null,null,null,null,null,null,"",0,0]
[null,null,null,null,null,null,null,null,"",0,0]
[null,null,null,null,null,null,null,null,"",0,0]
[null,null,null,null,null,null,null,null,"",0,0]
[null,null,null,null,null,null,null,null,"",0,0]
[null,null,null,null,null,null,null,null,"",0,0]
[null,null,null,null,null,null,null,null,"",0,0]
[null,null,null,null,null,null,null,null,"",0,0]
[null,null,null,null,null,null,null,null,"",0,0]
[null,null,null,null,null,null,null,null,"",0,0]
[null,null,null,null,null,null,null,null,"",0,0]
[null,null,null,null,null,null,null,null,"",0,0]
[null,null,null,null,null,null,null,null,"",0,0]
[null,null,null,null,null,null,null,null,"",0,0]
[null,null,null,null,null,null,null,null,"",0,0]
[null,null,null,null,null,null,null,null,"",0,0]
[null,null,null,null,null,null,null,null,"",0,0]
[null,null,null,null,null,null,null,null,"",0,0]
[null,null,null,null,null,null,null,null,"",0,0]
[null,null,null,null,null,null,null,null,"",0,0]
[null,null,null,null,null,null,null,null,"",0,0]
[null,null,null,null,null,null,null,null,"",0,0]
[null,null,null,null,null,null,null,null,"",0,0]
[null,null,null,null,null,null,null,null,"",0,0]
[null,null,null,null,null,null,null,null,"",0,0]
[null,null,null,null,null,null,null,null,"",0,0]
[null,null,null,null,null,null,null,null,"",0,0]
[null,null,null,null,null,null,null,null,"",0,0]
[null,null,null,null,null,null,null,null,"",0,0]
[null,null,null,null,null,null,null,null,"",0,0]
[null,null,null,null,null,null,null,null,"",0,0]
[null,null,null,null,null,null,null,null,"",0,0]
[null,null,null,null,null,null,null,null,"",0,0]
[null,null,null,null,null,null,null,null,"",0,0]
[null,null,null,null,null,null,null,null,"",0,0]
[null,null,null,null,null,null,null,null,"",0,0]
[null,null,null,null,null,null,null,null,"",0,0]
[null,null,null,null,null,null,null,null,"",0,0]
[null,null,null,null,null,null,null,null,"",0,0]
[null,null,null,null,null,null,null,null,"",0,0]
[null,null,null,null,null,null,null,null,"",0,0]
[null,null,null,null,null,null,null,null,"",0,0]
[null,null,null,null,null,null,null,null,"",0,0]
[null,null,null,null,null,null,null,null,{"$f":"IF(H392>0,VLOOKUP(H392,prd,3,0),\"\")","v":""},{"$f":"IF(F392>0,C392*D392*E392,0)","v":0},0]
[null,null,null,null,null,null,null,null,"",0,{"$f":"K392+J393","v":0}]
[null,null,null,null,null,null,null,null,"",0,0]
[null,null,null,null,null,null,null,null,"",0,0]
[null,null,null,null,null,null,null,null,"",0,0]
[null,null,null,null,null,null,null,null,"",0,0]
[null,null,null,null,null,null,null,null,"",0,0]
[null,null,null,null,null,null,null,null,"",0,0]
[null,null,null,null,null,null,null,null,"",0,0]
[null,null,null,null,null,null,null,null,"",0,0]
[null,null,null,null,null,null,null,null,"",0,0]
[null,null,null,null,null,null,null,null,"",0,0]
[null,null,null,null,null,null,null,null,"",0,0]
[null,null,null,null,null,null,null,null,"",0,0]
[null,null,null,null,null,null,null,null,"",0,0]
[null,null,null,null,null,null,null,null,"",0,0]
[null,null,null,null,null,null,null,null,"",0,0]
[null,null,null,null,null,null,null,null,"",0,0]
[null,null,null,null,null,null,null,null,"",0,0]
[null,null,null,null,null,null,null,null,"",0,0]
[null,null,null,null,null,null,null,null,"",0,0]
[null,null,null,null,null,null,null,null,"",0,0]
[null,null,null,null,null,null,null,null,"",0,0]
[null,null,null,null,null,null,null,null,"",0,0]
[null,null,null,null,null,null,null,null,"",0,0]
[null,null,null,null,null,null,null,null,"",0,0]
[null,null,null,null,null,null,null,null,"",0,0]
[null,null,null,null,null,null,null,null,"",0,0]
[null,null,null,null,null,null,null,null,"",0,0]
[null,null,null,null,null,null,null,null,"",0,0]
[null,null,null,null,null,null,null,null,"",0,0]
[null,null,null,null,null,null,null,null,"",0,0]
[null,null,null,null,null,null,null,null,"",0,0]
[null,null,null,null,null,null,null,null,"",0,0]
[null,null,null,null,null,null,null,null,"",0,0]
[null,null,null,null,null,null,null,null,"",0,0]
[null,null,null,null,null,null,null,null,"",0,0]
[null,null,null,null,null,null,null,null,"",0,0]
[null,null,null,null,null,null,null,null,"",0,0]
[null,null,null,null,null,null,null,null,"",0,0]
[null,null,null,null,null,null,null,null,"",0,0]
[null,null,null,null,null,null,null,null,"",0,0]
[null,null,null,null,null,null,null,null,"",0,0]
[null,null,null,null,null,null,null,null,"",0,0]
[null,null,null,null,null,null,null,null,"",0,0]
[null,null,null,null,null,null,null,null,"",0,0]
[null,null,null,null,null,null,null,null,"",0,0]
[null,null,null,null,null,null,null,null,"",0,0]
[null,null,null,null,null,null,null,null,"",0,0]
[null,null,null,null,null,null,null,null,"",0,0]
[null,null,null,null,null,null,null,null,"",0,0]
[null,null,null,null,null,null,null,null,"",0,0]
[null,null,null,null,null,null,null,null,"",0,0]
[null,null,null,null,null,null,null,null,"",0,0]
[null,null,null,null,null,null,null,null,"",0,0]
[null,null,null,null,null,null,null,null,"",0,0]
[null,null,null,null,null,null,null,null,"",0,0]
[null,null,null,null,null,null,null,null,"",0,0]
[null,null,null,null,null,null,null,null,"",0,0]
[null,null,null,null,null,null,null,null,"",0,0]
[null,null,null,null,null,null,null,null,"",0,0]
[null,null,null,null,null,null,null,null,"",0,0]
[null,null,null,null,null,null,null,null,"",0,0]
[null,null,null,null,null,null,null,null,"",0,0]
[null,null,null,null,null,null,null,null,{"$f":"IF(H456>0,VLOOKUP(H456,prd,3,0),\"\")","v":""},{"$f":"IF(F456>0,C456*D456*E456,0)","v":0},0]
[null,null,null,null,null,null,null,null,"",0,{"$f":"K456+J457","v":0}]
[null,null,null,null,null,null,null,null,"",0,0]
[null,null,null,null,null,null,null,null,"",0,0]
[null,null,null,null,null,null,null,null,"",0,0]
[null,null,null,null,null,null,null,null,"",0,0]
[null,null,null,null,null,null,null,null,"",0,0]
[null,null,null,null,null,null,null,null,"",0,0]
[null,null,null,null,null,null,null,null,"",0,0]
[null,null,null,null,null,null,null,null,"",0,0]
[null,null,null,null,null,null,null,null,"",0,0]
[null,null,null,null,null,null,null,null,"",0,0]
[null,null,null,null,null,null,null,null,"",0,0]
[null,null,null,null,null,null,null,null,"",0,0]
[null,null,null,null,null,null,null,null,"",0,0]
[null,null,null,null,null,null,null,null,"",0,0]
[null,null,null,null,null,null,null,null,"",0,0]
[null,null,null,null,null,null,null,null,"",0,0]
[null,null,null,null,null,null,null,null,"",0,0]
[null,null,null,null,null,null,null,null,"",0,0]
[null,null,null,null,null,null,null,null,"",0,0]
[null,null,null,null,null,null,null,null,"",0,0]
[null,null,null,null,null,null,null,null,"",0,0]
[null,null,null,null,null,null,null,null,"",0,0]
[null,null,null,null,null,null,null,null,"",0,0]
[null,null,null,null,null,null,null,null,"",0,0]
[null,null,null,null,null,null,null,null,"",0,0]
[null,null,null,null,null,null,null,null,"",0,0]
[null,null,null,null,null,null,null,null,"",0,0]
[null,null,null,null,null,null,null,null,"",0,0]
[null,null,null,null,null,null,null,null,"",0,0]
[null,null,null,null,null,null,null,null,"",0,0]
[null,null,null,null,null,null,null,null,"",0,0]
[null,null,null,null,null,null,null,null,"",0,0]
[null,null,null,null,null,null,null,null,"",0,0]
[null,null,null,null,null,null,null,null,"",0,0]
[null,null,null,null,null,null,null,null,"",0,0]
[null,null,null,null,null,null,null,null,"",0,0]
[null,null,null,null,null,null,null,null,"",0,0]
[null,null,null,null,null,null,null,null,"",0,0]
[null,null,null,null,null,null,null,null,"",0,0]
[null,null,null,null,null,null,null,null,"",0,0]
[null,null,null,null,null,null,null,null,"",0,0]
[null,null,null,null,null,null,null,null,"",0,0]
[null,null,null,null,null,null,null,null,"",0,0]
[null,null,null,null,null,null,null,null,"",0,0]
[null,null,null,null,null,null,null,null,"",0,0]
[null,null,null,null,null,null,null,null,"",0,0]
[null,null,null,null,null,null,null,null,"",0,0]
[null,null,null,null,null,null,null,null,"",0,0]
[null,null,null,null,null,null,null,null,"",0,0]
[null,null,null,null,null,null,null,null,"",0,0]
[null,null,null,null,null,null,null,null,"",0,0]
[null,null,null,null,null,null,null,null,"",0,0]
[null,null,null,null,null,null,null,null,"",0,0]
[null,null,null,null,null,null,null,null,"",0,0]
[null,null,null,null,null,null,null,null,"",0,0]
[null,null,null,null,null,null,null,null,"",0,0]
[null,null,null,null,null,null,null,null,"",0,0]
[null,null,null,null,null,null,null,null,"",0,0]
[null,null,null,null,null,null,null,null,"",0,0]
[null,null,null,null,null,null,null,null,"",0,0]
[null,null,null,null,null,null,null,null,"",0,0]
[null,null,null,null,null,null,null,null,"",0,0]
[null,null,null,null,null,null,null,null,{"$f":"IF(H520>0,VLOOKUP(H520,prd,3,0),\"\")","v":""},{"$f":"IF(F520>0,C520*D520*E520,0)","v":0},0]
[null,null,null,null,null,null,null,null,"",0,{"$f":"K520+J521","v":0}]
[null,null,null,null,null,null,null,null,"",0,0]
[null,null,null,null,null,null,null,null,"",0,0]
[null,null,null,null,null,null,null,null,"",0,0]
[null,null,null,null,null,null,null,null,"",0,0]
[null,null,null,null,null,null,null,null,"",0,0]
[null,null,null,null,null,null,null,null,"",0,0]
[null,null,null,null,null,null,null,null,"",0,0]
[null,null,null,null,null,null,null,null,"",0,0]
[null,null,null,null,null,null,null,null,"",0,0]
[null,null,null,null,null,null,null,null,"",0,0]
[null,null,null,null,null,null,null,null,"",0,0]
[null,null,null,null,null,null,null,null,"",0,0]
[null,null,null,null,null,null,null,null,"",0,0]
[null,null,null,null,null,null,null,null,"",0,0]
[null,null,null,null,null,null,null,null,"",0,0]
[null,null,null,null,null,null,null,null,"",0,0]
[null,null,null,null,null,null,null,null,"",0,0]
[null,null,null,null,null,null,null,null,"",0,0]
[null,null,null,null,null,null,null,null,"",0,0]
[null,null,null,null,null,null,null,null,"",0,0]
[null,null,null,null,null,null,null,null,"",0,0]
[null,null,null,null,null,null,null,null,"",0,0]
[null,null,null,null,null,null,null,null,"",0,0]
[null,null,null,null,null,null,null,null,"",0,0]
[null,null,null,null,null,null,null,null,"",0,0]
[null,null,null,null,null,null,null,null,"",0,0]
[null,null,null,null,null,null,null,null,"",0,0]
[null,null,null,null,null,null,null,null,"",0,0]
[null,null,null,null,null,null,null,null,"",0,0]
[null,null,null,null,null,null,null,null,"",0,0]
[null,null,null,null,null,null,null,null,"",0,0]
[null,null,null,null,null,null,null,null,"",0,0]
[null,null,null,null,null,null,null,null,"",0,0]
[null,null,null,null,null,null,null,null,"",0,0]
[null,null,null,null,null,null,null,null,"",0,0]
[null,null,null,null,null,null,null,null,"",0,0]
[null,null,null,null,null,null,null,null,"",0,0]
[null,null,null,null,null,null,null,null,"",0,0]
[null,null,null,null,null,null,null,null,"",0,0]
[null,null,null,null,null,null,null,null,"",0,0]
[null,null,null,null,null,null,null,null,"",0,0]
[null,null,null,null,null,null,null,null,"",0,0]
[null,null,null,null,null,null,null,null,"",0,0]
[null,null,null,null,null,null,null,null,"",0,0]
[null,null,null,null,null,null,null,null,"",0,0]
[null,null,null,null,null,null,null,null,"",0,0]
[null,null,null,null,null,null,null,null,"",0,0]
[null,null,null,null,null,null,null,null,"",0,0]
[null,null,null,null,null,null,null,null,"",0,0]
[null,null,null,null,null,null,null,null,"",0,0]
[null,null,null,null,null,null,null,null,"",0,0]
[null,null,null,null,null,null,null,null,"",0,0]
[null,null,null,null,null,null,null,null,"",0,0]
[null,null,null,null,null,null,null,null,"",0,0]
[null,null,null,null,null,null,null,null,"",0,0]
[null,null,null,null,null,null,null,null,"",0,0]
[null,null,null,null,null,null,null,null,"",0,0]
[null,null,null,null,null,null,null,null,"",0,0]
[null,null,null,null,null,null,null,null,"",0,0]
[null,null,null,null,null,null,null,null,"",0,0]
[null,null,null,null,null,null,null,null,"",0,0]
[null,null,null,null,null,null,null,null,"",0,0]
[null,null,null,null,null,null,null,null,{"$f":"IF(H584>0,VLOOKUP(H584,prd,3,0),\"\")","v":""},{"$f":"IF(F584>0,C584*D584*E584,0)","v":0},0]
[null,null,null,null,null,null,null,null,"",0,{"$f":"K584+J585","v":0}]
[null,null,null,null,null,null,null,null,"",0,0]
[null,null,null,null,null,null,null,null,"",0,0]
[null,null,null,null,null,null,null,null,"",0,0]
[null,null,null,null,null,null,null,null,"",0,0]
[null,null,null,null,null,null,null,null,"",0,0]
[null,null,null,null,null,null,null,null,"",0,0]
[null,null,null,null,null,null,null,null,"",0,0]
[null,null,null,null,null,null,null,null,"",0,0]
[null,null,null,null,null,null,null,null,"",0,0]
[null,null,null,null,null,null,null,null,"",0,0]
[null,null,null,null,null,null,null,null,"",0,0]
[null,null,null,null,null,null,null,null,"",0,0]
[null,null,null,null,null,null,null,null,"",0,0]
[null,null,null,null,null,null,null,null,"",0,0]
[null,null,null,null,null,null,null,null,"",0,0]
[null,null,null,null,null,null,null,null,"",0,0]
[null,null,null,null,null,null,null,null,"",0,0]
[null,null,null,null,null,null,null,null,"",0,0]
[null,null,null,null,null,null,null,null,"",0,0]
[null,null,null,null,null,null,null,null,"",0,0]
[null,null,null,null,null,null,null,null,"",0,0]
[null,null,null,null,null,null,null,null,"",0,0]
[null,null,null,null,null,null,null,null,"",0,0]
[null,null,null,null,null,null,null,null,"",0,0]
[null,null,null,null,null,null,null,null,"",0,0]
[null,null,null,null,null,null,null,null,"",0,0]
[null,null,null,null,null,null,null,null,"",0,0]
[null,null,null,null,null,null,null,null,"",0,0]
[null,null,null,null,null,null,null,null,"",0,0]
[null,null,null,null,null,null,null,null,"",0,0]
[null,null,null,null,null,null,null,null,"",0,0]
[null,null,null,null,null,null,null,null,"",0,0]
[null,null,null,null,null,null,null,null,"",0,0]
[null,null,null,null,null,null,null,null,"",0,0]
[null,null,null,null,null,null,null,null,"",0,0]
[null,null,null,null,null,null,null,null,"",0,0]
[null,null,null,null,null,null,null,null,"",0,0]
[null,null,null,null,null,null,null,null,"",0,0]
[null,null,null,null,null,null,null,null,"",0,0]
[null,null,null,null,null,null,null,null,"",0,0]
[null,null,null,null,null,null,null,null,"",0,0]
[null,null,null,null,null,null,null,null,"",0,0]
[null,null,null,null,null,null,null,null,"",0,0]
[null,null,null,null,null,null,null,null,"",0,0]
[null,null,null,null,null,null,null,null,"",0,0]
[null,null,null,null,null,null,null,null,"",0,0]
[null,null,null,null,null,null,null,null,"",0,0]
[null,null,null,null,null,null,null,null,"",0,0]
[null,null,null,null,null,null,null,null,"",0,0]
[null,null,null,null,null,null,null,null,"",0,0]
[null,null,null,null,null,null,null,null,"",0,0]
[null,null,null,null,null,null,null,null,"",0,0]
[null,null,null,null,null,null,null,null,"",0,0]
[null,null,null,null,null,null,null,null,"",0,0]
[null,null,null,null,null,null,null,null,"",0,0]
[null,null,null,null,null,null,null,null,"",0,0]
[null,null,null,null,null,null,null,null,"",0,0]
[null,null,null,null,null,null,null,null,"",0,0]
[null,null,null,null,null,null,null,null,"",0,0]
[null,null,null,null,null,null,null,null,"",0,0]
[null,null,null,null,null,null,null,null,"",0,0]
[null,null,null,null,null,null,null,null,"",0,0]
[null,null,null,null,null,null,null,null,{"$f":"IF(H648>0,VLOOKUP(H648,prd,3,0),\"\")","v":""},{"$f":"IF(F648>0,C648*D648*E648,0)","v":0},0]
[null,null,null,null,null,null,null,null,"",0,{"$f":"K648+J649","v":0}]
[null,null,null,null,null,null,null,null,"",0,0]
[null,null,null,null,null,null,null,null,"",0,0]
[null,null,null,null,null,null,null,null,"",0,0]
[null,null,null,null,null,null,null,null,"",0,0]
[null,null,null,null,null,null,null,null,"",0,0]
[null,null,null,null,null,null,null,null,"",0,0]
[null,null,null,null,null,null,null,null,"",0,0]
[null,null,null,null,null,null,null,null,"",0,0]
[null,null,null,null,null,null,null,null,"",0,0]
[null,null,null,null,null,null,null,null,"",0,0]
[null,null,null,null,null,null,null,null,"",0,0]
[null,null,null,null,null,null,null,null,"",0,0]
[null,null,null,null,null,null,null,null,"",0,0]
[null,null,null,null,null,null,null,null,"",0,0]
[null,null,null,null,null,null,null,null,"",0,0]
[null,null,null,null,null,null,null,null,"",0,0]
[null,null,null,null,null,null,null,null,"",0,0]
[null,null,null,null,null,null,null,null,"",0,0]
[null,null,{"$f":"SUM(C7:C667)","v":0},"الإجمـــــــــــــــــــــــــالى",null,null,null,null,null,{"$f":"SUM(J8:J667)","v":0},{"$f":"K667","v":0}]
[null,"أمين المخزن",null,null,null,null,null,null,null,null,"المراجعه"]